Workbook

Sheet Cover Page
I12: Cost-Benefit Analysis of Portfolio Options for Closure of Aliso Canyon
D21: Prepared for:
D23: California Public Utility Commission | K23: =TODAY() -> 2021-11-01

Sheet Summary
B2: Key Inputs | F2: Benefit-Cost Ratio Results
B4: Inputs | C4: Value | D4: Units | F4: Portfolio | G4: 2027 | H4: 2035
B5: Capital Recover Factor | C5: =CRF!C20 -> 0.0635 | D5: % | F5: 1a. N. Zone Exp. | G5: ='Portfolio 1a-N. Zone Exp.'!C17 -> 0 | H5: ='Portfolio 1a-N. Zone Exp.'!D17 -> 0
B6: Social Discount Rate* | C6: 0.0166 | D6: % | F6: 1b. Wheeler Ridge Exp. | G6: ='Portfolio 1b-Wheeler Ridge Exp.'!C19 -> 0 | H6: ='Portfolio 1b-Wheeler Ridge Exp.'!D19 -> 0
B7: Social Cost of Carbon | C7: 51 | D7: $/tonne | F7: 2. Gas Demand Reduction | G7: ='Portfolio 2a-Electrification'!C16 -> 0.6576893935 | H7: ='Portfolio 2a-Electrification'!D16 -> 0.8295087937
B8: * 10-year Treasury from Treasury.gov as of 10/22/2021 | F8: 3. Generator Adds | G8: ='Portfolio 3-Generator Adds'!C19 -> 0.9584346349 | H8: ='Portfolio 3-Generator Adds'!D19 -> 1.200269094
F9: 4a. Transmission Exp. | G9: N/A | H9: ='Portfolio 4a-Transmission Exp.'!C15 -> 1.511270354
F10: 4b. Transmission Exp. | G10: N/A | H10: ='Portfolio 4b-Transmission'!C15 -> 1.852160699
F11: 5. TBD
B14: Legend | F14: Cost Results
B16: Label | C16: Label | F16: Portfolio | G16: 2027 | H16: 2035
B17: Input | C17: Input | F17: 1a. N. Zone Exp. | G17: ='Portfolio 1a-N. Zone Exp.'!C7 -> 47737000 | H17: ='Portfolio 1a-N. Zone Exp.'!D7 -> 20894000
B18: Direct Link | C18: Direct Link | F18: 1b. Wheeler Ridge Exp. | G18: ='Portfolio 1b-Wheeler Ridge Exp.'!C7 -> 150287000 | H18: ='Portfolio 1b-Wheeler Ridge Exp.'!D7 -> 105940000
B19: Lookup | C19: Lookup | F19: 2. Gas Demand Reduction | G19: ='Portfolio 2c-Combined'!C7 -> 252710000 | H19: ='Portfolio 2c-Combined'!D7 -> 212086000
B20: Calculation | C20: Calculation | F20: 3. Generator Adds | G20: ='Portfolio 3-Generator Adds'!C7 -> 635890000 | H20: ='Portfolio 3-Generator Adds'!D7 -> 567831000
B21: Output | C21: Output | F21: 4a. Transmission Exp. | G21: N/A | H21: ='Portfolio 4a-Transmission Exp.'!C7 -> 111221000
F22: 4b. Transmission Exp. | G22: N/A | H22: ='Portfolio 4b-Transmission'!$C$7 -> 79627000
F23: 5. TBD

Sheet Portfolio 1a-N. Zone Exp.
B2: Portfolio 1a: 2027 and 2035 Northern Zone Supply Expansion
B4: All values in 2019$'s in 2027
C6: 2027 | D6: 2035
B7: Annual Cost | C7: =C8 -> 47737000 | D7: =D8 -> 20894000
B8: Levelized Annual Cost | C8: =SUM(C9:C11) -> 47737000 | D8: =SUM(D9:D11) -> 20894000
B9: Pipelines | C9: =ROUND(SUM(E29:E31)*($C$47+$F$29),-3) -> 47519000 | D9: =ROUND((E39*($C$47+$F$39))/(1+Discount_Rate)^8,-3) -> 20703000
B10: Pressure Limiting Station | C10: =ROUND(E32*($C$47+$F$32),-3) -> 218000 | D10: =ROUND((E40*($C$47+$F$40))/(1+Discount_Rate)^8,-3) -> 191000
B11: CO2 Emissions Increase | C11: 0 | D11: 0
B12: Annual Benefits | C12: =SUM(C13:C15) -> 0 | D12: =SUM(D13:D15) -> 0
B13: Gas Cost Reduction | C13: 0 | D13: 0
B14: Electricity Cost Reduction | C14: 0 | D14: 0
B15: CO2 Emissions Reduction | C15: 0 | D15: 0
B16: Net Benefit | C16: =C12-C7 -> -47737000 | D16: =(D12-D7) -> -20894000
B17: Benefit-Cost Ratio | C17: =C12/C7 -> 0 | D17: =D12/D7 -> 0
B20: Modeling Outputs
C22: 2027 | D22: 2035
B23: CO2 Emission Change
B26: Cost Assumptions - 2027
B28: Solution | C28: Miles | D28: Capex ($/mi) | E28: Capital Cost ($) | F28: Annual O&M (% of Capex)
B29: 48.5 Miles 36” Loop - Newberry towards Cajon Junction | C29: 48.5 | D29: ='Portfolio 1A - Cost Estimates'!$F$6 -> 8892000 | E29: =C29*D29 -> 431262000 | F29: 0.0005
B30: 20 Miles 36” Loop N Needles West | C30: 20 | D30: ='Portfolio 1A - Cost Estimates'!$F$6 -> 8892000 | E30: =C30*D30 -> 177840000 | F30: 0.0005
B31: 15 Miles 36” Loop Kelso CS West | C31: 15 | D31: ='Portfolio 1A - Cost Estimates'!$F$6 -> 8892000 | E31: =C31*D31 -> 133380000 | F31: 0.0005
B32: Expand Quigley Regulator Station | C32: N/A | E32: ='Portfolio 1A - Cost Estimates'!$F$9 -> 3410000 | F32: 0.0005
B33: Note: Pipeline capex based on public filings on the North-South Project and the PSRP Project; Quigley capital cost based on 2011 SoCal Gas filing.
B36: Cost Assumptions - 2035
B38: Solution | C38: Miles | D38: Capex ($/mi) | E38: Capital Cost ($) | F38: Annual O&M (% of Capex)
B39: 41.5 Miles 36” Loop - Newberry towards Cajon Junction | C39: 41.5 | D39: ='Portfolio 1A - Cost Estimates'!$F$6 -> 8892000 | E39: =C39*D39 -> 369018000 | F39: 0.0005
B40: Expand Quigley Regulator Station | C40: N/A | E40: ='Portfolio 1A - Cost Estimates'!$F$18 -> 3410000 | F40: 0.0005
B41: Note: Pipeline capex based on public filings on the North-South Project and the PSRP Project; Quigley capital cost based on 2011 SoCal Gas filing.
B44: Financial Assumptions
B46: Input | C46: Value | D46: Units | E46: Notes
B47: Capital Recovery Factor (CRF) Real - Moderate | C47: =CRF -> 0.0635 | D47: %/yr

Sheet Portfolio 1b-Wheeler Ridge Exp.
B2: Portfolio 1b: 2027 and 2035 Wheeler Ridge Expansion
B4: All values in 2019$'s in 2027
C6: 2027 | D6: 2035
B7: Annual Cost | C7: =C8+C11+C12 -> 150287000 | D7: =D8+D11+D12 -> 105940000
B8: Levelized Annual Cost | C8: =SUM(C9:C10) -> 20022000 | D8: =SUM(D9:D10) -> 12563000
B9: Pipelines | C9: =ROUND(SUM(E31:E31)*($C$52+$F$31),-3) -> 19804000 | D9: =ROUND((E39*($C$52+$F$39))/(1+Discount_Rate)^8,-3) -> 12372000
B10: Pressure Limiting Station | C10: =ROUND(E32*($C$52+$F$32),-3) -> 218000 | D10: =ROUND((E40*($C$52+$F$40))/(1+Discount_Rate)^8,-3) -> 191000
B11: Storage | C11: 21570000 | D11: =ROUND((17640000)/(1+Discount_Rate)^8,-3) -> 15463000
B12: PGE Pipeline tariff | C12: =ROUND($C$47*$C$48*365*1000000*$C$51/1000000/$C$50,-3) -> 108695000 | D12: =ROUND(($C$47*$C$49*365*1000000*$C$51/1000000/$C$50)/(1+Discount_Rate)^8,-3) -> 77914000
B13: CO2 Emissions Increase | C13: 0 | D13: 0
B14: Annual Benefits | C14: =SUM(C15:C17) -> 0 | D14: =SUM(D15:D17) -> 0
B15: Gas Cost Reduction | C15: 0 | D15: 0
B16: Electricity Cost Reduction | C16: 0 | D16: 0
B17: CO2 Emissions Reduction | C17: 0 | D17: 0
B18: Net Benefit | C18: =C14-C7 -> -150287000 | D18: =(D14-D7) -> -105940000
B19: Benefit-Cost Ratio | C19: =C14/C7 -> 0 | D19: =D14/D7 -> 0
B21: Based on Gil Ranch storage costs for PG&E; assumed shortfall amount met by storage is carried forward even though it declines because of how constracts are structured
B22: Modeling Outputs
C24: 2027 | D24: 2035
B25: CO2 Emission Change | C25: Insignificant | D25: Insignificant
B28: Cost Assumptions - 2027
B30: Solution | C30: Miles | D30: Capex ($/mi) | E30: Capital Cost ($) | F30: Annual O&M (% of Capex)
B31: 34.8 Miles 36” Loop - Wheeler Ridge South | C31: 34.8 | D31: ='Portfolio 1B - Cost Estimates'!$F$6 -> 8892000 | E31: =C31*D31 -> 309441600 | F31: 0.0005
B32: Expand Quigley Regulator Station | C32: N/A | E32: ='Portfolio 1B - Cost Estimates'!$F$7 -> 3410000 | F32: 0.0005
B33: Note: Pipeline capex based on public filings on the North-South Project and the PSRP Project; Quigley capital cost based on 2011 SoCal Gas filing.
B36: Cost Assumptions - 2035
B38: Solution | C38: Miles | D38: Capex ($/mi) | E38: Capital Cost ($) | F38: Annual O&M (% of Capex)
B39: 24.8 Miles 36” Loop - Wheeler Ridge South | C39: 24.8 | D39: ='Portfolio 1B - Cost Estimates'!$F$14 -> 8892000 | E39: =C39*D39 -> 220521600 | F39: 0.0005
B40: Expand Quigley Regulator Station | C40: N/A | E40: ='Portfolio 1B - Cost Estimates'!$F$15 -> 3410000 | F40: 0.0005
B41: Note: Pipeline capex based on public filings on the North-South Project and the PSRP Project; Quigley capital cost based on 2011 SoCal Gas filing.
B44: Other Assumptions
B46: Input | C46: Value | D46: Units | E46: Notes
B47: PG&E Firm Transportation Tariff | C47: 0.7294 | D47: $/dTh
B48: 2027 Shortfall | C48: 395 | D48: mmcf/d
B49: 2035 Shortfall | C49: 323 | D49: mmcf/d
B50: MMBtu per dekatherm | C50: 1 | D50: MMBtu/dTh
B51: Gas Heating Value | C51: 1033.6 | D51: Btu/scf
B52: Capital Recovery Factor (CRF) Real - Moderate | C52: =CRF -> 0.0635 | D52: %/yr | E52: NRETL ATB rate for 40 years

Sheet Portfolio 2a-Electrification
B2: Portfolio 2a: Electrification and Electric Energy Efficiency
B4: All values in 2019$'s in 2027
C6: 2027 | D6: 2035
B7: Annual Cost | C7: =C8+C11 -> 176854000 | D7: =D8+D11 -> 175751000
B8: Levelized Annual Cost | C8: =C9 -> 126446000 | D8: =D9 -> 155512000
B9: Electrification | C9: =ROUND(E28*($C$45+$F$28),-3) -> 126446000 | D9: =ROUND((E36*($C$45+$F$36))/(1+Discount_Rate)^8,-3) -> 155512000
B10: Electric Energy Efficiency | C10: 0 | D10: 0
B11: CO2 Emissions Increase - Power | C11: =ROUND(C22*SCC,-3) -> 50408000 | D11: =ROUND((D22*SCC)/(1+Discount_Rate)^8,-3) -> 20239000
B12: Annual Benefits | C12: =SUM(C14:C14) -> 116315000 | D12: =SUM(D14:D14) -> 145787000
B13: Electric Energy Efficiency | C13: 0 | D13: 0
B14: CO2 Emissions Reduction - Gas | C14: =ROUND($C$28*365*$C$47*$C$46/1000*SCC,-3) -> 116315000 | D14: =ROUND(($C$36*365*$C$47*$C$46/1000*SCC)/(1+Discount_Rate)^8,-3) -> 145787000
B15: Net Benefit | C15: =C12-C7 -> -60539000 | D15: =(D12-D7) -> -29964000
B16: Benefit-Cost Ratio | C16: =C12/C7 -> 0.6576893935 | D16: =D12/D7 -> 0.8295087937
B19: Modeling Outputs
C21: 2027 | D21: 2035
B22: CO2 Emission Change (ton) | C22: 988391 | D22: 452703.9971
B25: Modeling Inputs - 2027
B27: Solution | C27: Capacity (mmcf/d) | D27: Capex ($/mmcf/d) | E27: Capital Cost ($) | F27: Annual O&M (% of Capex)
B28: Electrification - Annual Average | C28: 114 | D28: =E28/C28 -> 17467285.96 | E28: =1991.2706*1000000 -> 1991270600 | F28: 0
B29: Electrification - Peak Day | C29: 145
B30: Electrification + Energy Efficiency - Annual Average | C30: =C28-14 -> 100
B31: Electrification + Energy Efficiency - Peak Day | C31: =C29-30 -> 115
B33: Modeling Inputs - 2035
B35: Solution | C35: Capacity (mmcf/d) | D35: Capex ($/mmcf/d) | E35: Capital Cost ($) | F35: Annual O&M (% of Capex)
B36: Electrification - Annual Average | C36: 163 | D36: =E36/C36 -> 17139762.96 | E36: =2793.78136226458*1000000 -> 2793781362 | F36: 0
B37: Electrification - Peak Day | C37: =C36*C29/C28 -> 207.3245614
B38: Electrification + Energy Efficiency - Annual Average | C38: =C36-5 -> 158
B39: Electrification + Energy Efficiency - Peak Day | C39: 170
B42: Other Assumptions
B44: Input | C44: Value | D44: Units | F44: Notes
B45: Capital Recovery Factor (CRF) Real - Moderate | C45: =CRF -> 0.0635 | D45: %/yr
B46: Natural Gas CO2 Emissions Factor | C46: 53.06 | D46: kg/MMBtu
B47: Gas Heating Value | C47: 1033 | D47: Btu/scf

Sheet Portfolio 2b-Ind Dmnd Response
B2: Portfolio 2b: Industrial Demand Response
B4: All values in 2019$'s in 2027
C6: 2027 | D6: 2035
B7: Annual Cost | C7: =C8 -> 107011000 | D7: =D8 -> 76707000
B8: Levelized Annual Cost | C8: =ROUND(SUM(C9:C10),-3) -> 107011000 | D8: =ROUND(SUM(D9:D10),-3) -> 76707000
B9: Industrial Demand Response | C9: =ROUND($E$28*(CRF+$F$28),-3) -> 107011000 | D9: =ROUND(($E$34*(CRF+$F$34))/(1+Discount_Rate)^8,-3) -> 76707000
B10: CO2 Emissions Increase - Power | C10: 0 | D10: 0
B11: Annual Benefits | C11: =SUM(C12:C12) -> 0 | D11: =SUM(D12:D12) -> 0
B12: Gas Cost Reduction | C12: 0 | D12: 0
B13: Electricity Cost Reduction | C13: 0 | D13: 0
B14: CO2 Emissions Reduction - Gas | C14: 0 | D14: 0
B15: Net Benefit | C15: =C11-C7 -> -107011000 | D15: =(D11-D7) -> -76707000
B16: Benefit-Cost Ratio | C16: =C11/C7 -> 0 | D16: =D11/D7 -> 0
B19: Modeling Outputs
C21: 2027 | D21: 2035
B22: CO2 Emission Change (ton) | C22: Insignificant | D22: Insignificant
B25: Modeling Inputs - 2027
B27: Solution | C27: Capacity (mmcf/d) | D27: Capex ($/mmcf/d) | E27: Capital Cost ($) | F27: Annual O&M (% of Capex)
B28: Industrial Demand Response | C28: 395 | D28: ='Liquefaction-Peak Shaving'!$C$10*1000000 -> 3617024.11 | E28: =C28*D28 -> 1428724524 | F28: ='Liquefaction-Peak Shaving'!$C$12 -> 0.0114
B31: Modeling Inputs - 2035
B33: Solution | C33: Capacity (mmcf/d) | D33: Capex ($/mmcf/d) | E33: Capital Cost ($) | F33: Annual O&M (% of Capex)
B34: Industrial Demand Response | C34: 323 | D34: ='Liquefaction-Peak Shaving'!$C$10*1000000 -> 3617024.11 | E34: =C34*D34 -> 1168298788 | F34: ='Liquefaction-Peak Shaving'!$C$12 -> 0.0114
B36: Other Assumptions
B38: Input | C38: Value | D38: Units | E38: Source
B39: Capital Recovery Factor (CRF) Real - Moderate | C39: =CRF -> 0.0635 | D39: %/yr | E39: NREL ATB
B40: Natural Gas CO2 Emissions Factor | C40: 53.06 | D40: kg/MMBtu
B41: Gas Heating Value | C41: 1033 | D41: Btu/scf

Sheet Portfolio 2c-Combined
B2: Portfolio 2c: Combined Demand Reduction
B4: All values in 2019$'s in 2027
C6: 2027 | D6: 2035
B7: Annual Cost | C7: =C8+C12 -> 252710000 | D7: =D8+D12 -> 212086000
B8: Levelized Annual Cost | C8: =SUM(C9:C11) -> 202302000 | D8: =SUM(D9:D11) -> 191847000
B9: Electrification | C9: ='Portfolio 2a-Electrification'!C9 -> 126446000 | D9: ='Portfolio 2a-Electrification'!D9 -> 155512000
B10: Electric Energy Efficiency | C10: ='Portfolio 2a-Electrification'!C10 -> 0 | D10: ='Portfolio 2a-Electrification'!D10 -> 0
B11: Industrial Demand Response | C11: =ROUND($E$30*(CRF+$G$30),-3) -> 75856000 | D11: =ROUND(($E$36*(CRF+$G$36))/(1+Discount_Rate)^8,-3) -> 36335000
B12: CO2 Emissions Increase - Power | C12: ='Portfolio 2a-Electrification'!C11 -> 50408000 | D12: ='Portfolio 2a-Electrification'!D11 -> 20239000
B13: Annual Benefits | C13: =SUM(C14:C16) -> 116315000 | D13: =SUM(D14:D16) -> 145787000
B14: Gas Cost Reduction | C14: 0 | D14: 0
B15: Electricity Cost Reduction | C15: 0 | D15: 0
B16: CO2 Emissions Reduction - Gas | C16: ='Portfolio 2a-Electrification'!C14 -> 116315000 | D16: ='Portfolio 2a-Electrification'!D14 -> 145787000
B17: Net Benefit | C17: =C13-C7 -> -136395000 | D17: =(D13-D7) -> -66299000
B18: Benefit-Cost Ratio | C18: =C13/C7 -> 0.460270666 | D18: =D13/D7 -> 0.6873956791
B21: Modeling Outputs
C23: 2027 | D23: 2035
B24: CO2 Emission Change (ton) | C24: 988391 | D24: 452703.9971
B27: Modeling Inputs - 2027
B29: Solution | C29: Capacity (mmcf/d) | D29: Capex ($/mmcf/d) | E29: Capital Cost ($) | F29: Annual Program Cost/MMCFD ($/MMCFD) | G29: Annual O&M (% of Capex)
B30: Industrial Demand Response | C30: ='Portfolio 2b-Ind Dmnd Response'!C28-'Portfolio 2a-Electrification'!C31 -> 280 | D30: ='Liquefaction-Peak Shaving'!$C$10*1000000 -> 3617024.11 | E30: =C30*D30 -> 1012766751 | F30: =C11/C30 -> 270914.2857 | G30: ='Liquefaction-Peak Shaving'!$C$12 -> 0.0114
B33: Modeling Inputs - 2035
B35: Solution | C35: Capacity (mmcf/d) | D35: Capex ($/mmcf/d) | E35: Capital Cost ($) | F35: Annual Program Cost/MMCFD ($/MMCFD) | G35: Annual O&M (% of Capex)
B36: Industrial Demand Response | C36: ='Portfolio 2b-Ind Dmnd Response'!C34-'Portfolio 2a-Electrification'!C39 -> 153 | D36: ='Liquefaction-Peak Shaving'!$C$10*1000000 -> 3617024.11 | E36: =C36*D36 -> 553404688.9 | F36: =D11/C36 -> 237483.6601 | G36: ='Liquefaction-Peak Shaving'!$C$12 -> 0.0114
B38: Other Assumptions
B40: Input | C40: Value | D40: Units | E40: Source
B41: Capital Recovery Factor (CRF) Real - Moderate | C41: =CRF -> 0.0635 | D41: %/yr | E41: NREL ATB
B42: Natural Gas CO2 Emissions Factor | C42: 53.06 | D42: kg/MMBtu
B43: Gas Heating Value | C43: 1033 | D43: Btu/scf
B44: Gas Heating Value | C44: 670 | D44: mmcf/d
B45: Gas Heating Value | C45: 0.5 | D45: % | E45: FTI Assumption

Sheet Portfolio 3-Generator Adds
B2: Portfolio 3: Generator Additions
B4: All values in 2019$'s in 2027
C6: 2027 | D6: 2035
B7: Cost | C7: =C8 -> 635890000 | D7: =D8 -> 567831000
B8: Levelized Annual Cost | C8: =SUM(C9:C12) -> 635890000 | D8: =SUM(D9:D12) -> 567831000
B9: Wind | C9: =ROUND((C31*H31*(8760*G31))/(1+Discount_Rate)^8,-3) -> 100180000 | D9: =ROUND((C42*H42*(8760*G42))/(1+Discount_Rate)^8,-3) -> 169149000
B10: Geothermal | C10: =ROUND(C32*H32*(8760*G32),-3) -> 235344000 | D10: =ROUND((C43*H43*(8760*G43))/(1+Discount_Rate)^8,-3) -> 175707000
B11: Energy Storage - 4 hr | C11: =ROUND(C33*1000*(D33*CRF+E33),-3) -> 190245000 | D11: =ROUND((C44*1000*(D44*CRF+E44))/(1+Discount_Rate)^8,-3) -> 135532000
B12: Pumped Storage - 10 hr | C12: =ROUND(C34*1000*(D34*CRF+E34),-3) -> 110121000 | D12: =ROUND((C45*1000*(D45*CRF+E45))/(1+Discount_Rate)^8,-3) -> 87443000
B13: Benefits | C13: =SUM(C14:C17) -> 609459000 | D13: =SUM(D14:D17) -> 681550000
B14: Gas Cost Reduction | C14: =ROUND(26662584.7453556,-3) -> 26663000 | D14: =ROUND((22570360.657793)/(1+Discount_Rate)^8,-3) -> 19785000
B15: Electricity Cost Reduction | C15: =ROUND(385576590.4,-3) -> 385577000 | D15: =ROUND((579109753.599998)/(1+Discount_Rate)^8,-3) -> 507645000
B16: Resource Adequacy Increase | C16: =ROUND(C50*SUMPRODUCT(C31:C34,C51:C54)*1000,-3) -> 133831000 | D16: =ROUND((C50*SUMPRODUCT(C42:C45,C51:C54)*1000)/(1+Discount_Rate)^8,-3) -> 106194000
B17: CA CO2 Emissions Reduction | C17: =ROUND(C25*SCC,-3) -> 63388000 | D17: =ROUND((D25*SCC)/(1+Discount_Rate)^8,-3) -> 47926000
B18: Net Benefit | C18: =C13-C7 -> -26431000 | D18: =(D13-D7) -> 113719000
B19: 2027 Benefit-Cost Ratio | C19: =C13/C7 -> 0.9584346349 | D19: =D13/D7 -> 1.200269094
B22: Modeling Outputs
C24: 2027 | D24: 2035
B25: CO2 Emission Reduction (tonnes) | C25: 1242894 | D25: 1072027
B28: New Generator Cost and Performance Inputs - 2027
B30: Technology | C30: Capacity | D30: Capital Cost ($/kW) | E30: Fixed O&M ($/kW-y) | F30: Variable O&M ($/MWh) | G30: Capacity Factor | H30: Levelized Cost of Energy ($/MWh)
B31: Class 7 - Moderate | C31: 1497 | D31: =INDEX('Land-Based Wind PTC'!$L$156:$AQ$185,MATCH($B31,'Land-Based Wind PTC'!$K$156:$K$185,0),MATCH($C$6,'Land-Based Wind PTC'!$L$155:$AQ$155,0)) -> 1082.545455 | E31: =INDEX('Land-Based Wind PTC'!$L$252:$AQ$281,MATCH($B31,'Land-Based Wind PTC'!$K$252:$K$281,0),MATCH($C$6,'Land-Based Wind PTC'!$L$155:$AQ$155,0)) -> 40.05454545 | F31: =INDEX('Land-Based Wind PTC'!$L$284:$AQ$313,MATCH($B31,'Land-Based Wind PTC'!$K$284:$K$313,0),MATCH($C$6,'Land-Based Wind PTC'!$L$155:$AQ$155,0)) -> 0 | G31: 0.35 | H31: =INDEX('Land-Based Wind PTC'!$L$350:$AQ$379,MATCH(B31,'Land-Based Wind PTC'!$K$350:$K$379,0),MATCH(C6,'Land-Based Wind PTC'!$L$349:$AQ$349,0)) -> 24.89944759
B32: Hydro / Flash - Moderate | C32: 460 | D32: =INDEX(Geothermal!$L$148:$AQ$165,MATCH($B32,Geothermal!$K$148:$K$165,0),MATCH($C$6,Geothermal!$L$147:$AQ$147,0)) -> 5832.712806 | E32: =INDEX(Geothermal!$L$208:$AQ$225,MATCH($B32,Geothermal!$K$208:$K$225,0),MATCH($C$6,Geothermal!$L$147:$AQ$147,0)) -> 130.4204816 | F32: =INDEX(Geothermal!$L$228:$AQ$244,MATCH($B32,Geothermal!$K$228:$K$244,0),MATCH($C$6,Geothermal!$L$147:$AQ$147,0)) -> 0 | G32: =INDEX(Geothermal!$L$108:$AQ$125,MATCH($B32,Geothermal!$K$108:$K$125,0),MATCH($C$6,Geothermal!$L$147:$AQ$147,0)) -> 0.9 | H32: =INDEX(Geothermal!$L$270:$AQ$287,MATCH($B32,Geothermal!$K$270:$K$287,0),MATCH($C$6,Geothermal!$L$147:$AQ$147,0)) -> 64.89316411
B33: 4Hr Battery Storage - Conservative | C33: 1968 | D33: =INDEX('Utility-Scale Battery Storage'!$F$36:$AK$50,MATCH($B33,'Utility-Scale Battery Storage'!$E$36:$E$50,0),MATCH($C$6,'Utility-Scale Battery Storage'!$F$35:$AK$35,0)) -> 1092.30924 | E33: =INDEX('Utility-Scale Battery Storage'!$F$55:$AK$69,MATCH($B33,'Utility-Scale Battery Storage'!$E$55:$E$69,0),MATCH($C$6,'Utility-Scale Battery Storage'!$F$35:$AK$35,0)) -> 27.307731 | F33: =INDEX('Utility-Scale Battery Storage'!$F$72:$AK$86,MATCH($B33,'Utility-Scale Battery Storage'!$E$72:$E$86,0),MATCH($C$6,'Utility-Scale Battery Storage'!$F$35:$AK$35,0)) -> 0 | G33: N/A | H33: N/A
B34: Pumped Storage - 10 hr | C34: 409 | D34: ='Pumped Storage'!$D$25 -> 3767.153192 | E34: ='Pumped Storage'!$D$26 -> 30.02953043 | F34: 0 | G34: N/A | H34: N/A
B36: * Assumes 20 year capital recovery period with an extension of the PTC or ITC through 2027
B39: New Generator Cost and Peformance Inputs - 2035
B41: Technology | C41: Capacity | D41: Capital Cost ($/kW) | E41: Fixed O&M ($/kW-y) | F41: Variable O&M ($/MWh) | G41: Capacity Factor | H41: Levelized Cost of Energy ($/MWh)
B42: Class 7 - Moderate | C42: 1355.37306 | D42: =INDEX('Land-Based Wind'!$L$156:$AQ$185,MATCH($B42,'Land-Based Wind'!$K$156:$K$185,0),MATCH($D$6,'Land-Based Wind'!$L$155:$AQ$155,0)) -> 902.5 | E42: =INDEX('Land-Based Wind'!$L$252:$AQ$281,MATCH($B42,'Land-Based Wind'!$K$252:$K$281,0),MATCH($D$6,'Land-Based Wind'!$L$155:$AQ$155,0)) -> 37.489375 | F42: =INDEX('Land-Based Wind'!$L$284:$AQ$313,MATCH($B42,'Land-Based Wind'!$K$284:$K$313,0),MATCH($D$6,'Land-Based Wind'!$L$155:$AQ$155,0)) -> 0 | G42: 0.35 | H42: =C42*1000*(D42*CRF+E42)/D42/(8760*G42)+F42 -> 46.43433557
B43: Hydro / Flash - Moderate | C43: 416.4344552 | D43: =INDEX(Geothermal!$L$148:$AQ$165,MATCH($B43,Geothermal!$K$148:$K$165,0),MATCH($D$6,Geothermal!$L$147:$AQ$147,0)) -> 5412.79271 | E43: =INDEX(Geothermal!$L$208:$AQ$225,MATCH($B43,Geothermal!$K$208:$K$225,0),MATCH($D$6,Geothermal!$L$147:$AQ$147,0)) -> 127.5756677 | F43: =INDEX(Geothermal!$L$228:$AQ$244,MATCH($B43,Geothermal!$K$228:$K$244,0),MATCH($D$6,Geothermal!$L$147:$AQ$147,0)) -> 0 | G43: =INDEX(Geothermal!$L$108:$AQ$125,MATCH($B43,Geothermal!$K$108:$K$125,0),MATCH($D$6,Geothermal!$L$147:$AQ$147,0)) -> 0.9 | H43: =INDEX(Geothermal!$L$270:$AQ$287,MATCH($B43,Geothermal!$K$270:$K$287,0),MATCH($D$6,Geothermal!$L$147:$AQ$147,0)) -> 61.0513691
B44: 4Hr Battery Storage - Conservative | C44: 1781.069847 | D44: =INDEX('Utility-Scale Battery Storage'!$F$36:$AK$50,MATCH($B44,'Utility-Scale Battery Storage'!$E$36:$E$50,0),MATCH($D$6,'Utility-Scale Battery Storage'!$F$35:$AK$35,0)) -> 980.8854 | E44: =INDEX('Utility-Scale Battery Storage'!$F$55:$AK$69,MATCH($B44,'Utility-Scale Battery Storage'!$E$55:$E$69,0),MATCH($D$6,'Utility-Scale Battery Storage'!$F$35:$AK$35,0)) -> 24.522135 | F44: =INDEX('Utility-Scale Battery Storage'!$F$72:$AK$86,MATCH($B44,'Utility-Scale Battery Storage'!$E$72:$E$86,0),MATCH($D$6,'Utility-Scale Battery Storage'!$F$35:$AK$35,0)) -> 0 | G44: N/A | H44: N/A
B45: Pumped Storage - 10 hr | C45: 370.4932875 | D45: ='Pumped Storage'!$D$25 -> 3767.153192 | E45: ='Pumped Storage'!$D$26 -> 30.02953043 | F45: 0 | G45: N/A | H45: N/A
B47: * Assumes 20 year capital recovery period and no extension of the PTC or ITC
B49: Parameter | C49: Capacity | D49: Units | E49: Source
B50: Resource Adequacy Value - 2019 | C50: ='RA Prices'!$E$5*12 -> 43.56 | D50: $/kW-y
B51: Wind ELCC | C51: 0.191 | D51: % | E51: CPUC Report
B52: Geothermal ELCC | C52: 0.89 | D52: % | E52: CPUC Energy Division Analysis
B53: Energy Storage (4 hr) ELCC | C53: 1 | D53: % | E53: FTI Assumption
B54: Pumped Storage (10 hr) ELCC | C54: 1 | D54: % | E54: CPUC Energy Division Analysis
B56: Source:

Sheet Portfolio 4a-Transmission Exp.
B2: Portfolio 4a: CAISO Interface Increase of 2,875 MW
B4: All values in 2019$'s in 2027
C6: 2035
B7: Cost | C7: =C8 -> 111221000
B8: Levelized Annual Cost | C8: =ROUND(($C$27*$C$28*1000*($C$29+CRF))/(1+Discount_Rate)^8,-3) -> 111221000
B9: Benefits | C9: =SUM(C10:C13) -> 168085000
B10: Gas Cost Reduction | C10: =ROUND((2679480.21447659)/(1+Discount_Rate)^8,-3) -> 2349000
B11: Electricity Cost Reduction | C11: =ROUND((120632549)/(1+Discount_Rate)^8,-3) -> 105746000
B12: Resource Adequacy Increase | C12: =ROUND((C33*C27*1000)/(1+Discount_Rate)^8,-3) -> 57241000
B13: CA CO2 Emissions Reduction | C13: =ROUND((C21*SCC)/(1+Discount_Rate)^8,-3) -> 2749000
B14: Net Benefit | C14: =(C9-C7) -> 56864000
B15: 2027 Benefit-Cost Ratio | C15: =C9/C7 -> 1.511270354
B18: Modeling Outputs
C20: 2035
B21: CO2 Emission Reduction (tonnes) | C21: 61493.28926
B24: Transmission Cost and Financing Assumptions
B26: Input | C26: Value | D26: Units | E26: Source
B27: Capacity | C27: 2849 | D27: MW
B28: Capex | C28: ='Transmission Cost'!I12 -> 695.846864 | D28: $/kW | E28: Testimony of Yi Zhang (CAISO) and Nebiyu Yimer (CAISO) in Certificate of Public Convenience and Necessity for the Ten West Link Project Application 16-10-012, Dec 20, 2019
B29: O&M | C29: 0.0005 | D29: $/kW-y | E29: FTI Assumption
B32: Parameter | C32: Capacity | D32: Units
B33: Resource Adequacy Value (Imports) - 2019 | C33: ='RA Prices'!$E$10*12 -> 22.92 | D33: $/kW-y

Sheet Portfolio 4b-Transmission
B2: Portfolio 4b: CAISO Interface Increase of 1,000 MW + AZ-LADWP Transmission Capacity Increase of 1,000 MW
B4: All values in 2019$'s in 2027
C6: 2035
B7: Cost | C7: =C8+C9 -> 79627000
B8: Levelized Annual Cost | C8: =ROUND(($C$27*$C$28*1000*($C$29+CRF))/(1+Discount_Rate)^8,-3) -> 78077000
B9: CA CO2 Emissions Increase | C9: =ROUND(-(C21*SCC)/(1+Discount_Rate)^8,-3) -> 1550000
B10: Benefits | C10: =SUM(C11:C13) -> 147482000
B11: Gas Cost Reduction | C11: =ROUND((3014076.31270981)/(1+Discount_Rate)^8,-3) -> 2642000
B12: Electricity Cost Reduction | C12: =ROUND((119390391)/(1+Discount_Rate)^8,-3) -> 104657000
B13: Resource Adequacy Increase | C13: =ROUND((C33*C27*1000)/(1+Discount_Rate)^8,-3) -> 40183000
B14: Net Benefit | C14: =(C10-C7) -> 67855000
B15: 2027 Benefit-Cost Ratio | C15: =C10/C7 -> 1.852160699
B18: Modeling Outputs
C20: 2035
B21: CO2 Emission Reduction (tonnes) | C21: -34661.40843
B24: Transmission Cost and Financing Assumptions
B26: Input | C26: Value | D26: Units | E26: Source
B27: Capacity | C27: 2000 | D27: MW
B28: Capex | C28: ='Transmission Cost'!$I$12 -> 695.846864 | D28: $/kW | E28: Testimony of Yi Zhang (CAISO) and Nebiyu Yimer (CAISO) in Certificate of Public Convenience and Necessity for the Ten West Link Project Application 16-10-012, Dec 20, 2019
B29: O&M | C29: 0.0005 | D29: $/kW-y | E29: Assumption
B32: Parameter | C32: Capacity | D32: Units
B33: Resource Adequacy Value (Imports) - 2019 | C33: ='RA Prices'!$E$10*12 -> 22.92 | D33: $/kW-y

Sheet Benchmark Costs>>

Sheet NREL ATB 2021>>

Sheet Land-Based Wind PTC
A1: Land-Based Wind | L1: https://atb.nrel.gov/electricity/2021/land-based_wind
T3: Inputs
J4: Take me to: | T4: Calculated
B7: X | G7: Assumptions
H9: Technology | J9: Basis Year: | L9: 2019
J10: All values are given in 2019 U.S. dollars, using the Consumer Price Index (BLS, 2020) for dollar year conversions. Projections use an inflation assumption of 2.5% per year.
J11: Land-Based Wind Classes
J12: Wind Classes | K12: Wind Speed Range (m/s) | L12: Weighted Average Wind Speed (m/s)
J14: Class1 | K14: > 9.0 | L14: 9.5
J15: Class2 | K15: 8.8 - 9.0 | L15: 8.9
J16: Class3 | K16: 8.6 - 8.8 | L16: 8.7
J17: Class4 | K17: 8.4 - 8.6 | L17: 8.5
J18: Class5 | K18: 8.1 - 8.4 | L18: 8.2
J19: Class6 | K19: 7.6 - 8.1 | L19: 7.8
J20: Class7 | K20: 7.1 - 7.6 | L20: 7.4
J21: Class8 | K21: 6.5 - 7.1 | L21: 6.8
J22: Class9 | K22: 5.9 - 6.5 | L22: 6.2
J23: Class10 | K23: 0 - 5.9 | L23: 5.2
J24: Total
J25: Wind speeds presented in table are assumed to be 110 meters above the surface
H28: Finance | J28: Financial Assumptions:
J29: Inflation Rate | N29: =L57 -> 0.025
J30: Capital Recovery Period (Years) | N30: =S30 -> 20 | S30: 20
J31: Interest Rate Nominal - Moderate | N31: =L59 -> 0.04
J32: Calculated Interest Rate Real - Moderate | N32: =L62 -> 0.01463414634
J33: Interest During Construction - Nominal | N33: =N31 -> 0.04
J34: Rate of Return on Equity Nominal - Moderate | N34: =L66 -> 0.09
J35: Calculated Rate of Return on Equity Real - Moderate | N35: =L69 -> 0.06341463415
J36: Debt Fraction - Moderate | N36: =L72 -> 0.3159512896
J37: Tax Rate (Federal and State) | N37: =L74 -> 0.2574
J38: WACC Nominal - Moderate | N38: =L76 -> 0.07094940104
J39: WACC Real - Moderate | N39: =L79 -> 0.04482868394
J40: Depreciation Period | N40: 5
J41: Construction Finance Factor | N41: =SUMPRODUCT(K51:K53,L51:L53,M51:M53)+SUMPRODUCT(K51:K53,O51:O53,N51:N53) -> 1.043685344
J42: Present Value of Depreciation | N42: =SUMPRODUCT(R50:W50,R52:W52) -> 0.8295924761
J43: Project Finance Factor | N43: =(1 - N37 * N42) / (1 - N37) -> 1.059066653
J44: Capital Recovery Factor (CRF) Nominal - Moderate | N44: =L82 -> 0.09509057816
J45: Capital Recovery Factor (CRF) Real - Moderate | N45: =L85 -> 0.07676206602
J46: Equity Premium During Construction | N46: 0.02
J47: Cost of equity during construction | N47: =N34+N46 -> 0.11
J48: Construction Duration yrs | L48: 3
J49: Year | K49: Capital | L49: Accumulated | M49: Percent of Leverage During Construction | N49: Percent of Equity During Construction | O49: Accumulated | Q49: MACRS yr | R49: 1 | S49: 2 | T49: 3 | U49: 4 | V49: 5 | W49: 6
J50: Index | K50: Fraction | L50: Interest | O50: Equity Cost | Q50: Depreciation | R50: 0.2 | S50: 0.32 | T50: 0.192 | U50: 0.1152 | V50: 0.1152 | W50: 0.0576
J51: 0 | K51: 0.8 | L51: =1+((1+N33)^(J51+0.5)-1) -> 1.019803903 | M51: 0.8 | N51: =1-M51 -> 0.2 | O51: =1+((1+$N$47)^(J51+0.5)-1) -> 1.053565375 | Q51: Fraction
J52: 1 | K52: 0.1 | L52: =1+((1+N33)^(J52+0.5)-1) -> 1.060596059 | M52: 0.8 | N52: =1-M52 -> 0.2 | O52: =1+((1+$N$47)^(J52+0.5)-1) -> 1.169457567 | Q52: Depreciation | R52: =1/((1+N39)*(1+N29))^R49 -> 0.9337509307 | S52: =1/((1+N39)*(1+N29))^S49 -> 0.8718908007 | T52: =1/((1+N39)*(1+N29))^T49 -> 0.8141288466 | U52: =1/((1+N39)*(1+N29))^U49 -> 0.7601935683 | V52: =1/((1+N39)*(1+N29))^V49 -> 0.7098314519 | W52: =1/((1+N39)*(1+N29))^W49 -> 0.6628057789
J53: 2 | K53: 0.1 | L53: =1+((1+N33)^(J53+0.5)-1) -> 1.103019901 | M53: 0.8 | N53: =1-M53 -> 0.2 | O53: =1+((1+$N$47)^(J53+0.5)-1) -> 1.298097899 | Q53: Factor
L56: 2019 | M56: 2020 | N56: 2021 | O56: 2022 | P56: 2023 | Q56: 2024 | R56: 2025 | S56: 2026 | T56: 2027 | U56: 2028 | V56: 2029 | W56: 2030 | X56: 2031 | Y56: 2032 | Z56: 2033 | AA56: 2034 | AB56: 2035 | AC56: 2036 | AD56: 2037 | AE56: 2038 | AF56: 2039 | AG56: 2040 | AH56: 2041 | AI56: 2042 | AJ56: 2043 | AK56: 2044 | AL56: 2045 | AM56: 2046 | AN56: 2047 | AO56: 2048 | AP56: 2049 | AQ56: 2050
J57: Assumptions | K57: ='[13]WACC Calc'!B342 -> Inflation Rate | L57: ='[13]WACC Calc'!F342 -> 0.025 | M57: ='[13]WACC Calc'!G342 -> 0.025 | N57: ='[13]WACC Calc'!H342 -> 0.025 | O57: ='[13]WACC Calc'!I342 -> 0.025 | P57: ='[13]WACC Calc'!J342 -> 0.025 | Q57: ='[13]WACC Calc'!K342 -> 0.025 | R57: ='[13]WACC Calc'!L342 -> 0.025 | S57: ='[13]WACC Calc'!M342 -> 0.025 | T57: ='[13]WACC Calc'!N342 -> 0.025 | U57: ='[13]WACC Calc'!O342 -> 0.025 | V57: ='[13]WACC Calc'!P342 -> 0.025 | W57: ='[13]WACC Calc'!Q342 -> 0.025 | X57: ='[13]WACC Calc'!R342 -> 0.025 | Y57: ='[13]WACC Calc'!S342 -> 0.025 | Z57: ='[13]WACC Calc'!T342 -> 0.025 | AA57: ='[13]WACC Calc'!U342 -> 0.025 | AB57: ='[13]WACC Calc'!V342 -> 0.025 | AC57: ='[13]WACC Calc'!W342 -> 0.025 | AD57: ='[13]WACC Calc'!X342 -> 0.025 | AE57: ='[13]WACC Calc'!Y342 -> 0.025 | AF57: ='[13]WACC Calc'!Z342 -> 0.025 | AG57: ='[13]WACC Calc'!AA342 -> 0.025 | AH57: ='[13]WACC Calc'!AB342 -> 0.025 | AI57: ='[13]WACC Calc'!AC342 -> 0.025 | AJ57: ='[13]WACC Calc'!AD342 -> 0.025 | AK57: ='[13]WACC Calc'!AE342 -> 0.025 | AL57: ='[13]WACC Calc'!AF342 -> 0.025 | AM57: ='[13]WACC Calc'!AG342 -> 0.025 | AN57: ='[13]WACC Calc'!AH342 -> 0.025 | AO57: ='[13]WACC Calc'!AI342 -> 0.025 | AP57: ='[13]WACC Calc'!AJ342 -> 0.025 | AQ57: ='[13]WACC Calc'!AK342 -> 0.025
K58: ='[13]WACC Calc'!B343 -> Interest Rate Nominal - Advanced | L58: ='[13]WACC Calc'!F343 -> 0.04 | M58: ='[13]WACC Calc'!G343 -> 0.04 | N58: ='[13]WACC Calc'!H343 -> 0.04 | O58: ='[13]WACC Calc'!I343 -> 0.04 | P58: ='[13]WACC Calc'!J343 -> 0.04 | Q58: ='[13]WACC Calc'!K343 -> 0.04 | R58: ='[13]WACC Calc'!L343 -> 0.04 | S58: ='[13]WACC Calc'!M343 -> 0.042 | T58: ='[13]WACC Calc'!N343 -> 0.044 | U58: ='[13]WACC Calc'!O343 -> 0.046 | V58: ='[13]WACC Calc'!P343 -> 0.048 | W58: ='[13]WACC Calc'!Q343 -> 0.05 | X58: ='[13]WACC Calc'!R343 -> 0.05 | Y58: ='[13]WACC Calc'!S343 -> 0.05 | Z58: ='[13]WACC Calc'!T343 -> 0.05 | AA58: ='[13]WACC Calc'!U343 -> 0.05 | AB58: ='[13]WACC Calc'!V343 -> 0.05 | AC58: ='[13]WACC Calc'!W343 -> 0.05 | AD58: ='[13]WACC Calc'!X343 -> 0.05 | AE58: ='[13]WACC Calc'!Y343 -> 0.05 | AF58: ='[13]WACC Calc'!Z343 -> 0.05 | AG58: ='[13]WACC Calc'!AA343 -> 0.05 | AH58: ='[13]WACC Calc'!AB343 -> 0.05 | AI58: ='[13]WACC Calc'!AC343 -> 0.05 | AJ58: ='[13]WACC Calc'!AD343 -> 0.05 | AK58: ='[13]WACC Calc'!AE343 -> 0.05 | AL58: ='[13]WACC Calc'!AF343 -> 0.05 | AM58: ='[13]WACC Calc'!AG343 -> 0.05 | AN58: ='[13]WACC Calc'!AH343 -> 0.05 | AO58: ='[13]WACC Calc'!AI343 -> 0.05 | AP58: ='[13]WACC Calc'!AJ343 -> 0.05 | AQ58: ='[13]WACC Calc'!AK343 -> 0.05
K59: ='[13]WACC Calc'!B344 -> Interest Rate Nominal - Moderate | L59: ='[13]WACC Calc'!F344 -> 0.04 | M59: ='[13]WACC Calc'!G344 -> 0.04 | N59: ='[13]WACC Calc'!H344 -> 0.04 | O59: ='[13]WACC Calc'!I344 -> 0.04 | P59: ='[13]WACC Calc'!J344 -> 0.04 | Q59: ='[13]WACC Calc'!K344 -> 0.04 | R59: ='[13]WACC Calc'!L344 -> 0.04 | S59: ='[13]WACC Calc'!M344 -> 0.042 | T59: ='[13]WACC Calc'!N344 -> 0.044 | U59: ='[13]WACC Calc'!O344 -> 0.046 | V59: ='[13]WACC Calc'!P344 -> 0.048 | W59: ='[13]WACC Calc'!Q344 -> 0.05 | X59: ='[13]WACC Calc'!R344 -> 0.05 | Y59: ='[13]WACC Calc'!S344 -> 0.05 | Z59: ='[13]WACC Calc'!T344 -> 0.05 | AA59: ='[13]WACC Calc'!U344 -> 0.05 | AB59: ='[13]WACC Calc'!V344 -> 0.05 | AC59: ='[13]WACC Calc'!W344 -> 0.05 | AD59: ='[13]WACC Calc'!X344 -> 0.05 | AE59: ='[13]WACC Calc'!Y344 -> 0.05 | AF59: ='[13]WACC Calc'!Z344 -> 0.05 | AG59: ='[13]WACC Calc'!AA344 -> 0.05 | AH59: ='[13]WACC Calc'!AB344 -> 0.05 | AI59: ='[13]WACC Calc'!AC344 -> 0.05 | AJ59: ='[13]WACC Calc'!AD344 -> 0.05 | AK59: ='[13]WACC Calc'!AE344 -> 0.05 | AL59: ='[13]WACC Calc'!AF344 -> 0.05 | AM59: ='[13]WACC Calc'!AG344 -> 0.05 | AN59: ='[13]WACC Calc'!AH344 -> 0.05 | AO59: ='[13]WACC Calc'!AI344 -> 0.05 | AP59: ='[13]WACC Calc'!AJ344 -> 0.05 | AQ59: ='[13]WACC Calc'!AK344 -> 0.05
K60: ='[13]WACC Calc'!B345 -> Interest Rate Nominal - Conservative | L60: ='[13]WACC Calc'!F345 -> 0.04 | M60: ='[13]WACC Calc'!G345 -> 0.04 | N60: ='[13]WACC Calc'!H345 -> 0.04 | O60: ='[13]WACC Calc'!I345 -> 0.04 | P60: ='[13]WACC Calc'!J345 -> 0.04 | Q60: ='[13]WACC Calc'!K345 -> 0.04 | R60: ='[13]WACC Calc'!L345 -> 0.04 | S60: ='[13]WACC Calc'!M345 -> 0.042 | T60: ='[13]WACC Calc'!N345 -> 0.044 | U60: ='[13]WACC Calc'!O345 -> 0.046 | V60: ='[13]WACC Calc'!P345 -> 0.048 | W60: ='[13]WACC Calc'!Q345 -> 0.05 | X60: ='[13]WACC Calc'!R345 -> 0.05 | Y60: ='[13]WACC Calc'!S345 -> 0.05 | Z60: ='[13]WACC Calc'!T345 -> 0.05 | AA60: ='[13]WACC Calc'!U345 -> 0.05 | AB60: ='[13]WACC Calc'!V345 -> 0.05 | AC60: ='[13]WACC Calc'!W345 -> 0.05 | AD60: ='[13]WACC Calc'!X345 -> 0.05 | AE60: ='[13]WACC Calc'!Y345 -> 0.05 | AF60: ='[13]WACC Calc'!Z345 -> 0.05 | AG60: ='[13]WACC Calc'!AA345 -> 0.05 | AH60: ='[13]WACC Calc'!AB345 -> 0.05 | AI60: ='[13]WACC Calc'!AC345 -> 0.05 | AJ60: ='[13]WACC Calc'!AD345 -> 0.05 | AK60: ='[13]WACC Calc'!AE345 -> 0.05 | AL60: ='[13]WACC Calc'!AF345 -> 0.05 | AM60: ='[13]WACC Calc'!AG345 -> 0.05 | AN60: ='[13]WACC Calc'!AH345 -> 0.05 | AO60: ='[13]WACC Calc'!AI345 -> 0.05 | AP60: ='[13]WACC Calc'!AJ345 -> 0.05 | AQ60: ='[13]WACC Calc'!AK345 -> 0.05
K61: ='[13]WACC Calc'!B346 -> Calculated Interest Rate Real - Advanced | L61: ='[13]WACC Calc'!F346 -> 0.01463414634 | M61: ='[13]WACC Calc'!G346 -> 0.01463414634 | N61: ='[13]WACC Calc'!H346 -> 0.01463414634 | O61: ='[13]WACC Calc'!I346 -> 0.01463414634 | P61: ='[13]WACC Calc'!J346 -> 0.01463414634 | Q61: ='[13]WACC Calc'!K346 -> 0.01463414634 | R61: ='[13]WACC Calc'!L346 -> 0.01463414634 | S61: ='[13]WACC Calc'!M346 -> 0.01658536585 | T61: ='[13]WACC Calc'!N346 -> 0.01853658537 | U61: ='[13]WACC Calc'!O346 -> 0.02048780488 | V61: ='[13]WACC Calc'!P346 -> 0.02243902439 | W61: ='[13]WACC Calc'!Q346 -> 0.0243902439 | X61: ='[13]WACC Calc'!R346 -> 0.0243902439 | Y61: ='[13]WACC Calc'!S346 -> 0.0243902439 | Z61: ='[13]WACC Calc'!T346 -> 0.0243902439 | AA61: ='[13]WACC Calc'!U346 -> 0.0243902439 | AB61: ='[13]WACC Calc'!V346 -> 0.0243902439 | AC61: ='[13]WACC Calc'!W346 -> 0.0243902439 | AD61: ='[13]WACC Calc'!X346 -> 0.0243902439 | AE61: ='[13]WACC Calc'!Y346 -> 0.0243902439 | AF61: ='[13]WACC Calc'!Z346 -> 0.0243902439 | AG61: ='[13]WACC Calc'!AA346 -> 0.0243902439 | AH61: ='[13]WACC Calc'!AB346 -> 0.0243902439 | AI61: ='[13]WACC Calc'!AC346 -> 0.0243902439 | AJ61: ='[13]WACC Calc'!AD346 -> 0.0243902439 | AK61: ='[13]WACC Calc'!AE346 -> 0.0243902439 | AL61: ='[13]WACC Calc'!AF346 -> 0.0243902439 | AM61: ='[13]WACC Calc'!AG346 -> 0.0243902439 | AN61: ='[13]WACC Calc'!AH346 -> 0.0243902439 | AO61: ='[13]WACC Calc'!AI346 -> 0.0243902439 | AP61: ='[13]WACC Calc'!AJ346 -> 0.0243902439 | AQ61: ='[13]WACC Calc'!AK346 -> 0.0243902439
K62: ='[13]WACC Calc'!B347 -> Calculated Interest Rate Real - Moderate | L62: ='[13]WACC Calc'!F347 -> 0.01463414634 | M62: ='[13]WACC Calc'!G347 -> 0.01463414634 | N62: ='[13]WACC Calc'!H347 -> 0.01463414634 | O62: ='[13]WACC Calc'!I347 -> 0.01463414634 | P62: ='[13]WACC Calc'!J347 -> 0.01463414634 | Q62: ='[13]WACC Calc'!K347 -> 0.01463414634 | R62: ='[13]WACC Calc'!L347 -> 0.01463414634 | S62: ='[13]WACC Calc'!M347 -> 0.01658536585 | T62: ='[13]WACC Calc'!N347 -> 0.01853658537 | U62: ='[13]WACC Calc'!O347 -> 0.02048780488 | V62: ='[13]WACC Calc'!P347 -> 0.02243902439 | W62: ='[13]WACC Calc'!Q347 -> 0.0243902439 | X62: ='[13]WACC Calc'!R347 -> 0.0243902439 | Y62: ='[13]WACC Calc'!S347 -> 0.0243902439 | Z62: ='[13]WACC Calc'!T347 -> 0.0243902439 | AA62: ='[13]WACC Calc'!U347 -> 0.0243902439 | AB62: ='[13]WACC Calc'!V347 -> 0.0243902439 | AC62: ='[13]WACC Calc'!W347 -> 0.0243902439 | AD62: ='[13]WACC Calc'!X347 -> 0.0243902439 | AE62: ='[13]WACC Calc'!Y347 -> 0.0243902439 | AF62: ='[13]WACC Calc'!Z347 -> 0.0243902439 | AG62: ='[13]WACC Calc'!AA347 -> 0.0243902439 | AH62: ='[13]WACC Calc'!AB347 -> 0.0243902439 | AI62: ='[13]WACC Calc'!AC347 -> 0.0243902439 | AJ62: ='[13]WACC Calc'!AD347 -> 0.0243902439 | AK62: ='[13]WACC Calc'!AE347 -> 0.0243902439 | AL62: ='[13]WACC Calc'!AF347 -> 0.0243902439 | AM62: ='[13]WACC Calc'!AG347 -> 0.0243902439 | AN62: ='[13]WACC Calc'!AH347 -> 0.0243902439 | AO62: ='[13]WACC Calc'!AI347 -> 0.0243902439 | AP62: ='[13]WACC Calc'!AJ347 -> 0.0243902439 | AQ62: ='[13]WACC Calc'!AK347 -> 0.0243902439
K63: ='[13]WACC Calc'!B348 -> Calculated Interest Rate Real - Conservative | L63: ='[13]WACC Calc'!F348 -> 0.01463414634 | M63: ='[13]WACC Calc'!G348 -> 0.01463414634 | N63: ='[13]WACC Calc'!H348 -> 0.01463414634 | O63: ='[13]WACC Calc'!I348 -> 0.01463414634 | P63: ='[13]WACC Calc'!J348 -> 0.01463414634 | Q63: ='[13]WACC Calc'!K348 -> 0.01463414634 | R63: ='[13]WACC Calc'!L348 -> 0.01463414634 | S63: ='[13]WACC Calc'!M348 -> 0.01658536585 | T63: ='[13]WACC Calc'!N348 -> 0.01853658537 | U63: ='[13]WACC Calc'!O348 -> 0.02048780488 | V63: ='[13]WACC Calc'!P348 -> 0.02243902439 | W63: ='[13]WACC Calc'!Q348 -> 0.0243902439 | X63: ='[13]WACC Calc'!R348 -> 0.0243902439 | Y63: ='[13]WACC Calc'!S348 -> 0.0243902439 | Z63: ='[13]WACC Calc'!T348 -> 0.0243902439 | AA63: ='[13]WACC Calc'!U348 -> 0.0243902439 | AB63: ='[13]WACC Calc'!V348 -> 0.0243902439 | AC63: ='[13]WACC Calc'!W348 -> 0.0243902439 | AD63: ='[13]WACC Calc'!X348 -> 0.0243902439 | AE63: ='[13]WACC Calc'!Y348 -> 0.0243902439 | AF63: ='[13]WACC Calc'!Z348 -> 0.0243902439 | AG63: ='[13]WACC Calc'!AA348 -> 0.0243902439 | AH63: ='[13]WACC Calc'!AB348 -> 0.0243902439 | AI63: ='[13]WACC Calc'!AC348 -> 0.0243902439 | AJ63: ='[13]WACC Calc'!AD348 -> 0.0243902439 | AK63: ='[13]WACC Calc'!AE348 -> 0.0243902439 | AL63: ='[13]WACC Calc'!AF348 -> 0.0243902439 | AM63: ='[13]WACC Calc'!AG348 -> 0.0243902439 | AN63: ='[13]WACC Calc'!AH348 -> 0.0243902439 | AO63: ='[13]WACC Calc'!AI348 -> 0.0243902439 | AP63: ='[13]WACC Calc'!AJ348 -> 0.0243902439 | AQ63: ='[13]WACC Calc'!AK348 -> 0.0243902439
K64: ='[13]WACC Calc'!B349 -> Interest During Construction - Nominal | L64: ='[13]WACC Calc'!F349 -> 0.035 | M64: ='[13]WACC Calc'!G349 -> 0.035 | N64: ='[13]WACC Calc'!H349 -> 0.035 | O64: ='[13]WACC Calc'!I349 -> 0.035 | P64: ='[13]WACC Calc'!J349 -> 0.035 | Q64: ='[13]WACC Calc'!K349 -> 0.035 | R64: ='[13]WACC Calc'!L349 -> 0.035 | S64: ='[13]WACC Calc'!M349 -> 0.037 | T64: ='[13]WACC Calc'!N349 -> 0.039 | U64: ='[13]WACC Calc'!O349 -> 0.041 | V64: ='[13]WACC Calc'!P349 -> 0.043 | W64: ='[13]WACC Calc'!Q349 -> 0.045 | X64: ='[13]WACC Calc'!R349 -> 0.045 | Y64: ='[13]WACC Calc'!S349 -> 0.045 | Z64: ='[13]WACC Calc'!T349 -> 0.045 | AA64: ='[13]WACC Calc'!U349 -> 0.045 | AB64: ='[13]WACC Calc'!V349 -> 0.045 | AC64: ='[13]WACC Calc'!W349 -> 0.045 | AD64: ='[13]WACC Calc'!X349 -> 0.045 | AE64: ='[13]WACC Calc'!Y349 -> 0.045 | AF64: ='[13]WACC Calc'!Z349 -> 0.045 | AG64: ='[13]WACC Calc'!AA349 -> 0.045 | AH64: ='[13]WACC Calc'!AB349 -> 0.045 | AI64: ='[13]WACC Calc'!AC349 -> 0.045 | AJ64: ='[13]WACC Calc'!AD349 -> 0.045 | AK64: ='[13]WACC Calc'!AE349 -> 0.045 | AL64: ='[13]WACC Calc'!AF349 -> 0.045 | AM64: ='[13]WACC Calc'!AG349 -> 0.045 | AN64: ='[13]WACC Calc'!AH349 -> 0.045 | AO64: ='[13]WACC Calc'!AI349 -> 0.045 | AP64: ='[13]WACC Calc'!AJ349 -> 0.045 | AQ64: ='[13]WACC Calc'!AK349 -> 0.045
K65: ='[13]WACC Calc'!B350 -> Rate of Return on Equity Nominal - Advanced | L65: ='[13]WACC Calc'!F350 -> 0.09 | M65: ='[13]WACC Calc'!G350 -> 0.09 | N65: ='[13]WACC Calc'!H350 -> 0.09 | O65: ='[13]WACC Calc'!I350 -> 0.09 | P65: ='[13]WACC Calc'!J350 -> 0.09 | Q65: ='[13]WACC Calc'!K350 -> 0.09 | R65: ='[13]WACC Calc'!L350 -> 0.09 | S65: ='[13]WACC Calc'!M350 -> 0.09 | T65: ='[13]WACC Calc'!N350 -> 0.09 | U65: ='[13]WACC Calc'!O350 -> 0.09 | V65: ='[13]WACC Calc'!P350 -> 0.09 | W65: ='[13]WACC Calc'!Q350 -> 0.09 | X65: ='[13]WACC Calc'!R350 -> 0.09 | Y65: ='[13]WACC Calc'!S350 -> 0.09 | Z65: ='[13]WACC Calc'!T350 -> 0.09 | AA65: ='[13]WACC Calc'!U350 -> 0.09 | AB65: ='[13]WACC Calc'!V350 -> 0.09 | AC65: ='[13]WACC Calc'!W350 -> 0.09 | AD65: ='[13]WACC Calc'!X350 -> 0.09 | AE65: ='[13]WACC Calc'!Y350 -> 0.09 | AF65: ='[13]WACC Calc'!Z350 -> 0.09 | AG65: ='[13]WACC Calc'!AA350 -> 0.09 | AH65: ='[13]WACC Calc'!AB350 -> 0.09 | AI65: ='[13]WACC Calc'!AC350 -> 0.09 | AJ65: ='[13]WACC Calc'!AD350 -> 0.09 | AK65: ='[13]WACC Calc'!AE350 -> 0.09 | AL65: ='[13]WACC Calc'!AF350 -> 0.09 | AM65: ='[13]WACC Calc'!AG350 -> 0.09 | AN65: ='[13]WACC Calc'!AH350 -> 0.09 | AO65: ='[13]WACC Calc'!AI350 -> 0.09 | AP65: ='[13]WACC Calc'!AJ350 -> 0.09 | AQ65: ='[13]WACC Calc'!AK350 -> 0.09
K66: ='[13]WACC Calc'!B351 -> Rate of Return on Equity Nominal - Moderate | L66: ='[13]WACC Calc'!F351 -> 0.09 | M66: ='[13]WACC Calc'!G351 -> 0.09 | N66: ='[13]WACC Calc'!H351 -> 0.09 | O66: ='[13]WACC Calc'!I351 -> 0.09 | P66: ='[13]WACC Calc'!J351 -> 0.09 | Q66: ='[13]WACC Calc'!K351 -> 0.09 | R66: ='[13]WACC Calc'!L351 -> 0.09 | S66: ='[13]WACC Calc'!M351 -> 0.09 | T66: ='[13]WACC Calc'!N351 -> 0.09 | U66: ='[13]WACC Calc'!O351 -> 0.09 | V66: ='[13]WACC Calc'!P351 -> 0.09 | W66: ='[13]WACC Calc'!Q351 -> 0.09 | X66: ='[13]WACC Calc'!R351 -> 0.09 | Y66: ='[13]WACC Calc'!S351 -> 0.09 | Z66: ='[13]WACC Calc'!T351 -> 0.09 | AA66: ='[13]WACC Calc'!U351 -> 0.09 | AB66: ='[13]WACC Calc'!V351 -> 0.09 | AC66: ='[13]WACC Calc'!W351 -> 0.09 | AD66: ='[13]WACC Calc'!X351 -> 0.09 | AE66: ='[13]WACC Calc'!Y351 -> 0.09 | AF66: ='[13]WACC Calc'!Z351 -> 0.09 | AG66: ='[13]WACC Calc'!AA351 -> 0.09 | AH66: ='[13]WACC Calc'!AB351 -> 0.09 | AI66: ='[13]WACC Calc'!AC351 -> 0.09 | AJ66: ='[13]WACC Calc'!AD351 -> 0.09 | AK66: ='[13]WACC Calc'!AE351 -> 0.09 | AL66: ='[13]WACC Calc'!AF351 -> 0.09 | AM66: ='[13]WACC Calc'!AG351 -> 0.09 | AN66: ='[13]WACC Calc'!AH351 -> 0.09 | AO66: ='[13]WACC Calc'!AI351 -> 0.09 | AP66: ='[13]WACC Calc'!AJ351 -> 0.09 | AQ66: ='[13]WACC Calc'!AK351 -> 0.09
K67: ='[13]WACC Calc'!B352 -> Rate of Return on Equity Nominal - Conservative | L67: ='[13]WACC Calc'!F352 -> 0.09 | M67: ='[13]WACC Calc'!G352 -> 0.09 | N67: ='[13]WACC Calc'!H352 -> 0.09 | O67: ='[13]WACC Calc'!I352 -> 0.09 | P67: ='[13]WACC Calc'!J352 -> 0.09 | Q67: ='[13]WACC Calc'!K352 -> 0.09 | R67: ='[13]WACC Calc'!L352 -> 0.09 | S67: ='[13]WACC Calc'!M352 -> 0.09 | T67: ='[13]WACC Calc'!N352 -> 0.09 | U67: ='[13]WACC Calc'!O352 -> 0.09 | V67: ='[13]WACC Calc'!P352 -> 0.09 | W67: ='[13]WACC Calc'!Q352 -> 0.09 | X67: ='[13]WACC Calc'!R352 -> 0.09 | Y67: ='[13]WACC Calc'!S352 -> 0.09 | Z67: ='[13]WACC Calc'!T352 -> 0.09 | AA67: ='[13]WACC Calc'!U352 -> 0.09 | AB67: ='[13]WACC Calc'!V352 -> 0.09 | AC67: ='[13]WACC Calc'!W352 -> 0.09 | AD67: ='[13]WACC Calc'!X352 -> 0.09 | AE67: ='[13]WACC Calc'!Y352 -> 0.09 | AF67: ='[13]WACC Calc'!Z352 -> 0.09 | AG67: ='[13]WACC Calc'!AA352 -> 0.09 | AH67: ='[13]WACC Calc'!AB352 -> 0.09 | AI67: ='[13]WACC Calc'!AC352 -> 0.09 | AJ67: ='[13]WACC Calc'!AD352 -> 0.09 | AK67: ='[13]WACC Calc'!AE352 -> 0.09 | AL67: ='[13]WACC Calc'!AF352 -> 0.09 | AM67: ='[13]WACC Calc'!AG352 -> 0.09 | AN67: ='[13]WACC Calc'!AH352 -> 0.09 | AO67: ='[13]WACC Calc'!AI352 -> 0.09 | AP67: ='[13]WACC Calc'!AJ352 -> 0.09 | AQ67: ='[13]WACC Calc'!AK352 -> 0.09
K68: ='[13]WACC Calc'!B353 -> Calculated Rate of Return on Equity Real - Advanced | L68: ='[13]WACC Calc'!F353 -> 0.06341463415 | M68: ='[13]WACC Calc'!G353 -> 0.06341463415 | N68: ='[13]WACC Calc'!H353 -> 0.06341463415 | O68: ='[13]WACC Calc'!I353 -> 0.06341463415 | P68: ='[13]WACC Calc'!J353 -> 0.06341463415 | Q68: ='[13]WACC Calc'!K353 -> 0.06341463415 | R68: ='[13]WACC Calc'!L353 -> 0.06341463415 | S68: ='[13]WACC Calc'!M353 -> 0.06341463415 | T68: ='[13]WACC Calc'!N353 -> 0.06341463415 | U68: ='[13]WACC Calc'!O353 -> 0.06341463415 | V68: ='[13]WACC Calc'!P353 -> 0.06341463415 | W68: ='[13]WACC Calc'!Q353 -> 0.06341463415 | X68: ='[13]WACC Calc'!R353 -> 0.06341463415 | Y68: ='[13]WACC Calc'!S353 -> 0.06341463415 | Z68: ='[13]WACC Calc'!T353 -> 0.06341463415 | AA68: ='[13]WACC Calc'!U353 -> 0.06341463415 | AB68: ='[13]WACC Calc'!V353 -> 0.06341463415 | AC68: ='[13]WACC Calc'!W353 -> 0.06341463415 | AD68: ='[13]WACC Calc'!X353 -> 0.06341463415 | AE68: ='[13]WACC Calc'!Y353 -> 0.06341463415 | AF68: ='[13]WACC Calc'!Z353 -> 0.06341463415 | AG68: ='[13]WACC Calc'!AA353 -> 0.06341463415 | AH68: ='[13]WACC Calc'!AB353 -> 0.06341463415 | AI68: ='[13]WACC Calc'!AC353 -> 0.06341463415 | AJ68: ='[13]WACC Calc'!AD353 -> 0.06341463415 | AK68: ='[13]WACC Calc'!AE353 -> 0.06341463415 | AL68: ='[13]WACC Calc'!AF353 -> 0.06341463415 | AM68: ='[13]WACC Calc'!AG353 -> 0.06341463415 | AN68: ='[13]WACC Calc'!AH353 -> 0.06341463415 | AO68: ='[13]WACC Calc'!AI353 -> 0.06341463415 | AP68: ='[13]WACC Calc'!AJ353 -> 0.06341463415 | AQ68: ='[13]WACC Calc'!AK353 -> 0.06341463415
K69: ='[13]WACC Calc'!B354 -> Calculated Rate of Return on Equity Real - Moderate | L69: ='[13]WACC Calc'!F354 -> 0.06341463415 | M69: ='[13]WACC Calc'!G354 -> 0.06341463415 | N69: ='[13]WACC Calc'!H354 -> 0.06341463415 | O69: ='[13]WACC Calc'!I354 -> 0.06341463415 | P69: ='[13]WACC Calc'!J354 -> 0.06341463415 | Q69: ='[13]WACC Calc'!K354 -> 0.06341463415 | R69: ='[13]WACC Calc'!L354 -> 0.06341463415 | S69: ='[13]WACC Calc'!M354 -> 0.06341463415 | T69: ='[13]WACC Calc'!N354 -> 0.06341463415 | U69: ='[13]WACC Calc'!O354 -> 0.06341463415 | V69: ='[13]WACC Calc'!P354 -> 0.06341463415 | W69: ='[13]WACC Calc'!Q354 -> 0.06341463415 | X69: ='[13]WACC Calc'!R354 -> 0.06341463415 | Y69: ='[13]WACC Calc'!S354 -> 0.06341463415 | Z69: ='[13]WACC Calc'!T354 -> 0.06341463415 | AA69: ='[13]WACC Calc'!U354 -> 0.06341463415 | AB69: ='[13]WACC Calc'!V354 -> 0.06341463415 | AC69: ='[13]WACC Calc'!W354 -> 0.06341463415 | AD69: ='[13]WACC Calc'!X354 -> 0.06341463415 | AE69: ='[13]WACC Calc'!Y354 -> 0.06341463415 | AF69: ='[13]WACC Calc'!Z354 -> 0.06341463415 | AG69: ='[13]WACC Calc'!AA354 -> 0.06341463415 | AH69: ='[13]WACC Calc'!AB354 -> 0.06341463415 | AI69: ='[13]WACC Calc'!AC354 -> 0.06341463415 | AJ69: ='[13]WACC Calc'!AD354 -> 0.06341463415 | AK69: ='[13]WACC Calc'!AE354 -> 0.06341463415 | AL69: ='[13]WACC Calc'!AF354 -> 0.06341463415 | AM69: ='[13]WACC Calc'!AG354 -> 0.06341463415 | AN69: ='[13]WACC Calc'!AH354 -> 0.06341463415 | AO69: ='[13]WACC Calc'!AI354 -> 0.06341463415 | AP69: ='[13]WACC Calc'!AJ354 -> 0.06341463415 | AQ69: ='[13]WACC Calc'!AK354 -> 0.06341463415
K70: ='[13]WACC Calc'!B355 -> Calculated Rate of Return on Equity Real - Conservative | L70: ='[13]WACC Calc'!F355 -> 0.06341463415 | M70: ='[13]WACC Calc'!G355 -> 0.06341463415 | N70: ='[13]WACC Calc'!H355 -> 0.06341463415 | O70: ='[13]WACC Calc'!I355 -> 0.06341463415 | P70: ='[13]WACC Calc'!J355 -> 0.06341463415 | Q70: ='[13]WACC Calc'!K355 -> 0.06341463415 | R70: ='[13]WACC Calc'!L355 -> 0.06341463415 | S70: ='[13]WACC Calc'!M355 -> 0.06341463415 | T70: ='[13]WACC Calc'!N355 -> 0.06341463415 | U70: ='[13]WACC Calc'!O355 -> 0.06341463415 | V70: ='[13]WACC Calc'!P355 -> 0.06341463415 | W70: ='[13]WACC Calc'!Q355 -> 0.06341463415 | X70: ='[13]WACC Calc'!R355 -> 0.06341463415 | Y70: ='[13]WACC Calc'!S355 -> 0.06341463415 | Z70: ='[13]WACC Calc'!T355 -> 0.06341463415 | AA70: ='[13]WACC Calc'!U355 -> 0.06341463415 | AB70: ='[13]WACC Calc'!V355 -> 0.06341463415 | AC70: ='[13]WACC Calc'!W355 -> 0.06341463415 | AD70: ='[13]WACC Calc'!X355 -> 0.06341463415 | AE70: ='[13]WACC Calc'!Y355 -> 0.06341463415 | AF70: ='[13]WACC Calc'!Z355 -> 0.06341463415 | AG70: ='[13]WACC Calc'!AA355 -> 0.06341463415 | AH70: ='[13]WACC Calc'!AB355 -> 0.06341463415 | AI70: ='[13]WACC Calc'!AC355 -> 0.06341463415 | AJ70: ='[13]WACC Calc'!AD355 -> 0.06341463415 | AK70: ='[13]WACC Calc'!AE355 -> 0.06341463415 | AL70: ='[13]WACC Calc'!AF355 -> 0.06341463415 | AM70: ='[13]WACC Calc'!AG355 -> 0.06341463415 | AN70: ='[13]WACC Calc'!AH355 -> 0.06341463415 | AO70: ='[13]WACC Calc'!AI355 -> 0.06341463415 | AP70: ='[13]WACC Calc'!AJ355 -> 0.06341463415 | AQ70: ='[13]WACC Calc'!AK355 -> 0.06341463415
K71: ='[13]WACC Calc'!B356 -> Debt Fraction - Advanced | L71: ='[13]WACC Calc'!F356 -> 0.3159512896 | M71: ='[13]WACC Calc'!G356 -> 0.3114216745 | N71: ='[13]WACC Calc'!H356 -> 0.3733519522 | O71: ='[13]WACC Calc'!I356 -> 0.4434394663 | P71: ='[13]WACC Calc'!J356 -> 0.4375921147 | Q71: ='[13]WACC Calc'!K356 -> 0.4314079642 | R71: ='[13]WACC Calc'!L356 -> 0.4314079642 | S71: ='[13]WACC Calc'!M356 -> 0.6705764915 | T71: ='[13]WACC Calc'!N356 -> 0.6669689982 | U71: ='[13]WACC Calc'!O356 -> 0.663361505 | V71: ='[13]WACC Calc'!P356 -> 0.6597540117 | W71: ='[13]WACC Calc'!Q356 -> 0.6561465184 | X71: ='[13]WACC Calc'!R356 -> 0.6561465184 | Y71: ='[13]WACC Calc'!S356 -> 0.6561465184 | Z71: ='[13]WACC Calc'!T356 -> 0.6561465184 | AA71: ='[13]WACC Calc'!U356 -> 0.6561465184 | AB71: ='[13]WACC Calc'!V356 -> 0.6561465184 | AC71: ='[13]WACC Calc'!W356 -> 0.6561465184 | AD71: ='[13]WACC Calc'!X356 -> 0.6561465184 | AE71: ='[13]WACC Calc'!Y356 -> 0.6561465184 | AF71: ='[13]WACC Calc'!Z356 -> 0.6561465184 | AG71: ='[13]WACC Calc'!AA356 -> 0.6561465184 | AH71: ='[13]WACC Calc'!AB356 -> 0.6561465184 | AI71: ='[13]WACC Calc'!AC356 -> 0.6561465184 | AJ71: ='[13]WACC Calc'!AD356 -> 0.6561465184 | AK71: ='[13]WACC Calc'!AE356 -> 0.6561465184 | AL71: ='[13]WACC Calc'!AF356 -> 0.6561465184 | AM71: ='[13]WACC Calc'!AG356 -> 0.6561465184 | AN71: ='[13]WACC Calc'!AH356 -> 0.6561465184 | AO71: ='[13]WACC Calc'!AI356 -> 0.6561465184 | AP71: ='[13]WACC Calc'!AJ356 -> 0.6561465184 | AQ71: ='[13]WACC Calc'!AK356 -> 0.6561465184
K72: ='[13]WACC Calc'!B357 -> Debt Fraction - Moderate | L72: ='[13]WACC Calc'!F357 -> 0.3159512896 | M72: ='[13]WACC Calc'!G357 -> 0.3114216745 | N72: ='[13]WACC Calc'!H357 -> 0.3733519522 | O72: ='[13]WACC Calc'!I357 -> 0.4434394663 | P72: ='[13]WACC Calc'!J357 -> 0.4375921147 | Q72: ='[13]WACC Calc'!K357 -> 0.4314079642 | R72: ='[13]WACC Calc'!L357 -> 0.4314079642 | S72: ='[13]WACC Calc'!M357 -> 0.6705764915 | T72: ='[13]WACC Calc'!N357 -> 0.6669689982 | U72: ='[13]WACC Calc'!O357 -> 0.663361505 | V72: ='[13]WACC Calc'!P357 -> 0.6597540117 | W72: ='[13]WACC Calc'!Q357 -> 0.6561465184 | X72: ='[13]WACC Calc'!R357 -> 0.6561465184 | Y72: ='[13]WACC Calc'!S357 -> 0.6561465184 | Z72: ='[13]WACC Calc'!T357 -> 0.6561465184 | AA72: ='[13]WACC Calc'!U357 -> 0.6561465184 | AB72: ='[13]WACC Calc'!V357 -> 0.6561465184 | AC72: ='[13]WACC Calc'!W357 -> 0.6561465184 | AD72: ='[13]WACC Calc'!X357 -> 0.6561465184 | AE72: ='[13]WACC Calc'!Y357 -> 0.6561465184 | AF72: ='[13]WACC Calc'!Z357 -> 0.6561465184 | AG72: ='[13]WACC Calc'!AA357 -> 0.6561465184 | AH72: ='[13]WACC Calc'!AB357 -> 0.6561465184 | AI72: ='[13]WACC Calc'!AC357 -> 0.6561465184 | AJ72: ='[13]WACC Calc'!AD357 -> 0.6561465184 | AK72: ='[13]WACC Calc'!AE357 -> 0.6561465184 | AL72: ='[13]WACC Calc'!AF357 -> 0.6561465184 | AM72: ='[13]WACC Calc'!AG357 -> 0.6561465184 | AN72: ='[13]WACC Calc'!AH357 -> 0.6561465184 | AO72: ='[13]WACC Calc'!AI357 -> 0.6561465184 | AP72: ='[13]WACC Calc'!AJ357 -> 0.6561465184 | AQ72: ='[13]WACC Calc'!AK357 -> 0.6561465184
K73: ='[13]WACC Calc'!B358 -> Debt Fraction - Conservative | L73: ='[13]WACC Calc'!F358 -> 0.3159512896 | M73: ='[13]WACC Calc'!G358 -> 0.3114216745 | N73: ='[13]WACC Calc'!H358 -> 0.3733519522 | O73: ='[13]WACC Calc'!I358 -> 0.4434394663 | P73: ='[13]WACC Calc'!J358 -> 0.4375921147 | Q73: ='[13]WACC Calc'!K358 -> 0.4314079642 | R73: ='[13]WACC Calc'!L358 -> 0.4314079642 | S73: ='[13]WACC Calc'!M358 -> 0.6705764915 | T73: ='[13]WACC Calc'!N358 -> 0.6669689982 | U73: ='[13]WACC Calc'!O358 -> 0.663361505 | V73: ='[13]WACC Calc'!P358 -> 0.6597540117 | W73: ='[13]WACC Calc'!Q358 -> 0.6561465184 | X73: ='[13]WACC Calc'!R358 -> 0.6561465184 | Y73: ='[13]WACC Calc'!S358 -> 0.6561465184 | Z73: ='[13]WACC Calc'!T358 -> 0.6561465184 | AA73: ='[13]WACC Calc'!U358 -> 0.6561465184 | AB73: ='[13]WACC Calc'!V358 -> 0.6561465184 | AC73: ='[13]WACC Calc'!W358 -> 0.6561465184 | AD73: ='[13]WACC Calc'!X358 -> 0.6561465184 | AE73: ='[13]WACC Calc'!Y358 -> 0.6561465184 | AF73: ='[13]WACC Calc'!Z358 -> 0.6561465184 | AG73: ='[13]WACC Calc'!AA358 -> 0.6561465184 | AH73: ='[13]WACC Calc'!AB358 -> 0.6561465184 | AI73: ='[13]WACC Calc'!AC358 -> 0.6561465184 | AJ73: ='[13]WACC Calc'!AD358 -> 0.6561465184 | AK73: ='[13]WACC Calc'!AE358 -> 0.6561465184 | AL73: ='[13]WACC Calc'!AF358 -> 0.6561465184 | AM73: ='[13]WACC Calc'!AG358 -> 0.6561465184 | AN73: ='[13]WACC Calc'!AH358 -> 0.6561465184 | AO73: ='[13]WACC Calc'!AI358 -> 0.6561465184 | AP73: ='[13]WACC Calc'!AJ358 -> 0.6561465184 | AQ73: ='[13]WACC Calc'!AK358 -> 0.6561465184
K74: ='[13]WACC Calc'!B359 -> Tax Rate (Federal and State) | L74: ='[13]WACC Calc'!F359 -> 0.2574 | M74: ='[13]WACC Calc'!G359 -> 0.2574 | N74: ='[13]WACC Calc'!H359 -> 0.2574 | O74: ='[13]WACC Calc'!I359 -> 0.2574 | P74: ='[13]WACC Calc'!J359 -> 0.2574 | Q74: ='[13]WACC Calc'!K359 -> 0.2574 | R74: ='[13]WACC Calc'!L359 -> 0.2574 | S74: ='[13]WACC Calc'!M359 -> 0.2574 | T74: ='[13]WACC Calc'!N359 -> 0.2574 | U74: ='[13]WACC Calc'!O359 -> 0.2574 | V74: ='[13]WACC Calc'!P359 -> 0.2574 | W74: ='[13]WACC Calc'!Q359 -> 0.2574 | X74: ='[13]WACC Calc'!R359 -> 0.2574 | Y74: ='[13]WACC Calc'!S359 -> 0.2574 | Z74: ='[13]WACC Calc'!T359 -> 0.2574 | AA74: ='[13]WACC Calc'!U359 -> 0.2574 | AB74: ='[13]WACC Calc'!V359 -> 0.2574 | AC74: ='[13]WACC Calc'!W359 -> 0.2574 | AD74: ='[13]WACC Calc'!X359 -> 0.2574 | AE74: ='[13]WACC Calc'!Y359 -> 0.2574 | AF74: ='[13]WACC Calc'!Z359 -> 0.2574 | AG74: ='[13]WACC Calc'!AA359 -> 0.2574 | AH74: ='[13]WACC Calc'!AB359 -> 0.2574 | AI74: ='[13]WACC Calc'!AC359 -> 0.2574 | AJ74: ='[13]WACC Calc'!AD359 -> 0.2574 | AK74: ='[13]WACC Calc'!AE359 -> 0.2574 | AL74: ='[13]WACC Calc'!AF359 -> 0.2574 | AM74: ='[13]WACC Calc'!AG359 -> 0.2574 | AN74: ='[13]WACC Calc'!AH359 -> 0.2574 | AO74: ='[13]WACC Calc'!AI359 -> 0.2574 | AP74: ='[13]WACC Calc'!AJ359 -> 0.2574 | AQ74: ='[13]WACC Calc'!AK359 -> 0.2574
K75: ='[13]WACC Calc'!B360 -> WACC Nominal - Advanced | L75: ='[13]WACC Calc'!F360 -> 0.07094940104 | M75: ='[13]WACC Calc'!G360 -> 0.07122251872 | N75: ='[13]WACC Calc'!H360 -> 0.06748837069 | O75: ='[13]WACC Calc'!I360 -> 0.06326237394 | P75: ='[13]WACC Calc'!J360 -> 0.06361494585 | Q75: ='[13]WACC Calc'!K360 -> 0.06398782539 | R75: ='[13]WACC Calc'!L360 -> 0.06398782539 | S75: ='[13]WACC Calc'!M360 -> 0.05056286007 | T75: ='[13]WACC Calc'!N360 -> 0.05176560199 | U75: ='[13]WACC Calc'!O360 -> 0.05295762822 | V75: ='[13]WACC Calc'!P360 -> 0.05413893874 | W75: ='[13]WACC Calc'!Q360 -> 0.05530953357 | X75: ='[13]WACC Calc'!R360 -> 0.05530953357 | Y75: ='[13]WACC Calc'!S360 -> 0.05530953357 | Z75: ='[13]WACC Calc'!T360 -> 0.05530953357 | AA75: ='[13]WACC Calc'!U360 -> 0.05530953357 | AB75: ='[13]WACC Calc'!V360 -> 0.05530953357 | AC75: ='[13]WACC Calc'!W360 -> 0.05530953357 | AD75: ='[13]WACC Calc'!X360 -> 0.05530953357 | AE75: ='[13]WACC Calc'!Y360 -> 0.05530953357 | AF75: ='[13]WACC Calc'!Z360 -> 0.05530953357 | AG75: ='[13]WACC Calc'!AA360 -> 0.05530953357 | AH75: ='[13]WACC Calc'!AB360 -> 0.05530953357 | AI75: ='[13]WACC Calc'!AC360 -> 0.05530953357 | AJ75: ='[13]WACC Calc'!AD360 -> 0.05530953357 | AK75: ='[13]WACC Calc'!AE360 -> 0.05530953357 | AL75: ='[13]WACC Calc'!AF360 -> 0.05530953357 | AM75: ='[13]WACC Calc'!AG360 -> 0.05530953357 | AN75: ='[13]WACC Calc'!AH360 -> 0.05530953357 | AO75: ='[13]WACC Calc'!AI360 -> 0.05530953357 | AP75: ='[13]WACC Calc'!AJ360 -> 0.05530953357 | AQ75: ='[13]WACC Calc'!AK360 -> 0.05530953357
K76: ='[13]WACC Calc'!B361 -> WACC Nominal - Moderate | L76: ='[13]WACC Calc'!F361 -> 0.07094940104 | M76: ='[13]WACC Calc'!G361 -> 0.07122251872 | N76: ='[13]WACC Calc'!H361 -> 0.06748837069 | O76: ='[13]WACC Calc'!I361 -> 0.06326237394 | P76: ='[13]WACC Calc'!J361 -> 0.06361494585 | Q76: ='[13]WACC Calc'!K361 -> 0.06398782539 | R76: ='[13]WACC Calc'!L361 -> 0.06398782539 | S76: ='[13]WACC Calc'!M361 -> 0.05056286007 | T76: ='[13]WACC Calc'!N361 -> 0.05176560199 | U76: ='[13]WACC Calc'!O361 -> 0.05295762822 | V76: ='[13]WACC Calc'!P361 -> 0.05413893874 | W76: ='[13]WACC Calc'!Q361 -> 0.05530953357 | X76: ='[13]WACC Calc'!R361 -> 0.05530953357 | Y76: ='[13]WACC Calc'!S361 -> 0.05530953357 | Z76: ='[13]WACC Calc'!T361 -> 0.05530953357 | AA76: ='[13]WACC Calc'!U361 -> 0.05530953357 | AB76: ='[13]WACC Calc'!V361 -> 0.05530953357 | AC76: ='[13]WACC Calc'!W361 -> 0.05530953357 | AD76: ='[13]WACC Calc'!X361 -> 0.05530953357 | AE76: ='[13]WACC Calc'!Y361 -> 0.05530953357 | AF76: ='[13]WACC Calc'!Z361 -> 0.05530953357 | AG76: ='[13]WACC Calc'!AA361 -> 0.05530953357 | AH76: ='[13]WACC Calc'!AB361 -> 0.05530953357 | AI76: ='[13]WACC Calc'!AC361 -> 0.05530953357 | AJ76: ='[13]WACC Calc'!AD361 -> 0.05530953357 | AK76: ='[13]WACC Calc'!AE361 -> 0.05530953357 | AL76: ='[13]WACC Calc'!AF361 -> 0.05530953357 | AM76: ='[13]WACC Calc'!AG361 -> 0.05530953357 | AN76: ='[13]WACC Calc'!AH361 -> 0.05530953357 | AO76: ='[13]WACC Calc'!AI361 -> 0.05530953357 | AP76: ='[13]WACC Calc'!AJ361 -> 0.05530953357 | AQ76: ='[13]WACC Calc'!AK361 -> 0.05530953357
K77: ='[13]WACC Calc'!B362 -> WACC Nominal - Conservative | L77: ='[13]WACC Calc'!F362 -> 0.07094940104 | M77: ='[13]WACC Calc'!G362 -> 0.07122251872 | N77: ='[13]WACC Calc'!H362 -> 0.06748837069 | O77: ='[13]WACC Calc'!I362 -> 0.06326237394 | P77: ='[13]WACC Calc'!J362 -> 0.06361494585 | Q77: ='[13]WACC Calc'!K362 -> 0.06398782539 | R77: ='[13]WACC Calc'!L362 -> 0.06398782539 | S77: ='[13]WACC Calc'!M362 -> 0.05056286007 | T77: ='[13]WACC Calc'!N362 -> 0.05176560199 | U77: ='[13]WACC Calc'!O362 -> 0.05295762822 | V77: ='[13]WACC Calc'!P362 -> 0.05413893874 | W77: ='[13]WACC Calc'!Q362 -> 0.05530953357 | X77: ='[13]WACC Calc'!R362 -> 0.05530953357 | Y77: ='[13]WACC Calc'!S362 -> 0.05530953357 | Z77: ='[13]WACC Calc'!T362 -> 0.05530953357 | AA77: ='[13]WACC Calc'!U362 -> 0.05530953357 | AB77: ='[13]WACC Calc'!V362 -> 0.05530953357 | AC77: ='[13]WACC Calc'!W362 -> 0.05530953357 | AD77: ='[13]WACC Calc'!X362 -> 0.05530953357 | AE77: ='[13]WACC Calc'!Y362 -> 0.05530953357 | AF77: ='[13]WACC Calc'!Z362 -> 0.05530953357 | AG77: ='[13]WACC Calc'!AA362 -> 0.05530953357 | AH77: ='[13]WACC Calc'!AB362 -> 0.05530953357 | AI77: ='[13]WACC Calc'!AC362 -> 0.05530953357 | AJ77: ='[13]WACC Calc'!AD362 -> 0.05530953357 | AK77: ='[13]WACC Calc'!AE362 -> 0.05530953357 | AL77: ='[13]WACC Calc'!AF362 -> 0.05530953357 | AM77: ='[13]WACC Calc'!AG362 -> 0.05530953357 | AN77: ='[13]WACC Calc'!AH362 -> 0.05530953357 | AO77: ='[13]WACC Calc'!AI362 -> 0.05530953357 | AP77: ='[13]WACC Calc'!AJ362 -> 0.05530953357 | AQ77: ='[13]WACC Calc'!AK362 -> 0.05530953357
K78: ='[13]WACC Calc'!B363 -> WACC Real - Advanced | L78: ='[13]WACC Calc'!F363 -> 0.04482868394 | M78: ='[13]WACC Calc'!G363 -> 0.04509514021 | N78: ='[13]WACC Calc'!H363 -> 0.04145206897 | O78: ='[13]WACC Calc'!I363 -> 0.03732914531 | P78: ='[13]WACC Calc'!J363 -> 0.03767311791 | Q78: ='[13]WACC Calc'!K363 -> 0.03803690282 | R78: ='[13]WACC Calc'!L363 -> 0.03803690282 | S78: ='[13]WACC Calc'!M363 -> 0.02493937568 | T78: ='[13]WACC Calc'!N363 -> 0.02611278243 | U78: ='[13]WACC Calc'!O363 -> 0.02727573485 | V78: ='[13]WACC Calc'!P363 -> 0.02842823292 | W78: ='[13]WACC Calc'!Q363 -> 0.02957027666 | X78: ='[13]WACC Calc'!R363 -> 0.02957027666 | Y78: ='[13]WACC Calc'!S363 -> 0.02957027666 | Z78: ='[13]WACC Calc'!T363 -> 0.02957027666 | AA78: ='[13]WACC Calc'!U363 -> 0.02957027666 | AB78: ='[13]WACC Calc'!V363 -> 0.02957027666 | AC78: ='[13]WACC Calc'!W363 -> 0.02957027666 | AD78: ='[13]WACC Calc'!X363 -> 0.02957027666 | AE78: ='[13]WACC Calc'!Y363 -> 0.02957027666 | AF78: ='[13]WACC Calc'!Z363 -> 0.02957027666 | AG78: ='[13]WACC Calc'!AA363 -> 0.02957027666 | AH78: ='[13]WACC Calc'!AB363 -> 0.02957027666 | AI78: ='[13]WACC Calc'!AC363 -> 0.02957027666 | AJ78: ='[13]WACC Calc'!AD363 -> 0.02957027666 | AK78: ='[13]WACC Calc'!AE363 -> 0.02957027666 | AL78: ='[13]WACC Calc'!AF363 -> 0.02957027666 | AM78: ='[13]WACC Calc'!AG363 -> 0.02957027666 | AN78: ='[13]WACC Calc'!AH363 -> 0.02957027666 | AO78: ='[13]WACC Calc'!AI363 -> 0.02957027666 | AP78: ='[13]WACC Calc'!AJ363 -> 0.02957027666 | AQ78: ='[13]WACC Calc'!AK363 -> 0.02957027666
K79: ='[13]WACC Calc'!B364 -> WACC Real - Moderate | L79: ='[13]WACC Calc'!F364 -> 0.04482868394 | M79: ='[13]WACC Calc'!G364 -> 0.04509514021 | N79: ='[13]WACC Calc'!H364 -> 0.04145206897 | O79: ='[13]WACC Calc'!I364 -> 0.03732914531 | P79: ='[13]WACC Calc'!J364 -> 0.03767311791 | Q79: ='[13]WACC Calc'!K364 -> 0.03803690282 | R79: ='[13]WACC Calc'!L364 -> 0.03803690282 | S79: ='[13]WACC Calc'!M364 -> 0.02493937568 | T79: ='[13]WACC Calc'!N364 -> 0.02611278243 | U79: ='[13]WACC Calc'!O364 -> 0.02727573485 | V79: ='[13]WACC Calc'!P364 -> 0.02842823292 | W79: ='[13]WACC Calc'!Q364 -> 0.02957027666 | X79: ='[13]WACC Calc'!R364 -> 0.02957027666 | Y79: ='[13]WACC Calc'!S364 -> 0.02957027666 | Z79: ='[13]WACC Calc'!T364 -> 0.02957027666 | AA79: ='[13]WACC Calc'!U364 -> 0.02957027666 | AB79: ='[13]WACC Calc'!V364 -> 0.02957027666 | AC79: ='[13]WACC Calc'!W364 -> 0.02957027666 | AD79: ='[13]WACC Calc'!X364 -> 0.02957027666 | AE79: ='[13]WACC Calc'!Y364 -> 0.02957027666 | AF79: ='[13]WACC Calc'!Z364 -> 0.02957027666 | AG79: ='[13]WACC Calc'!AA364 -> 0.02957027666 | AH79: ='[13]WACC Calc'!AB364 -> 0.02957027666 | AI79: ='[13]WACC Calc'!AC364 -> 0.02957027666 | AJ79: ='[13]WACC Calc'!AD364 -> 0.02957027666 | AK79: ='[13]WACC Calc'!AE364 -> 0.02957027666 | AL79: ='[13]WACC Calc'!AF364 -> 0.02957027666 | AM79: ='[13]WACC Calc'!AG364 -> 0.02957027666 | AN79: ='[13]WACC Calc'!AH364 -> 0.02957027666 | AO79: ='[13]WACC Calc'!AI364 -> 0.02957027666 | AP79: ='[13]WACC Calc'!AJ364 -> 0.02957027666 | AQ79: ='[13]WACC Calc'!AK364 -> 0.02957027666
K80: ='[13]WACC Calc'!B365 -> WACC Real - Conservative | L80: ='[13]WACC Calc'!F365 -> 0.04482868394 | M80: ='[13]WACC Calc'!G365 -> 0.04509514021 | N80: ='[13]WACC Calc'!H365 -> 0.04145206897 | O80: ='[13]WACC Calc'!I365 -> 0.03732914531 | P80: ='[13]WACC Calc'!J365 -> 0.03767311791 | Q80: ='[13]WACC Calc'!K365 -> 0.03803690282 | R80: ='[13]WACC Calc'!L365 -> 0.03803690282 | S80: ='[13]WACC Calc'!M365 -> 0.02493937568 | T80: ='[13]WACC Calc'!N365 -> 0.02611278243 | U80: ='[13]WACC Calc'!O365 -> 0.02727573485 | V80: ='[13]WACC Calc'!P365 -> 0.02842823292 | W80: ='[13]WACC Calc'!Q365 -> 0.02957027666 | X80: ='[13]WACC Calc'!R365 -> 0.02957027666 | Y80: ='[13]WACC Calc'!S365 -> 0.02957027666 | Z80: ='[13]WACC Calc'!T365 -> 0.02957027666 | AA80: ='[13]WACC Calc'!U365 -> 0.02957027666 | AB80: ='[13]WACC Calc'!V365 -> 0.02957027666 | AC80: ='[13]WACC Calc'!W365 -> 0.02957027666 | AD80: ='[13]WACC Calc'!X365 -> 0.02957027666 | AE80: ='[13]WACC Calc'!Y365 -> 0.02957027666 | AF80: ='[13]WACC Calc'!Z365 -> 0.02957027666 | AG80: ='[13]WACC Calc'!AA365 -> 0.02957027666 | AH80: ='[13]WACC Calc'!AB365 -> 0.02957027666 | AI80: ='[13]WACC Calc'!AC365 -> 0.02957027666 | AJ80: ='[13]WACC Calc'!AD365 -> 0.02957027666 | AK80: ='[13]WACC Calc'!AE365 -> 0.02957027666 | AL80: ='[13]WACC Calc'!AF365 -> 0.02957027666 | AM80: ='[13]WACC Calc'!AG365 -> 0.02957027666 | AN80: ='[13]WACC Calc'!AH365 -> 0.02957027666 | AO80: ='[13]WACC Calc'!AI365 -> 0.02957027666 | AP80: ='[13]WACC Calc'!AJ365 -> 0.02957027666 | AQ80: ='[13]WACC Calc'!AK365 -> 0.02957027666
K81: Capital Recovery Factor (CRF) Nominal - Low | L81: =L75 / (1 - (1 / (1 + L75)^$N$30)) -> 0.09509057816 | M81: 0.09529169142 | N81: 0.09255823749 | O81: 0.08950765834 | P81: 0.08976039675 | Q81: 0.0900280454 | R81: 0.0900280454 | S81: 0.08062598988 | T81: 0.08144823424 | U81: 0.08226713066 | V81: 0.08308254808 | W81: 0.08389435752 | X81: 0.08389435752 | Y81: 0.08389435752 | Z81: 0.08389435752 | AA81: 0.08389435752 | AB81: 0.08389435752 | AC81: 0.08389435752 | AD81: 0.08389435752 | AE81: 0.08389435752 | AF81: 0.08389435752 | AG81: 0.08389435752 | AH81: 0.08389435752 | AI81: 0.08389435752 | AJ81: 0.08389435752 | AK81: 0.08389435752 | AL81: 0.08389435752 | AM81: 0.08389435752 | AN81: 0.08389435752 | AO81: 0.08389435752 | AP81: 0.08389435752 | AQ81: 0.08389435752
K82: Capital Recovery Factor (CRF) Nominal - Mid | L82: 0.09509057816 | M82: 0.09529169142 | N82: 0.09255823749 | O82: 0.08950765834 | P82: 0.08976039675 | Q82: 0.0900280454 | R82: 0.0900280454 | S82: 0.08062598988 | T82: 0.08144823424 | U82: 0.08226713066 | V82: 0.08308254808 | W82: 0.08389435752 | X82: 0.08389435752 | Y82: 0.08389435752 | Z82: 0.08389435752 | AA82: 0.08389435752 | AB82: 0.08389435752 | AC82: 0.08389435752 | AD82: 0.08389435752 | AE82: 0.08389435752 | AF82: 0.08389435752 | AG82: 0.08389435752 | AH82: 0.08389435752 | AI82: 0.08389435752 | AJ82: 0.08389435752 | AK82: 0.08389435752 | AL82: 0.08389435752 | AM82: 0.08389435752 | AN82: 0.08389435752 | AO82: 0.08389435752 | AP82: 0.08389435752 | AQ82: 0.08389435752
K83: Capital Recovery Factor (CRF) Nominal - Conservative | L83: 0.09509057816 | M83: 0.09529169142 | N83: 0.09255823749 | O83: 0.08950765834 | P83: 0.08976039675 | Q83: 0.0900280454 | R83: 0.0900280454 | S83: 0.08062598988 | T83: 0.08144823424 | U83: 0.08226713066 | V83: 0.08308254808 | W83: 0.08389435752 | X83: 0.08389435752 | Y83: 0.08389435752 | Z83: 0.08389435752 | AA83: 0.08389435752 | AB83: 0.08389435752 | AC83: 0.08389435752 | AD83: 0.08389435752 | AE83: 0.08389435752 | AF83: 0.08389435752 | AG83: 0.08389435752 | AH83: 0.08389435752 | AI83: 0.08389435752 | AJ83: 0.08389435752 | AK83: 0.08389435752 | AL83: 0.08389435752 | AM83: 0.08389435752 | AN83: 0.08389435752 | AO83: 0.08389435752 | AP83: 0.08389435752 | AQ83: 0.08389435752
K84: Capital Recovery Factor (CRF) Real - Low | L84: 0.07676206602 | M84: 0.07693953414 | N84: 0.07453096438 | O84: 0.07185208516 | P84: 0.07207365553 | Q84: 0.07230837153 | R84: 0.07230837153 | S84: 0.0641103996 | T84: 0.06482334513 | U84: 0.06553417095 | V84: 0.06624274654 | W84: 0.06694894299 | X84: 0.06694894299 | Y84: 0.06694894299 | Z84: 0.06694894299 | AA84: 0.06694894299 | AB84: 0.06694894299 | AC84: 0.06694894299 | AD84: 0.06694894299 | AE84: 0.06694894299 | AF84: 0.06694894299 | AG84: 0.06694894299 | AH84: 0.06694894299 | AI84: 0.06694894299 | AJ84: 0.06694894299 | AK84: 0.06694894299 | AL84: 0.06694894299 | AM84: 0.06694894299 | AN84: 0.06694894299 | AO84: 0.06694894299 | AP84: 0.06694894299 | AQ84: 0.06694894299
K85: Capital Recovery Factor (CRF) Real - Mid | L85: 0.07676206602 | M85: 0.07693953414 | N85: 0.07453096438 | O85: 0.07185208516 | P85: 0.07207365553 | Q85: 0.07230837153 | R85: 0.07230837153 | S85: 0.0641103996 | T85: 0.06482334513 | U85: 0.06553417095 | V85: 0.06624274654 | W85: 0.06694894299 | X85: 0.06694894299 | Y85: 0.06694894299 | Z85: 0.06694894299 | AA85: 0.06694894299 | AB85: 0.06694894299 | AC85: 0.06694894299 | AD85: 0.06694894299 | AE85: 0.06694894299 | AF85: 0.06694894299 | AG85: 0.06694894299 | AH85: 0.06694894299 | AI85: 0.06694894299 | AJ85: 0.06694894299 | AK85: 0.06694894299 | AL85: 0.06694894299 | AM85: 0.06694894299 | AN85: 0.06694894299 | AO85: 0.06694894299 | AP85: 0.06694894299 | AQ85: 0.06694894299
K86: Capital Recovery Factor (CRF) Real - Conservative | L86: 0.07676206602 | M86: 0.07693953414 | N86: 0.07453096438 | O86: 0.07185208516 | P86: 0.07207365553 | Q86: 0.07230837153 | R86: 0.07230837153 | S86: 0.0641103996 | T86: 0.06482334513 | U86: 0.06553417095 | V86: 0.06624274654 | W86: 0.06694894299 | X86: 0.06694894299 | Y86: 0.06694894299 | Z86: 0.06694894299 | AA86: 0.06694894299 | AB86: 0.06694894299 | AC86: 0.06694894299 | AD86: 0.06694894299 | AE86: 0.06694894299 | AF86: 0.06694894299 | AG86: 0.06694894299 | AH86: 0.06694894299 | AI86: 0.06694894299 | AJ86: 0.06694894299 | AK86: 0.06694894299 | AL86: 0.06694894299 | AM86: 0.06694894299 | AN86: 0.06694894299 | AO86: 0.06694894299 | AP86: 0.06694894299 | AQ86: 0.06694894299
D89: X | G89: Future Projections
L90: Base Year
L91: 2019 | M91: 2020 | N91: 2021 | O91: 2022 | P91: 2023 | Q91: 2024 | R91: 2025 | S91: 2026 | T91: 2027 | U91: 2028 | V91: 2029 | W91: 2030 | X91: 2031 | Y91: 2032 | Z91: 2033 | AA91: 2034 | AB91: 2035 | AC91: 2036 | AD91: 2037 | AE91: 2038 | AF91: 2039 | AG91: 2040 | AH91: 2041 | AI91: 2042 | AJ91: 2043 | AK91: 2044 | AL91: 2045 | AM91: 2046 | AN91: 2047 | AO91: 2048 | AP91: 2049 | AQ91: 2050
H92: Techno-Economic Cost and Performance Parameters | J92: Net Capacity Factor (%) | K92: Class 1 - Advanced | L92: 0.501368 | M92: 0.5074763636 | N92: 0.5135847273 | O92: 0.5196930909 | P92: 0.5258014545 | Q92: 0.5319098182 | R92: 0.5380181818 | S92: 0.5441265455 | T92: 0.5502349091 | U92: 0.5563432727 | V92: 0.5624516364 | W92: 0.56856 | X92: 0.56912856 | Y92: 0.56969712 | Z92: 0.57026568 | AA92: 0.57083424 | AB92: 0.5714028 | AC92: 0.57197136 | AD92: 0.57253992 | AE92: 0.57310848 | AF92: 0.57367704 | AG92: 0.5742456 | AH92: 0.57481416 | AI92: 0.57538272 | AJ92: 0.57595128 | AK92: 0.57651984 | AL92: 0.5770884 | AM92: 0.57765696 | AN92: 0.57822552 | AO92: 0.57879408 | AP92: 0.57936264 | AQ92: 0.5799312
K93: Class 1 - Moderate | L93: 0.501368 | M93: 0.5050919091 | N93: 0.5088158182 | O93: 0.5125397273 | P93: 0.5162636364 | Q93: 0.5199875455 | R93: 0.5237114545 | S93: 0.5274353636 | T93: 0.5311592727 | U93: 0.5348831818 | V93: 0.5386070909 | W93: 0.542331 | X93: 0.5426021655 | Y93: 0.542873331 | Z93: 0.5431444965 | AA93: 0.543415662 | AB93: 0.5436868275 | AC93: 0.543957993 | AD93: 0.5442291585 | AE93: 0.544500324 | AF93: 0.5447714895 | AG93: 0.545042655 | AH93: 0.5453138205 | AI93: 0.545584986 | AJ93: 0.5458561515 | AK93: 0.546127317 | AL93: 0.5463984825 | AM93: 0.546669648 | AN93: 0.5469408135 | AO93: 0.547211979 | AP93: 0.5474831445 | AQ93: 0.54775431
K94: Class 1 - Conservative | L94: 0.501368 | M94: 0.5020613636 | N94: 0.5027547273 | O94: 0.5034480909 | P94: 0.5041414545 | Q94: 0.5048348182 | R94: 0.5055281818 | S94: 0.5062215455 | T94: 0.5069149091 | U94: 0.5076082727 | V94: 0.5083016364 | W94: 0.508995 | X94: 0.5091222488 | Y94: 0.5092494975 | Z94: 0.5093767462 | AA94: 0.509503995 | AB94: 0.5096312438 | AC94: 0.5097584925 | AD94: 0.5098857412 | AE94: 0.51001299 | AF94: 0.5101402387 | AG94: 0.5102674875 | AH94: 0.5103947362 | AI94: 0.510521985 | AJ94: 0.5106492337 | AK94: 0.5107764825 | AL94: 0.5109037312 | AM94: 0.51103098 | AN94: 0.5111582287 | AO94: 0.5112854775 | AP94: 0.5114127262 | AQ94: 0.511539975
K95: Class 2 - Advanced | L95: 0.457134 | M95: 0.4633390909 | N95: 0.4695441818 | O95: 0.4757492727 | P95: 0.4819543636 | Q95: 0.4881594545 | R95: 0.4943645455 | S95: 0.5005696364 | T95: 0.5067747273 | U95: 0.5129798182 | V95: 0.5191849091 | W95: 0.52539 | X95: 0.526178085 | Y95: 0.52696617 | Z95: 0.527754255 | AA95: 0.52854234 | AB95: 0.529330425 | AC95: 0.53011851 | AD95: 0.530906595 | AE95: 0.53169468 | AF95: 0.532482765 | AG95: 0.53327085 | AH95: 0.534058935 | AI95: 0.53484702 | AJ95: 0.535635105 | AK95: 0.53642319 | AL95: 0.537211275 | AM95: 0.53799936 | AN95: 0.538787445 | AO95: 0.53957553 | AP95: 0.540363615 | AQ95: 0.5411517
K96: Class 2 - Moderate | L96: 0.457134 | M96: 0.4608921818 | N96: 0.4646503636 | O96: 0.4684085455 | P96: 0.4721667273 | Q96: 0.4759249091 | R96: 0.4796830909 | S96: 0.4834412727 | T96: 0.4871994545 | U96: 0.4909576364 | V96: 0.4947158182 | W96: 0.498474 | X96: 0.4988478555 | Y96: 0.499221711 | Z96: 0.4995955665 | AA96: 0.499969422 | AB96: 0.5003432775 | AC96: 0.500717133 | AD96: 0.5010909885 | AE96: 0.501464844 | AF96: 0.5018386995 | AG96: 0.502212555 | AH96: 0.5025864105 | AI96: 0.502960266 | AJ96: 0.5033341215 | AK96: 0.503707977 | AL96: 0.5040818325 | AM96: 0.504455688 | AN96: 0.5048295435 | AO96: 0.505203399 | AP96: 0.5055772545 | AQ96: 0.50595111
K97: Class 2 - Conservative | L97: 0.457134 | M97: 0.4580005455 | N97: 0.4588670909 | O97: 0.4597336364 | P97: 0.4606001818 | Q97: 0.4614667273 | R97: 0.4623332727 | S97: 0.4631998182 | T97: 0.4640663636 | U97: 0.4649329091 | V97: 0.4657994545 | W97: 0.466666 | X97: 0.4668409998 | Y97: 0.4670159995 | Z97: 0.4671909992 | AA97: 0.467365999 | AB97: 0.4675409987 | AC97: 0.4677159985 | AD97: 0.4678909983 | AE97: 0.468065998 | AF97: 0.4682409978 | AG97: 0.4684159975 | AH97: 0.4685909973 | AI97: 0.468765997 | AJ97: 0.4689409968 | AK97: 0.4691159965 | AL97: 0.4692909962 | AM97: 0.469465996 | AN97: 0.4696409958 | AO97: 0.4698159955 | AP97: 0.4699909953 | AQ97: 0.470165995
K98: Class 3 - Advanced | L98: 0.443267 | M98: 0.4494685455 | N98: 0.4556700909 | O98: 0.4618716364 | P98: 0.4680731818 | Q98: 0.4742747273 | R98: 0.4804762727 | S98: 0.4866778182 | T98: 0.4928793636 | U98: 0.4990809091 | V98: 0.5052824545 | W98: 0.511484 | X98: 0.512506968 | Y98: 0.513529936 | Z98: 0.514552904 | AA98: 0.515575872 | AB98: 0.51659884 | AC98: 0.517621808 | AD98: 0.518644776 | AE98: 0.519667744 | AF98: 0.520690712 | AG98: 0.52171368 | AH98: 0.522736648 | AI98: 0.523759616 | AJ98: 0.524782584 | AK98: 0.525805552 | AL98: 0.52682852 | AM98: 0.527851488 | AN98: 0.528874456 | AO98: 0.529897424 | AP98: 0.530920392 | AQ98: 0.53194336
K99: Class 3 - Moderate | L99: 0.443267 | M99: 0.4470305455 | N99: 0.4507940909 | O99: 0.4545576364 | P99: 0.4583211818 | Q99: 0.4620847273 | R99: 0.4658482727 | S99: 0.4696118182 | T99: 0.4733753636 | U99: 0.4771389091 | V99: 0.4809024545 | W99: 0.484666 | X99: 0.485150666 | Y99: 0.485635332 | Z99: 0.486119998 | AA99: 0.486604664 | AB99: 0.48708933 | AC99: 0.487573996 | AD99: 0.488058662 | AE99: 0.488543328 | AF99: 0.489027994 | AG99: 0.48951266 | AH99: 0.489997326 | AI99: 0.490481992 | AJ99: 0.490966658 | AK99: 0.491451324 | AL99: 0.49193599 | AM99: 0.492420656 | AN99: 0.492905322 | AO99: 0.493389988 | AP99: 0.493874654 | AQ99: 0.49435932
K100: Class 3 - Conservative | L100: 0.443267 | M100: 0.4441845455 | N100: 0.4451020909 | O100: 0.4460196364 | P100: 0.4469371818 | Q100: 0.4478547273 | R100: 0.4487722727 | S100: 0.4496898182 | T100: 0.4506073636 | U100: 0.4515249091 | V100: 0.4524424545 | W100: 0.45336 | X100: 0.45358668 | Y100: 0.45381336 | Z100: 0.45404004 | AA100: 0.45426672 | AB100: 0.4544934 | AC100: 0.45472008 | AD100: 0.45494676 | AE100: 0.45517344 | AF100: 0.45540012 | AG100: 0.4556268 | AH100: 0.45585348 | AI100: 0.45608016 | AJ100: 0.45630684 | AK100: 0.45653352 | AL100: 0.4567602 | AM100: 0.45698688 | AN100: 0.45721356 | AO100: 0.45744024 | AP100: 0.45766692 | AQ100: 0.4578936
K101: Class 4 - Advanced | L101: 0.42975 | M101: 0.4359086364 | N101: 0.4420672727 | O101: 0.4482259091 | P101: 0.4543845455 | Q101: 0.4605431818 | R101: 0.4667018182 | S101: 0.4728604545 | T101: 0.4790190909 | U101: 0.4851777273 | V101: 0.4913363636 | W101: 0.497495 | X101: 0.4987387375 | Y101: 0.499982475 | Z101: 0.5012262125 | AA101: 0.50246995 | AB101: 0.5037136875 | AC101: 0.504957425 | AD101: 0.5062011625 | AE101: 0.5074449 | AF101: 0.5086886375 | AG101: 0.509932375 | AH101: 0.5111761125 | AI101: 0.51241985 | AJ101: 0.5136635875 | AK101: 0.514907325 | AL101: 0.5161510625 | AM101: 0.5173948 | AN101: 0.5186385375 | AO101: 0.519882275 | AP101: 0.5211260125 | AQ101: 0.52236975
K102: Class 4 - Moderate | L102: 0.42975 | M102: 0.4334643636 | N102: 0.4371787273 | O102: 0.4408930909 | P102: 0.4446074545 | Q102: 0.4483218182 | R102: 0.4520361818 | S102: 0.4557505455 | T102: 0.4594649091 | U102: 0.4631792727 | V102: 0.4668936364 | W102: 0.470608 | X102: 0.47119626 | Y102: 0.47178452 | Z102: 0.47237278 | AA102: 0.47296104 | AB102: 0.4735493 | AC102: 0.47413756 | AD102: 0.47472582 | AE102: 0.47531408 | AF102: 0.47590234 | AG102: 0.4764906 | AH102: 0.47707886 | AI102: 0.47766712 | AJ102: 0.47825538 | AK102: 0.47884364 | AL102: 0.4794319 | AM102: 0.48002016 | AN102: 0.48060842 | AO102: 0.48119668 | AP102: 0.48178494 | AQ102: 0.4823732
K103: Class 4 - Conservative | L103: 0.42975 | M103: 0.4306817273 | N103: 0.4316134545 | O103: 0.4325451818 | P103: 0.4334769091 | Q103: 0.4344086364 | R103: 0.4353403636 | S103: 0.4362720909 | T103: 0.4372038182 | U103: 0.4381355455 | V103: 0.4390672727 | W103: 0.439999 | X103: 0.4402739994 | Y103: 0.4405489987 | Z103: 0.4408239981 | AA103: 0.4410989975 | AB103: 0.4413739969 | AC103: 0.4416489962 | AD103: 0.4419239956 | AE103: 0.442198995 | AF103: 0.4424739944 | AG103: 0.4427489937 | AH103: 0.4430239931 | AI103: 0.4432989925 | AJ103: 0.4435739919 | AK103: 0.4438489912 | AL103: 0.4441239906 | AM103: 0.44439899 | AN103: 0.4446739894 | AO103: 0.4449489887 | AP103: 0.4452239881 | AQ103: 0.4454989875
K104: Class 5 - Advanced | L104: 0.412909 | M104: 0.4189967273 | N104: 0.4250844545 | O104: 0.4311721818 | P104: 0.4372599091 | Q104: 0.4433476364 | R104: 0.4494353636 | S104: 0.4555230909 | T104: 0.4616108182 | U104: 0.4676985455 | V104: 0.4737862727 | W104: 0.479874 | X104: 0.481313622 | Y104: 0.482753244 | Z104: 0.484192866 | AA104: 0.485632488 | AB104: 0.48707211 | AC104: 0.488511732 | AD104: 0.489951354 | AE104: 0.491390976 | AF104: 0.492830598 | AG104: 0.49427022 | AH104: 0.495709842 | AI104: 0.497149464 | AJ104: 0.498589086 | AK104: 0.500028708 | AL104: 0.50146833 | AM104: 0.502907952 | AN104: 0.504347574 | AO104: 0.505787196 | AP104: 0.507226818 | AQ104: 0.50866644
K105: Class 5 - Moderate | L105: 0.412909 | M105: 0.4165595455 | N105: 0.4202100909 | O105: 0.4238606364 | P105: 0.4275111818 | Q105: 0.4311617273 | R105: 0.4348122727 | S105: 0.4384628182 | T105: 0.4421133636 | U105: 0.4457639091 | V105: 0.4494144545 | W105: 0.453065 | X105: 0.4537445975 | Y105: 0.454424195 | Z105: 0.4551037925 | AA105: 0.45578339 | AB105: 0.4564629875 | AC105: 0.457142585 | AD105: 0.4578221825 | AE105: 0.45850178 | AF105: 0.4591813775 | AG105: 0.459860975 | AH105: 0.4605405725 | AI105: 0.46122017 | AJ105: 0.4618997675 | AK105: 0.462579365 | AL105: 0.4632589625 | AM105: 0.46393856 | AN105: 0.4646181575 | AO105: 0.465297755 | AP105: 0.4659773525 | AQ105: 0.46665695
K106: Class 5 - Conservative | L106: 0.412909 | M106: 0.413857 | N106: 0.414805 | O106: 0.415753 | P106: 0.416701 | Q106: 0.417649 | R106: 0.418597 | S106: 0.419545 | T106: 0.420493 | U106: 0.421441 | V106: 0.422389 | W106: 0.423337 | X106: 0.4236545027 | Y106: 0.4239720055 | Z106: 0.4242895083 | AA106: 0.424607011 | AB106: 0.4249245138 | AC106: 0.4252420165 | AD106: 0.4255595192 | AE106: 0.425877022 | AF106: 0.4261945247 | AG106: 0.4265120275 | AH106: 0.4268295303 | AI106: 0.427147033 | AJ106: 0.4274645357 | AK106: 0.4277820385 | AL106: 0.4280995413 | AM106: 0.428417044 | AN106: 0.4287345468 | AO106: 0.4290520495 | AP106: 0.4293695523 | AQ106: 0.429687055
K107: Class 6 - Advanced | L107: 0.38662 | M107: 0.3925860909 | N107: 0.3985521818 | O107: 0.4045182727 | P107: 0.4104843636 | Q107: 0.4164504545 | R107: 0.4224165455 | S107: 0.4283826364 | T107: 0.4343487273 | U107: 0.4403148182 | V107: 0.4462809091 | W107: 0.452247 | X107: 0.4538298645 | Y107: 0.455412729 | Z107: 0.4569955935 | AA107: 0.458578458 | AB107: 0.4601613225 | AC107: 0.461744187 | AD107: 0.4633270515 | AE107: 0.464909916 | AF107: 0.4664927805 | AG107: 0.468075645 | AH107: 0.4696585095 | AI107: 0.471241374 | AJ107: 0.4728242385 | AK107: 0.474407103 | AL107: 0.4759899675 | AM107: 0.477572832 | AN107: 0.4791556965 | AO107: 0.480738561 | AP107: 0.4823214255 | AQ107: 0.48390429
K108: Class 6 - Moderate | L108: 0.38662 | M108: 0.3905452727 | N108: 0.3944705455 | O108: 0.3983958182 | P108: 0.4023210909 | Q108: 0.4062463636 | R108: 0.4101716364 | S108: 0.4140969091 | T108: 0.4180221818 | U108: 0.4219474545 | V108: 0.4258727273 | W108: 0.429798 | X108: 0.4305501465 | Y108: 0.431302293 | Z108: 0.4320544395 | AA108: 0.432806586 | AB108: 0.4335587325 | AC108: 0.434310879 | AD108: 0.4350630255 | AE108: 0.435815172 | AF108: 0.4365673185 | AG108: 0.437319465 | AH108: 0.4380716115 | AI108: 0.438823758 | AJ108: 0.4395759045 | AK108: 0.440328051 | AL108: 0.4410801975 | AM108: 0.441832344 | AN108: 0.4425844905 | AO108: 0.443336637 | AP108: 0.4440887835 | AQ108: 0.44484093
K109: Class 6 - Conservative | L109: 0.38662 | M109: 0.3876024545 | N109: 0.3885849091 | O109: 0.3895673636 | P109: 0.3905498182 | Q109: 0.3915322727 | R109: 0.3925147273 | S109: 0.3934971818 | T109: 0.3944796364 | U109: 0.3954620909 | V109: 0.3964445455 | W109: 0.397427 | X109: 0.3977747486 | Y109: 0.3981224972 | Z109: 0.3984702459 | AA109: 0.3988179945 | AB109: 0.3991657431 | AC109: 0.3995134917 | AD109: 0.3998612404 | AE109: 0.400208989 | AF109: 0.4005567376 | AG109: 0.4009044862 | AH109: 0.4012522349 | AI109: 0.4015999835 | AJ109: 0.4019477321 | AK109: 0.4022954807 | AL109: 0.4026432294 | AM109: 0.402990978 | AN109: 0.4033387266 | AO109: 0.4036864752 | AP109: 0.4040342239 | AQ109: 0.4043819725
K110: Class 7 - Advanced | L110: 0.352304 | M110: 0.3580465455 | N110: 0.3637890909 | O110: 0.3695316364 | P110: 0.3752741818 | Q110: 0.3810167273 | R110: 0.3867592727 | S110: 0.3925018182 | T110: 0.3982443636 | U110: 0.4039869091 | V110: 0.4097294545 | W110: 0.415472 | X110: 0.417133888 | Y110: 0.418795776 | Z110: 0.420457664 | AA110: 0.422119552 | AB110: 0.42378144 | AC110: 0.425443328 | AD110: 0.427105216 | AE110: 0.428767104 | AF110: 0.430428992 | AG110: 0.43209088 | AH110: 0.433752768 | AI110: 0.435414656 | AJ110: 0.437076544 | AK110: 0.438738432 | AL110: 0.44040032 | AM110: 0.442062208 | AN110: 0.443724096 | AO110: 0.445385984 | AP110: 0.447047872 | AQ110: 0.44870976
K111: Class 7 - Moderate | L111: 0.352304 | M111: 0.3557054545 | N111: 0.3591069091 | O111: 0.3625083636 | P111: 0.3659098182 | Q111: 0.3693112727 | R111: 0.3727127273 | S111: 0.3761141818 | T111: 0.35 | U111: 0.3829170909 | V111: 0.3863185455 | W111: 0.38972 | X111: 0.39049944 | Y111: 0.39127888 | Z111: 0.39205832 | AA111: 0.39283776 | AB111: 0.3936172 | AC111: 0.39439664 | AD111: 0.39517608 | AE111: 0.39595552 | AF111: 0.39673496 | AG111: 0.3975144 | AH111: 0.39829384 | AI111: 0.39907328 | AJ111: 0.39985272 | AK111: 0.40063216 | AL111: 0.4014116 | AM111: 0.40219104 | AN111: 0.40297048 | AO111: 0.40374992 | AP111: 0.40452936 | AQ111: 0.4053088
K112: Class 7 - Conservative | L112: 0.352304 | M112: 0.3533057273 | N112: 0.3543074545 | O112: 0.3553091818 | P112: 0.3563109091 | Q112: 0.3573126364 | R112: 0.3583143636 | S112: 0.3593160909 | T112: 0.3603178182 | U112: 0.3613195455 | V112: 0.3623212727 | W112: 0.363323 | X112: 0.363686323 | Y112: 0.364049646 | Z112: 0.364412969 | AA112: 0.364776292 | AB112: 0.365139615 | AC112: 0.365502938 | AD112: 0.365866261 | AE112: 0.366229584 | AF112: 0.366592907 | AG112: 0.36695623 | AH112: 0.367319553 | AI112: 0.367682876 | AJ112: 0.368046199 | AK112: 0.368409522 | AL112: 0.368772845 | AM112: 0.369136168 | AN112: 0.369499491 | AO112: 0.369862814 | AP112: 0.370226137 | AQ112: 0.37058946
K113: Class 8 - Advanced | L113: 0.311036 | M113: 0.3164511818 | N113: 0.3218663636 | O113: 0.3272815455 | P113: 0.3326967273 | Q113: 0.3381119091 | R113: 0.3435270909 | S113: 0.3489422727 | T113: 0.3543574545 | U113: 0.3597726364 | V113: 0.3651878182 | W113: 0.370603 | X113: 0.3722707135 | Y113: 0.373938427 | Z113: 0.3756061405 | AA113: 0.377273854 | AB113: 0.3789415675 | AC113: 0.380609281 | AD113: 0.3822769945 | AE113: 0.383944708 | AF113: 0.3856124215 | AG113: 0.387280135 | AH113: 0.3889478485 | AI113: 0.390615562 | AJ113: 0.3922832755 | AK113: 0.393950989 | AL113: 0.3956187025 | AM113: 0.397286416 | AN113: 0.3989541295 | AO113: 0.400621843 | AP113: 0.4022895565 | AQ113: 0.40395727
K114: Class 8 - Moderate | L114: 0.311036 | M114: 0.3142136364 | N114: 0.3173912727 | O114: 0.3205689091 | P114: 0.3237465455 | Q114: 0.3269241818 | R114: 0.3301018182 | S114: 0.3332794545 | T114: 0.3364570909 | U114: 0.3396347273 | V114: 0.3428123636 | W114: 0.34599 | X114: 0.3467684775 | Y114: 0.347546955 | Z114: 0.3483254325 | AA114: 0.34910391 | AB114: 0.3498823875 | AC114: 0.350660865 | AD114: 0.3514393425 | AE114: 0.35221782 | AF114: 0.3529962975 | AG114: 0.353774775 | AH114: 0.3545532525 | AI114: 0.35533173 | AJ114: 0.3561102075 | AK114: 0.356888685 | AL114: 0.3576671625 | AM114: 0.35844564 | AN114: 0.3592241175 | AO114: 0.360002595 | AP114: 0.3607810725 | AQ114: 0.36155955
K115: Class 8 - Conservative | L115: 0.311036 | M115: 0.3120332727 | N115: 0.3130305455 | O115: 0.3140278182 | P115: 0.3150250909 | Q115: 0.3160223636 | R115: 0.3170196364 | S115: 0.3180169091 | T115: 0.3190141818 | U115: 0.3200114545 | V115: 0.3210087273 | W115: 0.322006 | X115: 0.3223682568 | Y115: 0.3227305135 | Z115: 0.3230927703 | AA115: 0.323455027 | AB115: 0.3238172838 | AC115: 0.3241795405 | AD115: 0.3245417973 | AE115: 0.324904054 | AF115: 0.3252663108 | AG115: 0.3256285675 | AH115: 0.3259908243 | AI115: 0.326353081 | AJ115: 0.3267153378 | AK115: 0.3270775945 | AL115: 0.3274398513 | AM115: 0.327802108 | AN115: 0.3281643647 | AO115: 0.3285266215 | AP115: 0.3288888783 | AQ115: 0.329251135
K116: Class 9 - Advanced | L116: 0.265759 | M116: 0.2707379091 | N116: 0.2757168182 | O116: 0.2806957273 | P116: 0.2856746364 | Q116: 0.2906535455 | R116: 0.2956324545 | S116: 0.3006113636 | T116: 0.3055902727 | U116: 0.3105691818 | V116: 0.3155480909 | W116: 0.320527 | X116: 0.322129635 | Y116: 0.32373227 | Z116: 0.325334905 | AA116: 0.32693754 | AB116: 0.328540175 | AC116: 0.33014281 | AD116: 0.331745445 | AE116: 0.33334808 | AF116: 0.334950715 | AG116: 0.33655335 | AH116: 0.338155985 | AI116: 0.33975862 | AJ116: 0.341361255 | AK116: 0.34296389 | AL116: 0.344566525 | AM116: 0.34616916 | AN116: 0.347771795 | AO116: 0.34937443 | AP116: 0.350977065 | AQ116: 0.3525797
K117: Class 9 - Moderate | L117: 0.265759 | M117: 0.2686503636 | N117: 0.2715417273 | O117: 0.2744330909 | P117: 0.2773244545 | Q117: 0.2802158182 | R117: 0.2831071818 | S117: 0.2859985455 | T117: 0.2888899091 | U117: 0.2917812727 | V117: 0.2946726364 | W117: 0.297564 | X117: 0.29830791 | Y117: 0.29905182 | Z117: 0.29979573 | AA117: 0.30053964 | AB117: 0.30128355 | AC117: 0.30202746 | AD117: 0.30277137 | AE117: 0.30351528 | AF117: 0.30425919 | AG117: 0.3050031 | AH117: 0.30574701 | AI117: 0.30649092 | AJ117: 0.30723483 | AK117: 0.30797874 | AL117: 0.30872265 | AM117: 0.30946656 | AN117: 0.31021047 | AO117: 0.31095438 | AP117: 0.31169829 | AQ117: 0.3124422
K118: Class 9 - Conservative | L118: 0.265759 | M118: 0.266724 | N118: 0.267689 | O118: 0.268654 | P118: 0.269619 | Q118: 0.270584 | R118: 0.271549 | S118: 0.272514 | T118: 0.273479 | U118: 0.274444 | V118: 0.275409 | W118: 0.276374 | X118: 0.2767194675 | Y118: 0.277064935 | Z118: 0.2774104025 | AA118: 0.27775587 | AB118: 0.2781013375 | AC118: 0.278446805 | AD118: 0.2787922725 | AE118: 0.27913774 | AF118: 0.2794832075 | AG118: 0.279828675 | AH118: 0.2801741425 | AI118: 0.28051961 | AJ118: 0.2808650775 | AK118: 0.281210545 | AL118: 0.2815560125 | AM118: 0.28190148 | AN118: 0.2822469475 | AO118: 0.282592415 | AP118: 0.2829378825 | AQ118: 0.28328335
K119: Class 10 - Advanced | L119: 0.164841 | M119: 0.1685162727 | N119: 0.1721915455 | O119: 0.1758668182 | P119: 0.1795420909 | Q119: 0.1832173636 | R119: 0.1868926364 | S119: 0.1905679091 | T119: 0.1942431818 | U119: 0.1979184545 | V119: 0.2015937273 | W119: 0.205269 | X119: 0.2063979795 | Y119: 0.207526959 | Z119: 0.2086559385 | AA119: 0.209784918 | AB119: 0.2109138975 | AC119: 0.212042877 | AD119: 0.2131718565 | AE119: 0.214300836 | AF119: 0.2154298155 | AG119: 0.216558795 | AH119: 0.2176877745 | AI119: 0.218816754 | AJ119: 0.2199457335 | AK119: 0.221074713 | AL119: 0.2222036925 | AM119: 0.223332672 | AN119: 0.2244616515 | AO119: 0.225590631 | AP119: 0.2267196105 | AQ119: 0.22784859
K120: Class 10 - Moderate | L120: 0.164841 | M120: 0.1669329091 | N120: 0.1690248182 | O120: 0.1711167273 | P120: 0.1732086364 | Q120: 0.1753005455 | R120: 0.1773924545 | S120: 0.1794843636 | T120: 0.1815762727 | U120: 0.1836681818 | V120: 0.1857600909 | W120: 0.187852 | X120: 0.188368593 | Y120: 0.188885186 | Z120: 0.189401779 | AA120: 0.189918372 | AB120: 0.190434965 | AC120: 0.190951558 | AD120: 0.191468151 | AE120: 0.191984744 | AF120: 0.192501337 | AG120: 0.19301793 | AH120: 0.193534523 | AI120: 0.194051116 | AJ120: 0.194567709 | AK120: 0.195084302 | AL120: 0.195600895 | AM120: 0.196117488 | AN120: 0.196634081 | AO120: 0.197150674 | AP120: 0.197667267 | AQ120: 0.19818386
K121: Class 10 - Conservative | L121: 0.164841 | M121: 0.1656303636 | N121: 0.1664197273 | O121: 0.1672090909 | P121: 0.1679984545 | Q121: 0.1687878182 | R121: 0.1695771818 | S121: 0.1703665455 | T121: 0.1711559091 | U121: 0.1719452727 | V121: 0.1727346364 | W121: 0.173524 | X121: 0.1737625955 | Y121: 0.174001191 | Z121: 0.1742397865 | AA121: 0.174478382 | AB121: 0.1747169775 | AC121: 0.174955573 | AD121: 0.1751941685 | AE121: 0.175432764 | AF121: 0.1756713595 | AG121: 0.175909955 | AH121: 0.1761485505 | AI121: 0.176387146 | AJ121: 0.1766257415 | AK121: 0.176864337 | AL121: 0.1771029325 | AM121: 0.177341528 | AN121: 0.1775801235 | AO121: 0.177818719 | AP121: 0.1780573145 | AQ121: 0.17829591
L123: 2019 | M123: 2020 | N123: 2021 | O123: 2022 | P123: 2023 | Q123: 2024 | R123: 2025 | S123: 2026 | T123: 2027 | U123: 2028 | V123: 2029 | W123: 2030 | X123: 2031 | Y123: 2032 | Z123: 2033 | AA123: 2034 | AB123: 2035 | AC123: 2036 | AD123: 2037 | AE123: 2038 | AF123: 2039 | AG123: 2040 | AH123: 2041 | AI123: 2042 | AJ123: 2043 | AK123: 2044 | AL123: 2045 | AM123: 2046 | AN123: 2047 | AO123: 2048 | AP123: 2049 | AQ123: 2050
J124: Annual Energy Production (kWh/kW) | K124: Class 1 - Advanced | L124: =(L92)*8760 -> 4391.98368 | M124: 4445.492945 | N124: 4499.002211 | O124: 4552.511476 | P124: 4606.020742 | Q124: 4659.530007 | R124: 4713.039273 | S124: 4766.548538 | T124: 4820.057804 | U124: 4873.567069 | V124: 4927.076335 | W124: 4980.5856 | X124: 4985.566186 | Y124: 4990.546771 | Z124: 4995.527357 | AA124: 5000.507942 | AB124: 5005.488528 | AC124: 5010.469114 | AD124: 5015.449699 | AE124: 5020.430285 | AF124: 5025.41087 | AG124: 5030.391456 | AH124: 5035.372042 | AI124: 5040.352627 | AJ124: 5045.333213 | AK124: 5050.313798 | AL124: 5055.294384 | AM124: 5060.27497 | AN124: 5065.255555 | AO124: 5070.236141 | AP124: 5075.216726 | AQ124: 5080.197312
K125: Class 1 - Moderate | L125: 4391.98368 | M125: 4424.605124 | N125: 4457.226567 | O125: 4489.848011 | P125: 4522.469455 | Q125: 4555.090898 | R125: 4587.712342 | S125: 4620.333785 | T125: 4652.955229 | U125: 4685.576673 | V125: 4718.198116 | W125: 4750.81956 | X125: 4753.19497 | Y125: 4755.57038 | Z125: 4757.945789 | AA125: 4760.321199 | AB125: 4762.696609 | AC125: 4765.072019 | AD125: 4767.447428 | AE125: 4769.822838 | AF125: 4772.198248 | AG125: 4774.573658 | AH125: 4776.949068 | AI125: 4779.324477 | AJ125: 4781.699887 | AK125: 4784.075297 | AL125: 4786.450707 | AM125: 4788.826116 | AN125: 4791.201526 | AO125: 4793.576936 | AP125: 4795.952346 | AQ125: 4798.327756
K126: Class 1 - Conservative | L126: 4391.98368 | M126: 4398.057545 | N126: 4404.131411 | O126: 4410.205276 | P126: 4416.279142 | Q126: 4422.353007 | R126: 4428.426873 | S126: 4434.500738 | T126: 4440.574604 | U126: 4446.648469 | V126: 4452.722335 | W126: 4458.7962 | X126: 4459.910899 | Y126: 4461.025598 | Z126: 4462.140297 | AA126: 4463.254996 | AB126: 4464.369695 | AC126: 4465.484394 | AD126: 4466.599093 | AE126: 4467.713792 | AF126: 4468.828491 | AG126: 4469.94319 | AH126: 4471.05789 | AI126: 4472.172589 | AJ126: 4473.287288 | AK126: 4474.401987 | AL126: 4475.516686 | AM126: 4476.631385 | AN126: 4477.746084 | AO126: 4478.860783 | AP126: 4479.975482 | AQ126: 4481.090181
K127: Class 2 - Advanced | L127: 4004.49384 | M127: 4058.850436 | N127: 4113.207033 | O127: 4167.563629 | P127: 4221.920225 | Q127: 4276.276822 | R127: 4330.633418 | S127: 4384.990015 | T127: 4439.346611 | U127: 4493.703207 | V127: 4548.059804 | W127: 4602.4164 | X127: 4609.320025 | Y127: 4616.223649 | Z127: 4623.127274 | AA127: 4630.030898 | AB127: 4636.934523 | AC127: 4643.838148 | AD127: 4650.741772 | AE127: 4657.645397 | AF127: 4664.549021 | AG127: 4671.452646 | AH127: 4678.356271 | AI127: 4685.259895 | AJ127: 4692.16352 | AK127: 4699.067144 | AL127: 4705.970769 | AM127: 4712.874394 | AN127: 4719.778018 | AO127: 4726.681643 | AP127: 4733.585267 | AQ127: 4740.488892
K128: Class 2 - Moderate | L128: 4004.49384 | M128: 4037.415513 | N128: 4070.337185 | O128: 4103.258858 | P128: 4136.180531 | Q128: 4169.102204 | R128: 4202.023876 | S128: 4234.945549 | T128: 4267.867222 | U128: 4300.788895 | V128: 4333.710567 | W128: 4366.63224 | X128: 4369.907214 | Y128: 4373.182188 | Z128: 4376.457163 | AA128: 4379.732137 | AB128: 4383.007111 | AC128: 4386.282085 | AD128: 4389.557059 | AE128: 4392.832033 | AF128: 4396.107008 | AG128: 4399.381982 | AH128: 4402.656956 | AI128: 4405.93193 | AJ128: 4409.206904 | AK128: 4412.481879 | AL128: 4415.756853 | AM128: 4419.031827 | AN128: 4422.306801 | AO128: 4425.581775 | AP128: 4428.856749 | AQ128: 4432.131724
K129: Class 2 - Conservative | L129: 4004.49384 | M129: 4012.084778 | N129: 4019.675716 | O129: 4027.266655 | P129: 4034.857593 | Q129: 4042.448531 | R129: 4050.039469 | S129: 4057.630407 | T129: 4065.221345 | U129: 4072.812284 | V129: 4080.403222 | W129: 4087.99416 | X129: 4089.527158 | Y129: 4091.060156 | Z129: 4092.593153 | AA129: 4094.126151 | AB129: 4095.659149 | AC129: 4097.192147 | AD129: 4098.725145 | AE129: 4100.258142 | AF129: 4101.79114 | AG129: 4103.324138 | AH129: 4104.857136 | AI129: 4106.390134 | AJ129: 4107.923132 | AK129: 4109.456129 | AL129: 4110.989127 | AM129: 4112.522125 | AN129: 4114.055123 | AO129: 4115.588121 | AP129: 4117.121118 | AQ129: 4118.654116
K130: Class 3 - Advanced | L130: 3883.01892 | M130: 3937.344458 | N130: 3991.669996 | O130: 4045.995535 | P130: 4100.321073 | Q130: 4154.646611 | R130: 4208.972149 | S130: 4263.297687 | T130: 4317.623225 | U130: 4371.948764 | V130: 4426.274302 | W130: 4480.59984 | X130: 4489.56104 | Y130: 4498.522239 | Z130: 4507.483439 | AA130: 4516.444639 | AB130: 4525.405838 | AC130: 4534.367038 | AD130: 4543.328238 | AE130: 4552.289437 | AF130: 4561.250637 | AG130: 4570.211837 | AH130: 4579.173036 | AI130: 4588.134236 | AJ130: 4597.095436 | AK130: 4606.056636 | AL130: 4615.017835 | AM130: 4623.979035 | AN130: 4632.940235 | AO130: 4641.901434 | AP130: 4650.862634 | AQ130: 4659.823834
K131: Class 3 - Moderate | L131: 3883.01892 | M131: 3915.987578 | N131: 3948.956236 | O131: 3981.924895 | P131: 4014.893553 | Q131: 4047.862211 | R131: 4080.830869 | S131: 4113.799527 | T131: 4146.768185 | U131: 4179.736844 | V131: 4212.705502 | W131: 4245.67416 | X131: 4249.919834 | Y131: 4254.165508 | Z131: 4258.411182 | AA131: 4262.656857 | AB131: 4266.902531 | AC131: 4271.148205 | AD131: 4275.393879 | AE131: 4279.639553 | AF131: 4283.885227 | AG131: 4288.130902 | AH131: 4292.376576 | AI131: 4296.62225 | AJ131: 4300.867924 | AK131: 4305.113598 | AL131: 4309.359272 | AM131: 4313.604947 | AN131: 4317.850621 | AO131: 4322.096295 | AP131: 4326.341969 | AQ131: =(AQ99)*8760 -> 4330.587643
K132: Class 3 - Conservative | L132: =(L100)*8760 -> 3883.01892 | M132: 3891.056618 | N132: 3899.094316 | O132: 3907.132015 | P132: 3915.169713 | Q132: 3923.207411 | R132: 3931.245109 | S132: 3939.282807 | T132: 3947.320505 | U132: 3955.358204 | V132: 3963.395902 | W132: 3971.4336 | X132: 3973.419317 | Y132: 3975.405034 | Z132: 3977.39075 | AA132: 3979.376467 | AB132: 3981.362184 | AC132: 3983.347901 | AD132: 3985.333618 | AE132: 3987.319334 | AF132: 3989.305051 | AG132: 3991.290768 | AH132: 3993.276485 | AI132: 3995.262202 | AJ132: 3997.247918 | AK132: 3999.233635 | AL132: 4001.219352 | AM132: 4003.205069 | AN132: 4005.190786 | AO132: 4007.176502 | AP132: 4009.162219 | AQ132: 4011.147936
K133: Class 4 - Advanced | L133: 3764.61 | M133: 3818.559655 | N133: 3872.509309 | O133: 3926.458964 | P133: 3980.408618 | Q133: 4034.358273 | R133: 4088.307927 | S133: 4142.257582 | T133: 4196.207236 | U133: 4250.156891 | V133: 4304.106545 | W133: 4358.0562 | X133: 4368.95134 | Y133: 4379.846481 | Z133: 4390.741622 | AA133: 4401.636762 | AB133: 4412.531903 | AC133: 4423.427043 | AD133: 4434.322184 | AE133: 4445.217324 | AF133: 4456.112464 | AG133: 4467.007605 | AH133: 4477.902746 | AI133: 4488.797886 | AJ133: 4499.693027 | AK133: 4510.588167 | AL133: 4521.483307 | AM133: 4532.378448 | AN133: 4543.273589 | AO133: 4554.168729 | AP133: 4565.06387 | AQ133: 4575.95901
K134: Class 4 - Moderate | L134: 3764.61 | M134: 3797.147825 | N134: 3829.685651 | O134: 3862.223476 | P134: 3894.761302 | Q134: 3927.299127 | R134: 3959.836953 | S134: 3992.374778 | T134: 4024.912604 | U134: 4057.450429 | V134: 4089.988255 | W134: 4122.52608 | X134: 4127.679238 | Y134: 4132.832395 | Z134: 4137.985553 | AA134: 4143.13871 | AB134: 4148.291868 | AC134: 4153.445026 | AD134: 4158.598183 | AE134: 4163.751341 | AF134: 4168.904498 | AG134: 4174.057656 | AH134: 4179.210814 | AI134: 4184.363971 | AJ134: 4189.517129 | AK134: 4194.670286 | AL134: 4199.823444 | AM134: 4204.976602 | AN134: 4210.129759 | AO134: 4215.282917 | AP134: 4220.436074 | AQ134: 4225.589232
K135: Class 4 - Conservative | L135: 3764.61 | M135: 3772.771931 | N135: 3780.933862 | O135: 3789.095793 | P135: 3797.257724 | Q135: 3805.419655 | R135: 3813.581585 | S135: 3821.743516 | T135: 3829.905447 | U135: 3838.067378 | V135: 3846.229309 | W135: 3854.39124 | X135: 3856.800235 | Y135: 3859.209229 | Z135: 3861.618224 | AA135: 3864.027218 | AB135: 3866.436213 | AC135: 3868.845207 | AD135: 3871.254202 | AE135: 3873.663196 | AF135: 3876.072191 | AG135: 3878.481185 | AH135: 3880.89018 | AI135: 3883.299174 | AJ135: 3885.708169 | AK135: 3888.117163 | AL135: 3890.526158 | AM135: 3892.935152 | AN135: 3895.344147 | AO135: 3897.753141 | AP135: 3900.162136 | AQ135: 3902.57113
K136: Class 5 - Advanced | L136: 3617.08284 | M136: 3670.411331 | N136: 3723.739822 | O136: 3777.068313 | P136: 3830.396804 | Q136: 3883.725295 | R136: 3937.053785 | S136: 3990.382276 | T136: 4043.710767 | U136: 4097.039258 | V136: 4150.367749 | W136: 4203.69624 | X136: 4216.307329 | Y136: 4228.918417 | Z136: 4241.529506 | AA136: 4254.140595 | AB136: 4266.751684 | AC136: 4279.362772 | AD136: 4291.973861 | AE136: 4304.58495 | AF136: 4317.196038 | AG136: 4329.807127 | AH136: 4342.418216 | AI136: 4355.029305 | AJ136: 4367.640393 | AK136: 4380.251482 | AL136: 4392.862571 | AM136: 4405.47366 | AN136: 4418.084748 | AO136: 4430.695837 | AP136: 4443.306926 | AQ136: 4455.918014
K137: Class 5 - Moderate | L137: 3617.08284 | M137: 3649.061618 | N137: 3681.040396 | O137: 3713.019175 | P137: 3744.997953 | Q137: 3776.976731 | R137: 3808.955509 | S137: 3840.934287 | T137: 3872.913065 | U137: 3904.891844 | V137: 3936.870622 | W137: 3968.8494 | X137: 3974.802674 | Y137: 3980.755948 | Z137: 3986.709222 | AA137: 3992.662496 | AB137: 3998.615771 | AC137: 4004.569045 | AD137: 4010.522319 | AE137: 4016.475593 | AF137: 4022.428867 | AG137: 4028.382141 | AH137: 4034.335415 | AI137: 4040.288689 | AJ137: 4046.241963 | AK137: 4052.195237 | AL137: 4058.148512 | AM137: 4064.101786 | AN137: 4070.05506 | AO137: 4076.008334 | AP137: 4081.961608 | AQ137: 4087.914882
K138: Class 5 - Conservative | L138: 3617.08284 | M138: 3625.38732 | N138: 3633.6918 | O138: 3641.99628 | P138: 3650.30076 | Q138: 3658.60524 | R138: 3666.90972 | S138: 3675.2142 | T138: 3683.51868 | U138: 3691.82316 | V138: 3700.12764 | W138: 3708.43212 | X138: 3711.213444 | Y138: 3713.994768 | Z138: 3716.776092 | AA138: 3719.557416 | AB138: 3722.33874 | AC138: 3725.120065 | AD138: 3727.901389 | AE138: 3730.682713 | AF138: 3733.464037 | AG138: 3736.245361 | AH138: 3739.026685 | AI138: 3741.808009 | AJ138: 3744.589333 | AK138: 3747.370657 | AL138: 3750.151981 | AM138: 3752.933305 | AN138: 3755.71463 | AO138: 3758.495954 | AP138: 3761.277278 | AQ138: 3764.058602
K139: Class 6 - Advanced | L139: 3386.7912 | M139: 3439.054156 | N139: 3491.317113 | O139: 3543.580069 | P139: 3595.843025 | Q139: 3648.105982 | R139: 3700.368938 | S139: 3752.631895 | T139: 3804.894851 | U139: 3857.157807 | V139: 3909.420764 | W139: 3961.68372 | X139: 3975.549613 | Y139: 3989.415506 | Z139: 4003.281399 | AA139: 4017.147292 | AB139: 4031.013185 | AC139: 4044.879078 | AD139: 4058.744971 | AE139: 4072.610864 | AF139: 4086.476757 | AG139: 4100.34265 | AH139: 4114.208543 | AI139: 4128.074436 | AJ139: 4141.940329 | AK139: 4155.806222 | AL139: 4169.672115 | AM139: 4183.538008 | AN139: 4197.403901 | AO139: 4211.269794 | AP139: 4225.135687 | AQ139: =(AQ107)*8760 -> 4239.00158
K140: Class 6 - Moderate | L140: =(L108)*8760 -> 3386.7912 | M140: 3421.176589 | N140: 3455.561978 | O140: 3489.947367 | P140: 3524.332756 | Q140: 3558.718145 | R140: 3593.103535 | S140: 3627.488924 | T140: 3661.874313 | U140: 3696.259702 | V140: 3730.645091 | W140: 3765.03048 | X140: 3771.619283 | Y140: 3778.208087 | Z140: 3784.79689 | AA140: 3791.385693 | AB140: 3797.974497 | AC140: 3804.5633 | AD140: 3811.152103 | AE140: 3817.740907 | AF140: 3824.32971 | AG140: 3830.918513 | AH140: 3837.507317 | AI140: 3844.09612 | AJ140: 3850.684923 | AK140: 3857.273727 | AL140: 3863.86253 | AM140: 3870.451333 | AN140: 3877.040137 | AO140: 3883.62894 | AP140: 3890.217743 | AQ140: 3896.806547
K141: Class 6 - Conservative | L141: 3386.7912 | M141: 3395.397502 | N141: 3404.003804 | O141: 3412.610105 | P141: 3421.216407 | Q141: 3429.822709 | R141: 3438.429011 | S141: 3447.035313 | T141: 3455.641615 | U141: 3464.247916 | V141: 3472.854218 | W141: 3481.46052 | X141: 3484.506798 | Y141: 3487.553076 | Z141: 3490.599354 | AA141: 3493.645632 | AB141: 3496.69191 | AC141: 3499.738188 | AD141: 3502.784466 | AE141: 3505.830744 | AF141: 3508.877022 | AG141: 3511.9233 | AH141: 3514.969578 | AI141: 3518.015855 | AJ141: 3521.062133 | AK141: 3524.108411 | AL141: 3527.154689 | AM141: 3530.200967 | AN141: 3533.247245 | AO141: 3536.293523 | AP141: 3539.339801 | AQ141: 3542.386079
K142: Class 7 - Advanced | L142: 3086.18304 | M142: 3136.487738 | N142: 3186.792436 | O142: 3237.097135 | P142: 3287.401833 | Q142: 3337.706531 | R142: 3388.011229 | S142: 3438.315927 | T142: 3488.620625 | U142: 3538.925324 | V142: 3589.230022 | W142: 3639.53472 | X142: 3654.092859 | Y142: 3668.650998 | Z142: 3683.209137 | AA142: 3697.767276 | AB142: 3712.325414 | AC142: 3726.883553 | AD142: 3741.441692 | AE142: 3755.999831 | AF142: 3770.55797 | AG142: 3785.116109 | AH142: 3799.674248 | AI142: 3814.232387 | AJ142: 3828.790525 | AK142: 3843.348664 | AL142: 3857.906803 | AM142: 3872.464942 | AN142: 3887.023081 | AO142: 3901.58122 | AP142: 3916.139359 | AQ142: 3930.697498
K143: Class 7 - Moderate | L143: 3086.18304 | M143: 3115.979782 | N143: 3145.776524 | O143: 3175.573265 | P143: 3205.370007 | Q143: 3235.166749 | R143: 3264.963491 | S143: 3294.760233 | T143: 3066 | U143: 3354.353716 | V143: 3384.150458 | W143: 3413.9472 | X143: 3420.775094 | Y143: 3427.602989 | Z143: 3434.430883 | AA143: 3441.258778 | AB143: 3448.086672 | AC143: 3454.914566 | AD143: 3461.742461 | AE143: 3468.570355 | AF143: 3475.39825 | AG143: 3482.226144 | AH143: 3489.054038 | AI143: 3495.881933 | AJ143: 3502.709827 | AK143: 3509.537722 | AL143: 3516.365616 | AM143: 3523.19351 | AN143: 3530.021405 | AO143: 3536.849299 | AP143: 3543.677194 | AQ143: 3550.505088
K144: Class 7 - Conservative | L144: 3086.18304 | M144: 3094.958171 | N144: 3103.733302 | O144: 3112.508433 | P144: 3121.283564 | Q144: 3130.058695 | R144: 3138.833825 | S144: 3147.608956 | T144: 3156.384087 | U144: 3165.159218 | V144: 3173.934349 | W144: 3182.70948 | X144: 3185.892189 | Y144: 3189.074899 | Z144: 3192.257608 | AA144: 3195.440318 | AB144: 3198.623027 | AC144: 3201.805737 | AD144: 3204.988446 | AE144: 3208.171156 | AF144: 3211.353865 | AG144: 3214.536575 | AH144: 3217.719284 | AI144: 3220.901994 | AJ144: 3224.084703 | AK144: 3227.267413 | AL144: 3230.450122 | AM144: 3233.632832 | AN144: 3236.815541 | AO144: 3239.998251 | AP144: 3243.18096 | AQ144: 3246.36367
K145: Class 8 - Advanced | L145: 2724.67536 | M145: 2772.112353 | N145: 2819.549345 | O145: 2866.986338 | P145: 2914.423331 | Q145: 2961.860324 | R145: 3009.297316 | S145: 3056.734309 | T145: 3104.171302 | U145: 3151.608295 | V145: 3199.045287 | W145: 3246.48228 | X145: 3261.09145 | Y145: 3275.700621 | Z145: 3290.309791 | AA145: 3304.918961 | AB145: 3319.528131 | AC145: 3334.137302 | AD145: 3348.746472 | AE145: 3363.355642 | AF145: 3377.964812 | AG145: 3392.573983 | AH145: 3407.183153 | AI145: 3421.792323 | AJ145: 3436.401493 | AK145: 3451.010664 | AL145: 3465.619834 | AM145: 3480.229004 | AN145: 3494.838174 | AO145: 3509.447345 | AP145: 3524.056515 | AQ145: 3538.665685
K146: Class 8 - Moderate | L146: 2724.67536 | M146: 2752.511455 | N146: 2780.347549 | O146: 2808.183644 | P146: 2836.019738 | Q146: 2863.855833 | R146: 2891.691927 | S146: 2919.528022 | T146: 2947.364116 | U146: 2975.200211 | V146: 3003.036305 | W146: 3030.8724 | X146: 3037.691863 | Y146: 3044.511326 | Z146: 3051.330789 | AA146: 3058.150252 | AB146: 3064.969715 | AC146: 3071.789177 | AD146: 3078.60864 | AE146: 3085.428103 | AF146: 3092.247566 | AG146: 3099.067029 | AH146: 3105.886492 | AI146: 3112.705955 | AJ146: 3119.525418 | AK146: 3126.344881 | AL146: 3133.164344 | AM146: 3139.983806 | AN146: 3146.803269 | AO146: 3153.622732 | AP146: 3160.442195 | AQ146: 3167.261658
K147: Class 8 - Conservative | L147: 2724.67536 | M147: 2733.411469 | N147: 2742.147578 | O147: 2750.883687 | P147: 2759.619796 | Q147: 2768.355905 | R147: 2777.092015 | S147: 2785.828124 | T147: 2794.564233 | U147: 2803.300342 | V147: 2812.036451 | W147: 2820.77256 | X147: 2823.945929 | Y147: 2827.119298 | Z147: 2830.292667 | AA147: 2833.466037 | AB147: 2836.639406 | AC147: 2839.812775 | AD147: 2842.986144 | AE147: 2846.159513 | AF147: 2849.332882 | AG147: 2852.506251 | AH147: 2855.67962 | AI147: 2858.85299 | AJ147: 2862.026359 | AK147: 2865.199728 | AL147: 2868.373097 | AM147: 2871.546466 | AN147: 2874.719835 | AO147: 2877.893204 | AP147: 2881.066573 | AQ147: =(AQ115)*8760 -> 2884.239943
K148: Class 9 - Advanced | L148: =(L116)*8760 -> 2328.04884 | M148: 2371.664084 | N148: 2415.279327 | O148: 2458.894571 | P148: 2502.509815 | Q148: 2546.125058 | R148: 2589.740302 | S148: 2633.355545 | T148: 2676.970789 | U148: 2720.586033 | V148: 2764.201276 | W148: 2807.81652 | X148: 2821.855603 | Y148: 2835.894685 | Z148: 2849.933768 | AA148: 2863.97285 | AB148: 2878.011933 | AC148: 2892.051016 | AD148: 2906.090098 | AE148: 2920.129181 | AF148: 2934.168263 | AG148: 2948.207346 | AH148: 2962.246429 | AI148: 2976.285511 | AJ148: 2990.324594 | AK148: 3004.363676 | AL148: 3018.402759 | AM148: 3032.441842 | AN148: 3046.480924 | AO148: 3060.520007 | AP148: 3074.559089 | AQ148: 3088.598172
K149: Class 9 - Moderate | L149: 2328.04884 | M149: 2353.377185 | N149: 2378.705531 | O149: 2404.033876 | P149: 2429.362222 | Q149: 2454.690567 | R149: 2480.018913 | S149: 2505.347258 | T149: 2530.675604 | U149: 2556.003949 | V149: 2581.332295 | W149: 2606.66064 | X149: 2613.177292 | Y149: 2619.693943 | Z149: 2626.210595 | AA149: 2632.727246 | AB149: 2639.243898 | AC149: 2645.76055 | AD149: 2652.277201 | AE149: 2658.793853 | AF149: 2665.310504 | AG149: 2671.827156 | AH149: 2678.343808 | AI149: 2684.860459 | AJ149: 2691.377111 | AK149: 2697.893762 | AL149: 2704.410414 | AM149: 2710.927066 | AN149: 2717.443717 | AO149: 2723.960369 | AP149: 2730.47702 | AQ149: 2736.993672
K150: Class 9 - Conservative | L150: 2328.04884 | M150: 2336.50224 | N150: 2344.95564 | O150: 2353.40904 | P150: 2361.86244 | Q150: 2370.31584 | R150: 2378.76924 | S150: 2387.22264 | T150: 2395.67604 | U150: 2404.12944 | V150: 2412.58284 | W150: 2421.03624 | X150: 2424.062535 | Y150: 2427.088831 | Z150: 2430.115126 | AA150: 2433.141421 | AB150: 2436.167717 | AC150: 2439.194012 | AD150: 2442.220307 | AE150: 2445.246602 | AF150: 2448.272898 | AG150: 2451.299193 | AH150: 2454.325488 | AI150: 2457.351784 | AJ150: 2460.378079 | AK150: 2463.404374 | AL150: 2466.43067 | AM150: 2469.456965 | AN150: 2472.48326 | AO150: 2475.509555 | AP150: 2478.535851 | AQ150: 2481.562146
K151: Class 10 - Advanced | L151: 1444.00716 | M151: 1476.202549 | N151: 1508.397938 | O151: 1540.593327 | P151: 1572.788716 | Q151: 1604.984105 | R151: 1637.179495 | S151: 1669.374884 | T151: 1701.570273 | U151: 1733.765662 | V151: 1765.961051 | W151: 1798.15644 | X151: 1808.0463 | Y151: 1817.936161 | Z151: 1827.826021 | AA151: 1837.715882 | AB151: 1847.605742 | AC151: 1857.495603 | AD151: 1867.385463 | AE151: 1877.275323 | AF151: 1887.165184 | AG151: 1897.055044 | AH151: 1906.944905 | AI151: 1916.834765 | AJ151: 1926.724625 | AK151: 1936.614486 | AL151: 1946.504346 | AM151: 1956.394207 | AN151: 1966.284067 | AO151: 1976.173928 | AP151: 1986.063788 | AQ151: 1995.953648
K152: Class 10 - Moderate | L152: 1444.00716 | M152: 1462.332284 | N152: 1480.657407 | O152: 1498.982531 | P152: 1517.307655 | Q152: 1535.632778 | R152: 1553.957902 | S152: 1572.283025 | T152: 1590.608149 | U152: 1608.933273 | V152: 1627.258396 | W152: 1645.58352 | X152: 1650.108875 | Y152: 1654.634229 | Z152: 1659.159584 | AA152: 1663.684939 | AB152: 1668.210293 | AC152: 1672.735648 | AD152: 1677.261003 | AE152: 1681.786357 | AF152: 1686.311712 | AG152: 1690.837067 | AH152: 1695.362421 | AI152: 1699.887776 | AJ152: 1704.413131 | AK152: 1708.938486 | AL152: 1713.46384 | AM152: 1717.989195 | AN152: 1722.51455 | AO152: 1727.039904 | AP152: 1731.565259 | AQ152: 1736.090614
K153: Class 10 - Conservative | L153: 1444.00716 | M153: 1450.921985 | N153: 1457.836811 | O153: 1464.751636 | P153: 1471.666462 | Q153: 1478.581287 | R153: 1485.496113 | S153: 1492.410938 | T153: 1499.325764 | U153: 1506.240589 | V153: 1513.155415 | W153: 1520.07024 | X153: 1522.160337 | Y153: 1524.250433 | Z153: 1526.34053 | AA153: 1528.430626 | AB153: 1530.520723 | AC153: 1532.610819 | AD153: 1534.700916 | AE153: 1536.791013 | AF153: 1538.881109 | AG153: 1540.971206 | AH153: 1543.061302 | AI153: 1545.151399 | AJ153: 1547.241496 | AK153: 1549.331592 | AL153: 1551.421689 | AM153: 1553.511785 | AN153: 1555.601882 | AO153: 1557.691978 | AP153: 1559.782075 | AQ153: 1561.872172
L155: 2019 | M155: 2020 | N155: 2021 | O155: 2022 | P155: 2023 | Q155: 2024 | R155: 2025 | S155: 2026 | T155: 2027 | U155: 2028 | V155: 2029 | W155: 2030 | X155: 2031 | Y155: 2032 | Z155: 2033 | AA155: 2034 | AB155: 2035 | AC155: 2036 | AD155: 2037 | AE155: 2038 | AF155: 2039 | AG155: 2040 | AH155: 2041 | AI155: 2042 | AJ155: 2043 | AK155: 2044 | AL155: 2045 | AM155: 2046 | AN155: 2047 | AO155: 2048 | AP155: 2049 | AQ155: 2050
J156: CAPEX ($/kW) | K156: Class 1 - Advanced | L156: =$N$41*(L220 + L317) -> 1436 | M156: 1369.090909 | N156: 1302.181818 | O156: 1235.272727 | P156: 1168.363636 | Q156: 1101.454545 | R156: 1034.545455 | S156: 967.6363636 | T156: 900.7272727 | U156: 833.8181818 | V156: 766.9090909 | W156: 700 | X156: 691.25 | Y156: 682.5 | Z156: 673.75 | AA156: 665 | AB156: 656.25 | AC156: 647.5 | AD156: 638.75 | AE156: 630 | AF156: 621.25 | AG156: 612.5 | AH156: 603.75 | AI156: 595 | AJ156: 586.25 | AK156: 577.5 | AL156: 568.75 | AM156: 560 | AN156: 551.25 | AO156: 542.5 | AP156: 533.75 | AQ156: 525
K157: Class 1 - Moderate | L157: 1436 | M157: 1391.818182 | N157: 1347.636364 | O157: 1303.454545 | P157: 1259.272727 | Q157: 1215.090909 | R157: 1170.909091 | S157: 1126.727273 | T157: 1082.545455 | U157: 1038.363636 | V157: 994.1818182 | W157: 950 | X157: 940.5 | Y157: 931 | Z157: 921.5 | AA157: 912 | AB157: 902.5 | AC157: 893 | AD157: 883.5 | AE157: 874 | AF157: 864.5 | AG157: 855 | AH157: 845.5 | AI157: 836 | AJ157: 826.5 | AK157: 817 | AL157: 807.5 | AM157: 798 | AN157: 788.5 | AO157: 779 | AP157: 769.5 | AQ157: 760
K158: Class 1 - Conservative | L158: 1436 | M158: 1396.363636 | N158: 1356.727273 | O158: 1317.090909 | P158: 1277.454545 | Q158: 1237.818182 | R158: 1198.181818 | S158: 1158.545455 | T158: 1118.909091 | U158: 1079.272727 | V158: 1039.636364 | W158: 1000 | X158: 995 | Y158: 990 | Z158: 985 | AA158: 980 | AB158: 975 | AC158: 970 | AD158: 965 | AE158: 960 | AF158: 955 | AG158: 950 | AH158: 945 | AI158: 940 | AJ158: 935 | AK158: 930 | AL158: 925 | AM158: 920 | AN158: 915 | AO158: 910 | AP158: 905 | AQ158: 900
K159: Class 2 - Advanced | L159: 1436 | M159: 1369.090909 | N159: 1302.181818 | O159: 1235.272727 | P159: 1168.363636 | Q159: 1101.454545 | R159: 1034.545455 | S159: 967.6363636 | T159: 900.7272727 | U159: 833.8181818 | V159: 766.9090909 | W159: 700 | X159: 691.25 | Y159: 682.5 | Z159: 673.75 | AA159: 665 | AB159: 656.25 | AC159: 647.5 | AD159: 638.75 | AE159: 630 | AF159: 621.25 | AG159: 612.5 | AH159: 603.75 | AI159: 595 | AJ159: 586.25 | AK159: 577.5 | AL159: 568.75 | AM159: 560 | AN159: 551.25 | AO159: 542.5 | AP159: 533.75 | AQ159: 525
K160: Class 2 - Moderate | L160: 1436 | M160: 1391.818182 | N160: 1347.636364 | O160: 1303.454545 | P160: 1259.272727 | Q160: 1215.090909 | R160: 1170.909091 | S160: 1126.727273 | T160: 1082.545455 | U160: 1038.363636 | V160: 994.1818182 | W160: 950 | X160: 940.5 | Y160: 931 | Z160: 921.5 | AA160: 912 | AB160: 902.5 | AC160: 893 | AD160: 883.5 | AE160: 874 | AF160: 864.5 | AG160: 855 | AH160: 845.5 | AI160: 836 | AJ160: 826.5 | AK160: 817 | AL160: 807.5 | AM160: 798 | AN160: 788.5 | AO160: 779 | AP160: 769.5 | AQ160: 760
K161: Class 2 - Conservative | L161: 1436 | M161: 1396.363636 | N161: 1356.727273 | O161: 1317.090909 | P161: 1277.454545 | Q161: 1237.818182 | R161: 1198.181818 | S161: 1158.545455 | T161: 1118.909091 | U161: 1079.272727 | V161: 1039.636364 | W161: 1000 | X161: 995 | Y161: 990 | Z161: 985 | AA161: 980 | AB161: 975 | AC161: 970 | AD161: 965 | AE161: 960 | AF161: 955 | AG161: 950 | AH161: 945 | AI161: 940 | AJ161: 935 | AK161: 930 | AL161: 925 | AM161: 920 | AN161: 915 | AO161: 910 | AP161: 905 | AQ161: 900
K162: Class 3 - Advanced | L162: 1436 | M162: 1369.090909 | N162: 1302.181818 | O162: 1235.272727 | P162: 1168.363636 | Q162: 1101.454545 | R162: 1034.545455 | S162: 967.6363636 | T162: 900.7272727 | U162: 833.8181818 | V162: 766.9090909 | W162: 700 | X162: 691.25 | Y162: 682.5 | Z162: 673.75 | AA162: 665 | AB162: 656.25 | AC162: 647.5 | AD162: 638.75 | AE162: 630 | AF162: 621.25 | AG162: 612.5 | AH162: 603.75 | AI162: 595 | AJ162: 586.25 | AK162: 577.5 | AL162: 568.75 | AM162: 560 | AN162: 551.25 | AO162: 542.5 | AP162: 533.75 | AQ162: 525
K163: Class 3 - Moderate | L163: 1436 | M163: 1391.818182 | N163: 1347.636364 | O163: 1303.454545 | P163: 1259.272727 | Q163: 1215.090909 | R163: 1170.909091 | S163: 1126.727273 | T163: 1082.545455 | U163: 1038.363636 | V163: 994.1818182 | W163: 950 | X163: 940.5 | Y163: 931 | Z163: 921.5 | AA163: 912 | AB163: 902.5 | AC163: 893 | AD163: 883.5 | AE163: 874 | AF163: 864.5 | AG163: 855 | AH163: 845.5 | AI163: 836 | AJ163: 826.5 | AK163: 817 | AL163: 807.5 | AM163: 798 | AN163: 788.5 | AO163: 779 | AP163: 769.5 | AQ163: =$N$41*(AQ227 + AQ324) -> 760
K164: Class 3 - Conservative | L164: =$N$41*(L228 + L325) -> 1436 | M164: 1396.363636 | N164: 1356.727273 | O164: 1317.090909 | P164: 1277.454545 | Q164: 1237.818182 | R164: 1198.181818 | S164: 1158.545455 | T164: 1118.909091 | U164: 1079.272727 | V164: 1039.636364 | W164: 1000 | X164: 995 | Y164: 990 | Z164: 985 | AA164: 980 | AB164: 975 | AC164: 970 | AD164: 965 | AE164: 960 | AF164: 955 | AG164: 950 | AH164: 945 | AI164: 940 | AJ164: 935 | AK164: 930 | AL164: 925 | AM164: 920 | AN164: 915 | AO164: 910 | AP164: 905 | AQ164: 900
K165: Class 4 - Advanced | L165: 1436 | M165: 1369.090909 | N165: 1302.181818 | O165: 1235.272727 | P165: 1168.363636 | Q165: 1101.454545 | R165: 1034.545455 | S165: 967.6363636 | T165: 900.7272727 | U165: 833.8181818 | V165: 766.9090909 | W165: 700 | X165: 691.25 | Y165: 682.5 | Z165: 673.75 | AA165: 665 | AB165: 656.25 | AC165: 647.5 | AD165: 638.75 | AE165: 630 | AF165: 621.25 | AG165: 612.5 | AH165: 603.75 | AI165: 595 | AJ165: 586.25 | AK165: 577.5 | AL165: 568.75 | AM165: 560 | AN165: 551.25 | AO165: 542.5 | AP165: 533.75 | AQ165: 525
K166: Class 4 - Moderate | L166: 1436 | M166: 1391.818182 | N166: 1347.636364 | O166: 1303.454545 | P166: 1259.272727 | Q166: 1215.090909 | R166: 1170.909091 | S166: 1126.727273 | T166: 1082.545455 | U166: 1038.363636 | V166: 994.1818182 | W166: 950 | X166: 940.5 | Y166: 931 | Z166: 921.5 | AA166: 912 | AB166: 902.5 | AC166: 893 | AD166: 883.5 | AE166: 874 | AF166: 864.5 | AG166: 855 | AH166: 845.5 | AI166: 836 | AJ166: 826.5 | AK166: 817 | AL166: 807.5 | AM166: 798 | AN166: 788.5 | AO166: 779 | AP166: 769.5 | AQ166: 760
K167: Class 4 - Conservative | L167: 1436 | M167: 1396.363636 | N167: 1356.727273 | O167: 1317.090909 | P167: 1277.454545 | Q167: 1237.818182 | R167: 1198.181818 | S167: 1158.545455 | T167: 1118.909091 | U167: 1079.272727 | V167: 1039.636364 | W167: 1000 | X167: 995 | Y167: 990 | Z167: 985 | AA167: 980 | AB167: 975 | AC167: 970 | AD167: 965 | AE167: 960 | AF167: 955 | AG167: 950 | AH167: 945 | AI167: 940 | AJ167: 935 | AK167: 930 | AL167: 925 | AM167: 920 | AN167: 915 | AO167: 910 | AP167: 905 | AQ167: 900
K168: Class 5 - Advanced | L168: 1436 | M168: 1369.090909 | N168: 1302.181818 | O168: 1235.272727 | P168: 1168.363636 | Q168: 1101.454545 | R168: 1034.545455 | S168: 967.6363636 | T168: 900.7272727 | U168: 833.8181818 | V168: 766.9090909 | W168: 700 | X168: 691.25 | Y168: 682.5 | Z168: 673.75 | AA168: 665 | AB168: 656.25 | AC168: 647.5 | AD168: 638.75 | AE168: 630 | AF168: 621.25 | AG168: 612.5 | AH168: 603.75 | AI168: 595 | AJ168: 586.25 | AK168: 577.5 | AL168: 568.75 | AM168: 560 | AN168: 551.25 | AO168: 542.5 | AP168: 533.75 | AQ168: 525
K169: Class 5 - Moderate | L169: 1436 | M169: 1391.818182 | N169: 1347.636364 | O169: 1303.454545 | P169: 1259.272727 | Q169: 1215.090909 | R169: 1170.909091 | S169: 1126.727273 | T169: 1082.545455 | U169: 1038.363636 | V169: 994.1818182 | W169: 950 | X169: 940.5 | Y169: 931 | Z169: 921.5 | AA169: 912 | AB169: 902.5 | AC169: 893 | AD169: 883.5 | AE169: 874 | AF169: 864.5 | AG169: 855 | AH169: 845.5 | AI169: 836 | AJ169: 826.5 | AK169: 817 | AL169: 807.5 | AM169: 798 | AN169: 788.5 | AO169: 779 | AP169: 769.5 | AQ169: 760
K170: Class 5 - Conservative | L170: 1436 | M170: 1396.363636 | N170: 1356.727273 | O170: 1317.090909 | P170: 1277.454545 | Q170: 1237.818182 | R170: 1198.181818 | S170: 1158.545455 | T170: 1118.909091 | U170: 1079.272727 | V170: 1039.636364 | W170: 1000 | X170: 995 | Y170: 990 | Z170: 985 | AA170: 980 | AB170: 975 | AC170: 970 | AD170: 965 | AE170: 960 | AF170: 955 | AG170: 950 | AH170: 945 | AI170: 940 | AJ170: 935 | AK170: 930 | AL170: 925 | AM170: 920 | AN170: 915 | AO170: 910 | AP170: 905 | AQ170: 900
K171: Class 6 - Advanced | L171: 1436 | M171: 1369.090909 | N171: 1302.181818 | O171: 1235.272727 | P171: 1168.363636 | Q171: 1101.454545 | R171: 1034.545455 | S171: 967.6363636 | T171: 900.7272727 | U171: 833.8181818 | V171: 766.9090909 | W171: 700 | X171: 691.25 | Y171: 682.5 | Z171: 673.75 | AA171: 665 | AB171: 656.25 | AC171: 647.5 | AD171: 638.75 | AE171: 630 | AF171: 621.25 | AG171: 612.5 | AH171: 603.75 | AI171: 595 | AJ171: 586.25 | AK171: 577.5 | AL171: 568.75 | AM171: 560 | AN171: 551.25 | AO171: 542.5 | AP171: 533.75 | AQ171: =$N$41*(AQ235 + AQ332) -> 525
K172: Class 6 - Moderate | L172: =$N$41*(L236 + L333) -> 1436 | M172: 1391.818182 | N172: 1347.636364 | O172: 1303.454545 | P172: 1259.272727 | Q172: 1215.090909 | R172: 1170.909091 | S172: 1126.727273 | T172: 1082.545455 | U172: 1038.363636 | V172: 994.1818182 | W172: 950 | X172: 940.5 | Y172: 931 | Z172: 921.5 | AA172: 912 | AB172: 902.5 | AC172: 893 | AD172: 883.5 | AE172: 874 | AF172: 864.5 | AG172: 855 | AH172: 845.5 | AI172: 836 | AJ172: 826.5 | AK172: 817 | AL172: 807.5 | AM172: 798 | AN172: 788.5 | AO172: 779 | AP172: 769.5 | AQ172: 760
K173: Class 6 - Conservative | L173: 1436 | M173: 1396.363636 | N173: 1356.727273 | O173: 1317.090909 | P173: 1277.454545 | Q173: 1237.818182 | R173: 1198.181818 | S173: 1158.545455 | T173: 1118.909091 | U173: 1079.272727 | V173: 1039.636364 | W173: 1000 | X173: 995 | Y173: 990 | Z173: 985 | AA173: 980 | AB173: 975 | AC173: 970 | AD173: 965 | AE173: 960 | AF173: 955 | AG173: 950 | AH173: 945 | AI173: 940 | AJ173: 935 | AK173: 930 | AL173: 925 | AM173: 920 | AN173: 915 | AO173: 910 | AP173: 905 | AQ173: 900
K174: Class 7 - Advanced | L174: 1436 | M174: 1369.090909 | N174: 1302.181818 | O174: 1235.272727 | P174: 1168.363636 | Q174: 1101.454545 | R174: 1034.545455 | S174: 967.6363636 | T174: 900.7272727 | U174: 833.8181818 | V174: 766.9090909 | W174: 700 | X174: 691.25 | Y174: 682.5 | Z174: 673.75 | AA174: 665 | AB174: 656.25 | AC174: 647.5 | AD174: 638.75 | AE174: 630 | AF174: 621.25 | AG174: 612.5 | AH174: 603.75 | AI174: 595 | AJ174: 586.25 | AK174: 577.5 | AL174: 568.75 | AM174: 560 | AN174: 551.25 | AO174: 542.5 | AP174: 533.75 | AQ174: 525
K175: Class 7 - Moderate | L175: 1436 | M175: 1391.818182 | N175: 1347.636364 | O175: 1303.454545 | P175: 1259.272727 | Q175: 1215.090909 | R175: 1170.909091 | S175: 1126.727273 | T175: 1082.545455 | U175: 1038.363636 | V175: 994.1818182 | W175: 950 | X175: 940.5 | Y175: 931 | Z175: 921.5 | AA175: 912 | AB175: 902.5 | AC175: 893 | AD175: 883.5 | AE175: 874 | AF175: 864.5 | AG175: 855 | AH175: 845.5 | AI175: 836 | AJ175: 826.5 | AK175: 817 | AL175: 807.5 | AM175: 798 | AN175: 788.5 | AO175: 779 | AP175: 769.5 | AQ175: 760
K176: Class 7 - Conservative | L176: 1436 | M176: 1396.363636 | N176: 1356.727273 | O176: 1317.090909 | P176: 1277.454545 | Q176: 1237.818182 | R176: 1198.181818 | S176: 1158.545455 | T176: 1118.909091 | U176: 1079.272727 | V176: 1039.636364 | W176: 1000 | X176: 995 | Y176: 990 | Z176: 985 | AA176: 980 | AB176: 975 | AC176: 970 | AD176: 965 | AE176: 960 | AF176: 955 | AG176: 950 | AH176: 945 | AI176: 940 | AJ176: 935 | AK176: 930 | AL176: 925 | AM176: 920 | AN176: 915 | AO176: 910 | AP176: 905 | AQ176: 900
K177: Class 8 - Advanced | L177: 1436 | M177: 1369.090909 | N177: 1302.181818 | O177: 1235.272727 | P177: 1168.363636 | Q177: 1101.454545 | R177: 1034.545455 | S177: 967.6363636 | T177: 900.7272727 | U177: 833.8181818 | V177: 766.9090909 | W177: 700 | X177: 691.25 | Y177: 682.5 | Z177: 673.75 | AA177: 665 | AB177: 656.25 | AC177: 647.5 | AD177: 638.75 | AE177: 630 | AF177: 621.25 | AG177: 612.5 | AH177: 603.75 | AI177: 595 | AJ177: 586.25 | AK177: 577.5 | AL177: 568.75 | AM177: 560 | AN177: 551.25 | AO177: 542.5 | AP177: 533.75 | AQ177: 525
K178: Class 8 - Moderate | L178: 1436 | M178: 1391.818182 | N178: 1347.636364 | O178: 1303.454545 | P178: 1259.272727 | Q178: 1215.090909 | R178: 1170.909091 | S178: 1126.727273 | T178: 1082.545455 | U178: 1038.363636 | V178: 994.1818182 | W178: 950 | X178: 940.5 | Y178: 931 | Z178: 921.5 | AA178: 912 | AB178: 902.5 | AC178: 893 | AD178: 883.5 | AE178: 874 | AF178: 864.5 | AG178: 855 | AH178: 845.5 | AI178: 836 | AJ178: 826.5 | AK178: 817 | AL178: 807.5 | AM178: 798 | AN178: 788.5 | AO178: 779 | AP178: 769.5 | AQ178: 760
K179: Class 8 - Conservative | L179: 1436 | M179: 1396.363636 | N179: 1356.727273 | O179: 1317.090909 | P179: 1277.454545 | Q179: 1237.818182 | R179: 1198.181818 | S179: 1158.545455 | T179: 1118.909091 | U179: 1079.272727 | V179: 1039.636364 | W179: 1000 | X179: 995 | Y179: 990 | Z179: 985 | AA179: 980 | AB179: 975 | AC179: 970 | AD179: 965 | AE179: 960 | AF179: 955 | AG179: 950 | AH179: 945 | AI179: 940 | AJ179: 935 | AK179: 930 | AL179: 925 | AM179: 920 | AN179: 915 | AO179: 910 | AP179: 905 | AQ179: =$N$41*(AQ243 + AQ340) -> 900
K180: Class 9 - Advanced | L180: =$N$41*(L244 + L341) -> 1436 | M180: 1369.090909 | N180: 1302.181818 | O180: 1235.272727 | P180: 1168.363636 | Q180: 1101.454545 | R180: 1034.545455 | S180: 967.6363636 | T180: 900.7272727 | U180: 833.8181818 | V180: 766.9090909 | W180: 700 | X180: 691.25 | Y180: 682.5 | Z180: 673.75 | AA180: 665 | AB180: 656.25 | AC180: 647.5 | AD180: 638.75 | AE180: 630 | AF180: 621.25 | AG180: 612.5 | AH180: 603.75 | AI180: 595 | AJ180: 586.25 | AK180: 577.5 | AL180: 568.75 | AM180: 560 | AN180: 551.25 | AO180: 542.5 | AP180: 533.75 | AQ180: 525
K181: Class 9 - Moderate | L181: 1436 | M181: 1391.818182 | N181: 1347.636364 | O181: 1303.454545 | P181: 1259.272727 | Q181: 1215.090909 | R181: 1170.909091 | S181: 1126.727273 | T181: 1082.545455 | U181: 1038.363636 | V181: 994.1818182 | W181: 950 | X181: 940.5 | Y181: 931 | Z181: 921.5 | AA181: 912 | AB181: 902.5 | AC181: 893 | AD181: 883.5 | AE181: 874 | AF181: 864.5 | AG181: 855 | AH181: 845.5 | AI181: 836 | AJ181: 826.5 | AK181: 817 | AL181: 807.5 | AM181: 798 | AN181: 788.5 | AO181: 779 | AP181: 769.5 | AQ181: 760
K182: Class 9 - Conservative | L182: 1436 | M182: 1396.363636 | N182: 1356.727273 | O182: 1317.090909 | P182: 1277.454545 | Q182: 1237.818182 | R182: 1198.181818 | S182: 1158.545455 | T182: 1118.909091 | U182: 1079.272727 | V182: 1039.636364 | W182: 1000 | X182: 995 | Y182: 990 | Z182: 985 | AA182: 980 | AB182: 975 | AC182: 970 | AD182: 965 | AE182: 960 | AF182: 955 | AG182: 950 | AH182: 945 | AI182: 940 | AJ182: 935 | AK182: 930 | AL182: 925 | AM182: 920 | AN182: 915 | AO182: 910 | AP182: 905 | AQ182: 900
K183: Class 10 - Advanced | L183: 1436 | M183: 1369.090909 | N183: 1302.181818 | O183: 1235.272727 | P183: 1168.363636 | Q183: 1101.454545 | R183: 1034.545455 | S183: 967.6363636 | T183: 900.7272727 | U183: 833.8181818 | V183: 766.9090909 | W183: 700 | X183: 691.25 | Y183: 682.5 | Z183: 673.75 | AA183: 665 | AB183: 656.25 | AC183: 647.5 | AD183: 638.75 | AE183: 630 | AF183: 621.25 | AG183: 612.5 | AH183: 603.75 | AI183: 595 | AJ183: 586.25 | AK183: 577.5 | AL183: 568.75 | AM183: 560 | AN183: 551.25 | AO183: 542.5 | AP183: 533.75 | AQ183: 525
K184: Class 10 - Moderate | L184: 1436 | M184: 1391.818182 | N184: 1347.636364 | O184: 1303.454545 | P184: 1259.272727 | Q184: 1215.090909 | R184: 1170.909091 | S184: 1126.727273 | T184: 1082.545455 | U184: 1038.363636 | V184: 994.1818182 | W184: 950 | X184: 940.5 | Y184: 931 | Z184: 921.5 | AA184: 912 | AB184: 902.5 | AC184: 893 | AD184: 883.5 | AE184: 874 | AF184: 864.5 | AG184: 855 | AH184: 845.5 | AI184: 836 | AJ184: 826.5 | AK184: 817 | AL184: 807.5 | AM184: 798 | AN184: 788.5 | AO184: 779 | AP184: 769.5 | AQ184: 760
K185: Class 10 - Conservative | L185: 1436 | M185: 1396.363636 | N185: 1356.727273 | O185: 1317.090909 | P185: 1277.454545 | Q185: 1237.818182 | R185: 1198.181818 | S185: 1158.545455 | T185: 1118.909091 | U185: 1079.272727 | V185: 1039.636364 | W185: 1000 | X185: 995 | Y185: 990 | Z185: 985 | AA185: 980 | AB185: 975 | AC185: 970 | AD185: 965 | AE185: 960 | AF185: 955 | AG185: 950 | AH185: 945 | AI185: 940 | AJ185: 935 | AK185: 930 | AL185: 925 | AM185: 920 | AN185: 915 | AO185: 910 | AP185: 905 | AQ185: 900
L187: 2019 | M187: 2020 | N187: 2021 | O187: 2022 | P187: 2023 | Q187: 2024 | R187: 2025 | S187: 2026 | T187: 2027 | U187: 2028 | V187: 2029 | W187: 2030 | X187: 2031 | Y187: 2032 | Z187: 2033 | AA187: 2034 | AB187: 2035 | AC187: 2036 | AD187: 2037 | AE187: 2038 | AF187: 2039 | AG187: 2040 | AH187: 2041 | AI187: 2042 | AJ187: 2043 | AK187: 2044 | AL187: 2045 | AM187: 2046 | AN187: 2047 | AO187: 2048 | AP187: 2049 | AQ187: 2050
J188: Construction Financing Cost ($/kW) | K188: Class 1 - Advanced | L188: =(L220+L317)*($N$41-1) -> 60.1063857 | M188: =(M220+M317)*($N$41-1) -> 57.30578429 | N188: 54.50518288 | O188: 51.70458147 | P188: 48.90398006 | Q188: 46.10337865 | R188: 43.30277724 | S188: 40.50217583 | T188: 37.70157442 | U188: 34.90097301 | V188: 32.1003716 | W188: 29.29977019 | X188: 28.93352306 | Y188: 28.56727594 | Z188: 28.20102881 | AA188: 27.83478168 | AB188: 27.46853455 | AC188: 27.10228743 | AD188: 26.7360403 | AE188: 26.36979317 | AF188: 26.00354604 | AG188: 25.63729892 | AH188: 25.27105179 | AI188: 24.90480466 | AJ188: 24.53855753 | AK188: 24.17231041 | AL188: 23.80606328 | AM188: 23.43981615 | AN188: 23.07356902 | AO188: 22.7073219 | AP188: 22.34107477 | AQ188: 21.97482764
K189: Class 1 - Moderate | L189: =(L221+L318)*($N$41-1) -> 60.1063857 | M189: 58.25707553 | N189: 56.40776536 | O189: 54.55845519 | P189: 52.70914502 | Q189: 50.85983485 | R189: 49.01052468 | S189: 47.16121451 | T189: 45.31190434 | U189: 43.46259417 | V189: 41.613284 | W189: 39.76397383 | X189: 39.36633409 | Y189: 38.96869435 | Z189: 38.57105461 | AA189: 38.17341488 | AB189: 37.77577514 | AC189: 37.3781354 | AD189: 36.98049566 | AE189: 36.58285592 | AF189: 36.18521618 | AG189: 35.78757645 | AH189: 35.38993671 | AI189: 34.99229697 | AJ189: 34.59465723 | AK189: 34.19701749 | AL189: 33.79937775 | AM189: 33.40173802 | AN189: 33.00409828 | AO189: 32.60645854 | AP189: 32.2088188 | AQ189: 31.81117906
K190: Class 1 - Conservative | L190: 60.1063857 | M190: 58.44733378 | N190: 56.78828186 | O190: 55.12922994 | P190: 53.47017801 | Q190: 51.81112609 | R190: 50.15207417 | S190: 48.49302225 | T190: 46.83397032 | U190: 45.1749184 | V190: 43.51586648 | W190: 41.85681456 | X190: 41.64753048 | Y190: 41.43824641 | Z190: 41.22896234 | AA190: 41.01967827 | AB190: 40.81039419 | AC190: 40.60111012 | AD190: 40.39182605 | AE190: 40.18254197 | AF190: 39.9732579 | AG190: 39.76397383 | AH190: 39.55468976 | AI190: 39.34540568 | AJ190: 39.13612161 | AK190: 38.92683754 | AL190: 38.71755347 | AM190: 38.50826939 | AN190: 38.29898532 | AO190: 38.08970125 | AP190: 37.88041717 | AQ190: 37.6711331
K191: Class 2 - Advanced | L191: 60.1063857 | M191: 57.30578429 | N191: 54.50518288 | O191: 51.70458147 | P191: 48.90398006 | Q191: 46.10337865 | R191: 43.30277724 | S191: 40.50217583 | T191: 37.70157442 | U191: 34.90097301 | V191: 32.1003716 | W191: 29.29977019 | X191: 28.93352306 | Y191: 28.56727594 | Z191: 28.20102881 | AA191: 27.83478168 | AB191: 27.46853455 | AC191: 27.10228743 | AD191: 26.7360403 | AE191: 26.36979317 | AF191: 26.00354604 | AG191: 25.63729892 | AH191: 25.27105179 | AI191: 24.90480466 | AJ191: 24.53855753 | AK191: 24.17231041 | AL191: 23.80606328 | AM191: 23.43981615 | AN191: 23.07356902 | AO191: 22.7073219 | AP191: 22.34107477 | AQ191: 21.97482764
K192: Class 2 - Moderate | L192: 60.1063857 | M192: 58.25707553 | N192: 56.40776536 | O192: 54.55845519 | P192: 52.70914502 | Q192: 50.85983485 | R192: 49.01052468 | S192: 47.16121451 | T192: 45.31190434 | U192: 43.46259417 | V192: 41.613284 | W192: 39.76397383 | X192: 39.36633409 | Y192: 38.96869435 | Z192: 38.57105461 | AA192: 38.17341488 | AB192: 37.77577514 | AC192: 37.3781354 | AD192: 36.98049566 | AE192: 36.58285592 | AF192: 36.18521618 | AG192: 35.78757645 | AH192: 35.38993671 | AI192: 34.99229697 | AJ192: 34.59465723 | AK192: 34.19701749 | AL192: 33.79937775 | AM192: 33.40173802 | AN192: 33.00409828 | AO192: 32.60645854 | AP192: 32.2088188 | AQ192: 31.81117906
K193: Class 2 - Conservative | L193: 60.1063857 | M193: 58.44733378 | N193: 56.78828186 | O193: 55.12922994 | P193: 53.47017801 | Q193: 51.81112609 | R193: 50.15207417 | S193: 48.49302225 | T193: 46.83397032 | U193: 45.1749184 | V193: 43.51586648 | W193: 41.85681456 | X193: 41.64753048 | Y193: 41.43824641 | Z193: 41.22896234 | AA193: 41.01967827 | AB193: 40.81039419 | AC193: 40.60111012 | AD193: 40.39182605 | AE193: 40.18254197 | AF193: 39.9732579 | AG193: 39.76397383 | AH193: 39.55468976 | AI193: 39.34540568 | AJ193: 39.13612161 | AK193: 38.92683754 | AL193: 38.71755347 | AM193: 38.50826939 | AN193: 38.29898532 | AO193: 38.08970125 | AP193: 37.88041717 | AQ193: 37.6711331
K194: Class 3 - Advanced | L194: 60.1063857 | M194: 57.30578429 | N194: 54.50518288 | O194: 51.70458147 | P194: 48.90398006 | Q194: 46.10337865 | R194: 43.30277724 | S194: 40.50217583 | T194: 37.70157442 | U194: 34.90097301 | V194: 32.1003716 | W194: 29.29977019 | X194: 28.93352306 | Y194: 28.56727594 | Z194: 28.20102881 | AA194: 27.83478168 | AB194: 27.46853455 | AC194: 27.10228743 | AD194: 26.7360403 | AE194: 26.36979317 | AF194: 26.00354604 | AG194: 25.63729892 | AH194: 25.27105179 | AI194: 24.90480466 | AJ194: 24.53855753 | AK194: 24.17231041 | AL194: 23.80606328 | AM194: 23.43981615 | AN194: 23.07356902 | AO194: 22.7073219 | AP194: 22.34107477 | AQ194: 21.97482764
K195: Class 3 - Moderate | L195: 60.1063857 | M195: 58.25707553 | N195: 56.40776536 | O195: 54.55845519 | P195: 52.70914502 | Q195: 50.85983485 | R195: 49.01052468 | S195: 47.16121451 | T195: 45.31190434 | U195: 43.46259417 | V195: 41.613284 | W195: 39.76397383 | X195: 39.36633409 | Y195: 38.96869435 | Z195: 38.57105461 | AA195: 38.17341488 | AB195: 37.77577514 | AC195: 37.3781354 | AD195: 36.98049566 | AE195: 36.58285592 | AF195: 36.18521618 | AG195: 35.78757645 | AH195: 35.38993671 | AI195: 34.99229697 | AJ195: 34.59465723 | AK195: 34.19701749 | AL195: 33.79937775 | AM195: 33.40173802 | AN195: 33.00409828 | AO195: 32.60645854 | AP195: 32.2088188 | AQ195: 31.81117906
K196: Class 3 - Conservative | L196: 60.1063857 | M196: 58.44733378 | N196: 56.78828186 | O196: 55.12922994 | P196: 53.47017801 | Q196: 51.81112609 | R196: 50.15207417 | S196: 48.49302225 | T196: 46.83397032 | U196: 45.1749184 | V196: 43.51586648 | W196: 41.85681456 | X196: 41.64753048 | Y196: 41.43824641 | Z196: 41.22896234 | AA196: 41.01967827 | AB196: 40.81039419 | AC196: 40.60111012 | AD196: 40.39182605 | AE196: 40.18254197 | AF196: 39.9732579 | AG196: 39.76397383 | AH196: 39.55468976 | AI196: 39.34540568 | AJ196: 39.13612161 | AK196: 38.92683754 | AL196: 38.71755347 | AM196: 38.50826939 | AN196: 38.29898532 | AO196: 38.08970125 | AP196: 37.88041717 | AQ196: =(AQ228+AQ325)*($N$41-1) -> 37.6711331
K197: Class 4 - Advanced | L197: =(L229+L326)*($N$41-1) -> 60.1063857 | M197: 57.30578429 | N197: 54.50518288 | O197: 51.70458147 | P197: 48.90398006 | Q197: 46.10337865 | R197: 43.30277724 | S197: 40.50217583 | T197: 37.70157442 | U197: 34.90097301 | V197: 32.1003716 | W197: 29.29977019 | X197: 28.93352306 | Y197: 28.56727594 | Z197: 28.20102881 | AA197: 27.83478168 | AB197: 27.46853455 | AC197: 27.10228743 | AD197: 26.7360403 | AE197: 26.36979317 | AF197: 26.00354604 | AG197: 25.63729892 | AH197: 25.27105179 | AI197: 24.90480466 | AJ197: 24.53855753 | AK197: 24.17231041 | AL197: 23.80606328 | AM197: 23.43981615 | AN197: 23.07356902 | AO197: 22.7073219 | AP197: 22.34107477 | AQ197: 21.97482764
K198: Class 4 - Moderate | L198: 60.1063857 | M198: 58.25707553 | N198: 56.40776536 | O198: 54.55845519 | P198: 52.70914502 | Q198: 50.85983485 | R198: 49.01052468 | S198: 47.16121451 | T198: 45.31190434 | U198: 43.46259417 | V198: 41.613284 | W198: 39.76397383 | X198: 39.36633409 | Y198: 38.96869435 | Z198: 38.57105461 | AA198: 38.17341488 | AB198: 37.77577514 | AC198: 37.3781354 | AD198: 36.98049566 | AE198: 36.58285592 | AF198: 36.18521618 | AG198: 35.78757645 | AH198: 35.38993671 | AI198: 34.99229697 | AJ198: 34.59465723 | AK198: 34.19701749 | AL198: 33.79937775 | AM198: 33.40173802 | AN198: 33.00409828 | AO198: 32.60645854 | AP198: 32.2088188 | AQ198: 31.81117906
K199: Class 4 - Conservative | L199: 60.1063857 | M199: 58.44733378 | N199: 56.78828186 | O199: 55.12922994 | P199: 53.47017801 | Q199: 51.81112609 | R199: 50.15207417 | S199: 48.49302225 | T199: 46.83397032 | U199: 45.1749184 | V199: 43.51586648 | W199: 41.85681456 | X199: 41.64753048 | Y199: 41.43824641 | Z199: 41.22896234 | AA199: 41.01967827 | AB199: 40.81039419 | AC199: 40.60111012 | AD199: 40.39182605 | AE199: 40.18254197 | AF199: 39.9732579 | AG199: 39.76397383 | AH199: 39.55468976 | AI199: 39.34540568 | AJ199: 39.13612161 | AK199: 38.92683754 | AL199: 38.71755347 | AM199: 38.50826939 | AN199: 38.29898532 | AO199: 38.08970125 | AP199: 37.88041717 | AQ199: 37.6711331
K200: Class 5 - Advanced | L200: 60.1063857 | M200: 57.30578429 | N200: 54.50518288 | O200: 51.70458147 | P200: 48.90398006 | Q200: 46.10337865 | R200: 43.30277724 | S200: 40.50217583 | T200: 37.70157442 | U200: 34.90097301 | V200: 32.1003716 | W200: 29.29977019 | X200: 28.93352306 | Y200: 28.56727594 | Z200: 28.20102881 | AA200: 27.83478168 | AB200: 27.46853455 | AC200: 27.10228743 | AD200: 26.7360403 | AE200: 26.36979317 | AF200: 26.00354604 | AG200: 25.63729892 | AH200: 25.27105179 | AI200: 24.90480466 | AJ200: 24.53855753 | AK200: 24.17231041 | AL200: 23.80606328 | AM200: 23.43981615 | AN200: 23.07356902 | AO200: 22.7073219 | AP200: 22.34107477 | AQ200: 21.97482764
K201: Class 5 - Moderate | L201: 60.1063857 | M201: 58.25707553 | N201: 56.40776536 | O201: 54.55845519 | P201: 52.70914502 | Q201: 50.85983485 | R201: 49.01052468 | S201: 47.16121451 | T201: 45.31190434 | U201: 43.46259417 | V201: 41.613284 | W201: 39.76397383 | X201: 39.36633409 | Y201: 38.96869435 | Z201: 38.57105461 | AA201: 38.17341488 | AB201: 37.77577514 | AC201: 37.3781354 | AD201: 36.98049566 | AE201: 36.58285592 | AF201: 36.18521618 | AG201: 35.78757645 | AH201: 35.38993671 | AI201: 34.99229697 | AJ201: 34.59465723 | AK201: 34.19701749 | AL201: 33.79937775 | AM201: 33.40173802 | AN201: 33.00409828 | AO201: 32.60645854 | AP201: 32.2088188 | AQ201: 31.81117906
K202: Class 5 - Conservative | L202: 60.1063857 | M202: 58.44733378 | N202: 56.78828186 | O202: 55.12922994 | P202: 53.47017801 | Q202: 51.81112609 | R202: 50.15207417 | S202: 48.49302225 | T202: 46.83397032 | U202: 45.1749184 | V202: 43.51586648 | W202: 41.85681456 | X202: 41.64753048 | Y202: 41.43824641 | Z202: 41.22896234 | AA202: 41.01967827 | AB202: 40.81039419 | AC202: 40.60111012 | AD202: 40.39182605 | AE202: 40.18254197 | AF202: 39.9732579 | AG202: 39.76397383 | AH202: 39.55468976 | AI202: 39.34540568 | AJ202: 39.13612161 | AK202: 38.92683754 | AL202: 38.71755347 | AM202: 38.50826939 | AN202: 38.29898532 | AO202: 38.08970125 | AP202: 37.88041717 | AQ202: 37.6711331
K203: Class 6 - Advanced | L203: 60.1063857 | M203: 57.30578429 | N203: 54.50518288 | O203: 51.70458147 | P203: 48.90398006 | Q203: 46.10337865 | R203: 43.30277724 | S203: 40.50217583 | T203: 37.70157442 | U203: 34.90097301 | V203: 32.1003716 | W203: 29.29977019 | X203: 28.93352306 | Y203: 28.56727594 | Z203: 28.20102881 | AA203: 27.83478168 | AB203: 27.46853455 | AC203: 27.10228743 | AD203: 26.7360403 | AE203: 26.36979317 | AF203: 26.00354604 | AG203: 25.63729892 | AH203: 25.27105179 | AI203: 24.90480466 | AJ203: 24.53855753 | AK203: 24.17231041 | AL203: 23.80606328 | AM203: 23.43981615 | AN203: 23.07356902 | AO203: 22.7073219 | AP203: 22.34107477 | AQ203: 21.97482764
K204: Class 6 - Moderate | L204: 60.1063857 | M204: 58.25707553 | N204: 56.40776536 | O204: 54.55845519 | P204: 52.70914502 | Q204: 50.85983485 | R204: 49.01052468 | S204: 47.16121451 | T204: 45.31190434 | U204: 43.46259417 | V204: 41.613284 | W204: 39.76397383 | X204: 39.36633409 | Y204: 38.96869435 | Z204: 38.57105461 | AA204: 38.17341488 | AB204: 37.77577514 | AC204: 37.3781354 | AD204: 36.98049566 | AE204: 36.58285592 | AF204: 36.18521618 | AG204: 35.78757645 | AH204: 35.38993671 | AI204: 34.99229697 | AJ204: 34.59465723 | AK204: 34.19701749 | AL204: 33.79937775 | AM204: 33.40173802 | AN204: 33.00409828 | AO204: 32.60645854 | AP204: 32.2088188 | AQ204: =(AQ236+AQ333)*($N$41-1) -> 31.81117906
K205: Class 6 - Conservative | L205: =(L237+L334)*($N$41-1) -> 60.1063857 | M205: 58.44733378 | N205: 56.78828186 | O205: 55.12922994 | P205: 53.47017801 | Q205: 51.81112609 | R205: 50.15207417 | S205: 48.49302225 | T205: 46.83397032 | U205: 45.1749184 | V205: 43.51586648 | W205: 41.85681456 | X205: 41.64753048 | Y205: 41.43824641 | Z205: 41.22896234 | AA205: 41.01967827 | AB205: 40.81039419 | AC205: 40.60111012 | AD205: 40.39182605 | AE205: 40.18254197 | AF205: 39.9732579 | AG205: 39.76397383 | AH205: 39.55468976 | AI205: 39.34540568 | AJ205: 39.13612161 | AK205: 38.92683754 | AL205: 38.71755347 | AM205: 38.50826939 | AN205: 38.29898532 | AO205: 38.08970125 | AP205: 37.88041717 | AQ205: 37.6711331
K206: Class 7 - Advanced | L206: 60.1063857 | M206: 57.30578429 | N206: 54.50518288 | O206: 51.70458147 | P206: 48.90398006 | Q206: 46.10337865 | R206: 43.30277724 | S206: 40.50217583 | T206: 37.70157442 | U206: 34.90097301 | V206: 32.1003716 | W206: 29.29977019 | X206: 28.93352306 | Y206: 28.56727594 | Z206: 28.20102881 | AA206: 27.83478168 | AB206: 27.46853455 | AC206: 27.10228743 | AD206: 26.7360403 | AE206: 26.36979317 | AF206: 26.00354604 | AG206: 25.63729892 | AH206: 25.27105179 | AI206: 24.90480466 | AJ206: 24.53855753 | AK206: 24.17231041 | AL206: 23.80606328 | AM206: 23.43981615 | AN206: 23.07356902 | AO206: 22.7073219 | AP206: 22.34107477 | AQ206: 21.97482764
K207: Class 7 - Moderate | L207: 60.1063857 | M207: 58.25707553 | N207: 56.40776536 | O207: 54.55845519 | P207: 52.70914502 | Q207: 50.85983485 | R207: 49.01052468 | S207: 47.16121451 | T207: 45.31190434 | U207: 43.46259417 | V207: 41.613284 | W207: 39.76397383 | X207: 39.36633409 | Y207: 38.96869435 | Z207: 38.57105461 | AA207: 38.17341488 | AB207: 37.77577514 | AC207: 37.3781354 | AD207: 36.98049566 | AE207: 36.58285592 | AF207: 36.18521618 | AG207: 35.78757645 | AH207: 35.38993671 | AI207: 34.99229697 | AJ207: 34.59465723 | AK207: 34.19701749 | AL207: 33.79937775 | AM207: 33.40173802 | AN207: 33.00409828 | AO207: 32.60645854 | AP207: 32.2088188 | AQ207: 31.81117906
K208: Class 7 - Conservative | L208: 60.1063857 | M208: 58.44733378 | N208: 56.78828186 | O208: 55.12922994 | P208: 53.47017801 | Q208: 51.81112609 | R208: 50.15207417 | S208: 48.49302225 | T208: 46.83397032 | U208: 45.1749184 | V208: 43.51586648 | W208: 41.85681456 | X208: 41.64753048 | Y208: 41.43824641 | Z208: 41.22896234 | AA208: 41.01967827 | AB208: 40.81039419 | AC208: 40.60111012 | AD208: 40.39182605 | AE208: 40.18254197 | AF208: 39.9732579 | AG208: 39.76397383 | AH208: 39.55468976 | AI208: 39.34540568 | AJ208: 39.13612161 | AK208: 38.92683754 | AL208: 38.71755347 | AM208: 38.50826939 | AN208: 38.29898532 | AO208: 38.08970125 | AP208: 37.88041717 | AQ208: 37.6711331
K209: Class 8 - Advanced | L209: 60.1063857 | M209: 57.30578429 | N209: 54.50518288 | O209: 51.70458147 | P209: 48.90398006 | Q209: 46.10337865 | R209: 43.30277724 | S209: 40.50217583 | T209: 37.70157442 | U209: 34.90097301 | V209: 32.1003716 | W209: 29.29977019 | X209: 28.93352306 | Y209: 28.56727594 | Z209: 28.20102881 | AA209: 27.83478168 | AB209: 27.46853455 | AC209: 27.10228743 | AD209: 26.7360403 | AE209: 26.36979317 | AF209: 26.00354604 | AG209: 25.63729892 | AH209: 25.27105179 | AI209: 24.90480466 | AJ209: 24.53855753 | AK209: 24.17231041 | AL209: 23.80606328 | AM209: 23.43981615 | AN209: 23.07356902 | AO209: 22.7073219 | AP209: 22.34107477 | AQ209: 21.97482764
K210: Class 8 - Moderate | L210: 60.1063857 | M210: 58.25707553 | N210: 56.40776536 | O210: 54.55845519 | P210: 52.70914502 | Q210: 50.85983485 | R210: 49.01052468 | S210: 47.16121451 | T210: 45.31190434 | U210: 43.46259417 | V210: 41.613284 | W210: 39.76397383 | X210: 39.36633409 | Y210: 38.96869435 | Z210: 38.57105461 | AA210: 38.17341488 | AB210: 37.77577514 | AC210: 37.3781354 | AD210: 36.98049566 | AE210: 36.58285592 | AF210: 36.18521618 | AG210: 35.78757645 | AH210: 35.38993671 | AI210: 34.99229697 | AJ210: 34.59465723 | AK210: 34.19701749 | AL210: 33.79937775 | AM210: 33.40173802 | AN210: 33.00409828 | AO210: 32.60645854 | AP210: 32.2088188 | AQ210: 31.81117906
K211: Class 8 - Conservative | L211: 60.1063857 | M211: 58.44733378 | N211: 56.78828186 | O211: 55.12922994 | P211: 53.47017801 | Q211: 51.81112609 | R211: 50.15207417 | S211: 48.49302225 | T211: 46.83397032 | U211: 45.1749184 | V211: 43.51586648 | W211: 41.85681456 | X211: 41.64753048 | Y211: 41.43824641 | Z211: 41.22896234 | AA211: 41.01967827 | AB211: 40.81039419 | AC211: 40.60111012 | AD211: 40.39182605 | AE211: 40.18254197 | AF211: 39.9732579 | AG211: 39.76397383 | AH211: 39.55468976 | AI211: 39.34540568 | AJ211: 39.13612161 | AK211: 38.92683754 | AL211: 38.71755347 | AM211: 38.50826939 | AN211: 38.29898532 | AO211: 38.08970125 | AP211: 37.88041717 | AQ211: 37.6711331
K212: Class 9 - Advanced | L212: 60.1063857 | M212: 57.30578429 | N212: 54.50518288 | O212: 51.70458147 | P212: 48.90398006 | Q212: 46.10337865 | R212: 43.30277724 | S212: 40.50217583 | T212: 37.70157442 | U212: 34.90097301 | V212: 32.1003716 | W212: 29.29977019 | X212: 28.93352306 | Y212: 28.56727594 | Z212: 28.20102881 | AA212: 27.83478168 | AB212: 27.46853455 | AC212: 27.10228743 | AD212: 26.7360403 | AE212: 26.36979317 | AF212: 26.00354604 | AG212: 25.63729892 | AH212: 25.27105179 | AI212: 24.90480466 | AJ212: 24.53855753 | AK212: 24.17231041 | AL212: 23.80606328 | AM212: 23.43981615 | AN212: 23.07356902 | AO212: 22.7073219 | AP212: 22.34107477 | AQ212: =(AQ244+AQ341)*($N$41-1) -> 21.97482764
K213: Class 9 - Moderate | L213: =(L245+L342)*($N$41-1) -> 60.1063857 | M213: 58.25707553 | N213: 56.40776536 | O213: 54.55845519 | P213: 52.70914502 | Q213: 50.85983485 | R213: 49.01052468 | S213: 47.16121451 | T213: 45.31190434 | U213: 43.46259417 | V213: 41.613284 | W213: 39.76397383 | X213: 39.36633409 | Y213: 38.96869435 | Z213: 38.57105461 | AA213: 38.17341488 | AB213: 37.77577514 | AC213: 37.3781354 | AD213: 36.98049566 | AE213: 36.58285592 | AF213: 36.18521618 | AG213: 35.78757645 | AH213: 35.38993671 | AI213: 34.99229697 | AJ213: 34.59465723 | AK213: 34.19701749 | AL213: 33.79937775 | AM213: 33.40173802 | AN213: 33.00409828 | AO213: 32.60645854 | AP213: 32.2088188 | AQ213: 31.81117906
K214: Class 9 - Conservative | L214: 60.1063857 | M214: 58.44733378 | N214: 56.78828186 | O214: 55.12922994 | P214: 53.47017801 | Q214: 51.81112609 | R214: 50.15207417 | S214: 48.49302225 | T214: 46.83397032 | U214: 45.1749184 | V214: 43.51586648 | W214: 41.85681456 | X214: 41.64753048 | Y214: 41.43824641 | Z214: 41.22896234 | AA214: 41.01967827 | AB214: 40.81039419 | AC214: 40.60111012 | AD214: 40.39182605 | AE214: 40.18254197 | AF214: 39.9732579 | AG214: 39.76397383 | AH214: 39.55468976 | AI214: 39.34540568 | AJ214: 39.13612161 | AK214: 38.92683754 | AL214: 38.71755347 | AM214: 38.50826939 | AN214: 38.29898532 | AO214: 38.08970125 | AP214: 37.88041717 | AQ214: 37.6711331
... 210 more rows

Sheet Land-Based Wind
A1: Land-Based Wind | L1: https://atb.nrel.gov/electricity/2021/land-based_wind
T3: Inputs
J4: Take me to: | T4: Calculated
B7: X | G7: Assumptions
H9: Technology | J9: Basis Year: | L9: 2019
J10: All values are given in 2019 U.S. dollars, using the Consumer Price Index (BLS, 2020) for dollar year conversions. Projections use an inflation assumption of 2.5% per year.
J11: Land-Based Wind Classes
J12: Wind Classes | K12: Wind Speed Range (m/s) | L12: Weighted Average Wind Speed (m/s)
J14: Class1 | K14: > 9.0 | L14: 9.5
J15: Class2 | K15: 8.8 - 9.0 | L15: 8.9
J16: Class3 | K16: 8.6 - 8.8 | L16: 8.7
J17: Class4 | K17: 8.4 - 8.6 | L17: 8.5
J18: Class5 | K18: 8.1 - 8.4 | L18: 8.2
J19: Class6 | K19: 7.6 - 8.1 | L19: 7.8
J20: Class7 | K20: 7.1 - 7.6 | L20: 7.4
J21: Class8 | K21: 6.5 - 7.1 | L21: 6.8
J22: Class9 | K22: 5.9 - 6.5 | L22: 6.2
J23: Class10 | K23: 0 - 5.9 | L23: 5.2
J24: Total
J25: Wind speeds presented in table are assumed to be 110 meters above the surface
H28: Finance | J28: Financial Assumptions:
J29: Inflation Rate | N29: =L57 -> 0.025
J30: Capital Recovery Period (Years) | N30: =S30 -> 20 | S30: 20
J31: Interest Rate Nominal - Moderate | N31: =L59 -> 0.04
J32: Calculated Interest Rate Real - Moderate | N32: =L62 -> 0.01463414634
J33: Interest During Construction - Nominal | N33: =N31 -> 0.04
J34: Rate of Return on Equity Nominal - Moderate | N34: =L66 -> 0.09
J35: Calculated Rate of Return on Equity Real - Moderate | N35: =L69 -> 0.06341463415
J36: Debt Fraction - Moderate | N36: =L72 -> 0.671
J37: Tax Rate (Federal and State) | N37: =L74 -> 0.2574
J38: WACC Nominal - Moderate | N38: =L76 -> 0.049541384
J39: WACC Real - Moderate | N39: =L79 -> 0.02394281366
J40: Depreciation Period | N40: 5
J41: Construction Finance Factor | N41: =SUMPRODUCT(K51:K53,L51:L53,M51:M53)+SUMPRODUCT(K51:K53,O51:O53,N51:N53) -> 1.043685344
J42: Present Value of Depreciation | N42: =SUMPRODUCT(R50:W50,R52:W52) -> 0.8756324115
J43: Project Finance Factor | N43: =(1 - N37 * N42) / (1 - N37) -> 1.043108292
J44: Capital Recovery Factor (CRF) Nominal - Moderate | N44: =L82 -> 0.0799308509
J45: Capital Recovery Factor (CRF) Real - Moderate | N45: =L85 -> 0.06350828367
J46: Equity Premium During Construction | N46: 0.02
J47: Cost of equity during construction | N47: =N34+N46 -> 0.11
J48: Construction Duration yrs | L48: 3
J49: Year | K49: Capital | L49: Accumulated | M49: Percent of Leverage During Construction | N49: Percent of Equity During Construction | O49: Accumulated | Q49: MACRS yr | R49: 1 | S49: 2 | T49: 3 | U49: 4 | V49: 5 | W49: 6
J50: Index | K50: Fraction | L50: Interest | O50: Equity Cost | Q50: Depreciation | R50: 0.2 | S50: 0.32 | T50: 0.192 | U50: 0.1152 | V50: 0.1152 | W50: 0.0576
J51: 0 | K51: 0.8 | L51: =1+((1+N33)^(J51+0.5)-1) -> 1.019803903 | M51: 0.8 | N51: =1-M51 -> 0.2 | O51: =1+((1+$N$47)^(J51+0.5)-1) -> 1.053565375 | Q51: Fraction
J52: 1 | K52: 0.1 | L52: =1+((1+N33)^(J52+0.5)-1) -> 1.060596059 | M52: 0.8 | N52: =1-M52 -> 0.2 | O52: =1+((1+$N$47)^(J52+0.5)-1) -> 1.169457567 | Q52: Depreciation | R52: =1/((1+N39)*(1+N29))^R49 -> 0.9527971124 | S52: =1/((1+N39)*(1+N29))^S49 -> 0.9078223374 | T52: =1/((1+N39)*(1+N29))^T49 -> 0.8649705016 | U52: =1/((1+N39)*(1+N29))^U49 -> 0.8241413962 | V52: =1/((1+N39)*(1+N29))^V49 -> 0.7852395425 | W52: =1/((1+N39)*(1+N29))^W49 -> 0.7481739686
J53: 2 | K53: 0.1 | L53: =1+((1+N33)^(J53+0.5)-1) -> 1.103019901 | M53: 0.8 | N53: =1-M53 -> 0.2 | O53: =1+((1+$N$47)^(J53+0.5)-1) -> 1.298097899 | Q53: Factor
L56: 2019 | M56: 2020 | N56: 2021 | O56: 2022 | P56: 2023 | Q56: 2024 | R56: 2025 | S56: 2026 | T56: 2027 | U56: 2028 | V56: 2029 | W56: 2030 | X56: 2031 | Y56: 2032 | Z56: 2033 | AA56: 2034 | AB56: 2035 | AC56: 2036 | AD56: 2037 | AE56: 2038 | AF56: 2039 | AG56: 2040 | AH56: 2041 | AI56: 2042 | AJ56: 2043 | AK56: 2044 | AL56: 2045 | AM56: 2046 | AN56: 2047 | AO56: 2048 | AP56: 2049 | AQ56: 2050
J57: Assumptions | K57: Inflation Rate | L57: 0.025 | M57: 0.025 | N57: 0.025 | O57: 0.025 | P57: 0.025 | Q57: 0.025 | R57: 0.025 | S57: 0.025 | T57: 0.025 | U57: 0.025 | V57: 0.025 | W57: 0.025 | X57: 0.025 | Y57: 0.025 | Z57: 0.025 | AA57: 0.025 | AB57: 0.025 | AC57: 0.025 | AD57: 0.025 | AE57: 0.025 | AF57: 0.025 | AG57: 0.025 | AH57: 0.025 | AI57: 0.025 | AJ57: 0.025 | AK57: 0.025 | AL57: 0.025 | AM57: 0.025 | AN57: 0.025 | AO57: 0.025 | AP57: 0.025 | AQ57: 0.025
K58: Interest Rate Nominal - Advanced | L58: 0.04 | M58: 0.04 | N58: 0.04 | O58: 0.04 | P58: 0.04 | Q58: 0.04 | R58: 0.04 | S58: 0.04 | T58: 0.04 | U58: 0.04 | V58: 0.04 | W58: 0.04 | X58: 0.04 | Y58: 0.04 | Z58: 0.04 | AA58: 0.04 | AB58: 0.04 | AC58: 0.04 | AD58: 0.04 | AE58: 0.04 | AF58: 0.04 | AG58: 0.04 | AH58: 0.04 | AI58: 0.04 | AJ58: 0.04 | AK58: 0.04 | AL58: 0.04 | AM58: 0.04 | AN58: 0.04 | AO58: 0.04 | AP58: 0.04 | AQ58: 0.04
K59: Interest Rate Nominal - Moderate | L59: 0.04 | M59: 0.04 | N59: 0.04 | O59: 0.04 | P59: 0.04 | Q59: 0.04 | R59: 0.04 | S59: 0.04 | T59: 0.04 | U59: 0.04 | V59: 0.04 | W59: 0.04 | X59: 0.04 | Y59: 0.04 | Z59: 0.04 | AA59: 0.04 | AB59: 0.04 | AC59: 0.04 | AD59: 0.04 | AE59: 0.04 | AF59: 0.04 | AG59: 0.04 | AH59: 0.04 | AI59: 0.04 | AJ59: 0.04 | AK59: 0.04 | AL59: 0.04 | AM59: 0.04 | AN59: 0.04 | AO59: 0.04 | AP59: 0.04 | AQ59: 0.04
K60: Interest Rate Nominal - Conservative | L60: 0.04 | M60: 0.04 | N60: 0.04 | O60: 0.04 | P60: 0.04 | Q60: 0.04 | R60: 0.04 | S60: 0.04 | T60: 0.04 | U60: 0.04 | V60: 0.04 | W60: 0.04 | X60: 0.04 | Y60: 0.04 | Z60: 0.04 | AA60: 0.04 | AB60: 0.04 | AC60: 0.04 | AD60: 0.04 | AE60: 0.04 | AF60: 0.04 | AG60: 0.04 | AH60: 0.04 | AI60: 0.04 | AJ60: 0.04 | AK60: 0.04 | AL60: 0.04 | AM60: 0.04 | AN60: 0.04 | AO60: 0.04 | AP60: 0.04 | AQ60: 0.04
K61: Calculated Interest Rate Real - Advanced | L61: 0.01463414634 | M61: 0.01463414634 | N61: 0.01463414634 | O61: 0.01463414634 | P61: 0.01463414634 | Q61: 0.01463414634 | R61: 0.01463414634 | S61: 0.01463414634 | T61: 0.01463414634 | U61: 0.01463414634 | V61: 0.01463414634 | W61: 0.01463414634 | X61: 0.01463414634 | Y61: 0.01463414634 | Z61: 0.01463414634 | AA61: 0.01463414634 | AB61: 0.01463414634 | AC61: 0.01463414634 | AD61: 0.01463414634 | AE61: 0.01463414634 | AF61: 0.01463414634 | AG61: 0.01463414634 | AH61: 0.01463414634 | AI61: 0.01463414634 | AJ61: 0.01463414634 | AK61: 0.01463414634 | AL61: 0.01463414634 | AM61: 0.01463414634 | AN61: 0.01463414634 | AO61: 0.01463414634 | AP61: 0.01463414634 | AQ61: 0.01463414634
K62: Calculated Interest Rate Real - Moderate | L62: 0.01463414634 | M62: 0.01463414634 | N62: 0.01463414634 | O62: 0.01463414634 | P62: 0.01463414634 | Q62: 0.01463414634 | R62: 0.01463414634 | S62: 0.01463414634 | T62: 0.01463414634 | U62: 0.01463414634 | V62: 0.01463414634 | W62: 0.01463414634 | X62: 0.01463414634 | Y62: 0.01463414634 | Z62: 0.01463414634 | AA62: 0.01463414634 | AB62: 0.01463414634 | AC62: 0.01463414634 | AD62: 0.01463414634 | AE62: 0.01463414634 | AF62: 0.01463414634 | AG62: 0.01463414634 | AH62: 0.01463414634 | AI62: 0.01463414634 | AJ62: 0.01463414634 | AK62: 0.01463414634 | AL62: 0.01463414634 | AM62: 0.01463414634 | AN62: 0.01463414634 | AO62: 0.01463414634 | AP62: 0.01463414634 | AQ62: 0.01463414634
K63: Calculated Interest Rate Real - Conservative | L63: 0.01463414634 | M63: 0.01463414634 | N63: 0.01463414634 | O63: 0.01463414634 | P63: 0.01463414634 | Q63: 0.01463414634 | R63: 0.01463414634 | S63: 0.01463414634 | T63: 0.01463414634 | U63: 0.01463414634 | V63: 0.01463414634 | W63: 0.01463414634 | X63: 0.01463414634 | Y63: 0.01463414634 | Z63: 0.01463414634 | AA63: 0.01463414634 | AB63: 0.01463414634 | AC63: 0.01463414634 | AD63: 0.01463414634 | AE63: 0.01463414634 | AF63: 0.01463414634 | AG63: 0.01463414634 | AH63: 0.01463414634 | AI63: 0.01463414634 | AJ63: 0.01463414634 | AK63: 0.01463414634 | AL63: 0.01463414634 | AM63: 0.01463414634 | AN63: 0.01463414634 | AO63: 0.01463414634 | AP63: 0.01463414634 | AQ63: 0.01463414634
K64: Interest During Construction - Nominal | L64: 0.035 | M64: 0.035 | N64: 0.035 | O64: 0.035 | P64: 0.035 | Q64: 0.035 | R64: 0.035 | S64: 0.035 | T64: 0.035 | U64: 0.035 | V64: 0.035 | W64: 0.035 | X64: 0.035 | Y64: 0.035 | Z64: 0.035 | AA64: 0.035 | AB64: 0.035 | AC64: 0.035 | AD64: 0.035 | AE64: 0.035 | AF64: 0.035 | AG64: 0.035 | AH64: 0.035 | AI64: 0.035 | AJ64: 0.035 | AK64: 0.035 | AL64: 0.035 | AM64: 0.035 | AN64: 0.035 | AO64: 0.035 | AP64: 0.035 | AQ64: 0.035
K65: Rate of Return on Equity Nominal - Advanced | L65: 0.09 | M65: 0.09 | N65: 0.09 | O65: 0.09 | P65: 0.09 | Q65: 0.09 | R65: 0.09 | S65: 0.09 | T65: 0.09 | U65: 0.09 | V65: 0.09 | W65: 0.09 | X65: 0.09 | Y65: 0.09 | Z65: 0.09 | AA65: 0.09 | AB65: 0.09 | AC65: 0.09 | AD65: 0.09 | AE65: 0.09 | AF65: 0.09 | AG65: 0.09 | AH65: 0.09 | AI65: 0.09 | AJ65: 0.09 | AK65: 0.09 | AL65: 0.09 | AM65: 0.09 | AN65: 0.09 | AO65: 0.09 | AP65: 0.09 | AQ65: 0.09
K66: Rate of Return on Equity Nominal - Moderate | L66: 0.09 | M66: 0.09 | N66: 0.09 | O66: 0.09 | P66: 0.09 | Q66: 0.09 | R66: 0.09 | S66: 0.09 | T66: 0.09 | U66: 0.09 | V66: 0.09 | W66: 0.09 | X66: 0.09 | Y66: 0.09 | Z66: 0.09 | AA66: 0.09 | AB66: 0.09 | AC66: 0.09 | AD66: 0.09 | AE66: 0.09 | AF66: 0.09 | AG66: 0.09 | AH66: 0.09 | AI66: 0.09 | AJ66: 0.09 | AK66: 0.09 | AL66: 0.09 | AM66: 0.09 | AN66: 0.09 | AO66: 0.09 | AP66: 0.09 | AQ66: 0.09
K67: Rate of Return on Equity Nominal - Conservative | L67: 0.09 | M67: 0.09 | N67: 0.09 | O67: 0.09 | P67: 0.09 | Q67: 0.09 | R67: 0.09 | S67: 0.09 | T67: 0.09 | U67: 0.09 | V67: 0.09 | W67: 0.09 | X67: 0.09 | Y67: 0.09 | Z67: 0.09 | AA67: 0.09 | AB67: 0.09 | AC67: 0.09 | AD67: 0.09 | AE67: 0.09 | AF67: 0.09 | AG67: 0.09 | AH67: 0.09 | AI67: 0.09 | AJ67: 0.09 | AK67: 0.09 | AL67: 0.09 | AM67: 0.09 | AN67: 0.09 | AO67: 0.09 | AP67: 0.09 | AQ67: 0.09
K68: Calculated Rate of Return on Equity Real - Advanced | L68: 0.06341463415 | M68: 0.06341463415 | N68: 0.06341463415 | O68: 0.06341463415 | P68: 0.06341463415 | Q68: 0.06341463415 | R68: 0.06341463415 | S68: 0.06341463415 | T68: 0.06341463415 | U68: 0.06341463415 | V68: 0.06341463415 | W68: 0.06341463415 | X68: 0.06341463415 | Y68: 0.06341463415 | Z68: 0.06341463415 | AA68: 0.06341463415 | AB68: 0.06341463415 | AC68: 0.06341463415 | AD68: 0.06341463415 | AE68: 0.06341463415 | AF68: 0.06341463415 | AG68: 0.06341463415 | AH68: 0.06341463415 | AI68: 0.06341463415 | AJ68: 0.06341463415 | AK68: 0.06341463415 | AL68: 0.06341463415 | AM68: 0.06341463415 | AN68: 0.06341463415 | AO68: 0.06341463415 | AP68: 0.06341463415 | AQ68: 0.06341463415
K69: Calculated Rate of Return on Equity Real - Moderate | L69: 0.06341463415 | M69: 0.06341463415 | N69: 0.06341463415 | O69: 0.06341463415 | P69: 0.06341463415 | Q69: 0.06341463415 | R69: 0.06341463415 | S69: 0.06341463415 | T69: 0.06341463415 | U69: 0.06341463415 | V69: 0.06341463415 | W69: 0.06341463415 | X69: 0.06341463415 | Y69: 0.06341463415 | Z69: 0.06341463415 | AA69: 0.06341463415 | AB69: 0.06341463415 | AC69: 0.06341463415 | AD69: 0.06341463415 | AE69: 0.06341463415 | AF69: 0.06341463415 | AG69: 0.06341463415 | AH69: 0.06341463415 | AI69: 0.06341463415 | AJ69: 0.06341463415 | AK69: 0.06341463415 | AL69: 0.06341463415 | AM69: 0.06341463415 | AN69: 0.06341463415 | AO69: 0.06341463415 | AP69: 0.06341463415 | AQ69: 0.06341463415
K70: Calculated Rate of Return on Equity Real - Conservative | L70: 0.06341463415 | M70: 0.06341463415 | N70: 0.06341463415 | O70: 0.06341463415 | P70: 0.06341463415 | Q70: 0.06341463415 | R70: 0.06341463415 | S70: 0.06341463415 | T70: 0.06341463415 | U70: 0.06341463415 | V70: 0.06341463415 | W70: 0.06341463415 | X70: 0.06341463415 | Y70: 0.06341463415 | Z70: 0.06341463415 | AA70: 0.06341463415 | AB70: 0.06341463415 | AC70: 0.06341463415 | AD70: 0.06341463415 | AE70: 0.06341463415 | AF70: 0.06341463415 | AG70: 0.06341463415 | AH70: 0.06341463415 | AI70: 0.06341463415 | AJ70: 0.06341463415 | AK70: 0.06341463415 | AL70: 0.06341463415 | AM70: 0.06341463415 | AN70: 0.06341463415 | AO70: 0.06341463415 | AP70: 0.06341463415 | AQ70: 0.06341463415
K71: Debt Fraction - Advanced | L71: 0.671 | M71: 0.671 | N71: 0.671 | O71: 0.671 | P71: 0.671 | Q71: 0.671 | R71: 0.671 | S71: 0.671 | T71: 0.671 | U71: 0.671 | V71: 0.671 | W71: 0.671 | X71: 0.671 | Y71: 0.671 | Z71: 0.671 | AA71: 0.671 | AB71: 0.671 | AC71: 0.671 | AD71: 0.671 | AE71: 0.671 | AF71: 0.671 | AG71: 0.671 | AH71: 0.671 | AI71: 0.671 | AJ71: 0.671 | AK71: 0.671 | AL71: 0.671 | AM71: 0.671 | AN71: 0.671 | AO71: 0.671 | AP71: 0.671 | AQ71: 0.671
K72: Debt Fraction - Moderate | L72: 0.671 | M72: 0.671 | N72: 0.671 | O72: 0.671 | P72: 0.671 | Q72: 0.671 | R72: 0.671 | S72: 0.671 | T72: 0.671 | U72: 0.671 | V72: 0.671 | W72: 0.671 | X72: 0.671 | Y72: 0.671 | Z72: 0.671 | AA72: 0.671 | AB72: 0.671 | AC72: 0.671 | AD72: 0.671 | AE72: 0.671 | AF72: 0.671 | AG72: 0.671 | AH72: 0.671 | AI72: 0.671 | AJ72: 0.671 | AK72: 0.671 | AL72: 0.671 | AM72: 0.671 | AN72: 0.671 | AO72: 0.671 | AP72: 0.671 | AQ72: 0.671
K73: Debt Fraction - Conservative | L73: 0.671 | M73: 0.671 | N73: 0.671 | O73: 0.671 | P73: 0.671 | Q73: 0.671 | R73: 0.671 | S73: 0.671 | T73: 0.671 | U73: 0.671 | V73: 0.671 | W73: 0.671 | X73: 0.671 | Y73: 0.671 | Z73: 0.671 | AA73: 0.671 | AB73: 0.671 | AC73: 0.671 | AD73: 0.671 | AE73: 0.671 | AF73: 0.671 | AG73: 0.671 | AH73: 0.671 | AI73: 0.671 | AJ73: 0.671 | AK73: 0.671 | AL73: 0.671 | AM73: 0.671 | AN73: 0.671 | AO73: 0.671 | AP73: 0.671 | AQ73: 0.671
K74: Tax Rate (Federal and State) | L74: 0.2574 | M74: 0.2574 | N74: 0.2574 | O74: 0.2574 | P74: 0.2574 | Q74: 0.2574 | R74: 0.2574 | S74: 0.2574 | T74: 0.2574 | U74: 0.2574 | V74: 0.2574 | W74: 0.2574 | X74: 0.2574 | Y74: 0.2574 | Z74: 0.2574 | AA74: 0.2574 | AB74: 0.2574 | AC74: 0.2574 | AD74: 0.2574 | AE74: 0.2574 | AF74: 0.2574 | AG74: 0.2574 | AH74: 0.2574 | AI74: 0.2574 | AJ74: 0.2574 | AK74: 0.2574 | AL74: 0.2574 | AM74: 0.2574 | AN74: 0.2574 | AO74: 0.2574 | AP74: 0.2574 | AQ74: 0.2574
K75: WACC Nominal - Advanced | L75: 0.049541384 | M75: 0.049541384 | N75: 0.049541384 | O75: 0.049541384 | P75: 0.049541384 | Q75: 0.049541384 | R75: 0.049541384 | S75: 0.049541384 | T75: 0.049541384 | U75: 0.049541384 | V75: 0.049541384 | W75: 0.049541384 | X75: 0.049541384 | Y75: 0.049541384 | Z75: 0.049541384 | AA75: 0.049541384 | AB75: 0.049541384 | AC75: 0.049541384 | AD75: 0.049541384 | AE75: 0.049541384 | AF75: 0.049541384 | AG75: 0.049541384 | AH75: 0.049541384 | AI75: 0.049541384 | AJ75: 0.049541384 | AK75: 0.049541384 | AL75: 0.049541384 | AM75: 0.049541384 | AN75: 0.049541384 | AO75: 0.049541384 | AP75: 0.049541384 | AQ75: 0.049541384
K76: WACC Nominal - Moderate | L76: 0.049541384 | M76: 0.049541384 | N76: 0.049541384 | O76: 0.049541384 | P76: 0.049541384 | Q76: 0.049541384 | R76: 0.049541384 | S76: 0.049541384 | T76: 0.049541384 | U76: 0.049541384 | V76: 0.049541384 | W76: 0.049541384 | X76: 0.049541384 | Y76: 0.049541384 | Z76: 0.049541384 | AA76: 0.049541384 | AB76: 0.049541384 | AC76: 0.049541384 | AD76: 0.049541384 | AE76: 0.049541384 | AF76: 0.049541384 | AG76: 0.049541384 | AH76: 0.049541384 | AI76: 0.049541384 | AJ76: 0.049541384 | AK76: 0.049541384 | AL76: 0.049541384 | AM76: 0.049541384 | AN76: 0.049541384 | AO76: 0.049541384 | AP76: 0.049541384 | AQ76: 0.049541384
K77: WACC Nominal - Conservative | L77: 0.049541384 | M77: 0.049541384 | N77: 0.049541384 | O77: 0.049541384 | P77: 0.049541384 | Q77: 0.049541384 | R77: 0.049541384 | S77: 0.049541384 | T77: 0.049541384 | U77: 0.049541384 | V77: 0.049541384 | W77: 0.049541384 | X77: 0.049541384 | Y77: 0.049541384 | Z77: 0.049541384 | AA77: 0.049541384 | AB77: 0.049541384 | AC77: 0.049541384 | AD77: 0.049541384 | AE77: 0.049541384 | AF77: 0.049541384 | AG77: 0.049541384 | AH77: 0.049541384 | AI77: 0.049541384 | AJ77: 0.049541384 | AK77: 0.049541384 | AL77: 0.049541384 | AM77: 0.049541384 | AN77: 0.049541384 | AO77: 0.049541384 | AP77: 0.049541384 | AQ77: 0.049541384
K78: WACC Real - Advanced | L78: 0.02394281366 | M78: 0.02394281366 | N78: 0.02394281366 | O78: 0.02394281366 | P78: 0.02394281366 | Q78: 0.02394281366 | R78: 0.02394281366 | S78: 0.02394281366 | T78: 0.02394281366 | U78: 0.02394281366 | V78: 0.02394281366 | W78: 0.02394281366 | X78: 0.02394281366 | Y78: 0.02394281366 | Z78: 0.02394281366 | AA78: 0.02394281366 | AB78: 0.02394281366 | AC78: 0.02394281366 | AD78: 0.02394281366 | AE78: 0.02394281366 | AF78: 0.02394281366 | AG78: 0.02394281366 | AH78: 0.02394281366 | AI78: 0.02394281366 | AJ78: 0.02394281366 | AK78: 0.02394281366 | AL78: 0.02394281366 | AM78: 0.02394281366 | AN78: 0.02394281366 | AO78: 0.02394281366 | AP78: 0.02394281366 | AQ78: 0.02394281366
K79: WACC Real - Moderate | L79: 0.02394281366 | M79: 0.02394281366 | N79: 0.02394281366 | O79: 0.02394281366 | P79: 0.02394281366 | Q79: 0.02394281366 | R79: 0.02394281366 | S79: 0.02394281366 | T79: 0.02394281366 | U79: 0.02394281366 | V79: 0.02394281366 | W79: 0.02394281366 | X79: 0.02394281366 | Y79: 0.02394281366 | Z79: 0.02394281366 | AA79: 0.02394281366 | AB79: 0.02394281366 | AC79: 0.02394281366 | AD79: 0.02394281366 | AE79: 0.02394281366 | AF79: 0.02394281366 | AG79: 0.02394281366 | AH79: 0.02394281366 | AI79: 0.02394281366 | AJ79: 0.02394281366 | AK79: 0.02394281366 | AL79: 0.02394281366 | AM79: 0.02394281366 | AN79: 0.02394281366 | AO79: 0.02394281366 | AP79: 0.02394281366 | AQ79: 0.02394281366
K80: WACC Real - Conservative | L80: 0.02394281366 | M80: 0.02394281366 | N80: 0.02394281366 | O80: 0.02394281366 | P80: 0.02394281366 | Q80: 0.02394281366 | R80: 0.02394281366 | S80: 0.02394281366 | T80: 0.02394281366 | U80: 0.02394281366 | V80: 0.02394281366 | W80: 0.02394281366 | X80: 0.02394281366 | Y80: 0.02394281366 | Z80: 0.02394281366 | AA80: 0.02394281366 | AB80: 0.02394281366 | AC80: 0.02394281366 | AD80: 0.02394281366 | AE80: 0.02394281366 | AF80: 0.02394281366 | AG80: 0.02394281366 | AH80: 0.02394281366 | AI80: 0.02394281366 | AJ80: 0.02394281366 | AK80: 0.02394281366 | AL80: 0.02394281366 | AM80: 0.02394281366 | AN80: 0.02394281366 | AO80: 0.02394281366 | AP80: 0.02394281366 | AQ80: 0.02394281366
K81: Capital Recovery Factor (CRF) Nominal - Low | L81: =L75 / (1 - (1 / (1 + L75)^$N$30)) -> 0.0799308509 | M81: 0.0799308509 | N81: 0.0799308509 | O81: 0.0799308509 | P81: 0.0799308509 | Q81: 0.0799308509 | R81: 0.0799308509 | S81: 0.0799308509 | T81: 0.0799308509 | U81: 0.0799308509 | V81: 0.0799308509 | W81: 0.0799308509 | X81: 0.0799308509 | Y81: 0.0799308509 | Z81: 0.0799308509 | AA81: 0.0799308509 | AB81: 0.0799308509 | AC81: 0.0799308509 | AD81: 0.0799308509 | AE81: 0.0799308509 | AF81: 0.0799308509 | AG81: 0.0799308509 | AH81: 0.0799308509 | AI81: 0.0799308509 | AJ81: 0.0799308509 | AK81: 0.0799308509 | AL81: 0.0799308509 | AM81: 0.0799308509 | AN81: 0.0799308509 | AO81: 0.0799308509 | AP81: 0.0799308509 | AQ81: 0.0799308509
K82: Capital Recovery Factor (CRF) Nominal - Mid | L82: 0.0799308509 | M82: 0.0799308509 | N82: 0.0799308509 | O82: 0.0799308509 | P82: 0.0799308509 | Q82: 0.0799308509 | R82: 0.0799308509 | S82: 0.0799308509 | T82: 0.0799308509 | U82: 0.0799308509 | V82: 0.0799308509 | W82: 0.0799308509 | X82: 0.0799308509 | Y82: 0.0799308509 | Z82: 0.0799308509 | AA82: 0.0799308509 | AB82: 0.0799308509 | AC82: 0.0799308509 | AD82: 0.0799308509 | AE82: 0.0799308509 | AF82: 0.0799308509 | AG82: 0.0799308509 | AH82: 0.0799308509 | AI82: 0.0799308509 | AJ82: 0.0799308509 | AK82: 0.0799308509 | AL82: 0.0799308509 | AM82: 0.0799308509 | AN82: 0.0799308509 | AO82: 0.0799308509 | AP82: 0.0799308509 | AQ82: 0.0799308509
K83: Capital Recovery Factor (CRF) Nominal - Conservative | L83: 0.0799308509 | M83: 0.0799308509 | N83: 0.0799308509 | O83: 0.0799308509 | P83: 0.0799308509 | Q83: 0.0799308509 | R83: 0.0799308509 | S83: 0.0799308509 | T83: 0.0799308509 | U83: 0.0799308509 | V83: 0.0799308509 | W83: 0.0799308509 | X83: 0.0799308509 | Y83: 0.0799308509 | Z83: 0.0799308509 | AA83: 0.0799308509 | AB83: 0.0799308509 | AC83: 0.0799308509 | AD83: 0.0799308509 | AE83: 0.0799308509 | AF83: 0.0799308509 | AG83: 0.0799308509 | AH83: 0.0799308509 | AI83: 0.0799308509 | AJ83: 0.0799308509 | AK83: 0.0799308509 | AL83: 0.0799308509 | AM83: 0.0799308509 | AN83: 0.0799308509 | AO83: 0.0799308509 | AP83: 0.0799308509 | AQ83: 0.0799308509
K84: Capital Recovery Factor (CRF) Real - Low | L84: 0.06350828367 | M84: 0.06350828367 | N84: 0.06350828367 | O84: 0.06350828367 | P84: 0.06350828367 | Q84: 0.06350828367 | R84: 0.06350828367 | S84: 0.06350828367 | T84: 0.06350828367 | U84: 0.06350828367 | V84: 0.06350828367 | W84: 0.06350828367 | X84: 0.06350828367 | Y84: 0.06350828367 | Z84: 0.06350828367 | AA84: 0.06350828367 | AB84: 0.06350828367 | AC84: 0.06350828367 | AD84: 0.06350828367 | AE84: 0.06350828367 | AF84: 0.06350828367 | AG84: 0.06350828367 | AH84: 0.06350828367 | AI84: 0.06350828367 | AJ84: 0.06350828367 | AK84: 0.06350828367 | AL84: 0.06350828367 | AM84: 0.06350828367 | AN84: 0.06350828367 | AO84: 0.06350828367 | AP84: 0.06350828367 | AQ84: 0.06350828367
K85: Capital Recovery Factor (CRF) Real - Mid | L85: 0.06350828367 | M85: 0.06350828367 | N85: 0.06350828367 | O85: 0.06350828367 | P85: 0.06350828367 | Q85: 0.06350828367 | R85: 0.06350828367 | S85: 0.06350828367 | T85: 0.06350828367 | U85: 0.06350828367 | V85: 0.06350828367 | W85: 0.06350828367 | X85: 0.06350828367 | Y85: 0.06350828367 | Z85: 0.06350828367 | AA85: 0.06350828367 | AB85: 0.06350828367 | AC85: 0.06350828367 | AD85: 0.06350828367 | AE85: 0.06350828367 | AF85: 0.06350828367 | AG85: 0.06350828367 | AH85: 0.06350828367 | AI85: 0.06350828367 | AJ85: 0.06350828367 | AK85: 0.06350828367 | AL85: 0.06350828367 | AM85: 0.06350828367 | AN85: 0.06350828367 | AO85: 0.06350828367 | AP85: 0.06350828367 | AQ85: 0.06350828367
K86: Capital Recovery Factor (CRF) Real - Conservative | L86: 0.06350828367 | M86: 0.06350828367 | N86: 0.06350828367 | O86: 0.06350828367 | P86: 0.06350828367 | Q86: 0.06350828367 | R86: 0.06350828367 | S86: 0.06350828367 | T86: 0.06350828367 | U86: 0.06350828367 | V86: 0.06350828367 | W86: 0.06350828367 | X86: 0.06350828367 | Y86: 0.06350828367 | Z86: 0.06350828367 | AA86: 0.06350828367 | AB86: 0.06350828367 | AC86: 0.06350828367 | AD86: 0.06350828367 | AE86: 0.06350828367 | AF86: 0.06350828367 | AG86: 0.06350828367 | AH86: 0.06350828367 | AI86: 0.06350828367 | AJ86: 0.06350828367 | AK86: 0.06350828367 | AL86: 0.06350828367 | AM86: 0.06350828367 | AN86: 0.06350828367 | AO86: 0.06350828367 | AP86: 0.06350828367 | AQ86: 0.06350828367
D89: X | G89: Future Projections
L90: Base Year
L91: 2019 | M91: 2020 | N91: 2021 | O91: 2022 | P91: 2023 | Q91: 2024 | R91: 2025 | S91: 2026 | T91: 2027 | U91: 2028 | V91: 2029 | W91: 2030 | X91: 2031 | Y91: 2032 | Z91: 2033 | AA91: 2034 | AB91: 2035 | AC91: 2036 | AD91: 2037 | AE91: 2038 | AF91: 2039 | AG91: 2040 | AH91: 2041 | AI91: 2042 | AJ91: 2043 | AK91: 2044 | AL91: 2045 | AM91: 2046 | AN91: 2047 | AO91: 2048 | AP91: 2049 | AQ91: 2050
H92: Techno-Economic Cost and Performance Parameters | J92: Net Capacity Factor (%) | K92: Class 1 - Advanced | L92: 0.501368 | M92: 0.5074763636 | N92: 0.5135847273 | O92: 0.5196930909 | P92: 0.5258014545 | Q92: 0.5319098182 | R92: 0.5380181818 | S92: 0.5441265455 | T92: 0.5502349091 | U92: 0.5563432727 | V92: 0.5624516364 | W92: 0.56856 | X92: 0.56912856 | Y92: 0.56969712 | Z92: 0.57026568 | AA92: 0.57083424 | AB92: 0.5714028 | AC92: 0.57197136 | AD92: 0.57253992 | AE92: 0.57310848 | AF92: 0.57367704 | AG92: 0.5742456 | AH92: 0.57481416 | AI92: 0.57538272 | AJ92: 0.57595128 | AK92: 0.57651984 | AL92: 0.5770884 | AM92: 0.57765696 | AN92: 0.57822552 | AO92: 0.57879408 | AP92: 0.57936264 | AQ92: 0.5799312
K93: Class 1 - Moderate | L93: 0.501368 | M93: 0.5050919091 | N93: 0.5088158182 | O93: 0.5125397273 | P93: 0.5162636364 | Q93: 0.5199875455 | R93: 0.5237114545 | S93: 0.5274353636 | T93: 0.5311592727 | U93: 0.5348831818 | V93: 0.5386070909 | W93: 0.542331 | X93: 0.5426021655 | Y93: 0.542873331 | Z93: 0.5431444965 | AA93: 0.543415662 | AB93: 0.5436868275 | AC93: 0.543957993 | AD93: 0.5442291585 | AE93: 0.544500324 | AF93: 0.5447714895 | AG93: 0.545042655 | AH93: 0.5453138205 | AI93: 0.545584986 | AJ93: 0.5458561515 | AK93: 0.546127317 | AL93: 0.5463984825 | AM93: 0.546669648 | AN93: 0.5469408135 | AO93: 0.547211979 | AP93: 0.5474831445 | AQ93: 0.54775431
K94: Class 1 - Conservative | L94: 0.501368 | M94: 0.5020613636 | N94: 0.5027547273 | O94: 0.5034480909 | P94: 0.5041414545 | Q94: 0.5048348182 | R94: 0.5055281818 | S94: 0.5062215455 | T94: 0.5069149091 | U94: 0.5076082727 | V94: 0.5083016364 | W94: 0.508995 | X94: 0.5091222488 | Y94: 0.5092494975 | Z94: 0.5093767462 | AA94: 0.509503995 | AB94: 0.5096312438 | AC94: 0.5097584925 | AD94: 0.5098857412 | AE94: 0.51001299 | AF94: 0.5101402387 | AG94: 0.5102674875 | AH94: 0.5103947362 | AI94: 0.510521985 | AJ94: 0.5106492337 | AK94: 0.5107764825 | AL94: 0.5109037312 | AM94: 0.51103098 | AN94: 0.5111582287 | AO94: 0.5112854775 | AP94: 0.5114127262 | AQ94: 0.511539975
K95: Class 2 - Advanced | L95: 0.457134 | M95: 0.4633390909 | N95: 0.4695441818 | O95: 0.4757492727 | P95: 0.4819543636 | Q95: 0.4881594545 | R95: 0.4943645455 | S95: 0.5005696364 | T95: 0.5067747273 | U95: 0.5129798182 | V95: 0.5191849091 | W95: 0.52539 | X95: 0.526178085 | Y95: 0.52696617 | Z95: 0.527754255 | AA95: 0.52854234 | AB95: 0.529330425 | AC95: 0.53011851 | AD95: 0.530906595 | AE95: 0.53169468 | AF95: 0.532482765 | AG95: 0.53327085 | AH95: 0.534058935 | AI95: 0.53484702 | AJ95: 0.535635105 | AK95: 0.53642319 | AL95: 0.537211275 | AM95: 0.53799936 | AN95: 0.538787445 | AO95: 0.53957553 | AP95: 0.540363615 | AQ95: 0.5411517
K96: Class 2 - Moderate | L96: 0.457134 | M96: 0.4608921818 | N96: 0.4646503636 | O96: 0.4684085455 | P96: 0.4721667273 | Q96: 0.4759249091 | R96: 0.4796830909 | S96: 0.4834412727 | T96: 0.4871994545 | U96: 0.4909576364 | V96: 0.4947158182 | W96: 0.498474 | X96: 0.4988478555 | Y96: 0.499221711 | Z96: 0.4995955665 | AA96: 0.499969422 | AB96: 0.5003432775 | AC96: 0.500717133 | AD96: 0.5010909885 | AE96: 0.501464844 | AF96: 0.5018386995 | AG96: 0.502212555 | AH96: 0.5025864105 | AI96: 0.502960266 | AJ96: 0.5033341215 | AK96: 0.503707977 | AL96: 0.5040818325 | AM96: 0.504455688 | AN96: 0.5048295435 | AO96: 0.505203399 | AP96: 0.5055772545 | AQ96: 0.50595111
K97: Class 2 - Conservative | L97: 0.457134 | M97: 0.4580005455 | N97: 0.4588670909 | O97: 0.4597336364 | P97: 0.4606001818 | Q97: 0.4614667273 | R97: 0.4623332727 | S97: 0.4631998182 | T97: 0.4640663636 | U97: 0.4649329091 | V97: 0.4657994545 | W97: 0.466666 | X97: 0.4668409998 | Y97: 0.4670159995 | Z97: 0.4671909992 | AA97: 0.467365999 | AB97: 0.4675409987 | AC97: 0.4677159985 | AD97: 0.4678909983 | AE97: 0.468065998 | AF97: 0.4682409978 | AG97: 0.4684159975 | AH97: 0.4685909973 | AI97: 0.468765997 | AJ97: 0.4689409968 | AK97: 0.4691159965 | AL97: 0.4692909962 | AM97: 0.469465996 | AN97: 0.4696409958 | AO97: 0.4698159955 | AP97: 0.4699909953 | AQ97: 0.470165995
K98: Class 3 - Advanced | L98: 0.443267 | M98: 0.4494685455 | N98: 0.4556700909 | O98: 0.4618716364 | P98: 0.4680731818 | Q98: 0.4742747273 | R98: 0.4804762727 | S98: 0.4866778182 | T98: 0.4928793636 | U98: 0.4990809091 | V98: 0.5052824545 | W98: 0.511484 | X98: 0.512506968 | Y98: 0.513529936 | Z98: 0.514552904 | AA98: 0.515575872 | AB98: 0.51659884 | AC98: 0.517621808 | AD98: 0.518644776 | AE98: 0.519667744 | AF98: 0.520690712 | AG98: 0.52171368 | AH98: 0.522736648 | AI98: 0.523759616 | AJ98: 0.524782584 | AK98: 0.525805552 | AL98: 0.52682852 | AM98: 0.527851488 | AN98: 0.528874456 | AO98: 0.529897424 | AP98: 0.530920392 | AQ98: 0.53194336
K99: Class 3 - Moderate | L99: 0.443267 | M99: 0.4470305455 | N99: 0.4507940909 | O99: 0.4545576364 | P99: 0.4583211818 | Q99: 0.4620847273 | R99: 0.4658482727 | S99: 0.4696118182 | T99: 0.4733753636 | U99: 0.4771389091 | V99: 0.4809024545 | W99: 0.484666 | X99: 0.485150666 | Y99: 0.485635332 | Z99: 0.486119998 | AA99: 0.486604664 | AB99: 0.48708933 | AC99: 0.487573996 | AD99: 0.488058662 | AE99: 0.488543328 | AF99: 0.489027994 | AG99: 0.48951266 | AH99: 0.489997326 | AI99: 0.490481992 | AJ99: 0.490966658 | AK99: 0.491451324 | AL99: 0.49193599 | AM99: 0.492420656 | AN99: 0.492905322 | AO99: 0.493389988 | AP99: 0.493874654 | AQ99: 0.49435932
K100: Class 3 - Conservative | L100: 0.443267 | M100: 0.4441845455 | N100: 0.4451020909 | O100: 0.4460196364 | P100: 0.4469371818 | Q100: 0.4478547273 | R100: 0.4487722727 | S100: 0.4496898182 | T100: 0.4506073636 | U100: 0.4515249091 | V100: 0.4524424545 | W100: 0.45336 | X100: 0.45358668 | Y100: 0.45381336 | Z100: 0.45404004 | AA100: 0.45426672 | AB100: 0.4544934 | AC100: 0.45472008 | AD100: 0.45494676 | AE100: 0.45517344 | AF100: 0.45540012 | AG100: 0.4556268 | AH100: 0.45585348 | AI100: 0.45608016 | AJ100: 0.45630684 | AK100: 0.45653352 | AL100: 0.4567602 | AM100: 0.45698688 | AN100: 0.45721356 | AO100: 0.45744024 | AP100: 0.45766692 | AQ100: 0.4578936
K101: Class 4 - Advanced | L101: 0.42975 | M101: 0.4359086364 | N101: 0.4420672727 | O101: 0.4482259091 | P101: 0.4543845455 | Q101: 0.4605431818 | R101: 0.4667018182 | S101: 0.4728604545 | T101: 0.4790190909 | U101: 0.4851777273 | V101: 0.4913363636 | W101: 0.497495 | X101: 0.4987387375 | Y101: 0.499982475 | Z101: 0.5012262125 | AA101: 0.50246995 | AB101: 0.5037136875 | AC101: 0.504957425 | AD101: 0.5062011625 | AE101: 0.5074449 | AF101: 0.5086886375 | AG101: 0.509932375 | AH101: 0.5111761125 | AI101: 0.51241985 | AJ101: 0.5136635875 | AK101: 0.514907325 | AL101: 0.5161510625 | AM101: 0.5173948 | AN101: 0.5186385375 | AO101: 0.519882275 | AP101: 0.5211260125 | AQ101: 0.52236975
K102: Class 4 - Moderate | L102: 0.42975 | M102: 0.4334643636 | N102: 0.4371787273 | O102: 0.4408930909 | P102: 0.4446074545 | Q102: 0.4483218182 | R102: 0.4520361818 | S102: 0.4557505455 | T102: 0.4594649091 | U102: 0.4631792727 | V102: 0.4668936364 | W102: 0.470608 | X102: 0.47119626 | Y102: 0.47178452 | Z102: 0.47237278 | AA102: 0.47296104 | AB102: 0.4735493 | AC102: 0.47413756 | AD102: 0.47472582 | AE102: 0.47531408 | AF102: 0.47590234 | AG102: 0.4764906 | AH102: 0.47707886 | AI102: 0.47766712 | AJ102: 0.47825538 | AK102: 0.47884364 | AL102: 0.4794319 | AM102: 0.48002016 | AN102: 0.48060842 | AO102: 0.48119668 | AP102: 0.48178494 | AQ102: 0.4823732
K103: Class 4 - Conservative | L103: 0.42975 | M103: 0.4306817273 | N103: 0.4316134545 | O103: 0.4325451818 | P103: 0.4334769091 | Q103: 0.4344086364 | R103: 0.4353403636 | S103: 0.4362720909 | T103: 0.4372038182 | U103: 0.4381355455 | V103: 0.4390672727 | W103: 0.439999 | X103: 0.4402739994 | Y103: 0.4405489987 | Z103: 0.4408239981 | AA103: 0.4410989975 | AB103: 0.4413739969 | AC103: 0.4416489962 | AD103: 0.4419239956 | AE103: 0.442198995 | AF103: 0.4424739944 | AG103: 0.4427489937 | AH103: 0.4430239931 | AI103: 0.4432989925 | AJ103: 0.4435739919 | AK103: 0.4438489912 | AL103: 0.4441239906 | AM103: 0.44439899 | AN103: 0.4446739894 | AO103: 0.4449489887 | AP103: 0.4452239881 | AQ103: 0.4454989875
K104: Class 5 - Advanced | L104: 0.412909 | M104: 0.4189967273 | N104: 0.4250844545 | O104: 0.4311721818 | P104: 0.4372599091 | Q104: 0.4433476364 | R104: 0.4494353636 | S104: 0.4555230909 | T104: 0.4616108182 | U104: 0.4676985455 | V104: 0.4737862727 | W104: 0.479874 | X104: 0.481313622 | Y104: 0.482753244 | Z104: 0.484192866 | AA104: 0.485632488 | AB104: 0.48707211 | AC104: 0.488511732 | AD104: 0.489951354 | AE104: 0.491390976 | AF104: 0.492830598 | AG104: 0.49427022 | AH104: 0.495709842 | AI104: 0.497149464 | AJ104: 0.498589086 | AK104: 0.500028708 | AL104: 0.50146833 | AM104: 0.502907952 | AN104: 0.504347574 | AO104: 0.505787196 | AP104: 0.507226818 | AQ104: 0.50866644
K105: Class 5 - Moderate | L105: 0.412909 | M105: 0.4165595455 | N105: 0.4202100909 | O105: 0.4238606364 | P105: 0.4275111818 | Q105: 0.4311617273 | R105: 0.4348122727 | S105: 0.4384628182 | T105: 0.4421133636 | U105: 0.4457639091 | V105: 0.4494144545 | W105: 0.453065 | X105: 0.4537445975 | Y105: 0.454424195 | Z105: 0.4551037925 | AA105: 0.45578339 | AB105: 0.4564629875 | AC105: 0.457142585 | AD105: 0.4578221825 | AE105: 0.45850178 | AF105: 0.4591813775 | AG105: 0.459860975 | AH105: 0.4605405725 | AI105: 0.46122017 | AJ105: 0.4618997675 | AK105: 0.462579365 | AL105: 0.4632589625 | AM105: 0.46393856 | AN105: 0.4646181575 | AO105: 0.465297755 | AP105: 0.4659773525 | AQ105: 0.46665695
K106: Class 5 - Conservative | L106: 0.412909 | M106: 0.413857 | N106: 0.414805 | O106: 0.415753 | P106: 0.416701 | Q106: 0.417649 | R106: 0.418597 | S106: 0.419545 | T106: 0.420493 | U106: 0.421441 | V106: 0.422389 | W106: 0.423337 | X106: 0.4236545027 | Y106: 0.4239720055 | Z106: 0.4242895083 | AA106: 0.424607011 | AB106: 0.4249245138 | AC106: 0.4252420165 | AD106: 0.4255595192 | AE106: 0.425877022 | AF106: 0.4261945247 | AG106: 0.4265120275 | AH106: 0.4268295303 | AI106: 0.427147033 | AJ106: 0.4274645357 | AK106: 0.4277820385 | AL106: 0.4280995413 | AM106: 0.428417044 | AN106: 0.4287345468 | AO106: 0.4290520495 | AP106: 0.4293695523 | AQ106: 0.429687055
K107: Class 6 - Advanced | L107: 0.38662 | M107: 0.3925860909 | N107: 0.3985521818 | O107: 0.4045182727 | P107: 0.4104843636 | Q107: 0.4164504545 | R107: 0.4224165455 | S107: 0.4283826364 | T107: 0.4343487273 | U107: 0.4403148182 | V107: 0.4462809091 | W107: 0.452247 | X107: 0.4538298645 | Y107: 0.455412729 | Z107: 0.4569955935 | AA107: 0.458578458 | AB107: 0.4601613225 | AC107: 0.461744187 | AD107: 0.4633270515 | AE107: 0.464909916 | AF107: 0.4664927805 | AG107: 0.468075645 | AH107: 0.4696585095 | AI107: 0.471241374 | AJ107: 0.4728242385 | AK107: 0.474407103 | AL107: 0.4759899675 | AM107: 0.477572832 | AN107: 0.4791556965 | AO107: 0.480738561 | AP107: 0.4823214255 | AQ107: 0.48390429
K108: Class 6 - Moderate | L108: 0.38662 | M108: 0.3905452727 | N108: 0.3944705455 | O108: 0.3983958182 | P108: 0.4023210909 | Q108: 0.4062463636 | R108: 0.4101716364 | S108: 0.4140969091 | T108: 0.4180221818 | U108: 0.4219474545 | V108: 0.4258727273 | W108: 0.429798 | X108: 0.4305501465 | Y108: 0.431302293 | Z108: 0.4320544395 | AA108: 0.432806586 | AB108: 0.4335587325 | AC108: 0.434310879 | AD108: 0.4350630255 | AE108: 0.435815172 | AF108: 0.4365673185 | AG108: 0.437319465 | AH108: 0.4380716115 | AI108: 0.438823758 | AJ108: 0.4395759045 | AK108: 0.440328051 | AL108: 0.4410801975 | AM108: 0.441832344 | AN108: 0.4425844905 | AO108: 0.443336637 | AP108: 0.4440887835 | AQ108: 0.44484093
K109: Class 6 - Conservative | L109: 0.38662 | M109: 0.3876024545 | N109: 0.3885849091 | O109: 0.3895673636 | P109: 0.3905498182 | Q109: 0.3915322727 | R109: 0.3925147273 | S109: 0.3934971818 | T109: 0.3944796364 | U109: 0.3954620909 | V109: 0.3964445455 | W109: 0.397427 | X109: 0.3977747486 | Y109: 0.3981224972 | Z109: 0.3984702459 | AA109: 0.3988179945 | AB109: 0.3991657431 | AC109: 0.3995134917 | AD109: 0.3998612404 | AE109: 0.400208989 | AF109: 0.4005567376 | AG109: 0.4009044862 | AH109: 0.4012522349 | AI109: 0.4015999835 | AJ109: 0.4019477321 | AK109: 0.4022954807 | AL109: 0.4026432294 | AM109: 0.402990978 | AN109: 0.4033387266 | AO109: 0.4036864752 | AP109: 0.4040342239 | AQ109: 0.4043819725
K110: Class 7 - Advanced | L110: 0.352304 | M110: 0.3580465455 | N110: 0.3637890909 | O110: 0.3695316364 | P110: 0.3752741818 | Q110: 0.3810167273 | R110: 0.3867592727 | S110: 0.3925018182 | T110: 0.3982443636 | U110: 0.4039869091 | V110: 0.4097294545 | W110: 0.415472 | X110: 0.417133888 | Y110: 0.418795776 | Z110: 0.420457664 | AA110: 0.422119552 | AB110: 0.42378144 | AC110: 0.425443328 | AD110: 0.427105216 | AE110: 0.428767104 | AF110: 0.430428992 | AG110: 0.43209088 | AH110: 0.433752768 | AI110: 0.435414656 | AJ110: 0.437076544 | AK110: 0.438738432 | AL110: 0.44040032 | AM110: 0.442062208 | AN110: 0.443724096 | AO110: 0.445385984 | AP110: 0.447047872 | AQ110: 0.44870976
K111: Class 7 - Moderate | L111: 0.352304 | M111: 0.3557054545 | N111: 0.3591069091 | O111: 0.3625083636 | P111: 0.3659098182 | Q111: 0.3693112727 | R111: 0.3727127273 | S111: 0.3761141818 | T111: 0.3795156364 | U111: 0.3829170909 | V111: 0.3863185455 | W111: 0.38972 | X111: 0.39049944 | Y111: 0.39127888 | Z111: 0.39205832 | AA111: 0.39283776 | AB111: 0.3936172 | AC111: 0.39439664 | AD111: 0.39517608 | AE111: 0.39595552 | AF111: 0.39673496 | AG111: 0.3975144 | AH111: 0.39829384 | AI111: 0.39907328 | AJ111: 0.39985272 | AK111: 0.40063216 | AL111: 0.4014116 | AM111: 0.40219104 | AN111: 0.40297048 | AO111: 0.40374992 | AP111: 0.40452936 | AQ111: 0.4053088
K112: Class 7 - Conservative | L112: 0.352304 | M112: 0.3533057273 | N112: 0.3543074545 | O112: 0.3553091818 | P112: 0.3563109091 | Q112: 0.3573126364 | R112: 0.3583143636 | S112: 0.3593160909 | T112: 0.3603178182 | U112: 0.3613195455 | V112: 0.3623212727 | W112: 0.363323 | X112: 0.363686323 | Y112: 0.364049646 | Z112: 0.364412969 | AA112: 0.364776292 | AB112: 0.365139615 | AC112: 0.365502938 | AD112: 0.365866261 | AE112: 0.366229584 | AF112: 0.366592907 | AG112: 0.36695623 | AH112: 0.367319553 | AI112: 0.367682876 | AJ112: 0.368046199 | AK112: 0.368409522 | AL112: 0.368772845 | AM112: 0.369136168 | AN112: 0.369499491 | AO112: 0.369862814 | AP112: 0.370226137 | AQ112: 0.37058946
K113: Class 8 - Advanced | L113: 0.311036 | M113: 0.3164511818 | N113: 0.3218663636 | O113: 0.3272815455 | P113: 0.3326967273 | Q113: 0.3381119091 | R113: 0.3435270909 | S113: 0.3489422727 | T113: 0.3543574545 | U113: 0.3597726364 | V113: 0.3651878182 | W113: 0.370603 | X113: 0.3722707135 | Y113: 0.373938427 | Z113: 0.3756061405 | AA113: 0.377273854 | AB113: 0.3789415675 | AC113: 0.380609281 | AD113: 0.3822769945 | AE113: 0.383944708 | AF113: 0.3856124215 | AG113: 0.387280135 | AH113: 0.3889478485 | AI113: 0.390615562 | AJ113: 0.3922832755 | AK113: 0.393950989 | AL113: 0.3956187025 | AM113: 0.397286416 | AN113: 0.3989541295 | AO113: 0.400621843 | AP113: 0.4022895565 | AQ113: 0.40395727
K114: Class 8 - Moderate | L114: 0.311036 | M114: 0.3142136364 | N114: 0.3173912727 | O114: 0.3205689091 | P114: 0.3237465455 | Q114: 0.3269241818 | R114: 0.3301018182 | S114: 0.3332794545 | T114: 0.3364570909 | U114: 0.3396347273 | V114: 0.3428123636 | W114: 0.34599 | X114: 0.3467684775 | Y114: 0.347546955 | Z114: 0.3483254325 | AA114: 0.34910391 | AB114: 0.3498823875 | AC114: 0.350660865 | AD114: 0.3514393425 | AE114: 0.35221782 | AF114: 0.3529962975 | AG114: 0.353774775 | AH114: 0.3545532525 | AI114: 0.35533173 | AJ114: 0.3561102075 | AK114: 0.356888685 | AL114: 0.3576671625 | AM114: 0.35844564 | AN114: 0.3592241175 | AO114: 0.360002595 | AP114: 0.3607810725 | AQ114: 0.36155955
K115: Class 8 - Conservative | L115: 0.311036 | M115: 0.3120332727 | N115: 0.3130305455 | O115: 0.3140278182 | P115: 0.3150250909 | Q115: 0.3160223636 | R115: 0.3170196364 | S115: 0.3180169091 | T115: 0.3190141818 | U115: 0.3200114545 | V115: 0.3210087273 | W115: 0.322006 | X115: 0.3223682568 | Y115: 0.3227305135 | Z115: 0.3230927703 | AA115: 0.323455027 | AB115: 0.3238172838 | AC115: 0.3241795405 | AD115: 0.3245417973 | AE115: 0.324904054 | AF115: 0.3252663108 | AG115: 0.3256285675 | AH115: 0.3259908243 | AI115: 0.326353081 | AJ115: 0.3267153378 | AK115: 0.3270775945 | AL115: 0.3274398513 | AM115: 0.327802108 | AN115: 0.3281643647 | AO115: 0.3285266215 | AP115: 0.3288888783 | AQ115: 0.329251135
K116: Class 9 - Advanced | L116: 0.265759 | M116: 0.2707379091 | N116: 0.2757168182 | O116: 0.2806957273 | P116: 0.2856746364 | Q116: 0.2906535455 | R116: 0.2956324545 | S116: 0.3006113636 | T116: 0.3055902727 | U116: 0.3105691818 | V116: 0.3155480909 | W116: 0.320527 | X116: 0.322129635 | Y116: 0.32373227 | Z116: 0.325334905 | AA116: 0.32693754 | AB116: 0.328540175 | AC116: 0.33014281 | AD116: 0.331745445 | AE116: 0.33334808 | AF116: 0.334950715 | AG116: 0.33655335 | AH116: 0.338155985 | AI116: 0.33975862 | AJ116: 0.341361255 | AK116: 0.34296389 | AL116: 0.344566525 | AM116: 0.34616916 | AN116: 0.347771795 | AO116: 0.34937443 | AP116: 0.350977065 | AQ116: 0.3525797
K117: Class 9 - Moderate | L117: 0.265759 | M117: 0.2686503636 | N117: 0.2715417273 | O117: 0.2744330909 | P117: 0.2773244545 | Q117: 0.2802158182 | R117: 0.2831071818 | S117: 0.2859985455 | T117: 0.2888899091 | U117: 0.2917812727 | V117: 0.2946726364 | W117: 0.297564 | X117: 0.29830791 | Y117: 0.29905182 | Z117: 0.29979573 | AA117: 0.30053964 | AB117: 0.30128355 | AC117: 0.30202746 | AD117: 0.30277137 | AE117: 0.30351528 | AF117: 0.30425919 | AG117: 0.3050031 | AH117: 0.30574701 | AI117: 0.30649092 | AJ117: 0.30723483 | AK117: 0.30797874 | AL117: 0.30872265 | AM117: 0.30946656 | AN117: 0.31021047 | AO117: 0.31095438 | AP117: 0.31169829 | AQ117: 0.3124422
K118: Class 9 - Conservative | L118: 0.265759 | M118: 0.266724 | N118: 0.267689 | O118: 0.268654 | P118: 0.269619 | Q118: 0.270584 | R118: 0.271549 | S118: 0.272514 | T118: 0.273479 | U118: 0.274444 | V118: 0.275409 | W118: 0.276374 | X118: 0.2767194675 | Y118: 0.277064935 | Z118: 0.2774104025 | AA118: 0.27775587 | AB118: 0.2781013375 | AC118: 0.278446805 | AD118: 0.2787922725 | AE118: 0.27913774 | AF118: 0.2794832075 | AG118: 0.279828675 | AH118: 0.2801741425 | AI118: 0.28051961 | AJ118: 0.2808650775 | AK118: 0.281210545 | AL118: 0.2815560125 | AM118: 0.28190148 | AN118: 0.2822469475 | AO118: 0.282592415 | AP118: 0.2829378825 | AQ118: 0.28328335
K119: Class 10 - Advanced | L119: 0.164841 | M119: 0.1685162727 | N119: 0.1721915455 | O119: 0.1758668182 | P119: 0.1795420909 | Q119: 0.1832173636 | R119: 0.1868926364 | S119: 0.1905679091 | T119: 0.1942431818 | U119: 0.1979184545 | V119: 0.2015937273 | W119: 0.205269 | X119: 0.2063979795 | Y119: 0.207526959 | Z119: 0.2086559385 | AA119: 0.209784918 | AB119: 0.2109138975 | AC119: 0.212042877 | AD119: 0.2131718565 | AE119: 0.214300836 | AF119: 0.2154298155 | AG119: 0.216558795 | AH119: 0.2176877745 | AI119: 0.218816754 | AJ119: 0.2199457335 | AK119: 0.221074713 | AL119: 0.2222036925 | AM119: 0.223332672 | AN119: 0.2244616515 | AO119: 0.225590631 | AP119: 0.2267196105 | AQ119: 0.22784859
K120: Class 10 - Moderate | L120: 0.164841 | M120: 0.1669329091 | N120: 0.1690248182 | O120: 0.1711167273 | P120: 0.1732086364 | Q120: 0.1753005455 | R120: 0.1773924545 | S120: 0.1794843636 | T120: 0.1815762727 | U120: 0.1836681818 | V120: 0.1857600909 | W120: 0.187852 | X120: 0.188368593 | Y120: 0.188885186 | Z120: 0.189401779 | AA120: 0.189918372 | AB120: 0.190434965 | AC120: 0.190951558 | AD120: 0.191468151 | AE120: 0.191984744 | AF120: 0.192501337 | AG120: 0.19301793 | AH120: 0.193534523 | AI120: 0.194051116 | AJ120: 0.194567709 | AK120: 0.195084302 | AL120: 0.195600895 | AM120: 0.196117488 | AN120: 0.196634081 | AO120: 0.197150674 | AP120: 0.197667267 | AQ120: 0.19818386
K121: Class 10 - Conservative | L121: 0.164841 | M121: 0.1656303636 | N121: 0.1664197273 | O121: 0.1672090909 | P121: 0.1679984545 | Q121: 0.1687878182 | R121: 0.1695771818 | S121: 0.1703665455 | T121: 0.1711559091 | U121: 0.1719452727 | V121: 0.1727346364 | W121: 0.173524 | X121: 0.1737625955 | Y121: 0.174001191 | Z121: 0.1742397865 | AA121: 0.174478382 | AB121: 0.1747169775 | AC121: 0.174955573 | AD121: 0.1751941685 | AE121: 0.175432764 | AF121: 0.1756713595 | AG121: 0.175909955 | AH121: 0.1761485505 | AI121: 0.176387146 | AJ121: 0.1766257415 | AK121: 0.176864337 | AL121: 0.1771029325 | AM121: 0.177341528 | AN121: 0.1775801235 | AO121: 0.177818719 | AP121: 0.1780573145 | AQ121: 0.17829591
L123: 2019 | M123: 2020 | N123: 2021 | O123: 2022 | P123: 2023 | Q123: 2024 | R123: 2025 | S123: 2026 | T123: 2027 | U123: 2028 | V123: 2029 | W123: 2030 | X123: 2031 | Y123: 2032 | Z123: 2033 | AA123: 2034 | AB123: 2035 | AC123: 2036 | AD123: 2037 | AE123: 2038 | AF123: 2039 | AG123: 2040 | AH123: 2041 | AI123: 2042 | AJ123: 2043 | AK123: 2044 | AL123: 2045 | AM123: 2046 | AN123: 2047 | AO123: 2048 | AP123: 2049 | AQ123: 2050
J124: Annual Energy Production (kWh/kW) | K124: Class 1 - Advanced | L124: =(L92)*8760 -> 4391.98368 | M124: 4445.492945 | N124: 4499.002211 | O124: 4552.511476 | P124: 4606.020742 | Q124: 4659.530007 | R124: 4713.039273 | S124: 4766.548538 | T124: 4820.057804 | U124: 4873.567069 | V124: 4927.076335 | W124: 4980.5856 | X124: 4985.566186 | Y124: 4990.546771 | Z124: 4995.527357 | AA124: 5000.507942 | AB124: 5005.488528 | AC124: 5010.469114 | AD124: 5015.449699 | AE124: 5020.430285 | AF124: 5025.41087 | AG124: 5030.391456 | AH124: 5035.372042 | AI124: 5040.352627 | AJ124: 5045.333213 | AK124: 5050.313798 | AL124: 5055.294384 | AM124: 5060.27497 | AN124: 5065.255555 | AO124: 5070.236141 | AP124: 5075.216726 | AQ124: 5080.197312
K125: Class 1 - Moderate | L125: 4391.98368 | M125: 4424.605124 | N125: 4457.226567 | O125: 4489.848011 | P125: 4522.469455 | Q125: 4555.090898 | R125: 4587.712342 | S125: 4620.333785 | T125: 4652.955229 | U125: 4685.576673 | V125: 4718.198116 | W125: 4750.81956 | X125: 4753.19497 | Y125: 4755.57038 | Z125: 4757.945789 | AA125: 4760.321199 | AB125: 4762.696609 | AC125: 4765.072019 | AD125: 4767.447428 | AE125: 4769.822838 | AF125: 4772.198248 | AG125: 4774.573658 | AH125: 4776.949068 | AI125: 4779.324477 | AJ125: 4781.699887 | AK125: 4784.075297 | AL125: 4786.450707 | AM125: 4788.826116 | AN125: 4791.201526 | AO125: 4793.576936 | AP125: 4795.952346 | AQ125: 4798.327756
K126: Class 1 - Conservative | L126: 4391.98368 | M126: 4398.057545 | N126: 4404.131411 | O126: 4410.205276 | P126: 4416.279142 | Q126: 4422.353007 | R126: 4428.426873 | S126: 4434.500738 | T126: 4440.574604 | U126: 4446.648469 | V126: 4452.722335 | W126: 4458.7962 | X126: 4459.910899 | Y126: 4461.025598 | Z126: 4462.140297 | AA126: 4463.254996 | AB126: 4464.369695 | AC126: 4465.484394 | AD126: 4466.599093 | AE126: 4467.713792 | AF126: 4468.828491 | AG126: 4469.94319 | AH126: 4471.05789 | AI126: 4472.172589 | AJ126: 4473.287288 | AK126: 4474.401987 | AL126: 4475.516686 | AM126: 4476.631385 | AN126: 4477.746084 | AO126: 4478.860783 | AP126: 4479.975482 | AQ126: 4481.090181
K127: Class 2 - Advanced | L127: 4004.49384 | M127: 4058.850436 | N127: 4113.207033 | O127: 4167.563629 | P127: 4221.920225 | Q127: 4276.276822 | R127: 4330.633418 | S127: 4384.990015 | T127: 4439.346611 | U127: 4493.703207 | V127: 4548.059804 | W127: 4602.4164 | X127: 4609.320025 | Y127: 4616.223649 | Z127: 4623.127274 | AA127: 4630.030898 | AB127: 4636.934523 | AC127: 4643.838148 | AD127: 4650.741772 | AE127: 4657.645397 | AF127: 4664.549021 | AG127: 4671.452646 | AH127: 4678.356271 | AI127: 4685.259895 | AJ127: 4692.16352 | AK127: 4699.067144 | AL127: 4705.970769 | AM127: 4712.874394 | AN127: 4719.778018 | AO127: 4726.681643 | AP127: 4733.585267 | AQ127: 4740.488892
K128: Class 2 - Moderate | L128: 4004.49384 | M128: 4037.415513 | N128: 4070.337185 | O128: 4103.258858 | P128: 4136.180531 | Q128: 4169.102204 | R128: 4202.023876 | S128: 4234.945549 | T128: 4267.867222 | U128: 4300.788895 | V128: 4333.710567 | W128: 4366.63224 | X128: 4369.907214 | Y128: 4373.182188 | Z128: 4376.457163 | AA128: 4379.732137 | AB128: 4383.007111 | AC128: 4386.282085 | AD128: 4389.557059 | AE128: 4392.832033 | AF128: 4396.107008 | AG128: 4399.381982 | AH128: 4402.656956 | AI128: 4405.93193 | AJ128: 4409.206904 | AK128: 4412.481879 | AL128: 4415.756853 | AM128: 4419.031827 | AN128: 4422.306801 | AO128: 4425.581775 | AP128: 4428.856749 | AQ128: 4432.131724
K129: Class 2 - Conservative | L129: 4004.49384 | M129: 4012.084778 | N129: 4019.675716 | O129: 4027.266655 | P129: 4034.857593 | Q129: 4042.448531 | R129: 4050.039469 | S129: 4057.630407 | T129: 4065.221345 | U129: 4072.812284 | V129: 4080.403222 | W129: 4087.99416 | X129: 4089.527158 | Y129: 4091.060156 | Z129: 4092.593153 | AA129: 4094.126151 | AB129: 4095.659149 | AC129: 4097.192147 | AD129: 4098.725145 | AE129: 4100.258142 | AF129: 4101.79114 | AG129: 4103.324138 | AH129: 4104.857136 | AI129: 4106.390134 | AJ129: 4107.923132 | AK129: 4109.456129 | AL129: 4110.989127 | AM129: 4112.522125 | AN129: 4114.055123 | AO129: 4115.588121 | AP129: 4117.121118 | AQ129: 4118.654116
K130: Class 3 - Advanced | L130: 3883.01892 | M130: 3937.344458 | N130: 3991.669996 | O130: 4045.995535 | P130: 4100.321073 | Q130: 4154.646611 | R130: 4208.972149 | S130: 4263.297687 | T130: 4317.623225 | U130: 4371.948764 | V130: 4426.274302 | W130: 4480.59984 | X130: 4489.56104 | Y130: 4498.522239 | Z130: 4507.483439 | AA130: 4516.444639 | AB130: 4525.405838 | AC130: 4534.367038 | AD130: 4543.328238 | AE130: 4552.289437 | AF130: 4561.250637 | AG130: 4570.211837 | AH130: 4579.173036 | AI130: 4588.134236 | AJ130: 4597.095436 | AK130: 4606.056636 | AL130: 4615.017835 | AM130: 4623.979035 | AN130: 4632.940235 | AO130: 4641.901434 | AP130: 4650.862634 | AQ130: 4659.823834
K131: Class 3 - Moderate | L131: 3883.01892 | M131: 3915.987578 | N131: 3948.956236 | O131: 3981.924895 | P131: 4014.893553 | Q131: 4047.862211 | R131: 4080.830869 | S131: 4113.799527 | T131: 4146.768185 | U131: 4179.736844 | V131: 4212.705502 | W131: 4245.67416 | X131: 4249.919834 | Y131: 4254.165508 | Z131: 4258.411182 | AA131: 4262.656857 | AB131: 4266.902531 | AC131: 4271.148205 | AD131: 4275.393879 | AE131: 4279.639553 | AF131: 4283.885227 | AG131: 4288.130902 | AH131: 4292.376576 | AI131: 4296.62225 | AJ131: 4300.867924 | AK131: 4305.113598 | AL131: 4309.359272 | AM131: 4313.604947 | AN131: 4317.850621 | AO131: 4322.096295 | AP131: 4326.341969 | AQ131: =(AQ99)*8760 -> 4330.587643
K132: Class 3 - Conservative | L132: =(L100)*8760 -> 3883.01892 | M132: 3891.056618 | N132: 3899.094316 | O132: 3907.132015 | P132: 3915.169713 | Q132: 3923.207411 | R132: 3931.245109 | S132: 3939.282807 | T132: 3947.320505 | U132: 3955.358204 | V132: 3963.395902 | W132: 3971.4336 | X132: 3973.419317 | Y132: 3975.405034 | Z132: 3977.39075 | AA132: 3979.376467 | AB132: 3981.362184 | AC132: 3983.347901 | AD132: 3985.333618 | AE132: 3987.319334 | AF132: 3989.305051 | AG132: 3991.290768 | AH132: 3993.276485 | AI132: 3995.262202 | AJ132: 3997.247918 | AK132: 3999.233635 | AL132: 4001.219352 | AM132: 4003.205069 | AN132: 4005.190786 | AO132: 4007.176502 | AP132: 4009.162219 | AQ132: 4011.147936
K133: Class 4 - Advanced | L133: 3764.61 | M133: 3818.559655 | N133: 3872.509309 | O133: 3926.458964 | P133: 3980.408618 | Q133: 4034.358273 | R133: 4088.307927 | S133: 4142.257582 | T133: 4196.207236 | U133: 4250.156891 | V133: 4304.106545 | W133: 4358.0562 | X133: 4368.95134 | Y133: 4379.846481 | Z133: 4390.741622 | AA133: 4401.636762 | AB133: 4412.531903 | AC133: 4423.427043 | AD133: 4434.322184 | AE133: 4445.217324 | AF133: 4456.112464 | AG133: 4467.007605 | AH133: 4477.902746 | AI133: 4488.797886 | AJ133: 4499.693027 | AK133: 4510.588167 | AL133: 4521.483307 | AM133: 4532.378448 | AN133: 4543.273589 | AO133: 4554.168729 | AP133: 4565.06387 | AQ133: 4575.95901
K134: Class 4 - Moderate | L134: 3764.61 | M134: 3797.147825 | N134: 3829.685651 | O134: 3862.223476 | P134: 3894.761302 | Q134: 3927.299127 | R134: 3959.836953 | S134: 3992.374778 | T134: 4024.912604 | U134: 4057.450429 | V134: 4089.988255 | W134: 4122.52608 | X134: 4127.679238 | Y134: 4132.832395 | Z134: 4137.985553 | AA134: 4143.13871 | AB134: 4148.291868 | AC134: 4153.445026 | AD134: 4158.598183 | AE134: 4163.751341 | AF134: 4168.904498 | AG134: 4174.057656 | AH134: 4179.210814 | AI134: 4184.363971 | AJ134: 4189.517129 | AK134: 4194.670286 | AL134: 4199.823444 | AM134: 4204.976602 | AN134: 4210.129759 | AO134: 4215.282917 | AP134: 4220.436074 | AQ134: 4225.589232
K135: Class 4 - Conservative | L135: 3764.61 | M135: 3772.771931 | N135: 3780.933862 | O135: 3789.095793 | P135: 3797.257724 | Q135: 3805.419655 | R135: 3813.581585 | S135: 3821.743516 | T135: 3829.905447 | U135: 3838.067378 | V135: 3846.229309 | W135: 3854.39124 | X135: 3856.800235 | Y135: 3859.209229 | Z135: 3861.618224 | AA135: 3864.027218 | AB135: 3866.436213 | AC135: 3868.845207 | AD135: 3871.254202 | AE135: 3873.663196 | AF135: 3876.072191 | AG135: 3878.481185 | AH135: 3880.89018 | AI135: 3883.299174 | AJ135: 3885.708169 | AK135: 3888.117163 | AL135: 3890.526158 | AM135: 3892.935152 | AN135: 3895.344147 | AO135: 3897.753141 | AP135: 3900.162136 | AQ135: 3902.57113
K136: Class 5 - Advanced | L136: 3617.08284 | M136: 3670.411331 | N136: 3723.739822 | O136: 3777.068313 | P136: 3830.396804 | Q136: 3883.725295 | R136: 3937.053785 | S136: 3990.382276 | T136: 4043.710767 | U136: 4097.039258 | V136: 4150.367749 | W136: 4203.69624 | X136: 4216.307329 | Y136: 4228.918417 | Z136: 4241.529506 | AA136: 4254.140595 | AB136: 4266.751684 | AC136: 4279.362772 | AD136: 4291.973861 | AE136: 4304.58495 | AF136: 4317.196038 | AG136: 4329.807127 | AH136: 4342.418216 | AI136: 4355.029305 | AJ136: 4367.640393 | AK136: 4380.251482 | AL136: 4392.862571 | AM136: 4405.47366 | AN136: 4418.084748 | AO136: 4430.695837 | AP136: 4443.306926 | AQ136: 4455.918014
K137: Class 5 - Moderate | L137: 3617.08284 | M137: 3649.061618 | N137: 3681.040396 | O137: 3713.019175 | P137: 3744.997953 | Q137: 3776.976731 | R137: 3808.955509 | S137: 3840.934287 | T137: 3872.913065 | U137: 3904.891844 | V137: 3936.870622 | W137: 3968.8494 | X137: 3974.802674 | Y137: 3980.755948 | Z137: 3986.709222 | AA137: 3992.662496 | AB137: 3998.615771 | AC137: 4004.569045 | AD137: 4010.522319 | AE137: 4016.475593 | AF137: 4022.428867 | AG137: 4028.382141 | AH137: 4034.335415 | AI137: 4040.288689 | AJ137: 4046.241963 | AK137: 4052.195237 | AL137: 4058.148512 | AM137: 4064.101786 | AN137: 4070.05506 | AO137: 4076.008334 | AP137: 4081.961608 | AQ137: 4087.914882
K138: Class 5 - Conservative | L138: 3617.08284 | M138: 3625.38732 | N138: 3633.6918 | O138: 3641.99628 | P138: 3650.30076 | Q138: 3658.60524 | R138: 3666.90972 | S138: 3675.2142 | T138: 3683.51868 | U138: 3691.82316 | V138: 3700.12764 | W138: 3708.43212 | X138: 3711.213444 | Y138: 3713.994768 | Z138: 3716.776092 | AA138: 3719.557416 | AB138: 3722.33874 | AC138: 3725.120065 | AD138: 3727.901389 | AE138: 3730.682713 | AF138: 3733.464037 | AG138: 3736.245361 | AH138: 3739.026685 | AI138: 3741.808009 | AJ138: 3744.589333 | AK138: 3747.370657 | AL138: 3750.151981 | AM138: 3752.933305 | AN138: 3755.71463 | AO138: 3758.495954 | AP138: 3761.277278 | AQ138: 3764.058602
K139: Class 6 - Advanced | L139: 3386.7912 | M139: 3439.054156 | N139: 3491.317113 | O139: 3543.580069 | P139: 3595.843025 | Q139: 3648.105982 | R139: 3700.368938 | S139: 3752.631895 | T139: 3804.894851 | U139: 3857.157807 | V139: 3909.420764 | W139: 3961.68372 | X139: 3975.549613 | Y139: 3989.415506 | Z139: 4003.281399 | AA139: 4017.147292 | AB139: 4031.013185 | AC139: 4044.879078 | AD139: 4058.744971 | AE139: 4072.610864 | AF139: 4086.476757 | AG139: 4100.34265 | AH139: 4114.208543 | AI139: 4128.074436 | AJ139: 4141.940329 | AK139: 4155.806222 | AL139: 4169.672115 | AM139: 4183.538008 | AN139: 4197.403901 | AO139: 4211.269794 | AP139: 4225.135687 | AQ139: =(AQ107)*8760 -> 4239.00158
K140: Class 6 - Moderate | L140: =(L108)*8760 -> 3386.7912 | M140: 3421.176589 | N140: 3455.561978 | O140: 3489.947367 | P140: 3524.332756 | Q140: 3558.718145 | R140: 3593.103535 | S140: 3627.488924 | T140: 3661.874313 | U140: 3696.259702 | V140: 3730.645091 | W140: 3765.03048 | X140: 3771.619283 | Y140: 3778.208087 | Z140: 3784.79689 | AA140: 3791.385693 | AB140: 3797.974497 | AC140: 3804.5633 | AD140: 3811.152103 | AE140: 3817.740907 | AF140: 3824.32971 | AG140: 3830.918513 | AH140: 3837.507317 | AI140: 3844.09612 | AJ140: 3850.684923 | AK140: 3857.273727 | AL140: 3863.86253 | AM140: 3870.451333 | AN140: 3877.040137 | AO140: 3883.62894 | AP140: 3890.217743 | AQ140: 3896.806547
K141: Class 6 - Conservative | L141: 3386.7912 | M141: 3395.397502 | N141: 3404.003804 | O141: 3412.610105 | P141: 3421.216407 | Q141: 3429.822709 | R141: 3438.429011 | S141: 3447.035313 | T141: 3455.641615 | U141: 3464.247916 | V141: 3472.854218 | W141: 3481.46052 | X141: 3484.506798 | Y141: 3487.553076 | Z141: 3490.599354 | AA141: 3493.645632 | AB141: 3496.69191 | AC141: 3499.738188 | AD141: 3502.784466 | AE141: 3505.830744 | AF141: 3508.877022 | AG141: 3511.9233 | AH141: 3514.969578 | AI141: 3518.015855 | AJ141: 3521.062133 | AK141: 3524.108411 | AL141: 3527.154689 | AM141: 3530.200967 | AN141: 3533.247245 | AO141: 3536.293523 | AP141: 3539.339801 | AQ141: 3542.386079
K142: Class 7 - Advanced | L142: 3086.18304 | M142: 3136.487738 | N142: 3186.792436 | O142: 3237.097135 | P142: 3287.401833 | Q142: 3337.706531 | R142: 3388.011229 | S142: 3438.315927 | T142: 3488.620625 | U142: 3538.925324 | V142: 3589.230022 | W142: 3639.53472 | X142: 3654.092859 | Y142: 3668.650998 | Z142: 3683.209137 | AA142: 3697.767276 | AB142: 3712.325414 | AC142: 3726.883553 | AD142: 3741.441692 | AE142: 3755.999831 | AF142: 3770.55797 | AG142: 3785.116109 | AH142: 3799.674248 | AI142: 3814.232387 | AJ142: 3828.790525 | AK142: 3843.348664 | AL142: 3857.906803 | AM142: 3872.464942 | AN142: 3887.023081 | AO142: 3901.58122 | AP142: 3916.139359 | AQ142: 3930.697498
K143: Class 7 - Moderate | L143: 3086.18304 | M143: 3115.979782 | N143: 3145.776524 | O143: 3175.573265 | P143: 3205.370007 | Q143: 3235.166749 | R143: 3264.963491 | S143: 3294.760233 | T143: 3324.556975 | U143: 3354.353716 | V143: 3384.150458 | W143: 3413.9472 | X143: 3420.775094 | Y143: 3427.602989 | Z143: 3434.430883 | AA143: 3441.258778 | AB143: 3448.086672 | AC143: 3454.914566 | AD143: 3461.742461 | AE143: 3468.570355 | AF143: 3475.39825 | AG143: 3482.226144 | AH143: 3489.054038 | AI143: 3495.881933 | AJ143: 3502.709827 | AK143: 3509.537722 | AL143: 3516.365616 | AM143: 3523.19351 | AN143: 3530.021405 | AO143: 3536.849299 | AP143: 3543.677194 | AQ143: 3550.505088
K144: Class 7 - Conservative | L144: 3086.18304 | M144: 3094.958171 | N144: 3103.733302 | O144: 3112.508433 | P144: 3121.283564 | Q144: 3130.058695 | R144: 3138.833825 | S144: 3147.608956 | T144: 3156.384087 | U144: 3165.159218 | V144: 3173.934349 | W144: 3182.70948 | X144: 3185.892189 | Y144: 3189.074899 | Z144: 3192.257608 | AA144: 3195.440318 | AB144: 3198.623027 | AC144: 3201.805737 | AD144: 3204.988446 | AE144: 3208.171156 | AF144: 3211.353865 | AG144: 3214.536575 | AH144: 3217.719284 | AI144: 3220.901994 | AJ144: 3224.084703 | AK144: 3227.267413 | AL144: 3230.450122 | AM144: 3233.632832 | AN144: 3236.815541 | AO144: 3239.998251 | AP144: 3243.18096 | AQ144: 3246.36367
K145: Class 8 - Advanced | L145: 2724.67536 | M145: 2772.112353 | N145: 2819.549345 | O145: 2866.986338 | P145: 2914.423331 | Q145: 2961.860324 | R145: 3009.297316 | S145: 3056.734309 | T145: 3104.171302 | U145: 3151.608295 | V145: 3199.045287 | W145: 3246.48228 | X145: 3261.09145 | Y145: 3275.700621 | Z145: 3290.309791 | AA145: 3304.918961 | AB145: 3319.528131 | AC145: 3334.137302 | AD145: 3348.746472 | AE145: 3363.355642 | AF145: 3377.964812 | AG145: 3392.573983 | AH145: 3407.183153 | AI145: 3421.792323 | AJ145: 3436.401493 | AK145: 3451.010664 | AL145: 3465.619834 | AM145: 3480.229004 | AN145: 3494.838174 | AO145: 3509.447345 | AP145: 3524.056515 | AQ145: 3538.665685
K146: Class 8 - Moderate | L146: 2724.67536 | M146: 2752.511455 | N146: 2780.347549 | O146: 2808.183644 | P146: 2836.019738 | Q146: 2863.855833 | R146: 2891.691927 | S146: 2919.528022 | T146: 2947.364116 | U146: 2975.200211 | V146: 3003.036305 | W146: 3030.8724 | X146: 3037.691863 | Y146: 3044.511326 | Z146: 3051.330789 | AA146: 3058.150252 | AB146: 3064.969715 | AC146: 3071.789177 | AD146: 3078.60864 | AE146: 3085.428103 | AF146: 3092.247566 | AG146: 3099.067029 | AH146: 3105.886492 | AI146: 3112.705955 | AJ146: 3119.525418 | AK146: 3126.344881 | AL146: 3133.164344 | AM146: 3139.983806 | AN146: 3146.803269 | AO146: 3153.622732 | AP146: 3160.442195 | AQ146: 3167.261658
K147: Class 8 - Conservative | L147: 2724.67536 | M147: 2733.411469 | N147: 2742.147578 | O147: 2750.883687 | P147: 2759.619796 | Q147: 2768.355905 | R147: 2777.092015 | S147: 2785.828124 | T147: 2794.564233 | U147: 2803.300342 | V147: 2812.036451 | W147: 2820.77256 | X147: 2823.945929 | Y147: 2827.119298 | Z147: 2830.292667 | AA147: 2833.466037 | AB147: 2836.639406 | AC147: 2839.812775 | AD147: 2842.986144 | AE147: 2846.159513 | AF147: 2849.332882 | AG147: 2852.506251 | AH147: 2855.67962 | AI147: 2858.85299 | AJ147: 2862.026359 | AK147: 2865.199728 | AL147: 2868.373097 | AM147: 2871.546466 | AN147: 2874.719835 | AO147: 2877.893204 | AP147: 2881.066573 | AQ147: =(AQ115)*8760 -> 2884.239943
K148: Class 9 - Advanced | L148: =(L116)*8760 -> 2328.04884 | M148: 2371.664084 | N148: 2415.279327 | O148: 2458.894571 | P148: 2502.509815 | Q148: 2546.125058 | R148: 2589.740302 | S148: 2633.355545 | T148: 2676.970789 | U148: 2720.586033 | V148: 2764.201276 | W148: 2807.81652 | X148: 2821.855603 | Y148: 2835.894685 | Z148: 2849.933768 | AA148: 2863.97285 | AB148: 2878.011933 | AC148: 2892.051016 | AD148: 2906.090098 | AE148: 2920.129181 | AF148: 2934.168263 | AG148: 2948.207346 | AH148: 2962.246429 | AI148: 2976.285511 | AJ148: 2990.324594 | AK148: 3004.363676 | AL148: 3018.402759 | AM148: 3032.441842 | AN148: 3046.480924 | AO148: 3060.520007 | AP148: 3074.559089 | AQ148: 3088.598172
K149: Class 9 - Moderate | L149: 2328.04884 | M149: 2353.377185 | N149: 2378.705531 | O149: 2404.033876 | P149: 2429.362222 | Q149: 2454.690567 | R149: 2480.018913 | S149: 2505.347258 | T149: 2530.675604 | U149: 2556.003949 | V149: 2581.332295 | W149: 2606.66064 | X149: 2613.177292 | Y149: 2619.693943 | Z149: 2626.210595 | AA149: 2632.727246 | AB149: 2639.243898 | AC149: 2645.76055 | AD149: 2652.277201 | AE149: 2658.793853 | AF149: 2665.310504 | AG149: 2671.827156 | AH149: 2678.343808 | AI149: 2684.860459 | AJ149: 2691.377111 | AK149: 2697.893762 | AL149: 2704.410414 | AM149: 2710.927066 | AN149: 2717.443717 | AO149: 2723.960369 | AP149: 2730.47702 | AQ149: 2736.993672
K150: Class 9 - Conservative | L150: 2328.04884 | M150: 2336.50224 | N150: 2344.95564 | O150: 2353.40904 | P150: 2361.86244 | Q150: 2370.31584 | R150: 2378.76924 | S150: 2387.22264 | T150: 2395.67604 | U150: 2404.12944 | V150: 2412.58284 | W150: 2421.03624 | X150: 2424.062535 | Y150: 2427.088831 | Z150: 2430.115126 | AA150: 2433.141421 | AB150: 2436.167717 | AC150: 2439.194012 | AD150: 2442.220307 | AE150: 2445.246602 | AF150: 2448.272898 | AG150: 2451.299193 | AH150: 2454.325488 | AI150: 2457.351784 | AJ150: 2460.378079 | AK150: 2463.404374 | AL150: 2466.43067 | AM150: 2469.456965 | AN150: 2472.48326 | AO150: 2475.509555 | AP150: 2478.535851 | AQ150: 2481.562146
K151: Class 10 - Advanced | L151: 1444.00716 | M151: 1476.202549 | N151: 1508.397938 | O151: 1540.593327 | P151: 1572.788716 | Q151: 1604.984105 | R151: 1637.179495 | S151: 1669.374884 | T151: 1701.570273 | U151: 1733.765662 | V151: 1765.961051 | W151: 1798.15644 | X151: 1808.0463 | Y151: 1817.936161 | Z151: 1827.826021 | AA151: 1837.715882 | AB151: 1847.605742 | AC151: 1857.495603 | AD151: 1867.385463 | AE151: 1877.275323 | AF151: 1887.165184 | AG151: 1897.055044 | AH151: 1906.944905 | AI151: 1916.834765 | AJ151: 1926.724625 | AK151: 1936.614486 | AL151: 1946.504346 | AM151: 1956.394207 | AN151: 1966.284067 | AO151: 1976.173928 | AP151: 1986.063788 | AQ151: 1995.953648
K152: Class 10 - Moderate | L152: 1444.00716 | M152: 1462.332284 | N152: 1480.657407 | O152: 1498.982531 | P152: 1517.307655 | Q152: 1535.632778 | R152: 1553.957902 | S152: 1572.283025 | T152: 1590.608149 | U152: 1608.933273 | V152: 1627.258396 | W152: 1645.58352 | X152: 1650.108875 | Y152: 1654.634229 | Z152: 1659.159584 | AA152: 1663.684939 | AB152: 1668.210293 | AC152: 1672.735648 | AD152: 1677.261003 | AE152: 1681.786357 | AF152: 1686.311712 | AG152: 1690.837067 | AH152: 1695.362421 | AI152: 1699.887776 | AJ152: 1704.413131 | AK152: 1708.938486 | AL152: 1713.46384 | AM152: 1717.989195 | AN152: 1722.51455 | AO152: 1727.039904 | AP152: 1731.565259 | AQ152: 1736.090614
K153: Class 10 - Conservative | L153: 1444.00716 | M153: 1450.921985 | N153: 1457.836811 | O153: 1464.751636 | P153: 1471.666462 | Q153: 1478.581287 | R153: 1485.496113 | S153: 1492.410938 | T153: 1499.325764 | U153: 1506.240589 | V153: 1513.155415 | W153: 1520.07024 | X153: 1522.160337 | Y153: 1524.250433 | Z153: 1526.34053 | AA153: 1528.430626 | AB153: 1530.520723 | AC153: 1532.610819 | AD153: 1534.700916 | AE153: 1536.791013 | AF153: 1538.881109 | AG153: 1540.971206 | AH153: 1543.061302 | AI153: 1545.151399 | AJ153: 1547.241496 | AK153: 1549.331592 | AL153: 1551.421689 | AM153: 1553.511785 | AN153: 1555.601882 | AO153: 1557.691978 | AP153: 1559.782075 | AQ153: 1561.872172
L155: 2019 | M155: 2020 | N155: 2021 | O155: 2022 | P155: 2023 | Q155: 2024 | R155: 2025 | S155: 2026 | T155: 2027 | U155: 2028 | V155: 2029 | W155: 2030 | X155: 2031 | Y155: 2032 | Z155: 2033 | AA155: 2034 | AB155: 2035 | AC155: 2036 | AD155: 2037 | AE155: 2038 | AF155: 2039 | AG155: 2040 | AH155: 2041 | AI155: 2042 | AJ155: 2043 | AK155: 2044 | AL155: 2045 | AM155: 2046 | AN155: 2047 | AO155: 2048 | AP155: 2049 | AQ155: 2050
J156: CAPEX ($/kW) | K156: Class 1 - Advanced | L156: =$N$41*(L220 + L317) -> 1436 | M156: 1369.090909 | N156: 1302.181818 | O156: 1235.272727 | P156: 1168.363636 | Q156: 1101.454545 | R156: 1034.545455 | S156: 967.6363636 | T156: 900.7272727 | U156: 833.8181818 | V156: 766.9090909 | W156: 700 | X156: 691.25 | Y156: 682.5 | Z156: 673.75 | AA156: 665 | AB156: 656.25 | AC156: 647.5 | AD156: 638.75 | AE156: 630 | AF156: 621.25 | AG156: 612.5 | AH156: 603.75 | AI156: 595 | AJ156: 586.25 | AK156: 577.5 | AL156: 568.75 | AM156: 560 | AN156: 551.25 | AO156: 542.5 | AP156: 533.75 | AQ156: 525
K157: Class 1 - Moderate | L157: 1436 | M157: 1391.818182 | N157: 1347.636364 | O157: 1303.454545 | P157: 1259.272727 | Q157: 1215.090909 | R157: 1170.909091 | S157: 1126.727273 | T157: 1082.545455 | U157: 1038.363636 | V157: 994.1818182 | W157: 950 | X157: 940.5 | Y157: 931 | Z157: 921.5 | AA157: 912 | AB157: 902.5 | AC157: 893 | AD157: 883.5 | AE157: 874 | AF157: 864.5 | AG157: 855 | AH157: 845.5 | AI157: 836 | AJ157: 826.5 | AK157: 817 | AL157: 807.5 | AM157: 798 | AN157: 788.5 | AO157: 779 | AP157: 769.5 | AQ157: 760
K158: Class 1 - Conservative | L158: 1436 | M158: 1396.363636 | N158: 1356.727273 | O158: 1317.090909 | P158: 1277.454545 | Q158: 1237.818182 | R158: 1198.181818 | S158: 1158.545455 | T158: 1118.909091 | U158: 1079.272727 | V158: 1039.636364 | W158: 1000 | X158: 995 | Y158: 990 | Z158: 985 | AA158: 980 | AB158: 975 | AC158: 970 | AD158: 965 | AE158: 960 | AF158: 955 | AG158: 950 | AH158: 945 | AI158: 940 | AJ158: 935 | AK158: 930 | AL158: 925 | AM158: 920 | AN158: 915 | AO158: 910 | AP158: 905 | AQ158: 900
K159: Class 2 - Advanced | L159: 1436 | M159: 1369.090909 | N159: 1302.181818 | O159: 1235.272727 | P159: 1168.363636 | Q159: 1101.454545 | R159: 1034.545455 | S159: 967.6363636 | T159: 900.7272727 | U159: 833.8181818 | V159: 766.9090909 | W159: 700 | X159: 691.25 | Y159: 682.5 | Z159: 673.75 | AA159: 665 | AB159: 656.25 | AC159: 647.5 | AD159: 638.75 | AE159: 630 | AF159: 621.25 | AG159: 612.5 | AH159: 603.75 | AI159: 595 | AJ159: 586.25 | AK159: 577.5 | AL159: 568.75 | AM159: 560 | AN159: 551.25 | AO159: 542.5 | AP159: 533.75 | AQ159: 525
K160: Class 2 - Moderate | L160: 1436 | M160: 1391.818182 | N160: 1347.636364 | O160: 1303.454545 | P160: 1259.272727 | Q160: 1215.090909 | R160: 1170.909091 | S160: 1126.727273 | T160: 1082.545455 | U160: 1038.363636 | V160: 994.1818182 | W160: 950 | X160: 940.5 | Y160: 931 | Z160: 921.5 | AA160: 912 | AB160: 902.5 | AC160: 893 | AD160: 883.5 | AE160: 874 | AF160: 864.5 | AG160: 855 | AH160: 845.5 | AI160: 836 | AJ160: 826.5 | AK160: 817 | AL160: 807.5 | AM160: 798 | AN160: 788.5 | AO160: 779 | AP160: 769.5 | AQ160: 760
K161: Class 2 - Conservative | L161: 1436 | M161: 1396.363636 | N161: 1356.727273 | O161: 1317.090909 | P161: 1277.454545 | Q161: 1237.818182 | R161: 1198.181818 | S161: 1158.545455 | T161: 1118.909091 | U161: 1079.272727 | V161: 1039.636364 | W161: 1000 | X161: 995 | Y161: 990 | Z161: 985 | AA161: 980 | AB161: 975 | AC161: 970 | AD161: 965 | AE161: 960 | AF161: 955 | AG161: 950 | AH161: 945 | AI161: 940 | AJ161: 935 | AK161: 930 | AL161: 925 | AM161: 920 | AN161: 915 | AO161: 910 | AP161: 905 | AQ161: 900
K162: Class 3 - Advanced | L162: 1436 | M162: 1369.090909 | N162: 1302.181818 | O162: 1235.272727 | P162: 1168.363636 | Q162: 1101.454545 | R162: 1034.545455 | S162: 967.6363636 | T162: 900.7272727 | U162: 833.8181818 | V162: 766.9090909 | W162: 700 | X162: 691.25 | Y162: 682.5 | Z162: 673.75 | AA162: 665 | AB162: 656.25 | AC162: 647.5 | AD162: 638.75 | AE162: 630 | AF162: 621.25 | AG162: 612.5 | AH162: 603.75 | AI162: 595 | AJ162: 586.25 | AK162: 577.5 | AL162: 568.75 | AM162: 560 | AN162: 551.25 | AO162: 542.5 | AP162: 533.75 | AQ162: 525
K163: Class 3 - Moderate | L163: 1436 | M163: 1391.818182 | N163: 1347.636364 | O163: 1303.454545 | P163: 1259.272727 | Q163: 1215.090909 | R163: 1170.909091 | S163: 1126.727273 | T163: 1082.545455 | U163: 1038.363636 | V163: 994.1818182 | W163: 950 | X163: 940.5 | Y163: 931 | Z163: 921.5 | AA163: 912 | AB163: 902.5 | AC163: 893 | AD163: 883.5 | AE163: 874 | AF163: 864.5 | AG163: 855 | AH163: 845.5 | AI163: 836 | AJ163: 826.5 | AK163: 817 | AL163: 807.5 | AM163: 798 | AN163: 788.5 | AO163: 779 | AP163: 769.5 | AQ163: =$N$41*(AQ227 + AQ324) -> 760
K164: Class 3 - Conservative | L164: =$N$41*(L228 + L325) -> 1436 | M164: 1396.363636 | N164: 1356.727273 | O164: 1317.090909 | P164: 1277.454545 | Q164: 1237.818182 | R164: 1198.181818 | S164: 1158.545455 | T164: 1118.909091 | U164: 1079.272727 | V164: 1039.636364 | W164: 1000 | X164: 995 | Y164: 990 | Z164: 985 | AA164: 980 | AB164: 975 | AC164: 970 | AD164: 965 | AE164: 960 | AF164: 955 | AG164: 950 | AH164: 945 | AI164: 940 | AJ164: 935 | AK164: 930 | AL164: 925 | AM164: 920 | AN164: 915 | AO164: 910 | AP164: 905 | AQ164: 900
K165: Class 4 - Advanced | L165: 1436 | M165: 1369.090909 | N165: 1302.181818 | O165: 1235.272727 | P165: 1168.363636 | Q165: 1101.454545 | R165: 1034.545455 | S165: 967.6363636 | T165: 900.7272727 | U165: 833.8181818 | V165: 766.9090909 | W165: 700 | X165: 691.25 | Y165: 682.5 | Z165: 673.75 | AA165: 665 | AB165: 656.25 | AC165: 647.5 | AD165: 638.75 | AE165: 630 | AF165: 621.25 | AG165: 612.5 | AH165: 603.75 | AI165: 595 | AJ165: 586.25 | AK165: 577.5 | AL165: 568.75 | AM165: 560 | AN165: 551.25 | AO165: 542.5 | AP165: 533.75 | AQ165: 525
K166: Class 4 - Moderate | L166: 1436 | M166: 1391.818182 | N166: 1347.636364 | O166: 1303.454545 | P166: 1259.272727 | Q166: 1215.090909 | R166: 1170.909091 | S166: 1126.727273 | T166: 1082.545455 | U166: 1038.363636 | V166: 994.1818182 | W166: 950 | X166: 940.5 | Y166: 931 | Z166: 921.5 | AA166: 912 | AB166: 902.5 | AC166: 893 | AD166: 883.5 | AE166: 874 | AF166: 864.5 | AG166: 855 | AH166: 845.5 | AI166: 836 | AJ166: 826.5 | AK166: 817 | AL166: 807.5 | AM166: 798 | AN166: 788.5 | AO166: 779 | AP166: 769.5 | AQ166: 760
K167: Class 4 - Conservative | L167: 1436 | M167: 1396.363636 | N167: 1356.727273 | O167: 1317.090909 | P167: 1277.454545 | Q167: 1237.818182 | R167: 1198.181818 | S167: 1158.545455 | T167: 1118.909091 | U167: 1079.272727 | V167: 1039.636364 | W167: 1000 | X167: 995 | Y167: 990 | Z167: 985 | AA167: 980 | AB167: 975 | AC167: 970 | AD167: 965 | AE167: 960 | AF167: 955 | AG167: 950 | AH167: 945 | AI167: 940 | AJ167: 935 | AK167: 930 | AL167: 925 | AM167: 920 | AN167: 915 | AO167: 910 | AP167: 905 | AQ167: 900
K168: Class 5 - Advanced | L168: 1436 | M168: 1369.090909 | N168: 1302.181818 | O168: 1235.272727 | P168: 1168.363636 | Q168: 1101.454545 | R168: 1034.545455 | S168: 967.6363636 | T168: 900.7272727 | U168: 833.8181818 | V168: 766.9090909 | W168: 700 | X168: 691.25 | Y168: 682.5 | Z168: 673.75 | AA168: 665 | AB168: 656.25 | AC168: 647.5 | AD168: 638.75 | AE168: 630 | AF168: 621.25 | AG168: 612.5 | AH168: 603.75 | AI168: 595 | AJ168: 586.25 | AK168: 577.5 | AL168: 568.75 | AM168: 560 | AN168: 551.25 | AO168: 542.5 | AP168: 533.75 | AQ168: 525
K169: Class 5 - Moderate | L169: 1436 | M169: 1391.818182 | N169: 1347.636364 | O169: 1303.454545 | P169: 1259.272727 | Q169: 1215.090909 | R169: 1170.909091 | S169: 1126.727273 | T169: 1082.545455 | U169: 1038.363636 | V169: 994.1818182 | W169: 950 | X169: 940.5 | Y169: 931 | Z169: 921.5 | AA169: 912 | AB169: 902.5 | AC169: 893 | AD169: 883.5 | AE169: 874 | AF169: 864.5 | AG169: 855 | AH169: 845.5 | AI169: 836 | AJ169: 826.5 | AK169: 817 | AL169: 807.5 | AM169: 798 | AN169: 788.5 | AO169: 779 | AP169: 769.5 | AQ169: 760
K170: Class 5 - Conservative | L170: 1436 | M170: 1396.363636 | N170: 1356.727273 | O170: 1317.090909 | P170: 1277.454545 | Q170: 1237.818182 | R170: 1198.181818 | S170: 1158.545455 | T170: 1118.909091 | U170: 1079.272727 | V170: 1039.636364 | W170: 1000 | X170: 995 | Y170: 990 | Z170: 985 | AA170: 980 | AB170: 975 | AC170: 970 | AD170: 965 | AE170: 960 | AF170: 955 | AG170: 950 | AH170: 945 | AI170: 940 | AJ170: 935 | AK170: 930 | AL170: 925 | AM170: 920 | AN170: 915 | AO170: 910 | AP170: 905 | AQ170: 900
K171: Class 6 - Advanced | L171: 1436 | M171: 1369.090909 | N171: 1302.181818 | O171: 1235.272727 | P171: 1168.363636 | Q171: 1101.454545 | R171: 1034.545455 | S171: 967.6363636 | T171: 900.7272727 | U171: 833.8181818 | V171: 766.9090909 | W171: 700 | X171: 691.25 | Y171: 682.5 | Z171: 673.75 | AA171: 665 | AB171: 656.25 | AC171: 647.5 | AD171: 638.75 | AE171: 630 | AF171: 621.25 | AG171: 612.5 | AH171: 603.75 | AI171: 595 | AJ171: 586.25 | AK171: 577.5 | AL171: 568.75 | AM171: 560 | AN171: 551.25 | AO171: 542.5 | AP171: 533.75 | AQ171: =$N$41*(AQ235 + AQ332) -> 525
K172: Class 6 - Moderate | L172: =$N$41*(L236 + L333) -> 1436 | M172: 1391.818182 | N172: 1347.636364 | O172: 1303.454545 | P172: 1259.272727 | Q172: 1215.090909 | R172: 1170.909091 | S172: 1126.727273 | T172: 1082.545455 | U172: 1038.363636 | V172: 994.1818182 | W172: 950 | X172: 940.5 | Y172: 931 | Z172: 921.5 | AA172: 912 | AB172: 902.5 | AC172: 893 | AD172: 883.5 | AE172: 874 | AF172: 864.5 | AG172: 855 | AH172: 845.5 | AI172: 836 | AJ172: 826.5 | AK172: 817 | AL172: 807.5 | AM172: 798 | AN172: 788.5 | AO172: 779 | AP172: 769.5 | AQ172: 760
K173: Class 6 - Conservative | L173: 1436 | M173: 1396.363636 | N173: 1356.727273 | O173: 1317.090909 | P173: 1277.454545 | Q173: 1237.818182 | R173: 1198.181818 | S173: 1158.545455 | T173: 1118.909091 | U173: 1079.272727 | V173: 1039.636364 | W173: 1000 | X173: 995 | Y173: 990 | Z173: 985 | AA173: 980 | AB173: 975 | AC173: 970 | AD173: 965 | AE173: 960 | AF173: 955 | AG173: 950 | AH173: 945 | AI173: 940 | AJ173: 935 | AK173: 930 | AL173: 925 | AM173: 920 | AN173: 915 | AO173: 910 | AP173: 905 | AQ173: 900
K174: Class 7 - Advanced | L174: 1436 | M174: 1369.090909 | N174: 1302.181818 | O174: 1235.272727 | P174: 1168.363636 | Q174: 1101.454545 | R174: 1034.545455 | S174: 967.6363636 | T174: 900.7272727 | U174: 833.8181818 | V174: 766.9090909 | W174: 700 | X174: 691.25 | Y174: 682.5 | Z174: 673.75 | AA174: 665 | AB174: 656.25 | AC174: 647.5 | AD174: 638.75 | AE174: 630 | AF174: 621.25 | AG174: 612.5 | AH174: 603.75 | AI174: 595 | AJ174: 586.25 | AK174: 577.5 | AL174: 568.75 | AM174: 560 | AN174: 551.25 | AO174: 542.5 | AP174: 533.75 | AQ174: 525
K175: Class 7 - Moderate | L175: 1436 | M175: 1391.818182 | N175: 1347.636364 | O175: 1303.454545 | P175: 1259.272727 | Q175: 1215.090909 | R175: 1170.909091 | S175: 1126.727273 | T175: 1082.545455 | U175: 1038.363636 | V175: 994.1818182 | W175: 950 | X175: 940.5 | Y175: 931 | Z175: 921.5 | AA175: 912 | AB175: 902.5 | AC175: 893 | AD175: 883.5 | AE175: 874 | AF175: 864.5 | AG175: 855 | AH175: 845.5 | AI175: 836 | AJ175: 826.5 | AK175: 817 | AL175: 807.5 | AM175: 798 | AN175: 788.5 | AO175: 779 | AP175: 769.5 | AQ175: 760
K176: Class 7 - Conservative | L176: 1436 | M176: 1396.363636 | N176: 1356.727273 | O176: 1317.090909 | P176: 1277.454545 | Q176: 1237.818182 | R176: 1198.181818 | S176: 1158.545455 | T176: 1118.909091 | U176: 1079.272727 | V176: 1039.636364 | W176: 1000 | X176: 995 | Y176: 990 | Z176: 985 | AA176: 980 | AB176: 975 | AC176: 970 | AD176: 965 | AE176: 960 | AF176: 955 | AG176: 950 | AH176: 945 | AI176: 940 | AJ176: 935 | AK176: 930 | AL176: 925 | AM176: 920 | AN176: 915 | AO176: 910 | AP176: 905 | AQ176: 900
K177: Class 8 - Advanced | L177: 1436 | M177: 1369.090909 | N177: 1302.181818 | O177: 1235.272727 | P177: 1168.363636 | Q177: 1101.454545 | R177: 1034.545455 | S177: 967.6363636 | T177: 900.7272727 | U177: 833.8181818 | V177: 766.9090909 | W177: 700 | X177: 691.25 | Y177: 682.5 | Z177: 673.75 | AA177: 665 | AB177: 656.25 | AC177: 647.5 | AD177: 638.75 | AE177: 630 | AF177: 621.25 | AG177: 612.5 | AH177: 603.75 | AI177: 595 | AJ177: 586.25 | AK177: 577.5 | AL177: 568.75 | AM177: 560 | AN177: 551.25 | AO177: 542.5 | AP177: 533.75 | AQ177: 525
K178: Class 8 - Moderate | L178: 1436 | M178: 1391.818182 | N178: 1347.636364 | O178: 1303.454545 | P178: 1259.272727 | Q178: 1215.090909 | R178: 1170.909091 | S178: 1126.727273 | T178: 1082.545455 | U178: 1038.363636 | V178: 994.1818182 | W178: 950 | X178: 940.5 | Y178: 931 | Z178: 921.5 | AA178: 912 | AB178: 902.5 | AC178: 893 | AD178: 883.5 | AE178: 874 | AF178: 864.5 | AG178: 855 | AH178: 845.5 | AI178: 836 | AJ178: 826.5 | AK178: 817 | AL178: 807.5 | AM178: 798 | AN178: 788.5 | AO178: 779 | AP178: 769.5 | AQ178: 760
K179: Class 8 - Conservative | L179: 1436 | M179: 1396.363636 | N179: 1356.727273 | O179: 1317.090909 | P179: 1277.454545 | Q179: 1237.818182 | R179: 1198.181818 | S179: 1158.545455 | T179: 1118.909091 | U179: 1079.272727 | V179: 1039.636364 | W179: 1000 | X179: 995 | Y179: 990 | Z179: 985 | AA179: 980 | AB179: 975 | AC179: 970 | AD179: 965 | AE179: 960 | AF179: 955 | AG179: 950 | AH179: 945 | AI179: 940 | AJ179: 935 | AK179: 930 | AL179: 925 | AM179: 920 | AN179: 915 | AO179: 910 | AP179: 905 | AQ179: =$N$41*(AQ243 + AQ340) -> 900
K180: Class 9 - Advanced | L180: =$N$41*(L244 + L341) -> 1436 | M180: 1369.090909 | N180: 1302.181818 | O180: 1235.272727 | P180: 1168.363636 | Q180: 1101.454545 | R180: 1034.545455 | S180: 967.6363636 | T180: 900.7272727 | U180: 833.8181818 | V180: 766.9090909 | W180: 700 | X180: 691.25 | Y180: 682.5 | Z180: 673.75 | AA180: 665 | AB180: 656.25 | AC180: 647.5 | AD180: 638.75 | AE180: 630 | AF180: 621.25 | AG180: 612.5 | AH180: 603.75 | AI180: 595 | AJ180: 586.25 | AK180: 577.5 | AL180: 568.75 | AM180: 560 | AN180: 551.25 | AO180: 542.5 | AP180: 533.75 | AQ180: 525
K181: Class 9 - Moderate | L181: 1436 | M181: 1391.818182 | N181: 1347.636364 | O181: 1303.454545 | P181: 1259.272727 | Q181: 1215.090909 | R181: 1170.909091 | S181: 1126.727273 | T181: 1082.545455 | U181: 1038.363636 | V181: 994.1818182 | W181: 950 | X181: 940.5 | Y181: 931 | Z181: 921.5 | AA181: 912 | AB181: 902.5 | AC181: 893 | AD181: 883.5 | AE181: 874 | AF181: 864.5 | AG181: 855 | AH181: 845.5 | AI181: 836 | AJ181: 826.5 | AK181: 817 | AL181: 807.5 | AM181: 798 | AN181: 788.5 | AO181: 779 | AP181: 769.5 | AQ181: 760
K182: Class 9 - Conservative | L182: 1436 | M182: 1396.363636 | N182: 1356.727273 | O182: 1317.090909 | P182: 1277.454545 | Q182: 1237.818182 | R182: 1198.181818 | S182: 1158.545455 | T182: 1118.909091 | U182: 1079.272727 | V182: 1039.636364 | W182: 1000 | X182: 995 | Y182: 990 | Z182: 985 | AA182: 980 | AB182: 975 | AC182: 970 | AD182: 965 | AE182: 960 | AF182: 955 | AG182: 950 | AH182: 945 | AI182: 940 | AJ182: 935 | AK182: 930 | AL182: 925 | AM182: 920 | AN182: 915 | AO182: 910 | AP182: 905 | AQ182: 900
K183: Class 10 - Advanced | L183: 1436 | M183: 1369.090909 | N183: 1302.181818 | O183: 1235.272727 | P183: 1168.363636 | Q183: 1101.454545 | R183: 1034.545455 | S183: 967.6363636 | T183: 900.7272727 | U183: 833.8181818 | V183: 766.9090909 | W183: 700 | X183: 691.25 | Y183: 682.5 | Z183: 673.75 | AA183: 665 | AB183: 656.25 | AC183: 647.5 | AD183: 638.75 | AE183: 630 | AF183: 621.25 | AG183: 612.5 | AH183: 603.75 | AI183: 595 | AJ183: 586.25 | AK183: 577.5 | AL183: 568.75 | AM183: 560 | AN183: 551.25 | AO183: 542.5 | AP183: 533.75 | AQ183: 525
K184: Class 10 - Moderate | L184: 1436 | M184: 1391.818182 | N184: 1347.636364 | O184: 1303.454545 | P184: 1259.272727 | Q184: 1215.090909 | R184: 1170.909091 | S184: 1126.727273 | T184: 1082.545455 | U184: 1038.363636 | V184: 994.1818182 | W184: 950 | X184: 940.5 | Y184: 931 | Z184: 921.5 | AA184: 912 | AB184: 902.5 | AC184: 893 | AD184: 883.5 | AE184: 874 | AF184: 864.5 | AG184: 855 | AH184: 845.5 | AI184: 836 | AJ184: 826.5 | AK184: 817 | AL184: 807.5 | AM184: 798 | AN184: 788.5 | AO184: 779 | AP184: 769.5 | AQ184: 760
K185: Class 10 - Conservative | L185: 1436 | M185: 1396.363636 | N185: 1356.727273 | O185: 1317.090909 | P185: 1277.454545 | Q185: 1237.818182 | R185: 1198.181818 | S185: 1158.545455 | T185: 1118.909091 | U185: 1079.272727 | V185: 1039.636364 | W185: 1000 | X185: 995 | Y185: 990 | Z185: 985 | AA185: 980 | AB185: 975 | AC185: 970 | AD185: 965 | AE185: 960 | AF185: 955 | AG185: 950 | AH185: 945 | AI185: 940 | AJ185: 935 | AK185: 930 | AL185: 925 | AM185: 920 | AN185: 915 | AO185: 910 | AP185: 905 | AQ185: 900
L187: 2019 | M187: 2020 | N187: 2021 | O187: 2022 | P187: 2023 | Q187: 2024 | R187: 2025 | S187: 2026 | T187: 2027 | U187: 2028 | V187: 2029 | W187: 2030 | X187: 2031 | Y187: 2032 | Z187: 2033 | AA187: 2034 | AB187: 2035 | AC187: 2036 | AD187: 2037 | AE187: 2038 | AF187: 2039 | AG187: 2040 | AH187: 2041 | AI187: 2042 | AJ187: 2043 | AK187: 2044 | AL187: 2045 | AM187: 2046 | AN187: 2047 | AO187: 2048 | AP187: 2049 | AQ187: 2050
J188: Construction Financing Cost ($/kW) | K188: Class 1 - Advanced | L188: =(L220+L317)*($N$41-1) -> 60.1063857 | M188: =(M220+M317)*($N$41-1) -> 57.30578429 | N188: 54.50518288 | O188: 51.70458147 | P188: 48.90398006 | Q188: 46.10337865 | R188: 43.30277724 | S188: 40.50217583 | T188: 37.70157442 | U188: 34.90097301 | V188: 32.1003716 | W188: 29.29977019 | X188: 28.93352306 | Y188: 28.56727594 | Z188: 28.20102881 | AA188: 27.83478168 | AB188: 27.46853455 | AC188: 27.10228743 | AD188: 26.7360403 | AE188: 26.36979317 | AF188: 26.00354604 | AG188: 25.63729892 | AH188: 25.27105179 | AI188: 24.90480466 | AJ188: 24.53855753 | AK188: 24.17231041 | AL188: 23.80606328 | AM188: 23.43981615 | AN188: 23.07356902 | AO188: 22.7073219 | AP188: 22.34107477 | AQ188: 21.97482764
K189: Class 1 - Moderate | L189: =(L221+L318)*($N$41-1) -> 60.1063857 | M189: 58.25707553 | N189: 56.40776536 | O189: 54.55845519 | P189: 52.70914502 | Q189: 50.85983485 | R189: 49.01052468 | S189: 47.16121451 | T189: 45.31190434 | U189: 43.46259417 | V189: 41.613284 | W189: 39.76397383 | X189: 39.36633409 | Y189: 38.96869435 | Z189: 38.57105461 | AA189: 38.17341488 | AB189: 37.77577514 | AC189: 37.3781354 | AD189: 36.98049566 | AE189: 36.58285592 | AF189: 36.18521618 | AG189: 35.78757645 | AH189: 35.38993671 | AI189: 34.99229697 | AJ189: 34.59465723 | AK189: 34.19701749 | AL189: 33.79937775 | AM189: 33.40173802 | AN189: 33.00409828 | AO189: 32.60645854 | AP189: 32.2088188 | AQ189: 31.81117906
K190: Class 1 - Conservative | L190: 60.1063857 | M190: 58.44733378 | N190: 56.78828186 | O190: 55.12922994 | P190: 53.47017801 | Q190: 51.81112609 | R190: 50.15207417 | S190: 48.49302225 | T190: 46.83397032 | U190: 45.1749184 | V190: 43.51586648 | W190: 41.85681456 | X190: 41.64753048 | Y190: 41.43824641 | Z190: 41.22896234 | AA190: 41.01967827 | AB190: 40.81039419 | AC190: 40.60111012 | AD190: 40.39182605 | AE190: 40.18254197 | AF190: 39.9732579 | AG190: 39.76397383 | AH190: 39.55468976 | AI190: 39.34540568 | AJ190: 39.13612161 | AK190: 38.92683754 | AL190: 38.71755347 | AM190: 38.50826939 | AN190: 38.29898532 | AO190: 38.08970125 | AP190: 37.88041717 | AQ190: 37.6711331
K191: Class 2 - Advanced | L191: 60.1063857 | M191: 57.30578429 | N191: 54.50518288 | O191: 51.70458147 | P191: 48.90398006 | Q191: 46.10337865 | R191: 43.30277724 | S191: 40.50217583 | T191: 37.70157442 | U191: 34.90097301 | V191: 32.1003716 | W191: 29.29977019 | X191: 28.93352306 | Y191: 28.56727594 | Z191: 28.20102881 | AA191: 27.83478168 | AB191: 27.46853455 | AC191: 27.10228743 | AD191: 26.7360403 | AE191: 26.36979317 | AF191: 26.00354604 | AG191: 25.63729892 | AH191: 25.27105179 | AI191: 24.90480466 | AJ191: 24.53855753 | AK191: 24.17231041 | AL191: 23.80606328 | AM191: 23.43981615 | AN191: 23.07356902 | AO191: 22.7073219 | AP191: 22.34107477 | AQ191: 21.97482764
K192: Class 2 - Moderate | L192: 60.1063857 | M192: 58.25707553 | N192: 56.40776536 | O192: 54.55845519 | P192: 52.70914502 | Q192: 50.85983485 | R192: 49.01052468 | S192: 47.16121451 | T192: 45.31190434 | U192: 43.46259417 | V192: 41.613284 | W192: 39.76397383 | X192: 39.36633409 | Y192: 38.96869435 | Z192: 38.57105461 | AA192: 38.17341488 | AB192: 37.77577514 | AC192: 37.3781354 | AD192: 36.98049566 | AE192: 36.58285592 | AF192: 36.18521618 | AG192: 35.78757645 | AH192: 35.38993671 | AI192: 34.99229697 | AJ192: 34.59465723 | AK192: 34.19701749 | AL192: 33.79937775 | AM192: 33.40173802 | AN192: 33.00409828 | AO192: 32.60645854 | AP192: 32.2088188 | AQ192: 31.81117906
K193: Class 2 - Conservative | L193: 60.1063857 | M193: 58.44733378 | N193: 56.78828186 | O193: 55.12922994 | P193: 53.47017801 | Q193: 51.81112609 | R193: 50.15207417 | S193: 48.49302225 | T193: 46.83397032 | U193: 45.1749184 | V193: 43.51586648 | W193: 41.85681456 | X193: 41.64753048 | Y193: 41.43824641 | Z193: 41.22896234 | AA193: 41.01967827 | AB193: 40.81039419 | AC193: 40.60111012 | AD193: 40.39182605 | AE193: 40.18254197 | AF193: 39.9732579 | AG193: 39.76397383 | AH193: 39.55468976 | AI193: 39.34540568 | AJ193: 39.13612161 | AK193: 38.92683754 | AL193: 38.71755347 | AM193: 38.50826939 | AN193: 38.29898532 | AO193: 38.08970125 | AP193: 37.88041717 | AQ193: 37.6711331
K194: Class 3 - Advanced | L194: 60.1063857 | M194: 57.30578429 | N194: 54.50518288 | O194: 51.70458147 | P194: 48.90398006 | Q194: 46.10337865 | R194: 43.30277724 | S194: 40.50217583 | T194: 37.70157442 | U194: 34.90097301 | V194: 32.1003716 | W194: 29.29977019 | X194: 28.93352306 | Y194: 28.56727594 | Z194: 28.20102881 | AA194: 27.83478168 | AB194: 27.46853455 | AC194: 27.10228743 | AD194: 26.7360403 | AE194: 26.36979317 | AF194: 26.00354604 | AG194: 25.63729892 | AH194: 25.27105179 | AI194: 24.90480466 | AJ194: 24.53855753 | AK194: 24.17231041 | AL194: 23.80606328 | AM194: 23.43981615 | AN194: 23.07356902 | AO194: 22.7073219 | AP194: 22.34107477 | AQ194: 21.97482764
K195: Class 3 - Moderate | L195: 60.1063857 | M195: 58.25707553 | N195: 56.40776536 | O195: 54.55845519 | P195: 52.70914502 | Q195: 50.85983485 | R195: 49.01052468 | S195: 47.16121451 | T195: 45.31190434 | U195: 43.46259417 | V195: 41.613284 | W195: 39.76397383 | X195: 39.36633409 | Y195: 38.96869435 | Z195: 38.57105461 | AA195: 38.17341488 | AB195: 37.77577514 | AC195: 37.3781354 | AD195: 36.98049566 | AE195: 36.58285592 | AF195: 36.18521618 | AG195: 35.78757645 | AH195: 35.38993671 | AI195: 34.99229697 | AJ195: 34.59465723 | AK195: 34.19701749 | AL195: 33.79937775 | AM195: 33.40173802 | AN195: 33.00409828 | AO195: 32.60645854 | AP195: 32.2088188 | AQ195: 31.81117906
K196: Class 3 - Conservative | L196: 60.1063857 | M196: 58.44733378 | N196: 56.78828186 | O196: 55.12922994 | P196: 53.47017801 | Q196: 51.81112609 | R196: 50.15207417 | S196: 48.49302225 | T196: 46.83397032 | U196: 45.1749184 | V196: 43.51586648 | W196: 41.85681456 | X196: 41.64753048 | Y196: 41.43824641 | Z196: 41.22896234 | AA196: 41.01967827 | AB196: 40.81039419 | AC196: 40.60111012 | AD196: 40.39182605 | AE196: 40.18254197 | AF196: 39.9732579 | AG196: 39.76397383 | AH196: 39.55468976 | AI196: 39.34540568 | AJ196: 39.13612161 | AK196: 38.92683754 | AL196: 38.71755347 | AM196: 38.50826939 | AN196: 38.29898532 | AO196: 38.08970125 | AP196: 37.88041717 | AQ196: =(AQ228+AQ325)*($N$41-1) -> 37.6711331
K197: Class 4 - Advanced | L197: =(L229+L326)*($N$41-1) -> 60.1063857 | M197: 57.30578429 | N197: 54.50518288 | O197: 51.70458147 | P197: 48.90398006 | Q197: 46.10337865 | R197: 43.30277724 | S197: 40.50217583 | T197: 37.70157442 | U197: 34.90097301 | V197: 32.1003716 | W197: 29.29977019 | X197: 28.93352306 | Y197: 28.56727594 | Z197: 28.20102881 | AA197: 27.83478168 | AB197: 27.46853455 | AC197: 27.10228743 | AD197: 26.7360403 | AE197: 26.36979317 | AF197: 26.00354604 | AG197: 25.63729892 | AH197: 25.27105179 | AI197: 24.90480466 | AJ197: 24.53855753 | AK197: 24.17231041 | AL197: 23.80606328 | AM197: 23.43981615 | AN197: 23.07356902 | AO197: 22.7073219 | AP197: 22.34107477 | AQ197: 21.97482764
K198: Class 4 - Moderate | L198: 60.1063857 | M198: 58.25707553 | N198: 56.40776536 | O198: 54.55845519 | P198: 52.70914502 | Q198: 50.85983485 | R198: 49.01052468 | S198: 47.16121451 | T198: 45.31190434 | U198: 43.46259417 | V198: 41.613284 | W198: 39.76397383 | X198: 39.36633409 | Y198: 38.96869435 | Z198: 38.57105461 | AA198: 38.17341488 | AB198: 37.77577514 | AC198: 37.3781354 | AD198: 36.98049566 | AE198: 36.58285592 | AF198: 36.18521618 | AG198: 35.78757645 | AH198: 35.38993671 | AI198: 34.99229697 | AJ198: 34.59465723 | AK198: 34.19701749 | AL198: 33.79937775 | AM198: 33.40173802 | AN198: 33.00409828 | AO198: 32.60645854 | AP198: 32.2088188 | AQ198: 31.81117906
K199: Class 4 - Conservative | L199: 60.1063857 | M199: 58.44733378 | N199: 56.78828186 | O199: 55.12922994 | P199: 53.47017801 | Q199: 51.81112609 | R199: 50.15207417 | S199: 48.49302225 | T199: 46.83397032 | U199: 45.1749184 | V199: 43.51586648 | W199: 41.85681456 | X199: 41.64753048 | Y199: 41.43824641 | Z199: 41.22896234 | AA199: 41.01967827 | AB199: 40.81039419 | AC199: 40.60111012 | AD199: 40.39182605 | AE199: 40.18254197 | AF199: 39.9732579 | AG199: 39.76397383 | AH199: 39.55468976 | AI199: 39.34540568 | AJ199: 39.13612161 | AK199: 38.92683754 | AL199: 38.71755347 | AM199: 38.50826939 | AN199: 38.29898532 | AO199: 38.08970125 | AP199: 37.88041717 | AQ199: 37.6711331
K200: Class 5 - Advanced | L200: 60.1063857 | M200: 57.30578429 | N200: 54.50518288 | O200: 51.70458147 | P200: 48.90398006 | Q200: 46.10337865 | R200: 43.30277724 | S200: 40.50217583 | T200: 37.70157442 | U200: 34.90097301 | V200: 32.1003716 | W200: 29.29977019 | X200: 28.93352306 | Y200: 28.56727594 | Z200: 28.20102881 | AA200: 27.83478168 | AB200: 27.46853455 | AC200: 27.10228743 | AD200: 26.7360403 | AE200: 26.36979317 | AF200: 26.00354604 | AG200: 25.63729892 | AH200: 25.27105179 | AI200: 24.90480466 | AJ200: 24.53855753 | AK200: 24.17231041 | AL200: 23.80606328 | AM200: 23.43981615 | AN200: 23.07356902 | AO200: 22.7073219 | AP200: 22.34107477 | AQ200: 21.97482764
K201: Class 5 - Moderate | L201: 60.1063857 | M201: 58.25707553 | N201: 56.40776536 | O201: 54.55845519 | P201: 52.70914502 | Q201: 50.85983485 | R201: 49.01052468 | S201: 47.16121451 | T201: 45.31190434 | U201: 43.46259417 | V201: 41.613284 | W201: 39.76397383 | X201: 39.36633409 | Y201: 38.96869435 | Z201: 38.57105461 | AA201: 38.17341488 | AB201: 37.77577514 | AC201: 37.3781354 | AD201: 36.98049566 | AE201: 36.58285592 | AF201: 36.18521618 | AG201: 35.78757645 | AH201: 35.38993671 | AI201: 34.99229697 | AJ201: 34.59465723 | AK201: 34.19701749 | AL201: 33.79937775 | AM201: 33.40173802 | AN201: 33.00409828 | AO201: 32.60645854 | AP201: 32.2088188 | AQ201: 31.81117906
K202: Class 5 - Conservative | L202: 60.1063857 | M202: 58.44733378 | N202: 56.78828186 | O202: 55.12922994 | P202: 53.47017801 | Q202: 51.81112609 | R202: 50.15207417 | S202: 48.49302225 | T202: 46.83397032 | U202: 45.1749184 | V202: 43.51586648 | W202: 41.85681456 | X202: 41.64753048 | Y202: 41.43824641 | Z202: 41.22896234 | AA202: 41.01967827 | AB202: 40.81039419 | AC202: 40.60111012 | AD202: 40.39182605 | AE202: 40.18254197 | AF202: 39.9732579 | AG202: 39.76397383 | AH202: 39.55468976 | AI202: 39.34540568 | AJ202: 39.13612161 | AK202: 38.92683754 | AL202: 38.71755347 | AM202: 38.50826939 | AN202: 38.29898532 | AO202: 38.08970125 | AP202: 37.88041717 | AQ202: 37.6711331
K203: Class 6 - Advanced | L203: 60.1063857 | M203: 57.30578429 | N203: 54.50518288 | O203: 51.70458147 | P203: 48.90398006 | Q203: 46.10337865 | R203: 43.30277724 | S203: 40.50217583 | T203: 37.70157442 | U203: 34.90097301 | V203: 32.1003716 | W203: 29.29977019 | X203: 28.93352306 | Y203: 28.56727594 | Z203: 28.20102881 | AA203: 27.83478168 | AB203: 27.46853455 | AC203: 27.10228743 | AD203: 26.7360403 | AE203: 26.36979317 | AF203: 26.00354604 | AG203: 25.63729892 | AH203: 25.27105179 | AI203: 24.90480466 | AJ203: 24.53855753 | AK203: 24.17231041 | AL203: 23.80606328 | AM203: 23.43981615 | AN203: 23.07356902 | AO203: 22.7073219 | AP203: 22.34107477 | AQ203: 21.97482764
K204: Class 6 - Moderate | L204: 60.1063857 | M204: 58.25707553 | N204: 56.40776536 | O204: 54.55845519 | P204: 52.70914502 | Q204: 50.85983485 | R204: 49.01052468 | S204: 47.16121451 | T204: 45.31190434 | U204: 43.46259417 | V204: 41.613284 | W204: 39.76397383 | X204: 39.36633409 | Y204: 38.96869435 | Z204: 38.57105461 | AA204: 38.17341488 | AB204: 37.77577514 | AC204: 37.3781354 | AD204: 36.98049566 | AE204: 36.58285592 | AF204: 36.18521618 | AG204: 35.78757645 | AH204: 35.38993671 | AI204: 34.99229697 | AJ204: 34.59465723 | AK204: 34.19701749 | AL204: 33.79937775 | AM204: 33.40173802 | AN204: 33.00409828 | AO204: 32.60645854 | AP204: 32.2088188 | AQ204: =(AQ236+AQ333)*($N$41-1) -> 31.81117906
K205: Class 6 - Conservative | L205: =(L237+L334)*($N$41-1) -> 60.1063857 | M205: 58.44733378 | N205: 56.78828186 | O205: 55.12922994 | P205: 53.47017801 | Q205: 51.81112609 | R205: 50.15207417 | S205: 48.49302225 | T205: 46.83397032 | U205: 45.1749184 | V205: 43.51586648 | W205: 41.85681456 | X205: 41.64753048 | Y205: 41.43824641 | Z205: 41.22896234 | AA205: 41.01967827 | AB205: 40.81039419 | AC205: 40.60111012 | AD205: 40.39182605 | AE205: 40.18254197 | AF205: 39.9732579 | AG205: 39.76397383 | AH205: 39.55468976 | AI205: 39.34540568 | AJ205: 39.13612161 | AK205: 38.92683754 | AL205: 38.71755347 | AM205: 38.50826939 | AN205: 38.29898532 | AO205: 38.08970125 | AP205: 37.88041717 | AQ205: 37.6711331
K206: Class 7 - Advanced | L206: 60.1063857 | M206: 57.30578429 | N206: 54.50518288 | O206: 51.70458147 | P206: 48.90398006 | Q206: 46.10337865 | R206: 43.30277724 | S206: 40.50217583 | T206: 37.70157442 | U206: 34.90097301 | V206: 32.1003716 | W206: 29.29977019 | X206: 28.93352306 | Y206: 28.56727594 | Z206: 28.20102881 | AA206: 27.83478168 | AB206: 27.46853455 | AC206: 27.10228743 | AD206: 26.7360403 | AE206: 26.36979317 | AF206: 26.00354604 | AG206: 25.63729892 | AH206: 25.27105179 | AI206: 24.90480466 | AJ206: 24.53855753 | AK206: 24.17231041 | AL206: 23.80606328 | AM206: 23.43981615 | AN206: 23.07356902 | AO206: 22.7073219 | AP206: 22.34107477 | AQ206: 21.97482764
K207: Class 7 - Moderate | L207: 60.1063857 | M207: 58.25707553 | N207: 56.40776536 | O207: 54.55845519 | P207: 52.70914502 | Q207: 50.85983485 | R207: 49.01052468 | S207: 47.16121451 | T207: 45.31190434 | U207: 43.46259417 | V207: 41.613284 | W207: 39.76397383 | X207: 39.36633409 | Y207: 38.96869435 | Z207: 38.57105461 | AA207: 38.17341488 | AB207: 37.77577514 | AC207: 37.3781354 | AD207: 36.98049566 | AE207: 36.58285592 | AF207: 36.18521618 | AG207: 35.78757645 | AH207: 35.38993671 | AI207: 34.99229697 | AJ207: 34.59465723 | AK207: 34.19701749 | AL207: 33.79937775 | AM207: 33.40173802 | AN207: 33.00409828 | AO207: 32.60645854 | AP207: 32.2088188 | AQ207: 31.81117906
K208: Class 7 - Conservative | L208: 60.1063857 | M208: 58.44733378 | N208: 56.78828186 | O208: 55.12922994 | P208: 53.47017801 | Q208: 51.81112609 | R208: 50.15207417 | S208: 48.49302225 | T208: 46.83397032 | U208: 45.1749184 | V208: 43.51586648 | W208: 41.85681456 | X208: 41.64753048 | Y208: 41.43824641 | Z208: 41.22896234 | AA208: 41.01967827 | AB208: 40.81039419 | AC208: 40.60111012 | AD208: 40.39182605 | AE208: 40.18254197 | AF208: 39.9732579 | AG208: 39.76397383 | AH208: 39.55468976 | AI208: 39.34540568 | AJ208: 39.13612161 | AK208: 38.92683754 | AL208: 38.71755347 | AM208: 38.50826939 | AN208: 38.29898532 | AO208: 38.08970125 | AP208: 37.88041717 | AQ208: 37.6711331
K209: Class 8 - Advanced | L209: 60.1063857 | M209: 57.30578429 | N209: 54.50518288 | O209: 51.70458147 | P209: 48.90398006 | Q209: 46.10337865 | R209: 43.30277724 | S209: 40.50217583 | T209: 37.70157442 | U209: 34.90097301 | V209: 32.1003716 | W209: 29.29977019 | X209: 28.93352306 | Y209: 28.56727594 | Z209: 28.20102881 | AA209: 27.83478168 | AB209: 27.46853455 | AC209: 27.10228743 | AD209: 26.7360403 | AE209: 26.36979317 | AF209: 26.00354604 | AG209: 25.63729892 | AH209: 25.27105179 | AI209: 24.90480466 | AJ209: 24.53855753 | AK209: 24.17231041 | AL209: 23.80606328 | AM209: 23.43981615 | AN209: 23.07356902 | AO209: 22.7073219 | AP209: 22.34107477 | AQ209: 21.97482764
K210: Class 8 - Moderate | L210: 60.1063857 | M210: 58.25707553 | N210: 56.40776536 | O210: 54.55845519 | P210: 52.70914502 | Q210: 50.85983485 | R210: 49.01052468 | S210: 47.16121451 | T210: 45.31190434 | U210: 43.46259417 | V210: 41.613284 | W210: 39.76397383 | X210: 39.36633409 | Y210: 38.96869435 | Z210: 38.57105461 | AA210: 38.17341488 | AB210: 37.77577514 | AC210: 37.3781354 | AD210: 36.98049566 | AE210: 36.58285592 | AF210: 36.18521618 | AG210: 35.78757645 | AH210: 35.38993671 | AI210: 34.99229697 | AJ210: 34.59465723 | AK210: 34.19701749 | AL210: 33.79937775 | AM210: 33.40173802 | AN210: 33.00409828 | AO210: 32.60645854 | AP210: 32.2088188 | AQ210: 31.81117906
K211: Class 8 - Conservative | L211: 60.1063857 | M211: 58.44733378 | N211: 56.78828186 | O211: 55.12922994 | P211: 53.47017801 | Q211: 51.81112609 | R211: 50.15207417 | S211: 48.49302225 | T211: 46.83397032 | U211: 45.1749184 | V211: 43.51586648 | W211: 41.85681456 | X211: 41.64753048 | Y211: 41.43824641 | Z211: 41.22896234 | AA211: 41.01967827 | AB211: 40.81039419 | AC211: 40.60111012 | AD211: 40.39182605 | AE211: 40.18254197 | AF211: 39.9732579 | AG211: 39.76397383 | AH211: 39.55468976 | AI211: 39.34540568 | AJ211: 39.13612161 | AK211: 38.92683754 | AL211: 38.71755347 | AM211: 38.50826939 | AN211: 38.29898532 | AO211: 38.08970125 | AP211: 37.88041717 | AQ211: 37.6711331
K212: Class 9 - Advanced | L212: 60.1063857 | M212: 57.30578429 | N212: 54.50518288 | O212: 51.70458147 | P212: 48.90398006 | Q212: 46.10337865 | R212: 43.30277724 | S212: 40.50217583 | T212: 37.70157442 | U212: 34.90097301 | V212: 32.1003716 | W212: 29.29977019 | X212: 28.93352306 | Y212: 28.56727594 | Z212: 28.20102881 | AA212: 27.83478168 | AB212: 27.46853455 | AC212: 27.10228743 | AD212: 26.7360403 | AE212: 26.36979317 | AF212: 26.00354604 | AG212: 25.63729892 | AH212: 25.27105179 | AI212: 24.90480466 | AJ212: 24.53855753 | AK212: 24.17231041 | AL212: 23.80606328 | AM212: 23.43981615 | AN212: 23.07356902 | AO212: 22.7073219 | AP212: 22.34107477 | AQ212: =(AQ244+AQ341)*($N$41-1) -> 21.97482764
K213: Class 9 - Moderate | L213: =(L245+L342)*($N$41-1) -> 60.1063857 | M213: 58.25707553 | N213: 56.40776536 | O213: 54.55845519 | P213: 52.70914502 | Q213: 50.85983485 | R213: 49.01052468 | S213: 47.16121451 | T213: 45.31190434 | U213: 43.46259417 | V213: 41.613284 | W213: 39.76397383 | X213: 39.36633409 | Y213: 38.96869435 | Z213: 38.57105461 | AA213: 38.17341488 | AB213: 37.77577514 | AC213: 37.3781354 | AD213: 36.98049566 | AE213: 36.58285592 | AF213: 36.18521618 | AG213: 35.78757645 | AH213: 35.38993671 | AI213: 34.99229697 | AJ213: 34.59465723 | AK213: 34.19701749 | AL213: 33.79937775 | AM213: 33.40173802 | AN213: 33.00409828 | AO213: 32.60645854 | AP213: 32.2088188 | AQ213: 31.81117906
K214: Class 9 - Conservative | L214: 60.1063857 | M214: 58.44733378 | N214: 56.78828186 | O214: 55.12922994 | P214: 53.47017801 | Q214: 51.81112609 | R214: 50.15207417 | S214: 48.49302225 | T214: 46.83397032 | U214: 45.1749184 | V214: 43.51586648 | W214: 41.85681456 | X214: 41.64753048 | Y214: 41.43824641 | Z214: 41.22896234 | AA214: 41.01967827 | AB214: 40.81039419 | AC214: 40.60111012 | AD214: 40.39182605 | AE214: 40.18254197 | AF214: 39.9732579 | AG214: 39.76397383 | AH214: 39.55468976 | AI214: 39.34540568 | AJ214: 39.13612161 | AK214: 38.92683754 | AL214: 38.71755347 | AM214: 38.50826939 | AN214: 38.29898532 | AO214: 38.08970125 | AP214: 37.88041717 | AQ214: 37.6711331
... 210 more rows

Sheet Geothermal
A1: Geothermal | L1: https://atb.nrel.gov/electricity/2021/geothermal
T3: Inputs
J4: Take me to: | T4: Calculated
B7: X | G7: Assumptions
H9: *** NOTE: Geothermal project costs and performance parameters are location specific. Numbers in this section are example cases.
J11: Basis Year: | L11: 2019
J12: All values are given in 2019 U.S. dollars, using the Consumer Price Index (BLS, 2020) for dollar year conversions. Projections use an inflation assumption of 2.5% per year.
J14: Geothermal
H16: Technology | J16: Geothermal Resource and Cost Characteristics*
L17: Flash | M17: Binary | Q17: "Hydrothermal" includes both identified and undiscovered hydrothermal capacity. However, only identified
K18: Temp (°C) | L18: >=200C | M18: 150-200 | N18: 135-150 | O18: <135 | Q18: sites are indicated. Further, OCC statistics are for identified sites only. Since undiscovered resources are
J19: Hydrothermal | K19: # identified sites | L19: 21 | M19: 22 | N19: 17 | O19: 59 | Q19: assumed to have similar attributes to identified sites (by state), they should fall within the same range of
K20: Total capacity (MW) | L20: 15337.76152 | M20: 2991.31216 | N20: 820.27984 | O20: 4758.844 | Q20: overnight capital costs.
K21: Avg OCC ($/kW) | L21: 4175.095011 | M21: 8828.61475 | N21: 9476.079991 | O21: 17757.3693
K22: Min OCC ($/kW) | L22: 3000 | M22: 4396.591054 | N22: 7443.705857 | O22: 11884.30116 | Q22: Example plant for hydrothermal flash assumes a 40 Mwe,net flash plant utilizing a 225°C resource with 2.5 km
K23: Max OCC ($/kW) | L23: 5971.268832 | M23: 38720.06656 | N23: 11781.18077 | O23: 25934.36759 | Q23: wells and production well flow rates of 80 kg/s.
K24: Example Plant OCC ($/kW) | L24: 4521.713646 | M24: 5870.242119 | Q24: Example plant for hydrothermal binary assumes a 30 Mwe,net binary plant utilizing a 175°C resource with 1.5 km
J25: NF-EGS | K25: # sites | L25: 12 | M25: 20 | Q25: wells and production well flow rates of 110 kg/s.
K26: Total capacity (MW) | L26: 786.6037865 | M26: 595.8136897
K27: Avg OCC ($/kW) | L27: 11429.02615 | M27: 27329.74611 | Q27: Example plant for NF-EGS and Deep EGS are assumed to be identical.
K28: Min OCC ($/kW) | L28: 9025.744899 | M28: 18974.12399 | Q28: Example plant for EGS flash assumes a 30 Mwe,net flash plant utilizing a 250°C resource with 3.5 km
K29: Max OCC ($/kW) | L29: 18797.43753 | M29: 41694.11201 | Q29: wells and production well flow rates of 40 kg/s.
K30: Example Plant OCC ($/kW) | L30: 14485.88194 | M30: 32921.45273 | Q30: Example plant for EGS binary assumes a 25 Mwe,net binary plant utilizing a 175°C resource with 3.0 km
J31: Deep EGS (3-6 km) | K31: # sites | L31: n/a | M31: n/a | Q31: wells and production well flow rates of 40 kg/s.
K32: Total capacity (MW) | L32: 100,000+
K33: Avg OCC ($/kW) | L33: 28990.63926 | M33: 65081.339
K34: Min OCC ($/kW) | L34: 18732.72732 | M34: 40514.9541
K35: Max OCC ($/kW) | L35: 54986.54354 | M35: 96405.42348
K36: Example Plant OCC ($/kW) | L36: 14485.88194 | M36: 32921.45273
J37: *Resouce data and cost comes from the ATB geothermal supply curve database
H39: Finance | J39: Financial Assumptions:
J40: Inflation Rate | N40: =L72 -> 0.025 | W40: Construction Finance Factor Changes over time
J41: Capital Recovery Period (Years) | N41: =S41 -> 20 | S41: 20 | X41: Cost of equity during construction (post-drilling) | AB41: 0.1 | AC41: Cost of equity during construction (pre-drilling) | AG41: 0.15 | AT41: 2019 | AU41: =AT41+1 -> 2020 | AV41: 2021 | AW41: 2022 | AX41: 2023 | AY41: 2024 | AZ41: 2025 | BA41: 2026 | BB41: 2027 | BC41: 2028 | BD41: 2029 | BE41: 2030 | BF41: 2031
J42: Interest Rate Nominal - Moderate | N42: =L74 -> 0.04 | W42: Construction Length: (Years) | X42: 2019 | Z42: 2030 (Moderate) | AB42: 2030 (Advanced) | AE42: 2018 | AI42: 2030 (Moderate) | AM42: 2030 (Advanced) | AQ42: Accumulated Equity | AR42: Hydro | AS42: Moderate | AT42: =N54 -> 1.481225336 | AU42: =AT42-($AT42-$BE42)/11 -> 1.477396205 | AV42: =AU42-($AT42-$BE42)/11 -> 1.473567074 | AW42: 1.469737942 | AX42: 1.465908811 | AY42: 1.46207968 | AZ42: 1.458250549 | BA42: 1.454421417 | BB42: 1.450592286 | BC42: 1.446763155 | BD42: 1.442934024 | BE42: 1.439104893 | BF42: =N60 -> 1.439104893
J43: Calculated Interest Rate Real - Moderate | N43: =L77 -> 0.01463414634 | X43: 8 | Y43: 10 | Z43: 6 | AA43: 9 | AB43: 6 | AC43: 7 | AD43: Accumulated Interest | AE43: 8 | AG43: 10 | AI43: 6 | AK43: 9 | AM43: 6 | AO43: 7 | AS43: Advanced | AT43: =AT42 -> 1.481225336 | AU43: =AT43-($AT43-$BE43)/11 -> 1.470658859 | AV43: 1.460092381 | AW43: 1.449525904 | AX43: 1.438959426 | AY43: 1.428392949 | AZ43: 1.417826471 | BA43: 1.407259994 | BB43: 1.396693516 | BC43: 1.386127039 | BD43: 1.375560561 | BE43: 1.364994084 | BF43: =N52 -> 1.364994084
J44: Interest During Construction - Nominal | N44: =L79 -> 0.04 | X44: Capital | Y44: Capital | Z44: Capital | AA44: Capital | AB44: Capital | AC44: Capital | AE44: Percent of Leverage During Construction | AF44: Percent of Equity During Construction | AG44: Percent of Leverage During Construction | AH44: Percent of Equity During Construction | AI44: Percent of Leverage During Construction | AJ44: Percent of Equity During Construction | AK44: Percent of Leverage During Construction | AL44: Percent of Equity During Construction | AM44: Percent of Leverage During Construction | AN44: Percent of Equity During Construction | AO44: Percent of Leverage During Construction | AP44: Percent of Equity During Construction | AR44: EGS | AS44: Moderate | AT44: =N55 -> 1.433073973 | AU44: =AT44-($AT44-$BE44)/11 -> 1.428737121 | AV44: 1.42440027 | AW44: 1.420063419 | AX44: 1.415726567 | AY44: 1.411389716 | AZ44: 1.407052865 | BA44: 1.402716014 | BB44: 1.398379162 | BC44: 1.394042311 | BD44: 1.38970546 | BE44: 1.385368608 | BF44: 1.385368608
J45: Rate of Return on Equity Nominal - Moderate | N45: =L81 -> 0.1 | W45: Year | X45: Fraction | Y45: Fraction | Z45: Fraction | AA45: Fraction | AB45: Fraction | AC45: Fraction | AS45: Advanced | AT45: =AT44 -> 1.433073973 | AU45: =AT45-($AT45-$BE45)/11 -> 1.422939557 | AV45: 1.412805141 | AW45: 1.402670725 | AX45: 1.392536309 | AY45: 1.382401893 | AZ45: 1.372267477 | BA45: 1.362133062 | BB45: 1.351998646 | BC45: 1.34186423 | BD45: 1.331729814 | BE45: 1.321595398 | BF45: =N53 -> 1.321595398
J46: Calculated Rate of Return on Equity Real - Moderate | N46: =L84 -> 0.07317073171 | W46: Index | X46: (Hydro) | Y46: (EGS) | Z46: (Hydro) | AA46: (EGS) | AB46: (Hydro) | AC46: (EGS)
J47: Debt Fraction - Moderate | N47: =L87 -> 0.737 | W47: 0 | X47: 0.3 | Y47: 0.16 | Z47: 0.3465346535 | AA47: 0.19 | AB47: 0.3069306931 | AC47: 0.198019802 | AD47: =1+((1+$N$44)^(W47+0.5)-1) -> 1.019803903 | AE47: 0.75 | AF47: =1-AE47 -> 0.25 | AG47: 0.75 | AH47: =1-AG47 -> 0.25 | AI47: 0.75 | AJ47: =1-AI47 -> 0.25 | AK47: 0.75 | AL47: =1-AK47 -> 0.25 | AM47: 0.75 | AN47: =1-AM47 -> 0.25 | AO47: 0.75 | AP47: =1-AO47 -> 0.25 | AQ47: =1+((1+$AB$41)^(W47+0.5)-1) -> 1.048808848 | AR47: =1+((1+$AB$41)^(W47+0.5)-1) -> 1.048808848
J48: Tax Rate (Federal and State) | N48: =L89 -> 0.2574 | W48: 1 | X48: 0.22 | Y48: 0.28 | Z48: 0.07920792079 | AA48: 0.32 | AB48: 0.1881188119 | AC48: 0.3366336634 | AD48: 1.060596059 | AE48: 0 | AF48: 1 | AG48: 0.75 | AH48: 0.25 | AI48: 0.75 | AJ48: 0.25 | AK48: 0.75 | AL48: 0.25 | AM48: 0.75 | AN48: 0.25 | AO48: 0.75 | AP48: 0.25 | AQ48: =1+((1+$AB$41)^(W48+0.5)-1) -> 1.153689733 | AR48: =1+((1+$AB$41)^(W48+0.5)-1) -> 1.153689733
J49: WACC Nominal - Moderate | N49: =L91 -> 0.048191848 | W49: 2 | X49: 0.26 | Y49: 0.12 | Z49: 0.3366336634 | AA49: 0.09 | AB49: 0.2475247525 | AC49: 0.09900990099 | AD49: 1.103019901 | AE49: 0 | AF49: 1 | AG49: 0.75 | AH49: 0.25 | AI49: 0 | AJ49: 1 | AK49: 0.75 | AL49: 0.25 | AM49: 0 | AN49: 1 | AO49: 0.75 | AP49: 0.25 | AQ49: =1+((1+$AG$41)^(W49+0.5)-1) -> 1.41822325 | AR49: =1+((1+$AB$41)^(W49+0.5)-1) -> 1.269058706
J50: WACC Real - Moderate | N50: =L94 -> 0.02262619317 | W50: 3 | X50: 0 | Y50: 0.35 | Z50: 0 | AA50: 0.31 | AB50: 0.09900990099 | AC50: 0.2772277228 | AD50: 1.147140697 | AE50: 0 | AF50: 1 | AG50: 0 | AH50: 1 | AI50: 0 | AJ50: 1 | AK50: 0 | AL50: 1 | AM50: 0 | AN50: 1 | AO50: 0 | AP50: 1 | AQ50: 1.630956738 | AR50: =1+((1+$AG$41)^(W50+0.5)-1) -> 1.630956738
J51: Depreciation Period | N51: 5 | W51: =W50+1 -> 4 | X51: 0 | Y51: 0 | Z51: 0.09900990099 | AA51: 0 | AB51: 0.0297029703 | AC51: 0.0495049505 | AD51: 1.193026325 | AE51: 0 | AF51: 1 | AG51: 0 | AH51: 1 | AI51: 0 | AJ51: 1 | AK51: 0 | AL51: 1 | AM51: 0 | AN51: 1 | AO51: 0 | AP51: 1 | AQ51: 1.875600248 | AR51: 1.875600248
J52: Construction Finance Factor (Advanced 2030 - Hydro) | N52: =SUMPRODUCT(AB47:AB56,AD47:AD56,AM47:AM56)+SUMPRODUCT(AB47:AB56,AQ47:AQ56,AN47:AN56) -> 1.364994084 | W52: 5 | X52: 0.1 | Y52: 0 | Z52: 0.0297029703 | AA52: 0.05 | AB52: 0.1287128713 | AC52: 0.009900990099 | AD52: 1.240747378 | AE52: 0 | AF52: 1 | AG52: 0 | AH52: 1 | AI52: 0 | AJ52: 1 | AK52: 0 | AL52: 1 | AM52: 0 | AN52: 1 | AO52: 0 | AP52: 1 | AQ52: 2.156940286 | AR52: 2.156940286
J53: Construction Finance Factor (Advanced 2030 - EGS) | N53: =SUMPRODUCT(AC47:AC56,AD47:AD56,AO47:AO56)+SUMPRODUCT(AC47:AC56,AR47:AR56,AP47:AP56) -> 1.321595398 | W53: 6 | X53: 0.02 | Y53: 0.06 | Z53: 0.1089108911 | AA53: 0 | AC53: 0.0297029703 | AD53: 1.290377273 | AE53: 0 | AF53: 1 | AG53: 0 | AH53: 1 | AI53: 0 | AJ53: 1 | AK53: 0 | AL53: 1 | AM53: 0 | AN53: 1 | AO53: 0 | AP53: 1 | AQ53: 2.480481329 | AR53: 2.480481329
J54: Construction Finance Factor (2018 -Hydro) | N54: =SUMPRODUCT(X47:X54,AD47:AD54,AE47:AE54)+SUMPRODUCT(X47:X54,AQ47:AQ54,AF47:AF54) -> 1.481225336 | W54: 7 | X54: 0.1 | Y54: 0 | AA54: 0.01 | AD54: 1.341992364 | AE54: 0 | AF54: 1 | AG54: 0 | AH54: 1 | AI54: 0 | AJ54: 1 | AK54: 0 | AL54: 1 | AM54: 0 | AN54: 1 | AO54: 0 | AP54: 1 | AQ54: 2.852553528 | AR54: 2.852553528
J55: Construction Finance Factor (2018 - EGS) | N55: =SUMPRODUCT(Y47:Y56,AD47:AD56,AG47:AG56)+SUMPRODUCT(Y47:Y56,AR47:AR56,AH47:AH56) -> 1.433073973 | W55: 8 | Y55: 0.01 | AA55: 0.03 | AD55: 1.395672059 | AE55: 0 | AF55: 1 | AG55: 0 | AH55: 1 | AI55: 0 | AJ55: 1 | AK55: 0 | AL55: 1 | AM55: 0 | AN55: 1 | AO55: 0 | AP55: 1 | AQ55: 3.280436557 | AR55: 3.280436557
J56: Present Value of Depreciation | N56: =SUMPRODUCT(K65:P65,K67:P67) -> 0.878676255 | W56: 9 | Y56: 0.02 | AD56: 1.451498941 | AE56: 0 | AF56: 1 | AG56: 0 | AH56: 1 | AI56: 0 | AJ56: 1 | AK56: 0 | AL56: 1 | AM56: 0 | AN56: 1 | AO56: 0 | AP56: 1 | AQ56: 3.772502041 | AR56: 3.772502041
J57: Project Finance Factor | N57: =(1 - N48 * N56) / (1 - N48) -> 1.042053235
J58: Capital Recovery Factor (CRF) Nominal - Moderate | N58: =L97 -> 0.07901697143
J59: Capital Recovery Factor (CRF) Real - Moderate | N59: =L100 -> 0.06271757108
J60: Construction Finance Factor (Moderate 2030 - Hydro) | N60: =SUMPRODUCT(Z47:Z56,AD47:AD56,AI47:AI56)+SUMPRODUCT(Z47:Z56,AQ47:AQ56,AJ47:AJ56) -> 1.439104893
J61: Construction Finance Factor (Moderate 2030 - EGS) | N61: 1.385368608
J64: MACRS yr | K64: 1 | L64: 2 | M64: 3 | N64: 4 | O64: 5 | P64: 6
J65: Depreciation | K65: 0.2 | L65: 0.32 | M65: 0.192 | N65: 0.1152 | O65: 0.1152 | P65: 0.0576
J66: Fraction
J67: Depreciation | K67: =1/((1+N50)*(1+N40))^K64 -> 0.9540238287 | L67: =1/((1+N50)*(1+N40))^L64 -> 0.9101614657 | M67: =1/((1+N50)*(1+N40))^M64 -> 0.8683157262 | N67: =1/((1+N50)*(1+N40))^N64 -> 0.8283938936 | O67: =1/((1+N50)*(1+N40))^O64 -> 0.790307514 | P67: =1/((1+N50)*(1+N40))^P64 -> 0.7539722003
J68: Factor
L70: Base Year
L71: 2019 | M71: 2020 | N71: 2021 | O71: 2022 | P71: 2023 | Q71: 2024 | R71: 2025 | S71: 2026 | T71: 2027 | U71: 2028 | V71: 2029 | W71: 2030 | X71: 2031 | Y71: 2032 | Z71: 2033 | AA71: 2034 | AB71: 2035 | AC71: 2036 | AD71: 2037 | AE71: 2038 | AF71: 2039 | AG71: 2040 | AH71: 2041 | AI71: 2042 | AJ71: 2043 | AK71: 2044 | AL71: 2045 | AM71: 2046 | AN71: 2047 | AO71: 2048 | AP71: 2049 | AQ71: 2050
J72: Assumptions | K72: Inflation Rate | L72: 0.025 | M72: 0.025 | N72: 0.025 | O72: 0.025 | P72: 0.025 | Q72: 0.025 | R72: 0.025 | S72: 0.025 | T72: 0.025 | U72: 0.025 | V72: 0.025 | W72: 0.025 | X72: 0.025 | Y72: 0.025 | Z72: 0.025 | AA72: 0.025 | AB72: 0.025 | AC72: 0.025 | AD72: 0.025 | AE72: 0.025 | AF72: 0.025 | AG72: 0.025 | AH72: 0.025 | AI72: 0.025 | AJ72: 0.025 | AK72: 0.025 | AL72: 0.025 | AM72: 0.025 | AN72: 0.025 | AO72: 0.025 | AP72: 0.025 | AQ72: 0.025
K73: Interest Rate Nominal - Advanced | L73: 0.04 | M73: 0.04 | N73: 0.04 | O73: 0.04 | P73: 0.04 | Q73: 0.04 | R73: 0.04 | S73: 0.04 | T73: 0.04 | U73: 0.04 | V73: 0.04 | W73: 0.04 | X73: 0.04 | Y73: 0.04 | Z73: 0.04 | AA73: 0.04 | AB73: 0.04 | AC73: 0.04 | AD73: 0.04 | AE73: 0.04 | AF73: 0.04 | AG73: 0.04 | AH73: 0.04 | AI73: 0.04 | AJ73: 0.04 | AK73: 0.04 | AL73: 0.04 | AM73: 0.04 | AN73: 0.04 | AO73: 0.04 | AP73: 0.04 | AQ73: 0.04
K74: Interest Rate Nominal - Moderate | L74: 0.04 | M74: 0.04 | N74: 0.04 | O74: 0.04 | P74: 0.04 | Q74: 0.04 | R74: 0.04 | S74: 0.04 | T74: 0.04 | U74: 0.04 | V74: 0.04 | W74: 0.04 | X74: 0.04 | Y74: 0.04 | Z74: 0.04 | AA74: 0.04 | AB74: 0.04 | AC74: 0.04 | AD74: 0.04 | AE74: 0.04 | AF74: 0.04 | AG74: 0.04 | AH74: 0.04 | AI74: 0.04 | AJ74: 0.04 | AK74: 0.04 | AL74: 0.04 | AM74: 0.04 | AN74: 0.04 | AO74: 0.04 | AP74: 0.04 | AQ74: 0.04
K75: Interest Rate Nominal - Conservative | L75: 0.04 | M75: 0.04 | N75: 0.04 | O75: 0.04 | P75: 0.04 | Q75: 0.04 | R75: 0.04 | S75: 0.04 | T75: 0.04 | U75: 0.04 | V75: 0.04 | W75: 0.04 | X75: 0.04 | Y75: 0.04 | Z75: 0.04 | AA75: 0.04 | AB75: 0.04 | AC75: 0.04 | AD75: 0.04 | AE75: 0.04 | AF75: 0.04 | AG75: 0.04 | AH75: 0.04 | AI75: 0.04 | AJ75: 0.04 | AK75: 0.04 | AL75: 0.04 | AM75: 0.04 | AN75: 0.04 | AO75: 0.04 | AP75: 0.04 | AQ75: 0.04
K76: Calculated Interest Rate Real - Advanced | L76: 0.01463414634 | M76: 0.01463414634 | N76: 0.01463414634 | O76: 0.01463414634 | P76: 0.01463414634 | Q76: 0.01463414634 | R76: 0.01463414634 | S76: 0.01463414634 | T76: 0.01463414634 | U76: 0.01463414634 | V76: 0.01463414634 | W76: 0.01463414634 | X76: 0.01463414634 | Y76: 0.01463414634 | Z76: 0.01463414634 | AA76: 0.01463414634 | AB76: 0.01463414634 | AC76: 0.01463414634 | AD76: 0.01463414634 | AE76: 0.01463414634 | AF76: 0.01463414634 | AG76: 0.01463414634 | AH76: 0.01463414634 | AI76: 0.01463414634 | AJ76: 0.01463414634 | AK76: 0.01463414634 | AL76: 0.01463414634 | AM76: 0.01463414634 | AN76: 0.01463414634 | AO76: 0.01463414634 | AP76: 0.01463414634 | AQ76: 0.01463414634
K77: Calculated Interest Rate Real - Moderate | L77: 0.01463414634 | M77: 0.01463414634 | N77: 0.01463414634 | O77: 0.01463414634 | P77: 0.01463414634 | Q77: 0.01463414634 | R77: 0.01463414634 | S77: 0.01463414634 | T77: 0.01463414634 | U77: 0.01463414634 | V77: 0.01463414634 | W77: 0.01463414634 | X77: 0.01463414634 | Y77: 0.01463414634 | Z77: 0.01463414634 | AA77: 0.01463414634 | AB77: 0.01463414634 | AC77: 0.01463414634 | AD77: 0.01463414634 | AE77: 0.01463414634 | AF77: 0.01463414634 | AG77: 0.01463414634 | AH77: 0.01463414634 | AI77: 0.01463414634 | AJ77: 0.01463414634 | AK77: 0.01463414634 | AL77: 0.01463414634 | AM77: 0.01463414634 | AN77: 0.01463414634 | AO77: 0.01463414634 | AP77: 0.01463414634 | AQ77: 0.01463414634
K78: Calculated Interest Rate Real - Conservative | L78: 0.01463414634 | M78: 0.01463414634 | N78: 0.01463414634 | O78: 0.01463414634 | P78: 0.01463414634 | Q78: 0.01463414634 | R78: 0.01463414634 | S78: 0.01463414634 | T78: 0.01463414634 | U78: 0.01463414634 | V78: 0.01463414634 | W78: 0.01463414634 | X78: 0.01463414634 | Y78: 0.01463414634 | Z78: 0.01463414634 | AA78: 0.01463414634 | AB78: 0.01463414634 | AC78: 0.01463414634 | AD78: 0.01463414634 | AE78: 0.01463414634 | AF78: 0.01463414634 | AG78: 0.01463414634 | AH78: 0.01463414634 | AI78: 0.01463414634 | AJ78: 0.01463414634 | AK78: 0.01463414634 | AL78: 0.01463414634 | AM78: 0.01463414634 | AN78: 0.01463414634 | AO78: 0.01463414634 | AP78: 0.01463414634 | AQ78: 0.01463414634
K79: Interest During Construction - Nominal | L79: 0.04 | M79: 0.04 | N79: 0.04 | O79: 0.04 | P79: 0.04 | Q79: 0.04 | R79: 0.04 | S79: 0.04 | T79: 0.04 | U79: 0.04 | V79: 0.04 | W79: 0.04 | X79: 0.04 | Y79: 0.04 | Z79: 0.04 | AA79: 0.04 | AB79: 0.04 | AC79: 0.04 | AD79: 0.04 | AE79: 0.04 | AF79: 0.04 | AG79: 0.04 | AH79: 0.04 | AI79: 0.04 | AJ79: 0.04 | AK79: 0.04 | AL79: 0.04 | AM79: 0.04 | AN79: 0.04 | AO79: 0.04 | AP79: 0.04 | AQ79: 0.04
K80: Rate of Return on Equity Nominal - Advanced | L80: 0.1 | M80: 0.1 | N80: 0.1 | O80: 0.1 | P80: 0.1 | Q80: 0.1 | R80: 0.1 | S80: 0.1 | T80: 0.1 | U80: 0.1 | V80: 0.1 | W80: 0.1 | X80: 0.1 | Y80: 0.1 | Z80: 0.1 | AA80: 0.1 | AB80: 0.1 | AC80: 0.1 | AD80: 0.1 | AE80: 0.1 | AF80: 0.1 | AG80: 0.1 | AH80: 0.1 | AI80: 0.1 | AJ80: 0.1 | AK80: 0.1 | AL80: 0.1 | AM80: 0.1 | AN80: 0.1 | AO80: 0.1 | AP80: 0.1 | AQ80: 0.1
K81: Rate of Return on Equity Nominal - Moderate | L81: 0.1 | M81: 0.1 | N81: 0.1 | O81: 0.1 | P81: 0.1 | Q81: 0.1 | R81: 0.1 | S81: 0.1 | T81: 0.1 | U81: 0.1 | V81: 0.1 | W81: 0.1 | X81: 0.1 | Y81: 0.1 | Z81: 0.1 | AA81: 0.1 | AB81: 0.1 | AC81: 0.1 | AD81: 0.1 | AE81: 0.1 | AF81: 0.1 | AG81: 0.1 | AH81: 0.1 | AI81: 0.1 | AJ81: 0.1 | AK81: 0.1 | AL81: 0.1 | AM81: 0.1 | AN81: 0.1 | AO81: 0.1 | AP81: 0.1 | AQ81: 0.1
K82: Rate of Return on Equity Nominal - Conservative | L82: 0.1 | M82: 0.1 | N82: 0.1 | O82: 0.1 | P82: 0.1 | Q82: 0.1 | R82: 0.1 | S82: 0.1 | T82: 0.1 | U82: 0.1 | V82: 0.1 | W82: 0.1 | X82: 0.1 | Y82: 0.1 | Z82: 0.1 | AA82: 0.1 | AB82: 0.1 | AC82: 0.1 | AD82: 0.1 | AE82: 0.1 | AF82: 0.1 | AG82: 0.1 | AH82: 0.1 | AI82: 0.1 | AJ82: 0.1 | AK82: 0.1 | AL82: 0.1 | AM82: 0.1 | AN82: 0.1 | AO82: 0.1 | AP82: 0.1 | AQ82: 0.1
K83: Calculated Rate of Return on Equity Real - Advanced | L83: 0.07317073171 | M83: 0.07317073171 | N83: 0.07317073171 | O83: 0.07317073171 | P83: 0.07317073171 | Q83: 0.07317073171 | R83: 0.07317073171 | S83: 0.07317073171 | T83: 0.07317073171 | U83: 0.07317073171 | V83: 0.07317073171 | W83: 0.07317073171 | X83: 0.07317073171 | Y83: 0.07317073171 | Z83: 0.07317073171 | AA83: 0.07317073171 | AB83: 0.07317073171 | AC83: 0.07317073171 | AD83: 0.07317073171 | AE83: 0.07317073171 | AF83: 0.07317073171 | AG83: 0.07317073171 | AH83: 0.07317073171 | AI83: 0.07317073171 | AJ83: 0.07317073171 | AK83: 0.07317073171 | AL83: 0.07317073171 | AM83: 0.07317073171 | AN83: 0.07317073171 | AO83: 0.07317073171 | AP83: 0.07317073171 | AQ83: 0.07317073171
K84: Calculated Rate of Return on Equity Real - Moderate | L84: 0.07317073171 | M84: 0.07317073171 | N84: 0.07317073171 | O84: 0.07317073171 | P84: 0.07317073171 | Q84: 0.07317073171 | R84: 0.07317073171 | S84: 0.07317073171 | T84: 0.07317073171 | U84: 0.07317073171 | V84: 0.07317073171 | W84: 0.07317073171 | X84: 0.07317073171 | Y84: 0.07317073171 | Z84: 0.07317073171 | AA84: 0.07317073171 | AB84: 0.07317073171 | AC84: 0.07317073171 | AD84: 0.07317073171 | AE84: 0.07317073171 | AF84: 0.07317073171 | AG84: 0.07317073171 | AH84: 0.07317073171 | AI84: 0.07317073171 | AJ84: 0.07317073171 | AK84: 0.07317073171 | AL84: 0.07317073171 | AM84: 0.07317073171 | AN84: 0.07317073171 | AO84: 0.07317073171 | AP84: 0.07317073171 | AQ84: 0.07317073171
K85: Calculated Rate of Return on Equity Real - Conservative | L85: 0.07317073171 | M85: 0.07317073171 | N85: 0.07317073171 | O85: 0.07317073171 | P85: 0.07317073171 | Q85: 0.07317073171 | R85: 0.07317073171 | S85: 0.07317073171 | T85: 0.07317073171 | U85: 0.07317073171 | V85: 0.07317073171 | W85: 0.07317073171 | X85: 0.07317073171 | Y85: 0.07317073171 | Z85: 0.07317073171 | AA85: 0.07317073171 | AB85: 0.07317073171 | AC85: 0.07317073171 | AD85: 0.07317073171 | AE85: 0.07317073171 | AF85: 0.07317073171 | AG85: 0.07317073171 | AH85: 0.07317073171 | AI85: 0.07317073171 | AJ85: 0.07317073171 | AK85: 0.07317073171 | AL85: 0.07317073171 | AM85: 0.07317073171 | AN85: 0.07317073171 | AO85: 0.07317073171 | AP85: 0.07317073171 | AQ85: 0.07317073171
K86: Debt Fraction - Advanced | L86: 0.737 | M86: 0.737 | N86: 0.737 | O86: 0.737 | P86: 0.737 | Q86: 0.737 | R86: 0.737 | S86: 0.737 | T86: 0.737 | U86: 0.737 | V86: 0.737 | W86: 0.737 | X86: 0.737 | Y86: 0.737 | Z86: 0.737 | AA86: 0.737 | AB86: 0.737 | AC86: 0.737 | AD86: 0.737 | AE86: 0.737 | AF86: 0.737 | AG86: 0.737 | AH86: 0.737 | AI86: 0.737 | AJ86: 0.737 | AK86: 0.737 | AL86: 0.737 | AM86: 0.737 | AN86: 0.737 | AO86: 0.737 | AP86: 0.737 | AQ86: 0.737
K87: Debt Fraction - Moderate | L87: 0.737 | M87: 0.737 | N87: 0.737 | O87: 0.737 | P87: 0.737 | Q87: 0.737 | R87: 0.737 | S87: 0.737 | T87: 0.737 | U87: 0.737 | V87: 0.737 | W87: 0.737 | X87: 0.737 | Y87: 0.737 | Z87: 0.737 | AA87: 0.737 | AB87: 0.737 | AC87: 0.737 | AD87: 0.737 | AE87: 0.737 | AF87: 0.737 | AG87: 0.737 | AH87: 0.737 | AI87: 0.737 | AJ87: 0.737 | AK87: 0.737 | AL87: 0.737 | AM87: 0.737 | AN87: 0.737 | AO87: 0.737 | AP87: 0.737 | AQ87: 0.737
K88: Debt Fraction - Conservative | L88: 0.737 | M88: 0.737 | N88: 0.737 | O88: 0.737 | P88: 0.737 | Q88: 0.737 | R88: 0.737 | S88: 0.737 | T88: 0.737 | U88: 0.737 | V88: 0.737 | W88: 0.737 | X88: 0.737 | Y88: 0.737 | Z88: 0.737 | AA88: 0.737 | AB88: 0.737 | AC88: 0.737 | AD88: 0.737 | AE88: 0.737 | AF88: 0.737 | AG88: 0.737 | AH88: 0.737 | AI88: 0.737 | AJ88: 0.737 | AK88: 0.737 | AL88: 0.737 | AM88: 0.737 | AN88: 0.737 | AO88: 0.737 | AP88: 0.737 | AQ88: 0.737
K89: Tax Rate (Federal and State) | L89: 0.2574 | M89: 0.2574 | N89: 0.2574 | O89: 0.2574 | P89: 0.2574 | Q89: 0.2574 | R89: 0.2574 | S89: 0.2574 | T89: 0.2574 | U89: 0.2574 | V89: 0.2574 | W89: 0.2574 | X89: 0.2574 | Y89: 0.2574 | Z89: 0.2574 | AA89: 0.2574 | AB89: 0.2574 | AC89: 0.2574 | AD89: 0.2574 | AE89: 0.2574 | AF89: 0.2574 | AG89: 0.2574 | AH89: 0.2574 | AI89: 0.2574 | AJ89: 0.2574 | AK89: 0.2574 | AL89: 0.2574 | AM89: 0.2574 | AN89: 0.2574 | AO89: 0.2574 | AP89: 0.2574 | AQ89: 0.2574
K90: WACC Nominal - Advanced | L90: 0.048191848 | M90: 0.048191848 | N90: 0.048191848 | O90: 0.048191848 | P90: 0.048191848 | Q90: 0.048191848 | R90: 0.048191848 | S90: 0.048191848 | T90: 0.048191848 | U90: 0.048191848 | V90: 0.048191848 | W90: 0.048191848 | X90: 0.048191848 | Y90: 0.048191848 | Z90: 0.048191848 | AA90: 0.048191848 | AB90: 0.048191848 | AC90: 0.048191848 | AD90: 0.048191848 | AE90: 0.048191848 | AF90: 0.048191848 | AG90: 0.048191848 | AH90: 0.048191848 | AI90: 0.048191848 | AJ90: 0.048191848 | AK90: 0.048191848 | AL90: 0.048191848 | AM90: 0.048191848 | AN90: 0.048191848 | AO90: 0.048191848 | AP90: 0.048191848 | AQ90: 0.048191848
K91: WACC Nominal - Moderate | L91: 0.048191848 | M91: 0.048191848 | N91: 0.048191848 | O91: 0.048191848 | P91: 0.048191848 | Q91: 0.048191848 | R91: 0.048191848 | S91: 0.048191848 | T91: 0.048191848 | U91: 0.048191848 | V91: 0.048191848 | W91: 0.048191848 | X91: 0.048191848 | Y91: 0.048191848 | Z91: 0.048191848 | AA91: 0.048191848 | AB91: 0.048191848 | AC91: 0.048191848 | AD91: 0.048191848 | AE91: 0.048191848 | AF91: 0.048191848 | AG91: 0.048191848 | AH91: 0.048191848 | AI91: 0.048191848 | AJ91: 0.048191848 | AK91: 0.048191848 | AL91: 0.048191848 | AM91: 0.048191848 | AN91: 0.048191848 | AO91: 0.048191848 | AP91: 0.048191848 | AQ91: 0.048191848
K92: WACC Nominal - Conservative | L92: 0.048191848 | M92: 0.048191848 | N92: 0.048191848 | O92: 0.048191848 | P92: 0.048191848 | Q92: 0.048191848 | R92: 0.048191848 | S92: 0.048191848 | T92: 0.048191848 | U92: 0.048191848 | V92: 0.048191848 | W92: 0.048191848 | X92: 0.048191848 | Y92: 0.048191848 | Z92: 0.048191848 | AA92: 0.048191848 | AB92: 0.048191848 | AC92: 0.048191848 | AD92: 0.048191848 | AE92: 0.048191848 | AF92: 0.048191848 | AG92: 0.048191848 | AH92: 0.048191848 | AI92: 0.048191848 | AJ92: 0.048191848 | AK92: 0.048191848 | AL92: 0.048191848 | AM92: 0.048191848 | AN92: 0.048191848 | AO92: 0.048191848 | AP92: 0.048191848 | AQ92: 0.048191848
K93: WACC Real - Advanced | L93: 0.02262619317 | M93: 0.02262619317 | N93: 0.02262619317 | O93: 0.02262619317 | P93: 0.02262619317 | Q93: 0.02262619317 | R93: 0.02262619317 | S93: 0.02262619317 | T93: 0.02262619317 | U93: 0.02262619317 | V93: 0.02262619317 | W93: 0.02262619317 | X93: 0.02262619317 | Y93: 0.02262619317 | Z93: 0.02262619317 | AA93: 0.02262619317 | AB93: 0.02262619317 | AC93: 0.02262619317 | AD93: 0.02262619317 | AE93: 0.02262619317 | AF93: 0.02262619317 | AG93: 0.02262619317 | AH93: 0.02262619317 | AI93: 0.02262619317 | AJ93: 0.02262619317 | AK93: 0.02262619317 | AL93: 0.02262619317 | AM93: 0.02262619317 | AN93: 0.02262619317 | AO93: 0.02262619317 | AP93: 0.02262619317 | AQ93: 0.02262619317
K94: WACC Real - Moderate | L94: 0.02262619317 | M94: 0.02262619317 | N94: 0.02262619317 | O94: 0.02262619317 | P94: 0.02262619317 | Q94: 0.02262619317 | R94: 0.02262619317 | S94: 0.02262619317 | T94: 0.02262619317 | U94: 0.02262619317 | V94: 0.02262619317 | W94: 0.02262619317 | X94: 0.02262619317 | Y94: 0.02262619317 | Z94: 0.02262619317 | AA94: 0.02262619317 | AB94: 0.02262619317 | AC94: 0.02262619317 | AD94: 0.02262619317 | AE94: 0.02262619317 | AF94: 0.02262619317 | AG94: 0.02262619317 | AH94: 0.02262619317 | AI94: 0.02262619317 | AJ94: 0.02262619317 | AK94: 0.02262619317 | AL94: 0.02262619317 | AM94: 0.02262619317 | AN94: 0.02262619317 | AO94: 0.02262619317 | AP94: 0.02262619317 | AQ94: 0.02262619317
K95: WACC Real - Conservative | L95: 0.02262619317 | M95: 0.02262619317 | N95: 0.02262619317 | O95: 0.02262619317 | P95: 0.02262619317 | Q95: 0.02262619317 | R95: 0.02262619317 | S95: 0.02262619317 | T95: 0.02262619317 | U95: 0.02262619317 | V95: 0.02262619317 | W95: 0.02262619317 | X95: 0.02262619317 | Y95: 0.02262619317 | Z95: 0.02262619317 | AA95: 0.02262619317 | AB95: 0.02262619317 | AC95: 0.02262619317 | AD95: 0.02262619317 | AE95: 0.02262619317 | AF95: 0.02262619317 | AG95: 0.02262619317 | AH95: 0.02262619317 | AI95: 0.02262619317 | AJ95: 0.02262619317 | AK95: 0.02262619317 | AL95: 0.02262619317 | AM95: 0.02262619317 | AN95: 0.02262619317 | AO95: 0.02262619317 | AP95: 0.02262619317 | AQ95: 0.02262619317
K96: Capital Recovery Factor (CRF) Nominal - Advanced | L96: =L90 / (1 - (1 / (1 + L90)^$N$41)) -> 0.07901697143 | M96: 0.07901697143 | N96: 0.07901697143 | O96: 0.07901697143 | P96: 0.07901697143 | Q96: 0.07901697143 | R96: 0.07901697143 | S96: 0.07901697143 | T96: 0.07901697143 | U96: 0.07901697143 | V96: 0.07901697143 | W96: 0.07901697143 | X96: 0.07901697143 | Y96: 0.07901697143 | Z96: 0.07901697143 | AA96: 0.07901697143 | AB96: 0.07901697143 | AC96: 0.07901697143 | AD96: 0.07901697143 | AE96: 0.07901697143 | AF96: 0.07901697143 | AG96: 0.07901697143 | AH96: 0.07901697143 | AI96: 0.07901697143 | AJ96: 0.07901697143 | AK96: 0.07901697143 | AL96: 0.07901697143 | AM96: 0.07901697143 | AN96: 0.07901697143 | AO96: 0.07901697143 | AP96: 0.07901697143 | AQ96: 0.07901697143
K97: Capital Recovery Factor (CRF) Nominal - Moderate | L97: 0.07901697143 | M97: 0.07901697143 | N97: 0.07901697143 | O97: 0.07901697143 | P97: 0.07901697143 | Q97: 0.07901697143 | R97: 0.07901697143 | S97: 0.07901697143 | T97: 0.07901697143 | U97: 0.07901697143 | V97: 0.07901697143 | W97: 0.07901697143 | X97: 0.07901697143 | Y97: 0.07901697143 | Z97: 0.07901697143 | AA97: 0.07901697143 | AB97: 0.07901697143 | AC97: 0.07901697143 | AD97: 0.07901697143 | AE97: 0.07901697143 | AF97: 0.07901697143 | AG97: 0.07901697143 | AH97: 0.07901697143 | AI97: 0.07901697143 | AJ97: 0.07901697143 | AK97: 0.07901697143 | AL97: 0.07901697143 | AM97: 0.07901697143 | AN97: 0.07901697143 | AO97: 0.07901697143 | AP97: 0.07901697143 | AQ97: 0.07901697143
K98: Capital Recovery Factor (CRF) Nominal - Conservative | L98: 0.07901697143 | M98: 0.07901697143 | N98: 0.07901697143 | O98: 0.07901697143 | P98: 0.07901697143 | Q98: 0.07901697143 | R98: 0.07901697143 | S98: 0.07901697143 | T98: 0.07901697143 | U98: 0.07901697143 | V98: 0.07901697143 | W98: 0.07901697143 | X98: 0.07901697143 | Y98: 0.07901697143 | Z98: 0.07901697143 | AA98: 0.07901697143 | AB98: 0.07901697143 | AC98: 0.07901697143 | AD98: 0.07901697143 | AE98: 0.07901697143 | AF98: 0.07901697143 | AG98: 0.07901697143 | AH98: 0.07901697143 | AI98: 0.07901697143 | AJ98: 0.07901697143 | AK98: 0.07901697143 | AL98: 0.07901697143 | AM98: 0.07901697143 | AN98: 0.07901697143 | AO98: 0.07901697143 | AP98: 0.07901697143 | AQ98: 0.07901697143
K99: Capital Recovery Factor (CRF) Real - Advanced | L99: 0.06271757108 | M99: 0.06271757108 | N99: 0.06271757108 | O99: 0.06271757108 | P99: 0.06271757108 | Q99: 0.06271757108 | R99: 0.06271757108 | S99: 0.06271757108 | T99: 0.06271757108 | U99: 0.06271757108 | V99: 0.06271757108 | W99: 0.06271757108 | X99: 0.06271757108 | Y99: 0.06271757108 | Z99: 0.06271757108 | AA99: 0.06271757108 | AB99: 0.06271757108 | AC99: 0.06271757108 | AD99: 0.06271757108 | AE99: 0.06271757108 | AF99: 0.06271757108 | AG99: 0.06271757108 | AH99: 0.06271757108 | AI99: 0.06271757108 | AJ99: 0.06271757108 | AK99: 0.06271757108 | AL99: 0.06271757108 | AM99: 0.06271757108 | AN99: 0.06271757108 | AO99: 0.06271757108 | AP99: 0.06271757108 | AQ99: 0.06271757108
K100: Capital Recovery Factor (CRF) Real - Moderate | L100: 0.06271757108 | M100: 0.06271757108 | N100: 0.06271757108 | O100: 0.06271757108 | P100: 0.06271757108 | Q100: 0.06271757108 | R100: 0.06271757108 | S100: 0.06271757108 | T100: 0.06271757108 | U100: 0.06271757108 | V100: 0.06271757108 | W100: 0.06271757108 | X100: 0.06271757108 | Y100: 0.06271757108 | Z100: 0.06271757108 | AA100: 0.06271757108 | AB100: 0.06271757108 | AC100: 0.06271757108 | AD100: 0.06271757108 | AE100: 0.06271757108 | AF100: 0.06271757108 | AG100: 0.06271757108 | AH100: 0.06271757108 | AI100: 0.06271757108 | AJ100: 0.06271757108 | AK100: 0.06271757108 | AL100: 0.06271757108 | AM100: 0.06271757108 | AN100: 0.06271757108 | AO100: 0.06271757108 | AP100: 0.06271757108 | AQ100: 0.06271757108
K101: Capital Recovery Factor (CRF) Real - Conservative | L101: 0.06271757108 | M101: 0.06271757108 | N101: 0.06271757108 | O101: 0.06271757108 | P101: 0.06271757108 | Q101: 0.06271757108 | R101: 0.06271757108 | S101: 0.06271757108 | T101: 0.06271757108 | U101: 0.06271757108 | V101: 0.06271757108 | W101: 0.06271757108 | X101: 0.06271757108 | Y101: 0.06271757108 | Z101: 0.06271757108 | AA101: 0.06271757108 | AB101: 0.06271757108 | AC101: 0.06271757108 | AD101: 0.06271757108 | AE101: 0.06271757108 | AF101: 0.06271757108 | AG101: 0.06271757108 | AH101: 0.06271757108 | AI101: 0.06271757108 | AJ101: 0.06271757108 | AK101: 0.06271757108 | AL101: 0.06271757108 | AM101: 0.06271757108 | AN101: 0.06271757108 | AO101: 0.06271757108 | AP101: 0.06271757108 | AQ101: 0.06271757108
D105: X | G105: Future Projections
L106: Basis Year
L107: 2019 | M107: 2020 | N107: 2021 | O107: 2022 | P107: 2023 | Q107: 2024 | R107: 2025 | S107: 2026 | T107: 2027 | U107: 2028 | V107: 2029 | W107: 2030 | X107: 2031 | Y107: 2032 | Z107: 2033 | AA107: 2034 | AB107: 2035 | AC107: 2036 | AD107: 2037 | AE107: 2038 | AF107: 2039 | AG107: 2040 | AH107: 2041 | AI107: 2042 | AJ107: 2043 | AK107: 2044 | AL107: 2045 | AM107: 2046 | AN107: 2047 | AO107: 2048 | AP107: 2049 | AQ107: 2050
H108: Techno-Economic Cost and Performance Parameters | J108: Net Capacity Factor (%) | K108: Hydro / Flash - Advanced | L108: 0.9 | M108: 0.9 | N108: 0.9 | O108: 0.9 | P108: 0.9 | Q108: 0.9 | R108: 0.9 | S108: 0.9 | T108: 0.9 | U108: 0.9 | V108: 0.9 | W108: 0.9 | X108: 0.9 | Y108: 0.9 | Z108: 0.9 | AA108: 0.9 | AB108: 0.9 | AC108: 0.9 | AD108: 0.9 | AE108: 0.9 | AF108: 0.9 | AG108: 0.9 | AH108: 0.9 | AI108: 0.9 | AJ108: 0.9 | AK108: 0.9 | AL108: 0.9 | AM108: 0.9 | AN108: 0.9 | AO108: 0.9 | AP108: 0.9 | AQ108: 0.9
K109: Hydro / Flash - Moderate | L109: 0.9 | M109: 0.9 | N109: 0.9 | O109: 0.9 | P109: 0.9 | Q109: 0.9 | R109: 0.9 | S109: 0.9 | T109: 0.9 | U109: 0.9 | V109: 0.9 | W109: 0.9 | X109: 0.9 | Y109: 0.9 | Z109: 0.9 | AA109: 0.9 | AB109: 0.9 | AC109: 0.9 | AD109: 0.9 | AE109: 0.9 | AF109: 0.9 | AG109: 0.9 | AH109: 0.9 | AI109: 0.9 | AJ109: 0.9 | AK109: 0.9 | AL109: 0.9 | AM109: 0.9 | AN109: 0.9 | AO109: 0.9 | AP109: 0.9 | AQ109: 0.9
K110: Hydro / Flash - Conservative | L110: 0.9 | M110: 0.9 | N110: 0.9 | O110: 0.9 | P110: 0.9 | Q110: 0.9 | R110: 0.9 | S110: 0.9 | T110: 0.9 | U110: 0.9 | V110: 0.9 | W110: 0.9 | X110: 0.9 | Y110: 0.9 | Z110: 0.9 | AA110: 0.9 | AB110: 0.9 | AC110: 0.9 | AD110: 0.9 | AE110: 0.9 | AF110: 0.9 | AG110: 0.9 | AH110: 0.9 | AI110: 0.9 | AJ110: 0.9 | AK110: 0.9 | AL110: 0.9 | AM110: 0.9 | AN110: 0.9 | AO110: 0.9 | AP110: 0.9 | AQ110: 0.9
K111: Hydro / Binary - Advanced | L111: 0.8 | M111: 0.8 | N111: 0.8 | O111: 0.8 | P111: 0.8 | Q111: 0.8 | R111: 0.8 | S111: 0.8 | T111: 0.8 | U111: 0.8 | V111: 0.8 | W111: 0.8 | X111: 0.8 | Y111: 0.8 | Z111: 0.8 | AA111: 0.8 | AB111: 0.8 | AC111: 0.8 | AD111: 0.8 | AE111: 0.8 | AF111: 0.8 | AG111: 0.8 | AH111: 0.8 | AI111: 0.8 | AJ111: 0.8 | AK111: 0.8 | AL111: 0.8 | AM111: 0.8 | AN111: 0.8 | AO111: 0.8 | AP111: 0.8 | AQ111: 0.8
K112: Hydro / Binary - Moderate | L112: 0.8 | M112: 0.8 | N112: 0.8 | O112: 0.8 | P112: 0.8 | Q112: 0.8 | R112: 0.8 | S112: 0.8 | T112: 0.8 | U112: 0.8 | V112: 0.8 | W112: 0.8 | X112: 0.8 | Y112: 0.8 | Z112: 0.8 | AA112: 0.8 | AB112: 0.8 | AC112: 0.8 | AD112: 0.8 | AE112: 0.8 | AF112: 0.8 | AG112: 0.8 | AH112: 0.8 | AI112: 0.8 | AJ112: 0.8 | AK112: 0.8 | AL112: 0.8 | AM112: 0.8 | AN112: 0.8 | AO112: 0.8 | AP112: 0.8 | AQ112: 0.8
K113: Hydro / Binary - Conservative | L113: 0.8 | M113: 0.8 | N113: 0.8 | O113: 0.8 | P113: 0.8 | Q113: 0.8 | R113: 0.8 | S113: 0.8 | T113: 0.8 | U113: 0.8 | V113: 0.8 | W113: 0.8 | X113: 0.8 | Y113: 0.8 | Z113: 0.8 | AA113: 0.8 | AB113: 0.8 | AC113: 0.8 | AD113: 0.8 | AE113: 0.8 | AF113: 0.8 | AG113: 0.8 | AH113: 0.8 | AI113: 0.8 | AJ113: 0.8 | AK113: 0.8 | AL113: 0.8 | AM113: 0.8 | AN113: 0.8 | AO113: 0.8 | AP113: 0.8 | AQ113: 0.8
K114: NF EGS / Flash - Advanced | L114: 0.9 | M114: 0.9 | N114: 0.9 | O114: 0.9 | P114: 0.9 | Q114: 0.9 | R114: 0.9 | S114: 0.9 | T114: 0.9 | U114: 0.9 | V114: 0.9 | W114: 0.9 | X114: 0.9 | Y114: 0.9 | Z114: 0.9 | AA114: 0.9 | AB114: 0.9 | AC114: 0.9 | AD114: 0.9 | AE114: 0.9 | AF114: 0.9 | AG114: 0.9 | AH114: 0.9 | AI114: 0.9 | AJ114: 0.9 | AK114: 0.9 | AL114: 0.9 | AM114: 0.9 | AN114: 0.9 | AO114: 0.9 | AP114: 0.9 | AQ114: 0.9
K115: NF EGS / Flash - Moderate | L115: 0.9 | M115: 0.9 | N115: 0.9 | O115: 0.9 | P115: 0.9 | Q115: 0.9 | R115: 0.9 | S115: 0.9 | T115: 0.9 | U115: 0.9 | V115: 0.9 | W115: 0.9 | X115: 0.9 | Y115: 0.9 | Z115: 0.9 | AA115: 0.9 | AB115: 0.9 | AC115: 0.9 | AD115: 0.9 | AE115: 0.9 | AF115: 0.9 | AG115: 0.9 | AH115: 0.9 | AI115: 0.9 | AJ115: 0.9 | AK115: 0.9 | AL115: 0.9 | AM115: 0.9 | AN115: 0.9 | AO115: 0.9 | AP115: 0.9 | AQ115: 0.9
K116: NF EGS / Flash - Conservative | L116: 0.9 | M116: 0.9 | N116: 0.9 | O116: 0.9 | P116: 0.9 | Q116: 0.9 | R116: 0.9 | S116: 0.9 | T116: 0.9 | U116: 0.9 | V116: 0.9 | W116: 0.9 | X116: 0.9 | Y116: 0.9 | Z116: 0.9 | AA116: 0.9 | AB116: 0.9 | AC116: 0.9 | AD116: 0.9 | AE116: 0.9 | AF116: 0.9 | AG116: 0.9 | AH116: 0.9 | AI116: 0.9 | AJ116: 0.9 | AK116: 0.9 | AL116: 0.9 | AM116: 0.9 | AN116: 0.9 | AO116: 0.9 | AP116: 0.9 | AQ116: 0.9
K117: NF EGS / Binary - Advanced | L117: 0.8 | M117: 0.8 | N117: 0.8 | O117: 0.8 | P117: 0.8 | Q117: 0.8 | R117: 0.8 | S117: 0.8 | T117: 0.8 | U117: 0.8 | V117: 0.8 | W117: 0.8 | X117: 0.8 | Y117: 0.8 | Z117: 0.8 | AA117: 0.8 | AB117: 0.8 | AC117: 0.8 | AD117: 0.8 | AE117: 0.8 | AF117: 0.8 | AG117: 0.8 | AH117: 0.8 | AI117: 0.8 | AJ117: 0.8 | AK117: 0.8 | AL117: 0.8 | AM117: 0.8 | AN117: 0.8 | AO117: 0.8 | AP117: 0.8 | AQ117: 0.8
K118: NF EGS / Binary - Moderate | L118: 0.8 | M118: 0.8 | N118: 0.8 | O118: 0.8 | P118: 0.8 | Q118: 0.8 | R118: 0.8 | S118: 0.8 | T118: 0.8 | U118: 0.8 | V118: 0.8 | W118: 0.8 | X118: 0.8 | Y118: 0.8 | Z118: 0.8 | AA118: 0.8 | AB118: 0.8 | AC118: 0.8 | AD118: 0.8 | AE118: 0.8 | AF118: 0.8 | AG118: 0.8 | AH118: 0.8 | AI118: 0.8 | AJ118: 0.8 | AK118: 0.8 | AL118: 0.8 | AM118: 0.8 | AN118: 0.8 | AO118: 0.8 | AP118: 0.8 | AQ118: 0.8
K119: NF EGS / Binary - Conservative | L119: 0.8 | M119: 0.8 | N119: 0.8 | O119: 0.8 | P119: 0.8 | Q119: 0.8 | R119: 0.8 | S119: 0.8 | T119: 0.8 | U119: 0.8 | V119: 0.8 | W119: 0.8 | X119: 0.8 | Y119: 0.8 | Z119: 0.8 | AA119: 0.8 | AB119: 0.8 | AC119: 0.8 | AD119: 0.8 | AE119: 0.8 | AF119: 0.8 | AG119: 0.8 | AH119: 0.8 | AI119: 0.8 | AJ119: 0.8 | AK119: 0.8 | AL119: 0.8 | AM119: 0.8 | AN119: 0.8 | AO119: 0.8 | AP119: 0.8 | AQ119: 0.8
K120: Deep EGS / Flash - Advanced | L120: 0.9 | M120: 0.9 | N120: 0.9 | O120: 0.9 | P120: 0.9 | Q120: 0.9 | R120: 0.9 | S120: 0.9 | T120: 0.9 | U120: 0.9 | V120: 0.9 | W120: 0.9 | X120: 0.9 | Y120: 0.9 | Z120: 0.9 | AA120: 0.9 | AB120: 0.9 | AC120: 0.9 | AD120: 0.9 | AE120: 0.9 | AF120: 0.9 | AG120: 0.9 | AH120: 0.9 | AI120: 0.9 | AJ120: 0.9 | AK120: 0.9 | AL120: 0.9 | AM120: 0.9 | AN120: 0.9 | AO120: 0.9 | AP120: 0.9 | AQ120: 0.9
K121: Deep EGS / Flash - Moderate | L121: 0.9 | M121: 0.9 | N121: 0.9 | O121: 0.9 | P121: 0.9 | Q121: 0.9 | R121: 0.9 | S121: 0.9 | T121: 0.9 | U121: 0.9 | V121: 0.9 | W121: 0.9 | X121: 0.9 | Y121: 0.9 | Z121: 0.9 | AA121: 0.9 | AB121: 0.9 | AC121: 0.9 | AD121: 0.9 | AE121: 0.9 | AF121: 0.9 | AG121: 0.9 | AH121: 0.9 | AI121: 0.9 | AJ121: 0.9 | AK121: 0.9 | AL121: 0.9 | AM121: 0.9 | AN121: 0.9 | AO121: 0.9 | AP121: 0.9 | AQ121: 0.9
K122: Deep EGS / Flash - Conservative | L122: 0.9 | M122: 0.9 | N122: 0.9 | O122: 0.9 | P122: 0.9 | Q122: 0.9 | R122: 0.9 | S122: 0.9 | T122: 0.9 | U122: 0.9 | V122: 0.9 | W122: 0.9 | X122: 0.9 | Y122: 0.9 | Z122: 0.9 | AA122: 0.9 | AB122: 0.9 | AC122: 0.9 | AD122: 0.9 | AE122: 0.9 | AF122: 0.9 | AG122: 0.9 | AH122: 0.9 | AI122: 0.9 | AJ122: 0.9 | AK122: 0.9 | AL122: 0.9 | AM122: 0.9 | AN122: 0.9 | AO122: 0.9 | AP122: 0.9 | AQ122: 0.9
K123: Deep EGS / Binary - Advanced | L123: 0.8 | M123: 0.8 | N123: 0.8 | O123: 0.8 | P123: 0.8 | Q123: 0.8 | R123: 0.8 | S123: 0.8 | T123: 0.8 | U123: 0.8 | V123: 0.8 | W123: 0.8 | X123: 0.8 | Y123: 0.8 | Z123: 0.8 | AA123: 0.8 | AB123: 0.8 | AC123: 0.8 | AD123: 0.8 | AE123: 0.8 | AF123: 0.8 | AG123: 0.8 | AH123: 0.8 | AI123: 0.8 | AJ123: 0.8 | AK123: 0.8 | AL123: 0.8 | AM123: 0.8 | AN123: 0.8 | AO123: 0.8 | AP123: 0.8 | AQ123: 0.8
K124: Deep EGS / Binary - Moderate | L124: 0.8 | M124: 0.8 | N124: 0.8 | O124: 0.8 | P124: 0.8 | Q124: 0.8 | R124: 0.8 | S124: 0.8 | T124: 0.8 | U124: 0.8 | V124: 0.8 | W124: 0.8 | X124: 0.8 | Y124: 0.8 | Z124: 0.8 | AA124: 0.8 | AB124: 0.8 | AC124: 0.8 | AD124: 0.8 | AE124: 0.8 | AF124: 0.8 | AG124: 0.8 | AH124: 0.8 | AI124: 0.8 | AJ124: 0.8 | AK124: 0.8 | AL124: 0.8 | AM124: 0.8 | AN124: 0.8 | AO124: 0.8 | AP124: 0.8 | AQ124: 0.8
K125: Deep EGS / Binary - Conservative | L125: 0.8 | M125: 0.8 | N125: 0.8 | O125: 0.8 | P125: 0.8 | Q125: 0.8 | R125: 0.8 | S125: 0.8 | T125: 0.8 | U125: 0.8 | V125: 0.8 | W125: 0.8 | X125: 0.8 | Y125: 0.8 | Z125: 0.8 | AA125: 0.8 | AB125: 0.8 | AC125: 0.8 | AD125: 0.8 | AE125: 0.8 | AF125: 0.8 | AG125: 0.8 | AH125: 0.8 | AI125: 0.8 | AJ125: 0.8 | AK125: 0.8 | AL125: 0.8 | AM125: 0.8 | AN125: 0.8 | AO125: 0.8 | AP125: 0.8 | AQ125: 0.8
L127: 2019 | M127: 2020 | N127: 2021 | O127: 2022 | P127: 2023 | Q127: 2024 | R127: 2025 | S127: 2026 | T127: 2027 | U127: 2028 | V127: 2029 | W127: 2030 | X127: 2031 | Y127: 2032 | Z127: 2033 | AA127: 2034 | AB127: 2035 | AC127: 2036 | AD127: 2037 | AE127: 2038 | AF127: 2039 | AG127: 2040 | AH127: 2041 | AI127: 2042 | AJ127: 2043 | AK127: 2044 | AL127: 2045 | AM127: 2046 | AN127: 2047 | AO127: 2048 | AP127: 2049 | AQ127: 2050
J128: Annual Energy Production (kWh/kW) | K128: Hydro / Flash - Advanced | L128: =L108*8760 -> 7884 | M128: 7884 | N128: 7884 | O128: 7884 | P128: 7884 | Q128: 7884 | R128: 7884 | S128: 7884 | T128: 7884 | U128: 7884 | V128: 7884 | W128: 7884 | X128: 7884 | Y128: 7884 | Z128: 7884 | AA128: 7884 | AB128: 7884 | AC128: 7884 | AD128: 7884 | AE128: 7884 | AF128: 7884 | AG128: 7884 | AH128: 7884 | AI128: 7884 | AJ128: 7884 | AK128: 7884 | AL128: 7884 | AM128: 7884 | AN128: 7884 | AO128: 7884 | AP128: 7884 | AQ128: 7884
K129: Hydro / Flash - Moderate | L129: 7884 | M129: 7884 | N129: 7884 | O129: 7884 | P129: 7884 | Q129: 7884 | R129: 7884 | S129: 7884 | T129: 7884 | U129: 7884 | V129: 7884 | W129: 7884 | X129: 7884 | Y129: 7884 | Z129: 7884 | AA129: 7884 | AB129: 7884 | AC129: 7884 | AD129: 7884 | AE129: 7884 | AF129: 7884 | AG129: 7884 | AH129: 7884 | AI129: 7884 | AJ129: 7884 | AK129: 7884 | AL129: 7884 | AM129: 7884 | AN129: 7884 | AO129: 7884 | AP129: 7884 | AQ129: 7884
K130: Hydro / Flash - Conservative | L130: 7884 | M130: 7884 | N130: 7884 | O130: 7884 | P130: 7884 | Q130: 7884 | R130: 7884 | S130: 7884 | T130: 7884 | U130: 7884 | V130: 7884 | W130: 7884 | X130: 7884 | Y130: 7884 | Z130: 7884 | AA130: 7884 | AB130: 7884 | AC130: 7884 | AD130: 7884 | AE130: 7884 | AF130: 7884 | AG130: 7884 | AH130: 7884 | AI130: 7884 | AJ130: 7884 | AK130: 7884 | AL130: 7884 | AM130: 7884 | AN130: 7884 | AO130: 7884 | AP130: 7884 | AQ130: 7884
K131: Hydro / Binary - Advanced | L131: 7008 | M131: 7008 | N131: 7008 | O131: 7008 | P131: 7008 | Q131: 7008 | R131: 7008 | S131: 7008 | T131: 7008 | U131: 7008 | V131: 7008 | W131: 7008 | X131: 7008 | Y131: 7008 | Z131: 7008 | AA131: 7008 | AB131: 7008 | AC131: 7008 | AD131: 7008 | AE131: 7008 | AF131: 7008 | AG131: 7008 | AH131: 7008 | AI131: 7008 | AJ131: 7008 | AK131: 7008 | AL131: 7008 | AM131: 7008 | AN131: 7008 | AO131: 7008 | AP131: 7008 | AQ131: 7008
K132: Hydro / Binary - Moderate | L132: 7008 | M132: 7008 | N132: 7008 | O132: 7008 | P132: 7008 | Q132: 7008 | R132: 7008 | S132: 7008 | T132: 7008 | U132: 7008 | V132: 7008 | W132: 7008 | X132: 7008 | Y132: 7008 | Z132: 7008 | AA132: 7008 | AB132: 7008 | AC132: 7008 | AD132: 7008 | AE132: 7008 | AF132: 7008 | AG132: 7008 | AH132: 7008 | AI132: 7008 | AJ132: 7008 | AK132: 7008 | AL132: 7008 | AM132: 7008 | AN132: 7008 | AO132: 7008 | AP132: 7008 | AQ132: 7008
K133: Hydro / Binary - Conservative | L133: 7008 | M133: 7008 | N133: 7008 | O133: 7008 | P133: 7008 | Q133: 7008 | R133: 7008 | S133: 7008 | T133: 7008 | U133: 7008 | V133: 7008 | W133: 7008 | X133: 7008 | Y133: 7008 | Z133: 7008 | AA133: 7008 | AB133: 7008 | AC133: 7008 | AD133: 7008 | AE133: 7008 | AF133: 7008 | AG133: 7008 | AH133: 7008 | AI133: 7008 | AJ133: 7008 | AK133: 7008 | AL133: 7008 | AM133: 7008 | AN133: 7008 | AO133: 7008 | AP133: 7008 | AQ133: 7008
K134: NF EGS / Flash - Advanced | L134: 7884 | M134: 7884 | N134: 7884 | O134: 7884 | P134: 7884 | Q134: 7884 | R134: 7884 | S134: 7884 | T134: 7884 | U134: 7884 | V134: 7884 | W134: 7884 | X134: 7884 | Y134: 7884 | Z134: 7884 | AA134: 7884 | AB134: 7884 | AC134: 7884 | AD134: 7884 | AE134: 7884 | AF134: 7884 | AG134: 7884 | AH134: 7884 | AI134: 7884 | AJ134: 7884 | AK134: 7884 | AL134: 7884 | AM134: 7884 | AN134: 7884 | AO134: 7884 | AP134: 7884 | AQ134: 7884
K135: NF EGS / Flash - Moderate | L135: 7884 | M135: 7884 | N135: 7884 | O135: 7884 | P135: 7884 | Q135: 7884 | R135: 7884 | S135: 7884 | T135: 7884 | U135: 7884 | V135: 7884 | W135: 7884 | X135: 7884 | Y135: 7884 | Z135: 7884 | AA135: 7884 | AB135: 7884 | AC135: 7884 | AD135: 7884 | AE135: 7884 | AF135: 7884 | AG135: 7884 | AH135: 7884 | AI135: 7884 | AJ135: 7884 | AK135: 7884 | AL135: 7884 | AM135: 7884 | AN135: 7884 | AO135: 7884 | AP135: 7884 | AQ135: =AQ115*8760 -> 7884
K136: NF EGS / Flash - Conservative | L136: =L116*8760 -> 7884 | M136: 7884 | N136: 7884 | O136: 7884 | P136: 7884 | Q136: 7884 | R136: 7884 | S136: 7884 | T136: 7884 | U136: 7884 | V136: 7884 | W136: 7884 | X136: 7884 | Y136: 7884 | Z136: 7884 | AA136: 7884 | AB136: 7884 | AC136: 7884 | AD136: 7884 | AE136: 7884 | AF136: 7884 | AG136: 7884 | AH136: 7884 | AI136: 7884 | AJ136: 7884 | AK136: 7884 | AL136: 7884 | AM136: 7884 | AN136: 7884 | AO136: 7884 | AP136: 7884 | AQ136: 7884
K137: NF EGS / Binary - Advanced | L137: 7008 | M137: 7008 | N137: 7008 | O137: 7008 | P137: 7008 | Q137: 7008 | R137: 7008 | S137: 7008 | T137: 7008 | U137: 7008 | V137: 7008 | W137: 7008 | X137: 7008 | Y137: 7008 | Z137: 7008 | AA137: 7008 | AB137: 7008 | AC137: 7008 | AD137: 7008 | AE137: 7008 | AF137: 7008 | AG137: 7008 | AH137: 7008 | AI137: 7008 | AJ137: 7008 | AK137: 7008 | AL137: 7008 | AM137: 7008 | AN137: 7008 | AO137: 7008 | AP137: 7008 | AQ137: 7008
K138: NF EGS / Binary - Moderate | L138: 7008 | M138: 7008 | N138: 7008 | O138: 7008 | P138: 7008 | Q138: 7008 | R138: 7008 | S138: 7008 | T138: 7008 | U138: 7008 | V138: 7008 | W138: 7008 | X138: 7008 | Y138: 7008 | Z138: 7008 | AA138: 7008 | AB138: 7008 | AC138: 7008 | AD138: 7008 | AE138: 7008 | AF138: 7008 | AG138: 7008 | AH138: 7008 | AI138: 7008 | AJ138: 7008 | AK138: 7008 | AL138: 7008 | AM138: 7008 | AN138: 7008 | AO138: 7008 | AP138: 7008 | AQ138: 7008
K139: NF EGS / Binary - Conservative | L139: 7008 | M139: 7008 | N139: 7008 | O139: 7008 | P139: 7008 | Q139: 7008 | R139: 7008 | S139: 7008 | T139: 7008 | U139: 7008 | V139: 7008 | W139: 7008 | X139: 7008 | Y139: 7008 | Z139: 7008 | AA139: 7008 | AB139: 7008 | AC139: 7008 | AD139: 7008 | AE139: 7008 | AF139: 7008 | AG139: 7008 | AH139: 7008 | AI139: 7008 | AJ139: 7008 | AK139: 7008 | AL139: 7008 | AM139: 7008 | AN139: 7008 | AO139: 7008 | AP139: 7008 | AQ139: 7008
K140: Deep EGS / Flash - Advanced | L140: 7884 | M140: 7884 | N140: 7884 | O140: 7884 | P140: 7884 | Q140: 7884 | R140: 7884 | S140: 7884 | T140: 7884 | U140: 7884 | V140: 7884 | W140: 7884 | X140: 7884 | Y140: 7884 | Z140: 7884 | AA140: 7884 | AB140: 7884 | AC140: 7884 | AD140: 7884 | AE140: 7884 | AF140: 7884 | AG140: 7884 | AH140: 7884 | AI140: 7884 | AJ140: 7884 | AK140: 7884 | AL140: 7884 | AM140: 7884 | AN140: 7884 | AO140: 7884 | AP140: 7884 | AQ140: 7884
K141: Deep EGS / Flash - Moderate | L141: 7884 | M141: 7884 | N141: 7884 | O141: 7884 | P141: 7884 | Q141: 7884 | R141: 7884 | S141: 7884 | T141: 7884 | U141: 7884 | V141: 7884 | W141: 7884 | X141: 7884 | Y141: 7884 | Z141: 7884 | AA141: 7884 | AB141: 7884 | AC141: 7884 | AD141: 7884 | AE141: 7884 | AF141: 7884 | AG141: 7884 | AH141: 7884 | AI141: 7884 | AJ141: 7884 | AK141: 7884 | AL141: 7884 | AM141: 7884 | AN141: 7884 | AO141: 7884 | AP141: 7884 | AQ141: 7884
K142: Deep EGS / Flash - Conservative | L142: 7884 | M142: 7884 | N142: 7884 | O142: 7884 | P142: 7884 | Q142: 7884 | R142: 7884 | S142: 7884 | T142: 7884 | U142: 7884 | V142: 7884 | W142: 7884 | X142: 7884 | Y142: 7884 | Z142: 7884 | AA142: 7884 | AB142: 7884 | AC142: 7884 | AD142: 7884 | AE142: 7884 | AF142: 7884 | AG142: 7884 | AH142: 7884 | AI142: 7884 | AJ142: 7884 | AK142: 7884 | AL142: 7884 | AM142: 7884 | AN142: 7884 | AO142: 7884 | AP142: 7884 | AQ142: 7884
K143: Deep EGS / Binary - Advanced | L143: 7008 | M143: 7008 | N143: 7008 | O143: 7008 | P143: 7008 | Q143: 7008 | R143: 7008 | S143: 7008 | T143: 7008 | U143: 7008 | V143: 7008 | W143: 7008 | X143: 7008 | Y143: 7008 | Z143: 7008 | AA143: 7008 | AB143: 7008 | AC143: 7008 | AD143: 7008 | AE143: 7008 | AF143: 7008 | AG143: 7008 | AH143: 7008 | AI143: 7008 | AJ143: 7008 | AK143: 7008 | AL143: 7008 | AM143: 7008 | AN143: 7008 | AO143: 7008 | AP143: 7008 | AQ143: =AQ123*8760 -> 7008
K144: Deep EGS / Binary - Moderate | L144: =L124*8760 -> 7008 | M144: 7008 | N144: 7008 | O144: 7008 | P144: 7008 | Q144: 7008 | R144: 7008 | S144: 7008 | T144: 7008 | U144: 7008 | V144: 7008 | W144: 7008 | X144: 7008 | Y144: 7008 | Z144: 7008 | AA144: 7008 | AB144: 7008 | AC144: 7008 | AD144: 7008 | AE144: 7008 | AF144: 7008 | AG144: 7008 | AH144: 7008 | AI144: 7008 | AJ144: 7008 | AK144: 7008 | AL144: 7008 | AM144: 7008 | AN144: 7008 | AO144: 7008 | AP144: 7008 | AQ144: 7008
K145: Deep EGS / Binary - Conservative | L145: 7008 | M145: 7008 | N145: 7008 | O145: 7008 | P145: 7008 | Q145: 7008 | R145: 7008 | S145: 7008 | T145: 7008 | U145: 7008 | V145: 7008 | W145: 7008 | X145: 7008 | Y145: 7008 | Z145: 7008 | AA145: 7008 | AB145: 7008 | AC145: 7008 | AD145: 7008 | AE145: 7008 | AF145: 7008 | AG145: 7008 | AH145: 7008 | AI145: 7008 | AJ145: 7008 | AK145: 7008 | AL145: 7008 | AM145: 7008 | AN145: 7008 | AO145: 7008 | AP145: 7008 | AQ145: 7008
L147: 2019 | M147: 2020 | N147: 2021 | O147: 2022 | P147: 2023 | Q147: 2024 | R147: 2025 | S147: 2026 | T147: 2027 | U147: 2028 | V147: 2029 | W147: 2030 | X147: 2031 | Y147: 2032 | Z147: 2033 | AA147: 2034 | AB147: 2035 | AC147: 2036 | AD147: 2037 | AE147: 2038 | AF147: 2039 | AG147: 2040 | AH147: 2041 | AI147: 2042 | AJ147: 2043 | AK147: 2044 | AL147: 2045 | AM147: 2046 | AN147: 2047 | AO147: 2048 | AP147: 2049 | AQ147: 2050
J148: CAPEX ($/kW) | K148: Hydro / Flash - Advanced | L148: =AT43*(L188+L249) -> 6662.416822 | M148: =AV43*(M188+M249) -> 6435.265449 | N148: 6257.553069 | O148: 6081.752626 | P148: 5907.864121 | Q148: 5735.887554 | R148: 5565.822924 | S148: 5397.670232 | T148: 5231.429477 | U148: 5067.10066 | V148: 4904.68378 | W148: =$N$52*(W188+W249) -> 4781.190236 | X148: 4757.284285 | Y148: 4733.497864 | Z148: 4709.830374 | AA148: 4686.281222 | AB148: 4662.849816 | AC148: 4639.535567 | AD148: 4616.337889 | AE148: 4593.2562 | AF148: 4570.289919 | AG148: 4547.438469 | AH148: 4524.701277 | AI148: 4502.077771 | AJ148: 4479.567382 | AK148: 4457.169545 | AL148: 4434.883697 | AM148: 4412.709279 | AN148: 4390.645732 | AO148: 4368.692504 | AP148: 4346.849041 | AQ148: 4325.114796
K149: Hydro / Flash - Moderate | L149: =AT42*(L189+L250) -> 6662.416822 | M149: =AV42*(M189+M250) -> 6542.071124 | N149: 6439.394939 | O149: 6337.165181 | P149: 6235.38185 | Q149: 6134.044948 | R149: 6033.154473 | S149: 5932.710425 | T149: 5832.712806 | U149: 5733.161614 | V149: 5634.05685 | W149: =$N$60*(W189+W250) -> 5550.166245 | X149: 5522.415413 | Y149: 5494.803336 | Z149: 5467.32932 | AA149: 5439.992673 | AB149: 5412.79271 | AC149: 5385.728746 | AD149: 5358.800102 | AE149: 5332.006102 | AF149: 5305.346071 | AG149: 5278.819341 | AH149: 5252.425244 | AI149: 5226.163118 | AJ149: 5200.032302 | AK149: 5174.032141 | AL149: 5148.16198 | AM149: 5122.42117 | AN149: 5096.809064 | AO149: 5071.325019 | AP149: 5045.968394 | AQ149: 5020.738552
K150: Hydro / Flash - Conservative | L150: =$N$54*(L190+L251) -> 6662.416822 | M150: 6629.104738 | N150: 6595.959214 | O150: 6562.979418 | P150: 6530.164521 | Q150: 6497.513698 | R150: 6465.02613 | S150: 6432.700999 | T150: 6400.537494 | U150: 6368.534807 | V150: 6336.692132 | W150: 6305.008672 | X150: 6273.483628 | Y150: 6242.11621 | Z150: 6210.905629 | AA150: 6179.851101 | AB150: 6148.951846 | AC150: 6118.207086 | AD150: 6087.616051 | AE150: 6057.177971 | AF150: 6026.892081 | AG150: 5996.75762 | AH150: 5966.773832 | AI150: 5936.939963 | AJ150: 5907.255263 | AK150: 5877.718987 | AL150: 5848.330392 | AM150: 5819.08874 | AN150: 5789.993296 | AO150: 5761.04333 | AP150: 5732.238113 | AQ150: 5703.576923
K151: Hydro / Binary - Advanced | L151: =AT43*(L191+L252) -> 8531.939133 | M151: =AV43*(M191+M252) -> 8271.263727 | N151: 8073.462909 | O151: 7877.67319 | P151: 7683.894571 | Q151: 7492.127051 | R151: 7302.37063 | S151: 7114.625309 | T151: 6928.891087 | U151: 6745.167965 | V151: 6563.455942 | W151: =$N$52*(W191+W252) -> 6433.557461 | X151: 6401.389674 | Y151: 6369.382725 | Z151: 6337.535812 | AA151: 6305.848133 | AB151: 6274.318892 | AC151: 6242.947297 | AD151: 6211.732561 | AE151: 6180.673898 | AF151: 6149.770529 | AG151: 6119.021676 | AH151: 6088.426568 | AI151: 6057.984435 | AJ151: 6027.694513 | AK151: 5997.55604 | AL151: 5967.56826 | AM151: 5937.730419 | AN151: 5908.041766 | AO151: 5878.501558 | AP151: 5849.10905 | AQ151: 5819.863505
K152: Hydro / Binary - Moderate | L152: =AT42*(L192+L253) -> 8531.939133 | M152: =AV42*(M192+M253) -> 8407.483552 | N152: 8305.501529 | O152: 8203.937058 | P152: 8102.790141 | Q152: 8002.060776 | R152: 7901.748965 | S152: 7801.854706 | T152: 7702.378 | U152: 7603.318847 | V152: 7504.677247 | W152: =$N$60*(W192+W253) -> 7426.212664 | X152: 7389.081601 | Y152: 7352.136193 | Z152: 7315.375512 | AA152: 7278.798635 | AB152: 7242.404641 | AC152: 7206.192618 | AD152: 7170.161655 | AE152: 7134.310847 | AF152: 7098.639293 | AG152: 7063.146096 | AH152: 7027.830366 | AI152: 6992.691214 | AJ152: 6957.727758 | AK152: 6922.939119 | AL152: 6888.324423 | AM152: 6853.882801 | AN152: 6819.613387 | AO152: 6785.51532 | AP152: 6751.587744 | AQ152: 6717.829805
K153: Hydro / Binary - Conservative | L153: =$N$54*(L193+L254) -> 8531.939133 | M153: 8489.279438 | N153: 8446.833041 | O153: 8404.598875 | P153: 8362.575881 | Q153: 8320.763002 | R153: 8279.159187 | S153: 8237.763391 | T153: 8196.574574 | U153: 8155.591701 | V153: 8114.813742 | W153: 8074.239674 | X153: 8033.868475 | Y153: 7993.699133 | Z153: 7953.730637 | AA153: 7913.961984 | AB153: 7874.392174 | AC153: 7835.020213 | AD153: 7795.845112 | AE153: 7756.865887 | AF153: 7718.081557 | AG153: 7679.491149 | AH153: 7641.093694 | AI153: 7602.888225 | AJ153: 7564.873784 | AK153: 7527.049415 | AL153: 7489.414168 | AM153: 7451.967097 | AN153: 7414.707262 | AO153: 7377.633725 | AP153: 7340.745557 | AQ153: 7304.041829
K154: NF EGS / Flash - Advanced | L154: =AT45*(L194+L255) -> 19977.46522 | M154: =AV45*(M194+M255) -> 18378.32765 | N154: 16939.35515 | O154: 15519.27106 | P154: 14118.07536 | Q154: 12735.76806 | R154: 11372.34915 | S154: 10027.81864 | T154: 8702.176526 | U154: 7395.422809 | V154: 6107.557488 | W154: =$N$53*(W194+W255) -> 4875.971069 | X154: 4851.591213 | Y154: 4827.333257 | Z154: 4803.196591 | AA154: 4779.180608 | AB154: 4755.284705 | AC154: 4731.508282 | AD154: 4707.85074 | AE154: 4684.311486 | AF154: 4660.889929 | AG154: 4637.585479 | AH154: 4614.397552 | AI154: 4591.325564 | AJ154: 4568.368936 | AK154: 4545.527092 | AL154: 4522.799456 | AM154: 4500.185459 | AN154: 4477.684532 | AO154: 4455.296109 | AP154: 4433.019629 | AQ154: 4410.85453
K155: NF EGS / Flash - Moderate | L155: =AT44*(L195+L256) -> 19977.46522 | M155: =AV44*(M195+M256) -> 19295.64709 | N155: 18686.07104 | O155: 18071.51927 | P155: 17460.38303 | Q155: 16852.66231 | R155: 16248.35713 | S155: 15647.46748 | T155: 15049.99336 | U155: 14455.93477 | V155: 13865.29171 | W155: =$N$61*(W195+W256) -> 13312.00696 | X155: 13245.44692 | Y155: 13179.21969 | Z155: 13113.32359 | AA155: 13047.75697 | AB155: 12982.51819 | AC155: 12917.6056 | AD155: 12853.01757 | AE155: 12788.75248 | AF155: 12724.80872 | AG155: 12661.18467 | AH155: 12597.87875 | AI155: 12534.88936 | AJ155: 12472.21491 | AK155: 12409.85384 | AL155: 12347.80457 | AM155: 12286.06554 | AN155: 12224.63522 | AO155: 12163.51204 | AP155: 12102.69448 | AQ155: 12042.18101
